Workbook

Sheet PNB BDD
C2: A sélectionner dans menu déroulant | V2: Légende
B3: Direction commerciale | V3: Réalisations > objectif proraté
B4: Secteur | V4: Réalisations < 50% de objectif proraté
B5: Agence | V5: Taux / durée lié a une convention
B7: =IF(C3="","CEGEE",IF(AND(C5="",C4=""),C3,IF(AND(C5="",C4<>""),C4,IF(C5="","""Sélectionneragence",C5)))) -> CEGEE | E7: PNB sur Activité Nouvelle 2019
B9: Données arrêtées au : | C9: ='Indicateurs Cumulés'!$G$4 -> 2019-08-31
B10: Taux de réalisation attendu : | C10: =MONTH(C9)/12 -> 67% | E10: Réalisations Mensuelles | J10: Réalisations Annuelles | P10: OBJECTIFS | V10: TAUX Réal. Objectif
E11: Volume | F11: Taux | G11: Durée | H11: PNB | J11: Volume | K11: Taux | L11: Durée | M11: PNB | N11: PNB / ETP perf. | P11: Volume | Q11: Taux | R11: Durée | S11: PNB | T11: PNB / ETP Cible | V11: Volume | W11: PNB annuel | X11: Ecart /obj. PNB/ETP
B12: Montants en k€
B14: COLLECTE (yc DAV) - Excédents | E14: =E15+E16++E32 -> 17,251 | H14: =H15+H16+H32 -> 1,316 | J14: =J15+J16++J32 -> 102,175 | M14: =M15+M16+M32 -> 15,275 | N14: =IF(ISERROR(M14/SUMIF('Indicateurs Cumulés'!$F:$F,$B$7,'Indicateurs Cumulés'!HT:HT)),"nc",M14/SUMIF('Indicateurs Cumulés'!$F:$F,$B$7,'Indicateurs Cumulés'!HT:HT)) -> 11.1 | P14: =P15+P16+P32 -> 180,000 | S14: =S15+S16+S32 -> 24,756 | T14: =IF(ISERROR(S14/SUMIF(objectifs!$F:$F,$B$7,objectifs!IC:IC)),"nc",S14/SUMIF(objectifs!$F:$F,$B$7,objectifs!IC:IC)) -> 16.3 | V14: =IF(ISERROR(J14/P14),0,J14/P14) -> 57% | W14: =IF(ISERROR(M14/S14),0,M14/S14) -> 62% | X14: =IF(ISERROR(N14-(T14/12*MONTH($C$9))),"nc",N14-(T14/12*MONTH($C$9))) -> 0.3
B15: DAV Créditeurs - Variation d'EMJ mensuel | E15: =SUMIF('Indicateurs mensuels'!$F:$F,$B$7,'Indicateurs mensuels'!HH:HH)/12 -> 11,732 | F15: =K15 -> 1.00% | G15: =L15 -> 5.37 | H15: =E15*F15*G15 -> 630 | J15: =SUMIF('Indicateurs Cumulés'!$F:$F,$B$7,'Indicateurs Cumulés'!HQ:HQ) -> 46,735 | K15: ='Indicateurs Cumulés'!$GI$374 -> 1.00% | L15: ='Indicateurs Cumulés'!$GJ$374 -> 5.37 | M15: =J15*K15*L15 -> 2,510 | N15: =IF(ISERROR(M15/SUMIF('Indicateurs Cumulés'!$F:$F,$B$7,'Indicateurs Cumulés'!HT:HT)),"nc",M15/SUMIF('Indicateurs Cumulés'!$F:$F,$B$7,'Indicateurs Cumulés'!HT:HT)) -> 1.8 | P15: =SUMIF(objectifs!F:F,$B$7,objectifs!FF:FF) -> 130,000 | Q15: =objectifs!$FG$373 -> 1.00% | R15: =objectifs!$FH$373 -> 5.37 | S15: =P15*Q15*R15 -> 6,981 | T15: =IF(ISERROR(S15/SUMIF(objectifs!$F:$F,$B$7,objectifs!IC:IC)),"nc",S15/SUMIF(objectifs!$F:$F,$B$7,objectifs!IC:IC)) -> 4.6 | V15: =IF(ISERROR(J15/P15),0,J15/P15) -> 36% | W15: =IF(ISERROR(M15/S15),0,M15/S15) -> 36% | X15: =IF(ISERROR(N15-(T15/12*MONTH($C$9))),"nc",N15-(T15/12*MONTH($C$9))) -> -1.2
B16: Epargne Bilan | E16: =SUMIF('Indicateurs mensuels'!$F:$F,$B$7,'Indicateurs mensuels'!FV:FV) -> 6,862 | H16: =SUMIF('Indicateurs mensuels'!$F:$F,$B$7,'Indicateurs mensuels'!FW:FW) -> 428 | J16: =SUMIF('Indicateurs Cumulés'!$F:$F,$B$7,'Indicateurs Cumulés'!GD:GD) -> -83,287 | M16: =SUMIF('Indicateurs Cumulés'!$F:$F,$B$7,'Indicateurs Cumulés'!GE:GE) -> 2,773 | N16: =IF(ISERROR(M16/SUMIF('Indicateurs Cumulés'!$F:$F,$B$7,'Indicateurs Cumulés'!HT:HT)),"nc",M16/SUMIF('Indicateurs Cumulés'!$F:$F,$B$7,'Indicateurs Cumulés'!HT:HT)) -> 2.0 | P16: =SUMIF(objectifs!F:F,$B$7,objectifs!CH:CH)+SUMIF(objectifs!F:F,$B$7,objectifs!FB:FB) -> -120,000 | S16: =SUMIF(objectifs!F:F,$B$7,objectifs!CK:CK)+SUMIF(objectifs!F:F,$B$7,objectifs!FC:FC) -> 2,792 | T16: =IF(ISERROR(S16/SUMIF(objectifs!$F:$F,$B$7,objectifs!IC:IC)),"nc",S16/SUMIF(objectifs!$F:$F,$B$7,objectifs!IC:IC)) -> 1.8 | V16: =IF(ISERROR(J16/P16),0,J16/P16) -> 69% | W16: =IF(ISERROR(M16/S16),0,M16/S16) -> 99% | X16: =IF(ISERROR(N16-(T16/12*MONTH($C$9))),"nc",N16-(T16/12*MONTH($C$9))) -> 0.8
B17: Livret A | E17: =SUMIF('Indicateurs mensuels'!$F:$F,$B$7,'Indicateurs mensuels'!DB:DB) -> -2,510 | F17: =K17 -> 0.70% | G17: =L17 -> 5.33 | H17: =E17*F17*G17 -> -94 | J17: =SUMIF('Indicateurs Cumulés'!$F:$F,$B$7,'Indicateurs Cumulés'!DJ:DJ) -> 65,297 | K17: ='Indicateurs Cumulés'!$DK$374 -> 0.70% | L17: ='Indicateurs Cumulés'!$DL$374 -> 5.33 | M17: =SUMIF('Indicateurs Cumulés'!$F:$F,$B$7,'Indicateurs Cumulés'!DM:DM) -> 2,436 | N17: =IF(ISERROR(M17/SUMIF('Indicateurs Cumulés'!$F:$F,$B$7,'Indicateurs Cumulés'!HT:HT)),"nc",M17/SUMIF('Indicateurs Cumulés'!$F:$F,$B$7,'Indicateurs Cumulés'!HT:HT)) -> 1.8 | P17: =SUMIF(objectifs!F:F,$B$7,objectifs!CH:CH) -> 30,000 | Q17: =objectifs!$CI$373 -> 0.70% | R17: =objectifs!$CJ$373 -> 5.37 | S17: =P17*Q17*R17 -> 1,128 | T17: =IF(ISERROR(S17/SUMIF(objectifs!$F:$F,$B$7,objectifs!IC:IC)),"nc",S17/SUMIF(objectifs!$F:$F,$B$7,objectifs!IC:IC)) -> 0.7 | V17: =IF(ISERROR(J17/P17),0,J17/P17) -> 218% | W17: =IF(ISERROR(M17/S17),0,M17/S17) -> 216% | X17: 1.3
B18: LDDS | E18: =SUMIF('Indicateurs mensuels'!$F:$F,$B$7,'Indicateurs mensuels'!DV:DV) -> 1,132 | F18: =K18 -> 0.20% | G18: =L18 -> 5.37 | H18: 12 | J18: =SUMIF('Indicateurs Cumulés'!$F:$F,$B$7,'Indicateurs Cumulés'!ED:ED) -> 21,486 | K18: ='Indicateurs Cumulés'!$EE$374 -> 0.20% | L18: ='Indicateurs Cumulés'!$EF$374 -> 5.37 | M18: =SUMIF('Indicateurs Cumulés'!$F:$F,$B$7,'Indicateurs Cumulés'!EG:EG) -> 231 | N18: =IF(ISERROR(M18/SUMIF('Indicateurs Cumulés'!$F:$F,$B$7,'Indicateurs Cumulés'!HT:HT)),"nc",M18/SUMIF('Indicateurs Cumulés'!$F:$F,$B$7,'Indicateurs Cumulés'!HT:HT)) -> 0.2 | P18: =SUMIF(objectifs!F:F,$B$7,objectifs!DB:DB) -> 10,000 | Q18: =objectifs!$DC$373 -> 0.20% | R18: =objectifs!$DD$373 -> 5.37 | S18: =P18*Q18*R18 -> 107 | T18: =IF(ISERROR(S18/SUMIF(objectifs!$F:$F,$B$7,objectifs!IC:IC)),"nc",S18/SUMIF(objectifs!$F:$F,$B$7,objectifs!IC:IC)) -> 0.1 | V18: =IF(ISERROR(J18/P18),0,J18/P18) -> 215% | W18: =IF(ISERROR(M18/S18),0,M18/S18) -> 215% | X18: 0.1
B19: LEP | E19: =SUMIF('Indicateurs mensuels'!$F:$F,$B$7,'Indicateurs mensuels'!DR:DR) -> -2,326 | F19: 0.20% | G19: 5.37 | H19: -25 | J19: =SUMIF('Indicateurs Cumulés'!$F:$F,$B$7,'Indicateurs Cumulés'!DZ:DZ) -> -116,142 | K19: ='Indicateurs Cumulés'!$EA$374 -> 0.20% | L19: ='Indicateurs Cumulés'!$EB$374 -> 5.37 | M19: =SUMIF('Indicateurs Cumulés'!$F:$F,$B$7,'Indicateurs Cumulés'!EC:EC) -> -1247 | N19: =IF(ISERROR(M19/SUMIF('Indicateurs Cumulés'!$F:$F,$B$7,'Indicateurs Cumulés'!HT:HT)),"nc",M19/SUMIF('Indicateurs Cumulés'!$F:$F,$B$7,'Indicateurs Cumulés'!HT:HT)) -> -0.9 | P19: =SUMIF(objectifs!F:F,$B$7,objectifs!CX:CX) -> -40,000 | Q19: =objectifs!$CY$373 -> 0.20% | R19: =objectifs!$CZ$373 -> 5.37 | S19: -430 | T19: =IF(ISERROR(S19/SUMIF(objectifs!$F:$F,$B$7,objectifs!IC:IC)),"nc",S19/SUMIF(objectifs!$F:$F,$B$7,objectifs!IC:IC)) -> -0.3 | V19: 290% | W19: 290% | X19: -0.7
B20: Livret B | E20: =SUMIF('Indicateurs mensuels'!$F:$F,$B$7,'Indicateurs mensuels'!DF:DF) -> 8,262 | F20: 0.76% | G20: 5.33 | H20: 334 | J20: =SUMIF('Indicateurs Cumulés'!$F:$F,$B$7,'Indicateurs Cumulés'!DN:DN) -> 16,326 | K20: ='Indicateurs Cumulés'!$DO$374 -> 0.76% | L20: ='Indicateurs Cumulés'!$DP$374 -> 5.33 | M20: =SUMIF('Indicateurs Cumulés'!$F:$F,$B$7,'Indicateurs Cumulés'!DQ:DQ) -> 660 | N20: =IF(ISERROR(M20/SUMIF('Indicateurs Cumulés'!$F:$F,$B$7,'Indicateurs Cumulés'!HT:HT)),"nc",M20/SUMIF('Indicateurs Cumulés'!$F:$F,$B$7,'Indicateurs Cumulés'!HT:HT)) -> 0.5 | P20: =SUMIF(objectifs!F:F,$B$7,objectifs!CL:CL) -> 40,000 | Q20: =objectifs!$CM$373 -> 0.70% | R20: =objectifs!$CN$373 -> 5.37 | S20: 1,504 | T20: =IF(ISERROR(S20/SUMIF(objectifs!$F:$F,$B$7,objectifs!IC:IC)),"nc",S20/SUMIF(objectifs!$F:$F,$B$7,objectifs!IC:IC)) -> 1.0 | V20: 41% | W20: 44% | X20: -0.2
B21: Livret Jeune / Livret 10-12 | E21: =SUMIF('Indicateurs mensuels'!$F:$F,$B$7,'Indicateurs mensuels'!DZ:DZ) -> -408 | F21: 0.20% | G21: 5.37 | H21: -4 | J21: =SUMIF('Indicateurs Cumulés'!$F:$F,$B$7,'Indicateurs Cumulés'!EH:EH) -> -6,627 | K21: ='Indicateurs Cumulés'!$EI$374 -> 0.20% | L21: ='Indicateurs Cumulés'!$EJ$374 -> 5.37 | M21: =SUMIF('Indicateurs Cumulés'!$F:$F,$B$7,'Indicateurs Cumulés'!EK:EK) -> -71 | N21: =IF(ISERROR(M21/SUMIF('Indicateurs Cumulés'!$F:$F,$B$7,'Indicateurs Cumulés'!HT:HT)),"nc",M21/SUMIF('Indicateurs Cumulés'!$F:$F,$B$7,'Indicateurs Cumulés'!HT:HT)) -> -0.1 | P21: =SUMIF(objectifs!F:F,$B$7,objectifs!DF:DF) -> 1,000 | Q21: =objectifs!$DG$373 -> 0.20% | R21: =objectifs!$DH$373 -> 5.37 | S21: 11 | T21: =IF(ISERROR(S21/SUMIF(objectifs!$F:$F,$B$7,objectifs!IC:IC)),"nc",S21/SUMIF(objectifs!$F:$F,$B$7,objectifs!IC:IC)) -> 0.0 | V21: -663% | W21: -663% | X21: -0.1
B22: Livret Grand prix | E22: =SUMIF('Indicateurs mensuels'!$F:$F,$B$7,'Indicateurs mensuels'!DN:DN) -> -5,546 | F22: 0.40% | G22: 1.40 | H22: -31 | J22: =SUMIF('Indicateurs Cumulés'!$F:$F,$B$7,'Indicateurs Cumulés'!DV:DV) -> 65,559 | K22: ='Indicateurs Cumulés'!$DW$374 -> 0.40% | L22: ='Indicateurs Cumulés'!$DX$374 -> 1.40 | M22: =SUMIF('Indicateurs Cumulés'!$F:$F,$B$7,'Indicateurs Cumulés'!DY:DY) -> 366 | N22: =IF(ISERROR(M22/SUMIF('Indicateurs Cumulés'!$F:$F,$B$7,'Indicateurs Cumulés'!HT:HT)),"nc",M22/SUMIF('Indicateurs Cumulés'!$F:$F,$B$7,'Indicateurs Cumulés'!HT:HT)) -> 0.3 | P22: =SUMIF(objectifs!F:F,$B$7,objectifs!CT:CT) -> 0 | Q22: =objectifs!$CU$373 -> 0.70% | R22: =objectifs!$CV$373 -> 5.37 | S22: 0 | T22: =IF(ISERROR(S22/SUMIF(objectifs!$F:$F,$B$7,objectifs!IC:IC)),"nc",S22/SUMIF(objectifs!$F:$F,$B$7,objectifs!IC:IC)) -> 0.0
B23: Livret Grand Format | E23: =SUMIF('Indicateurs mensuels'!$F:$F,$B$7,'Indicateurs mensuels'!DJ:DJ) -> -308 | F23: 0.85% | G23: 5.33 | H23: -14 | J23: =SUMIF('Indicateurs Cumulés'!$F:$F,$B$7,'Indicateurs Cumulés'!DR:DR) -> -9,251 | K23: ='Indicateurs Cumulés'!$DS$374 -> 0.85% | L23: ='Indicateurs Cumulés'!$DT$374 -> 5.33 | M23: =SUMIF('Indicateurs Cumulés'!$F:$F,$B$7,'Indicateurs Cumulés'!DU:DU) -> -418 | N23: =IF(ISERROR(M23/SUMIF('Indicateurs Cumulés'!$F:$F,$B$7,'Indicateurs Cumulés'!HT:HT)),"nc",M23/SUMIF('Indicateurs Cumulés'!$F:$F,$B$7,'Indicateurs Cumulés'!HT:HT)) -> -0.3 | P23: 0 | Q23: 0.00% | R23: 0.00 | S23: 0 | T23: =IF(ISERROR(S23/SUMIF(objectifs!$F:$F,$B$7,objectifs!IC:IC)),"nc",S23/SUMIF(objectifs!$F:$F,$B$7,objectifs!IC:IC)) -> 0.0
B24: Compte Excédent Pro | E24: =SUMIF('Indicateurs mensuels'!$F:$F,$B$7,'Indicateurs mensuels'!HS:HS) -> 2,719 | F24: 0.60% | G24: 5.37 | H24: =SUMIF('Indicateurs mensuels'!$F:$F,$B$7,'Indicateurs mensuels'!HT:HT) -> 88 | J24: =SUMIF('Indicateurs Cumulés'!$F:$F,$B$7,'Indicateurs Cumulés'!JR:JR) -> 31,147 | K24: ='Indicateurs Cumulés'!$JR$3 -> 0.60% | L24: ='Indicateurs Cumulés'!$JY$3 -> 5.37 | M24: =SUMIF('Indicateurs Cumulés'!$F:$F,$B$7,'Indicateurs Cumulés'!JY:JY) -> 1004 | N24: =IF(ISERROR(M24/SUMIF('Indicateurs Cumulés'!$F:$F,$B$7,'Indicateurs Cumulés'!HT:HT)),"nc",M24/SUMIF('Indicateurs Cumulés'!$F:$F,$B$7,'Indicateurs Cumulés'!HT:HT)) -> 0.7 | P24: =SUMIF(objectifs!F:F,$B$7,objectifs!CP:CP) -> 19,000 | Q24: =objectifs!$CQ$373 -> 0.60% | R24: =objectifs!$CR$373 -> 5.37 | S24: 612 | T24: =IF(ISERROR(S24/SUMIF(objectifs!$F:$F,$B$7,objectifs!IC:IC)),"nc",S24/SUMIF(objectifs!$F:$F,$B$7,objectifs!IC:IC)) -> 0.4 | V24: 164% | W24: 164% | X24: 0.5
B25: PEL | E25: =SUMIF('Indicateurs mensuels'!$F:$F,$B$7,'Indicateurs mensuels'!EP:EP) -> 1,186 | F25: 0.00% | G25: 8.51 | H25: 0 | J25: =SUMIF('Indicateurs Cumulés'!$F:$F,$B$7,'Indicateurs Cumulés'!EX:EX) -> -22,674 | K25: ='Indicateurs Cumulés'!$EY$374 -> 0.00% | L25: ='Indicateurs Cumulés'!$EZ$374 -> 8.51 | M25: =SUMIF('Indicateurs Cumulés'!$F:$F,$B$7,'Indicateurs Cumulés'!FA:FA) -> 0 | N25: =IF(ISERROR(M25/SUMIF('Indicateurs Cumulés'!$F:$F,$B$7,'Indicateurs Cumulés'!HT:HT)),"nc",M25/SUMIF('Indicateurs Cumulés'!$F:$F,$B$7,'Indicateurs Cumulés'!HT:HT)) -> 0.0 | P25: =SUMIF(objectifs!F:F,$B$7,objectifs!DV:DV) -> -20,000 | Q25: =objectifs!$DW$373 -> 0.00% | R25: =objectifs!$DX$373 -> 8.50 | S25: 0 | T25: =IF(ISERROR(S25/SUMIF(objectifs!$F:$F,$B$7,objectifs!IC:IC)),"nc",S25/SUMIF(objectifs!$F:$F,$B$7,objectifs!IC:IC)) -> 0.0 | V25: 113% | W25: 0% | X25: 0
B26: CEL | E26: =SUMIF('Indicateurs mensuels'!$F:$F,$B$7,'Indicateurs mensuels'!ED:ED) -> 290 | F26: 0.35% | G26: 5.33 | H26: 5 | J26: =SUMIF('Indicateurs Cumulés'!$F:$F,$B$7,'Indicateurs Cumulés'!EL:EL) -> -779 | K26: ='Indicateurs Cumulés'!$EM$374 -> 0.35% | L26: ='Indicateurs Cumulés'!$EN$374 -> 5.33 | M26: =SUMIF('Indicateurs Cumulés'!$F:$F,$B$7,'Indicateurs Cumulés'!EO:EO) -> -14 | N26: =IF(ISERROR(M26/SUMIF('Indicateurs Cumulés'!$F:$F,$B$7,'Indicateurs Cumulés'!HT:HT)),"nc",M26/SUMIF('Indicateurs Cumulés'!$F:$F,$B$7,'Indicateurs Cumulés'!HT:HT)) -> -0.0 | P26: =SUMIF(objectifs!F:F,$B$7,objectifs!DJ:DJ) -> 0 | Q26: =objectifs!$DK$373 -> 0.30% | R26: =objectifs!$DL$373 -> 5.37 | S26: 0 | T26: =IF(ISERROR(S26/SUMIF(objectifs!$F:$F,$B$7,objectifs!IC:IC)),"nc",S26/SUMIF(objectifs!$F:$F,$B$7,objectifs!IC:IC)) -> 0.0
B27: PEP | E27: =SUMIF('Indicateurs mensuels'!$F:$F,$B$7,'Indicateurs mensuels'!ET:ET) -> -124 | F27: -0.18% | G27: 0.78 | H27: 0 | J27: =SUMIF('Indicateurs Cumulés'!$F:$F,$B$7,'Indicateurs Cumulés'!FB:FB) -> -765 | K27: ='Indicateurs Cumulés'!$FC$374 -> -0.18% | L27: ='Indicateurs Cumulés'!$FD$374 -> 0.78 | M27: =SUMIF('Indicateurs Cumulés'!$F:$F,$B$7,'Indicateurs Cumulés'!FE:FE) -> 1 | N27: =IF(ISERROR(M27/SUMIF('Indicateurs Cumulés'!$F:$F,$B$7,'Indicateurs Cumulés'!HT:HT)),"nc",M27/SUMIF('Indicateurs Cumulés'!$F:$F,$B$7,'Indicateurs Cumulés'!HT:HT)) -> 0.0 | P27: 0 | Q27: 0.00% | R27: 0.00 | S27: 0 | T27: =IF(ISERROR(S27/SUMIF(objectifs!$F:$F,$B$7,objectifs!IC:IC)),"nc",S27/SUMIF(objectifs!$F:$F,$B$7,objectifs!IC:IC)) -> 0.0
B28: SLR | E28: =SUMIF('Indicateurs mensuels'!$F:$F,$B$7,'Indicateurs mensuels'!EH:EH) -> -367 | F28: 0.10% | G28: 7.33 | H28: -3 | J28: =SUMIF('Indicateurs Cumulés'!$F:$F,$B$7,'Indicateurs Cumulés'!EP:EP) -> -2,704 | K28: ='Indicateurs Cumulés'!$EQ$374 -> 0.10% | L28: ='Indicateurs Cumulés'!$ER$374 -> 7.33 | M28: =SUMIF('Indicateurs Cumulés'!$F:$F,$B$7,'Indicateurs Cumulés'!ES:ES) -> -20 | N28: =IF(ISERROR(M28/SUMIF('Indicateurs Cumulés'!$F:$F,$B$7,'Indicateurs Cumulés'!HT:HT)),"nc",M28/SUMIF('Indicateurs Cumulés'!$F:$F,$B$7,'Indicateurs Cumulés'!HT:HT)) -> -0.0 | P28: =SUMIF(objectifs!F:F,$B$7,objectifs!DR:DR) -> 0 | Q28: =objectifs!$DS$373 -> 0.10% | R28: =objectifs!$DT$373 -> 7.00 | S28: 0 | T28: =IF(ISERROR(S28/SUMIF(objectifs!$F:$F,$B$7,objectifs!IC:IC)),"nc",S28/SUMIF(objectifs!$F:$F,$B$7,objectifs!IC:IC)) -> 0.0
B29: DAT (Bons, CDN, CAT, TCN, …) | E29: =SUMIF('Indicateurs mensuels'!$F:$F,$B$7,'Indicateurs mensuels'!EL:EL) -> -1,076 | F29: 0.20% | G29: 9.00 | H29: -19 | J29: =SUMIF('Indicateurs Cumulés'!$F:$F,$B$7,'Indicateurs Cumulés'!ET:ET) -> -13,409 | K29: ='Indicateurs Cumulés'!$EU$374 -> 0.20% | L29: ='Indicateurs Cumulés'!$EV$374 -> 9.00 | M29: =SUMIF('Indicateurs Cumulés'!$F:$F,$B$7,'Indicateurs Cumulés'!EW:EW) -> -241 | N29: =IF(ISERROR(M29/SUMIF('Indicateurs Cumulés'!$F:$F,$B$7,'Indicateurs Cumulés'!HT:HT)),"nc",M29/SUMIF('Indicateurs Cumulés'!$F:$F,$B$7,'Indicateurs Cumulés'!HT:HT)) -> -0.2 | P29: =SUMIF(objectifs!F:F,$B$7,objectifs!DN:DN) -> 20,000 | Q29: =objectifs!$DO$373 -> 0.20% | R29: =objectifs!$DP$373 -> 9.00 | S29: 360 | T29: =IF(ISERROR(S29/SUMIF(objectifs!$F:$F,$B$7,objectifs!IC:IC)),"nc",S29/SUMIF(objectifs!$F:$F,$B$7,objectifs!IC:IC)) -> 0.2 | V29: -67% | W29: -67% | X29: -0.3
B30: Emprunt CTO | E30: =SUMIF('Indicateurs mensuels'!$F:$F,$B$7,'Indicateurs mensuels'!FN:FN) -> -576 | F30: 0.20% | G30: 8.00 | H30: -9 | J30: =SUMIF('Indicateurs Cumulés'!$F:$F,$B$7,'Indicateurs Cumulés'!FV:FV) -> -165,452 | K30: ='Indicateurs Cumulés'!$FW$374 -> 0.20% | L30: ='Indicateurs Cumulés'!$FX$374 -> 8.00 | M30: =SUMIF('Indicateurs Cumulés'!$F:$F,$B$7,'Indicateurs Cumulés'!FY:FY) -> -2647 | N30: =IF(ISERROR(M30/SUMIF('Indicateurs Cumulés'!$F:$F,$B$7,'Indicateurs Cumulés'!HT:HT)),"nc",M30/SUMIF('Indicateurs Cumulés'!$F:$F,$B$7,'Indicateurs Cumulés'!HT:HT)) -> -1.9 | P30: =SUMIF(objectifs!F:F,$B$7,objectifs!ET:ET) -> -250,000 | Q30: =objectifs!$EU$373 -> 0.20% | R30: =objectifs!$EV$373 -> 8.00 | S30: -4,000 | T30: =IF(ISERROR(S30/SUMIF(objectifs!$F:$F,$B$7,objectifs!IC:IC)),"nc",S30/SUMIF(objectifs!$F:$F,$B$7,objectifs!IC:IC)) -> -2.6 | V30: 66% | W30: 66% | X30: -0.2
B31: Parts sociales | E31: =SUMIF('Indicateurs mensuels'!$F:$F,$B$7,'Indicateurs mensuels'!FR:FR) -> 6,515 | F31: 1.00% | G31: 5.00 | H31: 326 | J31: =SUMIF('Indicateurs Cumulés'!$F:$F,$B$7,'Indicateurs Cumulés'!FZ:FZ) -> 54,699 | K31: ='Indicateurs Cumulés'!$GA$374 -> 1.00% | L31: ='Indicateurs Cumulés'!$GB$374 -> 5.00 | M31: =SUMIF('Indicateurs Cumulés'!$F:$F,$B$7,'Indicateurs Cumulés'!GC:GC) -> 2735 | N31: =IF(ISERROR(M31/SUMIF('Indicateurs Cumulés'!$F:$F,$B$7,'Indicateurs Cumulés'!HT:HT)),"nc",M31/SUMIF('Indicateurs Cumulés'!$F:$F,$B$7,'Indicateurs Cumulés'!HT:HT)) -> 2.0 | P31: =SUMIF(objectifs!F:F,$B$7,objectifs!EX:EX) -> 70,000 | Q31: =objectifs!$EY$373 -> 1.00% | R31: =objectifs!$EZ$373 -> 5.00 | S31: 3,500 | T31: =IF(ISERROR(S31/SUMIF(objectifs!$F:$F,$B$7,objectifs!IC:IC)),"nc",S31/SUMIF(objectifs!$F:$F,$B$7,objectifs!IC:IC)) -> 2.3 | V31: 78% | W31: 78% | X31: 0.5
B32: Epargne Financière (Ass. vie - OPCVM - Autres val. mob.) | E32: =SUMIF('Indicateurs mensuels'!$F:$F,$B$7,'Indicateurs mensuels'!FX:FX) -> -1,343 | H32: =SUMIF('Indicateurs mensuels'!$F:$F,$B$7,'Indicateurs mensuels'!FY:FY) -> 258 | J32: =SUMIF('Indicateurs Cumulés'!$F:$F,$B$7,'Indicateurs Cumulés'!GF:GF) -> 138,728 | M32: =SUMIF('Indicateurs Cumulés'!$F:$F,$B$7,'Indicateurs Cumulés'!GG:GG) -> 9,992 | N32: =IF(ISERROR(M32/SUMIF('Indicateurs Cumulés'!$F:$F,$B$7,'Indicateurs Cumulés'!HT:HT)),"nc",M32/SUMIF('Indicateurs Cumulés'!$F:$F,$B$7,'Indicateurs Cumulés'!HT:HT)) -> 7.3 | P32: =SUMIF(objectifs!$F:$F,$B$7,objectifs!FD:FD) -> 170,000 | S32: =SUMIF(objectifs!$F:$F,$B$7,objectifs!FE:FE) -> 14,983 | T32: =IF(ISERROR(S32/SUMIF(objectifs!$F:$F,$B$7,objectifs!IC:IC)),"nc",S32/SUMIF(objectifs!$F:$F,$B$7,objectifs!IC:IC)) -> 9.9 | V32: 82% | W32: 67% | X32: 0.7
B33: Ass. Vie sur flux (versements) | E33: =SUMIF('Indicateurs mensuels'!$F:$F,$B$7,'Indicateurs mensuels'!FB:FB)+SUMIF('Indicateurs mensuels'!$F:$F,$B$7,'Indicateurs mensuels'!GP:GP) -> 47,271 | F33: =H33/E33 -> 0.41% | G33: =L33 -> 1.00 | H33: =SUMIF('Indicateurs mensuels'!$F:$F,$B$7,'Indicateurs mensuels'!FE:FE)+SUMIF('Indicateurs mensuels'!$F:$F,$B$7,'Indicateurs mensuels'!GS:GS) -> 193 | J33: =SUMIF('Indicateurs Cumulés'!$F:$F,$B$7,'Indicateurs Cumulés'!FJ:FJ)+SUMIF('Indicateurs Cumulés'!$F:$F,$B$7,'Indicateurs Cumulés'!GX:GX) -> 596,016 | K33: =M33/J33 -> 0.37% | L33: ='Indicateurs Cumulés'!$FL$374 -> 1.00 | M33: =SUMIF('Indicateurs Cumulés'!$F:$F,$B$7,'Indicateurs Cumulés'!FM:FM)+SUMIF('Indicateurs Cumulés'!$F:$F,$B$7,'Indicateurs Cumulés'!HA:HA) -> 2,197 | N33: =IF(ISERROR(M33/SUMIF('Indicateurs Cumulés'!$F:$F,$B$7,'Indicateurs Cumulés'!HT:HT)),"nc",M33/SUMIF('Indicateurs Cumulés'!$F:$F,$B$7,'Indicateurs Cumulés'!HT:HT)) -> 1.6 | P33: =SUMIF(objectifs!$F:$F,$B$7,objectifs!EH:EH) -> 1,000,000 | Q33: =objectifs!$EI$373 -> 0.40% | R33: =objectifs!$EJ$373 -> 1.00 | S33: =P33*Q33*R33 -> 4,000 | T33: =IF(ISERROR(S33/SUMIF(objectifs!$F:$F,$B$7,objectifs!IC:IC)),"nc",S33/SUMIF(objectifs!$F:$F,$B$7,objectifs!IC:IC)) -> 2.6 | V33: 60% | W33: 55% | X33: -0.2
B34: Ass. Vie sur encours (excédents) | E34: =SUMIF('Indicateurs mensuels'!$F:$F,$B$7,'Indicateurs mensuels'!EX:EX)+SUMIF('Indicateurs mensuels'!$F:$F,$B$7,'Indicateurs mensuels'!GL:GL) -> 1,139 | F34: =K34 -> 0.45% | G34: 8.00 | H34: =E34*F34*G34 -> 41 | J34: =SUMIF('Indicateurs Cumulés'!$F:$F,$B$7,'Indicateurs Cumulés'!FF:FF)+SUMIF('Indicateurs Cumulés'!$F:$F,$B$7,'Indicateurs Cumulés'!GT:GT) -> 157,096 | K34: ='Indicateurs Cumulés'!$FG$374 -> 0.45% | L34: ='Indicateurs Cumulés'!$FH$374 -> 8.00 | M34: =SUMIF('Indicateurs Cumulés'!$F:$F,$B$7,'Indicateurs Cumulés'!FI:FI)+SUMIF('Indicateurs Cumulés'!$F:$F,$B$7,'Indicateurs Cumulés'!GW:GW) -> 5,655 | N34: =IF(ISERROR(M34/SUMIF('Indicateurs Cumulés'!$F:$F,$B$7,'Indicateurs Cumulés'!HT:HT)),"nc",M34/SUMIF('Indicateurs Cumulés'!$F:$F,$B$7,'Indicateurs Cumulés'!HT:HT)) -> 4.1 | P34: =SUMIF(objectifs!$F:$F,$B$7,objectifs!ED:ED) -> 165,000 | Q34: =objectifs!$EE$373 -> 0.45% | R34: =objectifs!$EF$373 -> 8.00 | S34: 5,940 | T34: =IF(ISERROR(S34/SUMIF(objectifs!$F:$F,$B$7,objectifs!IC:IC)),"nc",S34/SUMIF(objectifs!$F:$F,$B$7,objectifs!IC:IC)) -> 3.9 | V34: 95% | W34: 95% | X34: 1.5
B35: Arbitrage (fonds € vers UC) | E35: =SUMIF('Indicateurs mensuels'!$F:$F,$B$7,'Indicateurs mensuels'!BQ:BQ) -> 1,016 | F35: =K35 -> 0.25% | G35: 8.00 | H35: =E35*F35*G35 -> 20 | J35: =SUMIF('Indicateurs Cumulés'!$F:$F,$B$7,'Indicateurs Cumulés'!BQ:BQ) -> 25,910 | K35: =VLOOKUP($B$7,objectifs!$F$3:$AAB$391,126,FALSE) -> 0.25% | L35: =VLOOKUP($B$7,objectifs!$F$3:$AAB$391,127,FALSE) -> 8.00 | M35: =SUMIF('Indicateurs Cumulés'!$F:$F,$B$7,'Indicateurs Cumulés'!BR:BR) -> 518 | N35: =IF(ISERROR(M35/SUMIF('Indicateurs Cumulés'!$F:$F,$B$7,'Indicateurs Cumulés'!HT:HT)),"nc",M35/SUMIF('Indicateurs Cumulés'!$F:$F,$B$7,'Indicateurs Cumulés'!HT:HT)) -> 0.4 | P35: =SUMIF(objectifs!$F:$F,$B$7,objectifs!DZ:DZ) -> 135,000 | Q35: =objectifs!$EA$373 -> 0.25% | R35: =objectifs!$EB$373 -> 8.00 | S35: 2,700 | T35: =IF(ISERROR(S35/SUMIF(objectifs!$F:$F,$B$7,objectifs!IC:IC)),"nc",S35/SUMIF(objectifs!$F:$F,$B$7,objectifs!IC:IC)) -> 1.8 | V35: 19% | W35: 19% | X35: -0.8
B36: OPCVM sur flux (versements) | E36: =SUMIF('Indicateurs mensuels'!$F:$F,$B$7,'Indicateurs mensuels'!FJ:FJ)+SUMIF('Indicateurs mensuels'!$F:$F,$B$7,'Indicateurs mensuels'!GX:GX) -> 986 | F36: =K36 -> 0.40% | G36: 1.00 | H36: =E36*F36*G36 -> 4 | J36: =SUMIF('Indicateurs Cumulés'!$F:$F,$B$7,'Indicateurs Cumulés'!FR:FR)+SUMIF('Indicateurs Cumulés'!$F:$F,$B$7,'Indicateurs Cumulés'!HF:HF) -> 11,181 | K36: ='Indicateurs Cumulés'!$FS$374 -> 0.40% | L36: ='Indicateurs Cumulés'!$FT$374 -> 1.00 | M36: =SUMIF('Indicateurs Cumulés'!$F:$F,$B$7,'Indicateurs Cumulés'!FU:FU)+SUMIF('Indicateurs Cumulés'!$F:$F,$B$7,'Indicateurs Cumulés'!HI:HI) -> 45 | N36: =IF(ISERROR(M36/SUMIF('Indicateurs Cumulés'!$F:$F,$B$7,'Indicateurs Cumulés'!HT:HT)),"nc",M36/SUMIF('Indicateurs Cumulés'!$F:$F,$B$7,'Indicateurs Cumulés'!HT:HT)) -> 0.0 | P36: =SUMIF(objectifs!$F:$F,$B$7,objectifs!EP:EP) -> 20,000 | Q36: =objectifs!$EQ$373 -> 0.40% | R36: =objectifs!$ER$373 -> 1.00 | S36: 80 | T36: =IF(ISERROR(S36/SUMIF(objectifs!$F:$F,$B$7,objectifs!IC:IC)),"nc",S36/SUMIF(objectifs!$F:$F,$B$7,objectifs!IC:IC)) -> 0.1 | V36: 56% | W36: 56% | X36: -0.0
B37: OPCVM sur encours (excédents) | E37: =SUMIF('Indicateurs mensuels'!$F:$F,$B$7,'Indicateurs mensuels'!FF:FF)+SUMIF('Indicateurs mensuels'!$F:$F,$B$7,'Indicateurs mensuels'!GT:GT) -> -3,279 | F37: =H37/E37/G37 -> 0.65% | G37: 5.00 | H37: =SUMIF('Indicateurs mensuels'!$F:$F,$B$7,'Indicateurs mensuels'!FI:FI)+SUMIF('Indicateurs mensuels'!$F:$F,$B$7,'Indicateurs mensuels'!GW:GW) -> -107 | J37: =SUMIF('Indicateurs Cumulés'!$F:$F,$B$7,'Indicateurs Cumulés'!FN:FN)+SUMIF('Indicateurs Cumulés'!$F:$F,$B$7,'Indicateurs Cumulés'!HB:HB) -> -34,304 | K37: =M37/J37/L37 -> 0.65% | L37: ='Indicateurs Cumulés'!$FP$374 -> 5.00 | M37: =SUMIF('Indicateurs Cumulés'!$F:$F,$B$7,'Indicateurs Cumulés'!FQ:FQ)+SUMIF('Indicateurs Cumulés'!$F:$F,$B$7,'Indicateurs Cumulés'!HE:HE) -> -1,115 | N37: =IF(ISERROR(M37/SUMIF('Indicateurs Cumulés'!$F:$F,$B$7,'Indicateurs Cumulés'!HT:HT)),"nc",M37/SUMIF('Indicateurs Cumulés'!$F:$F,$B$7,'Indicateurs Cumulés'!HT:HT)) -> -0.8 | P37: =SUMIF(objectifs!$F:$F,$B$7,objectifs!EL:EL) -> 5,000 | Q37: =objectifs!$EM$373 -> 0.65% | R37: =objectifs!$EN$373 -> 5.00 | S37: 163 | T37: =IF(ISERROR(S37/SUMIF(objectifs!$F:$F,$B$7,objectifs!IC:IC)),"nc",S37/SUMIF(objectifs!$F:$F,$B$7,objectifs!IC:IC)) -> 0.1 | V37: -686% | W37: -686% | X37: -0.9
B38: FCP structurés (versements) | E38: =J38-SUMIF('Indicateurs Cumulés M-1'!$F:$F,$B$7,'Indicateurs Cumulés M-1'!BS:BS) -> 2,396 | F38: =K38 -> 2.80% | G38: 1.00 | H38: =E38*F38*G38 -> 67 | J38: =SUMIF('Indicateurs Cumulés'!$F:$F,$B$7,'Indicateurs Cumulés'!BS:BS) -> 67,663 | K38: =VLOOKUP($B$7,objectifs!$F$3:$AAB$391,68,FALSE) -> 2.80% | L38: ='Indicateurs Cumulés'!$FL$374 -> 1.00 | M38: =J38*K38*L38 -> 1,895 | N38: =IF(ISERROR(M38/SUMIF('Indicateurs Cumulés'!$F:$F,$B$7,'Indicateurs Cumulés'!HT:HT)),"nc",M38/SUMIF('Indicateurs Cumulés'!$F:$F,$B$7,'Indicateurs Cumulés'!HT:HT)) -> 1.4 | P38: =SUMIF(objectifs!$F:$F,$B$7,objectifs!BT:BT) -> 75,000 | Q38: =objectifs!$BU$373 -> 2.80% | R38: =objectifs!$BV$373 -> 1.00 | S38: 2,100 | T38: =IF(ISERROR(S38/SUMIF(objectifs!$F:$F,$B$7,objectifs!IC:IC)),"nc",S38/SUMIF(objectifs!$F:$F,$B$7,objectifs!IC:IC)) -> 1.4 | V38: =IF(ISERROR(J38/P38),0,J38/P38) -> 90% | W38: =IF(ISERROR(M38/S38),0,M38/S38) -> 90% | X38: 0.5
B39: Autres Valeurs mobilières (excédents) | E39: =SUMIF('Indicateurs mensuels'!$F:$F,$B$7,'Indicateurs mensuels'!HB:HB) -> 797 | F39: =K39 -> 1.00% | G39: 5.00 | H39: =E39*F39*G39 -> 40 | J39: =SUMIF('Indicateurs Cumulés'!$F:$F,$B$7,'Indicateurs Cumulés'!HJ:HJ) -> 15,936 | K39: ='Indicateurs Cumulés'!$HK$374 -> 1.00% | L39: ='Indicateurs Cumulés'!$HL$374 -> 5.00 | M39: =SUMIF('Indicateurs Cumulés'!$F:$F,$B$7,'Indicateurs Cumulés'!HM:HM) -> 797 | N39: =IF(ISERROR(M39/SUMIF('Indicateurs Cumulés'!$F:$F,$B$7,'Indicateurs Cumulés'!HT:HT)),"nc",M39/SUMIF('Indicateurs Cumulés'!$F:$F,$B$7,'Indicateurs Cumulés'!HT:HT)) -> 0.6 | P39: =SUMIF(objectifs!$F:$F,$B$7,objectifs!FW:FW) -> 0 | Q39: =objectifs!$FO$373 -> 1.00% | R39: =objectifs!$FP$373 -> 5.00 | S39: 0 | T39: =IF(ISERROR(S39/SUMIF(objectifs!$F:$F,$B$7,objectifs!IC:IC)),"nc",S39/SUMIF(objectifs!$F:$F,$B$7,objectifs!IC:IC)) -> 0.0
B41: CREDIT à la CONSOMMATION - Eng. Nets (yc accessoires) | E41: =E42+E43 -> 30,006 | F41: =IF(ISERROR(H41/(E41*G41)),0,H41/(E41*G41)) -> 4.52% | G41: =SUMPRODUCT(G42:G43,E42:E43)/(E42+E43) -> 2.41 | H41: =H42+H43+H44+H45 -> 3,270 | J41: =J42+J43 -> 445,988 | K41: =IF(ISERROR(M41/(J41*L41)),0,M41/(J41*L41)) -> 4.26% | L41: =SUMPRODUCT(L42:L43,J42:J43)/(J42+J43) -> 2.41 | M41: =M42+M43+M44+M45 -> 45,739 | N41: =IF(ISERROR(M41/SUMIF('Indicateurs Cumulés'!$F:$F,$B$7,'Indicateurs Cumulés'!HT:HT)),"nc",M41/SUMIF('Indicateurs Cumulés'!$F:$F,$B$7,'Indicateurs Cumulés'!HT:HT)) -> 33.3 | P41: =P42+P43 -> 710,000 | Q41: =IF(ISERROR(S41/(P41*R41)),0,S41/(P41*R41)) -> 4.32% | R41: =IF(P41=0,0,SUMPRODUCT(R42:R43,P42:P43)/(P42+P43)) -> 2.42 | S41: =S42+S43+S44+S45 -> 74,348 | T41: =IF(ISERROR(S41/SUMIF(objectifs!$F:$F,$B$7,objectifs!IC:IC)),"nc",S41/SUMIF(objectifs!$F:$F,$B$7,objectifs!IC:IC)) -> 48.9 | V41: =IF(ISERROR(J41/P41),0,J41/P41) -> 63% | W41: =IF(ISERROR(M41/S41),0,M41/S41) -> 62% | X41: =IF(ISERROR(N41-(T41/12*MONTH($C$9))),"nc",N41-(T41/12*MONTH($C$9))) -> 0.7
B42: Crédit à la Consommation (marge hors accessoires) | E42: =SUMIF('Indicateurs mensuels'!$F:$F,$B$7,'Indicateurs mensuels'!L:L) -> 25,124 | F42: =SUMPRODUCT(('Indicateurs mensuels'!$F$4:$F$374=$B$7)*(('Indicateurs mensuels'!$L$4:$L$374)*('Indicateurs mensuels'!$M$4:$M$374)/E42)) -> 3.40% | G42: =SUMPRODUCT(('Indicateurs mensuels'!$F$4:$F$374=$B$7)*(('Indicateurs mensuels'!$L$4:$L$374)*('Indicateurs mensuels'!$N$4:$N$374)/E42)) -> 2.57 | H42: =E42*F42*G42 -> 2,198 | J42: =SUMIF('Indicateurs Cumulés'!$F:$F,$B$7,'Indicateurs Cumulés'!L:L) -> 410,333 | K42: =SUMPRODUCT(('Indicateurs Cumulés'!$F$4:$F$374=$B$7)*(('Indicateurs Cumulés'!$L$4:$L$374)*('Indicateurs Cumulés'!$M$4:$M$374)/J42)) -> 3.23% | L42: =SUMPRODUCT(('Indicateurs Cumulés'!$F$4:$F$374=$B$7)*(('Indicateurs Cumulés'!$L$4:$L$374)*('Indicateurs Cumulés'!$N$4:$N$374)/J42)) -> 2.48 | M42: =J42*K42*L42 -> 32,909 | N42: =IF(ISERROR(M42/SUMIF('Indicateurs Cumulés'!$F:$F,$B$7,'Indicateurs Cumulés'!HT:HT)),"nc",M42/SUMIF('Indicateurs Cumulés'!$F:$F,$B$7,'Indicateurs Cumulés'!HT:HT)) -> 24 | P42: =SUMIF(objectifs!$F:$F,$B$7,objectifs!L:L) -> 650,000 | Q42: =objectifs!$M$373 -> 3.05% | R42: =objectifs!$N$373 -> 2.50 | S42: =P42*Q42*R42 -> 49,563 | T42: =IF(ISERROR(S42/SUMIF(objectifs!$F:$F,$B$7,objectifs!IC:IC)),"nc",S42/SUMIF(objectifs!$F:$F,$B$7,objectifs!IC:IC)) -> 32.6 | V42: =IF(ISERROR(J42/P42),0,J42/P42) -> 63% | W42: =IF(ISERROR(M42/S42),0,M42/S42) -> 66% | X42: =IF(ISERROR(N42-(T42/12*MONTH($C$9))),"nc",N42-(T42/12*MONTH($C$9))) -> 2.2
B43: Crédit Revolving | E43: =SUMIF('Indicateurs mensuels'!$F:$F,$B$7,'Indicateurs mensuels'!H:H) -> 4,882 | F43: =SUMPRODUCT(('Indicateurs mensuels'!$F$4:$F$374=$B$7)*(('Indicateurs mensuels'!$H$4:$H$374)*('Indicateurs mensuels'!$I$4:$I$374)/E43)) -> 4.32% | G43: =SUMPRODUCT(('Indicateurs mensuels'!$F$4:$F$374=$B$7)*(('Indicateurs mensuels'!$H$4:$H$374)*('Indicateurs mensuels'!$J$4:$J$374)/E43)) -> 1.57 | H43: =E43*F43*G43 -> 331 | J43: =SUMIF('Indicateurs Cumulés'!$F:$F,$B$7,'Indicateurs Cumulés'!H:H) -> 35,655 | K43: =SUMPRODUCT(('Indicateurs Cumulés'!$F$4:$F$374=$B$7)*(('Indicateurs Cumulés'!$H$4:$H$374)*('Indicateurs Cumulés'!$I$4:$I$374)/J43)) -> 4.32% | L43: =SUMPRODUCT(('Indicateurs Cumulés'!$F$4:$F$374=$B$7)*(('Indicateurs Cumulés'!$H$4:$H$374)*('Indicateurs Cumulés'!$J$4:$J$374)/J43)) -> 1.57 | M43: =J43*K43*L43 -> 2,418 | N43: =IF(ISERROR(M43/SUMIF('Indicateurs Cumulés'!$F:$F,$B$7,'Indicateurs Cumulés'!HT:HT)),"nc",M43/SUMIF('Indicateurs Cumulés'!$F:$F,$B$7,'Indicateurs Cumulés'!HT:HT)) -> 1.8 | P43: =SUMIF(objectifs!$F:$F,$B$7,objectifs!H:H) -> 60,000 | Q43: =objectifs!$I$373 -> 4.32% | R43: =objectifs!$J$373 -> 1.60 | S43: =P43*Q43*R43 -> 4,147 | T43: =IF(ISERROR(S43/SUMIF(objectifs!$F:$F,$B$7,objectifs!IC:IC)),"nc",S43/SUMIF(objectifs!$F:$F,$B$7,objectifs!IC:IC)) -> 2.7 | V43: =IF(ISERROR(J43/P43),0,J43/P43) -> 59% | W43: =IF(ISERROR(M43/S43),0,M43/S43) -> 58% | X43: =IF(ISERROR(N43-(T43/12*MONTH($C$9))),"nc",N43-(T43/12*MONTH($C$9))) -> -0.1
B44: Frais de dossier | H44: =SUMIF('Indicateurs mensuels'!$F:$F,$B$7,'Indicateurs mensuels'!CV:CV) -> 144 | M44: =SUMIF('Indicateurs Cumulés'!$F:$F,$B$7,'Indicateurs Cumulés'!CW:CW) -> 1,759 | N44: =IF(ISERROR(M44/SUMIF('Indicateurs Cumulés'!$F:$F,$B$7,'Indicateurs Cumulés'!HT:HT)),"nc",M44/SUMIF('Indicateurs Cumulés'!$F:$F,$B$7,'Indicateurs Cumulés'!HT:HT)) -> 1.3 | S44: =SUMIF(objectifs!$F:$F,$B$7,objectifs!BO:BO) -> 3,900 | T44: =IF(ISERROR(S44/SUMIF(objectifs!$F:$F,$B$7,objectifs!IC:IC)),"nc",S44/SUMIF(objectifs!$F:$F,$B$7,objectifs!IC:IC)) -> 2.6 | W44: =IF(ISERROR(M44/S44),0,M44/S44) -> 45% | X44: =IF(ISERROR(N44-(T44/12*MONTH($C$9))),"nc",N44-(T44/12*MONTH($C$9))) -> -0.4 | Z44: =M44/J42 -> 0.4286%
B45: Commissions ADE | E45: =SUMPRODUCT(('Indicateurs mensuels'!$F$4:$F$374=$B$7)*(('Indicateurs mensuels'!$L$4:$L$374)*('Indicateurs mensuels'!$HM$4:$HM$374)/E42)) -> 144.0% | F45: =SUMPRODUCT(('Indicateurs mensuels'!$F$4:$F$374=$B$7)*(('Indicateurs mensuels'!$L$4:$L$374)*('Indicateurs mensuels'!$HL$4:$HL$374)/E42)) -> 96.0% | H45: =SUMIF('Indicateurs mensuels'!$F:$F,$B$7,'Indicateurs mensuels'!HN:HN) -> 597 | J45: =SUMPRODUCT(('Indicateurs Cumulés'!$F$4:$F$374=$B$7)*(('Indicateurs Cumulés'!$L$4:$L$374)*('Indicateurs Cumulés'!$DD$4:$DD$374)/J42)) -> 140.0% | K45: =SUMPRODUCT(('Indicateurs Cumulés'!$F$4:$F$374=$B$7)*(('Indicateurs Cumulés'!$L$4:$L$374)*('Indicateurs Cumulés'!$DC$4:$DC$374)/J42)) -> 93.0% | M45: =SUMIF('Indicateurs Cumulés'!$F:$F,$B$7,'Indicateurs Cumulés'!DE:DE) -> 8,653 | N45: =IF(ISERROR(M45/SUMIF('Indicateurs Cumulés'!$F:$F,$B$7,'Indicateurs Cumulés'!HT:HT)),"nc",M45/SUMIF('Indicateurs Cumulés'!$F:$F,$B$7,'Indicateurs Cumulés'!HT:HT)) -> 6.3 | P45: =objectifs!$BK$373 -> 135% | Q45: =objectifs!$BJ$373 -> 95% | S45: =SUMIF(objectifs!$F:$F,$B$7,objectifs!BY:BY) -> 16,738 | T45: =IF(ISERROR(S45/SUMIF(objectifs!$F:$F,$B$7,objectifs!IC:IC)),"nc",S45/SUMIF(objectifs!$F:$F,$B$7,objectifs!IC:IC)) -> 11.0 | W45: =IF(ISERROR(M45/S45),0,M45/S45) -> 52% | X45: =IF(ISERROR(N45-(T45/12*MONTH($C$9))),"nc",N45-(T45/12*MONTH($C$9))) -> -1.0
B47: CREDIT IMMOBILIER - Eng. Nets (yc accessoires) | E47: =E48 -> 208,959 | F47: =IF(ISERROR(H47/(E47*G47)),0,H47/(E47*G47)) -> 0.64% | G47: =G48 -> 7.71 | H47: =SUM(H48:H53) -> 10,375 | J47: =J48 -> 1,246,492 | K47: =IF(ISERROR(M47/(J47*L47)),0,M47/(J47*L47)) -> 0.48% | L47: =L48 -> 7.56 | M47: =SUM(M48:M53) -> 45,244 | N47: =IF(ISERROR(M47/SUMIF('Indicateurs Cumulés'!$F:$F,$B$7,'Indicateurs Cumulés'!HT:HT)),"nc",M47/SUMIF('Indicateurs Cumulés'!$F:$F,$B$7,'Indicateurs Cumulés'!HT:HT)) -> 33.0 | P47: =P48 -> 1,664,000 | Q47: =IF(ISERROR(S47/(P47*R47)),0,S47/(P47*R47)) -> 0.49% | R47: =R48 -> 7.50 | S47: =SUM(S48:S53) -> 60,661 | T47: =IF(ISERROR(S47/SUMIF(objectifs!$F:$F,$B$7,objectifs!IC:IC)),"nc",S47/SUMIF(objectifs!$F:$F,$B$7,objectifs!IC:IC)) -> 39.9 | V47: =IF(ISERROR(J47/P47),0,J47/P47) -> 75% | W47: =IF(ISERROR(M47/S47),0,M47/S47) -> 75% | X47: =IF(ISERROR(N47-(T47/12*MONTH($C$9))),"nc",N47-(T47/12*MONTH($C$9))) -> 6.4
B48: Crédit Immobilier (marge hors accessoires) | E48: =SUMIF('Indicateurs mensuels'!$F:$F,$B$7,'Indicateurs mensuels'!P:P) -> 208,959 | F48: =SUMPRODUCT(('Indicateurs mensuels'!$F$4:$F$374=$B$7)*(('Indicateurs mensuels'!$P$4:$P$374)*('Indicateurs mensuels'!$R$4:$R$374)/E48)) -> 0.36% | G48: =SUMPRODUCT(('Indicateurs mensuels'!$F$4:$F$374=$B$7)*(('Indicateurs mensuels'!$P$4:$P$374)*('Indicateurs mensuels'!$S$4:$S$374)/E48)) -> 7.71 | H48: =E48*F48*G48 -> 5,736 | J48: =SUMIF('Indicateurs Cumulés'!$F:$F,$B$7,'Indicateurs Cumulés'!P:P) -> 1,246,492 | K48: =SUMPRODUCT(('Indicateurs Cumulés'!$F$4:$F$374=$B$7)*(('Indicateurs Cumulés'!$P$4:$P$374)*('Indicateurs Cumulés'!$R$4:$R$374)/J48)) -> 0.15% | L48: =SUMPRODUCT(('Indicateurs Cumulés'!$F$4:$F$374=$B$7)*(('Indicateurs Cumulés'!$P$4:$P$374)*('Indicateurs Cumulés'!$S$4:$S$374)/J48)) -> 7.56 | M48: =J48*K48*L48 -> 13,748 | N48: =IF(ISERROR(M48/SUMIF('Indicateurs Cumulés'!$F:$F,$B$7,'Indicateurs Cumulés'!HT:HT)),"nc",M48/SUMIF('Indicateurs Cumulés'!$F:$F,$B$7,'Indicateurs Cumulés'!HT:HT)) -> 10.0 | P48: =SUMIF(objectifs!$F:$F,$B$7,objectifs!O:O) -> 1,664,000 | Q48: =objectifs!$Q$373 -> 0.20% | R48: =objectifs!$R$373 -> 7.50 | S48: =P48*Q48*R48 -> 24,960 | T48: =IF(ISERROR(S48/SUMIF(objectifs!$F:$F,$B$7,objectifs!IC:IC)),"nc",S48/SUMIF(objectifs!$F:$F,$B$7,objectifs!IC:IC)) -> 16.4 | V48: =IF(ISERROR(J48/P48),0,J48/P48) -> 75% | W48: =IF(ISERROR(M48/S48),0,M48/S48) -> 55% | X48: =IF(ISERROR(N48-(T48/12*MONTH($C$9))),"nc",N48-(T48/12*MONTH($C$9))) -> -0.9
B49: Commissions ADE (coefficient multiplicateur de 1,3 X) | E49: =SUMPRODUCT(('Indicateurs mensuels'!$F$4:$F$374=$B$7)*(('Indicateurs mensuels'!$P$4:$P$374)*('Indicateurs mensuels'!$CN$4:$CN$374)/E48)) -> 138.4% | F49: =SUMPRODUCT(('Indicateurs mensuels'!$F$4:$F$374=$B$7)*(('Indicateurs mensuels'!$P$4:$P$374)*('Indicateurs mensuels'!$CM$4:$CM$374)/E48)) -> 58.1% | H49: =SUMIF('Indicateurs mensuels'!$F:$F,$B$7,'Indicateurs mensuels'!CO:CO) -> 4,164 | J49: =SUMPRODUCT(('Indicateurs Cumulés'!$F$4:$F$374=$B$7)*(('Indicateurs Cumulés'!$P$4:$P$374)*('Indicateurs Cumulés'!$DA$4:$DA$374)/J48)) -> 141.4% | K49: =SUMPRODUCT(('Indicateurs Cumulés'!$F$4:$F$374=$B$7)*(('Indicateurs Cumulés'!$P$4:$P$374)*('Indicateurs Cumulés'!$CZ$4:$CZ$374)/J48)) -> 65.2% | M49: =SUMIF('Indicateurs Cumulés'!$F:$F,$B$7,'Indicateurs Cumulés'!DB:DB) -> 27,562 | N49: =IF(ISERROR(M49/SUMIF('Indicateurs Cumulés'!$F:$F,$B$7,'Indicateurs Cumulés'!HT:HT)),"nc",M49/SUMIF('Indicateurs Cumulés'!$F:$F,$B$7,'Indicateurs Cumulés'!HT:HT)) -> 20.1 | P49: =objectifs!$BI$373 -> 145% | Q49: =objectifs!$BH$373 -> 70% | S49: =SUMIF(objectifs!$F:$F,$B$7,objectifs!BX:BX) -> 27,130 | T49: =IF(ISERROR(S49/SUMIF(objectifs!$F:$F,$B$7,objectifs!IC:IC)),"nc",S49/SUMIF(objectifs!$F:$F,$B$7,objectifs!IC:IC)) -> 17.9 | W49: =IF(ISERROR(M49/S49),0,M49/S49) -> 102% | X49: =IF(ISERROR(N49-(T49/12*MONTH($C$9))),"nc",N49-(T49/12*MONTH($C$9))) -> 8.2
B50: Frais de dossier | H50: =SUMIF('Indicateurs mensuels'!$F:$F,$B$7,'Indicateurs mensuels'!CW:CW) -> 576 | M50: =SUMIF('Indicateurs Cumulés'!$F:$F,$B$7,'Indicateurs Cumulés'!CY:CY) -> 3,595 | N50: =IF(ISERROR(M50/SUMIF('Indicateurs Cumulés'!$F:$F,$B$7,'Indicateurs Cumulés'!HT:HT)),"nc",M50/SUMIF('Indicateurs Cumulés'!$F:$F,$B$7,'Indicateurs Cumulés'!HT:HT)) -> 2.6 | S50: =SUMIF(objectifs!$F:$F,$B$7,objectifs!BP:BP) -> 4,992 | T50: =IF(ISERROR(S50/SUMIF(objectifs!$F:$F,$B$7,objectifs!IC:IC)),"nc",S50/SUMIF(objectifs!$F:$F,$B$7,objectifs!IC:IC)) -> 3.3 | W50: =IF(ISERROR(M50/S50),0,M50/S50) -> 72% | X50: =IF(ISERROR(N50-(T50/12*MONTH($C$9))),"nc",N50-(T50/12*MONTH($C$9))) -> 0.4 | Z50: =M50/J48 -> 0.2884%
B51: Commissions SACCEF | H51: =SUMIF('Indicateurs mensuels'!$F:$F,$B$7,'Indicateurs mensuels'!AI:AI) -> 403 | M51: =SUMIF('Indicateurs Cumulés'!$F:$F,$B$7,'Indicateurs Cumulés'!AI:AI) -> 2,312 | N51: =IF(ISERROR(M51/SUMIF('Indicateurs Cumulés'!$F:$F,$B$7,'Indicateurs Cumulés'!HT:HT)),"nc",M51/SUMIF('Indicateurs Cumulés'!$F:$F,$B$7,'Indicateurs Cumulés'!HT:HT)) -> 1.7 | S51: =SUMIF(objectifs!$F:$F,$B$7,objectifs!CA:CA) -> 3,578
B52: Bonus clients devenus BPe / JBPe via le crédit immobilier | E52: =J52-SUMIF('Indicateurs Cumulés M-1'!$F:$F,'PNB BDD'!$B$7,'Indicateurs Cumulés M-1'!CL:CL) -> 518 | F52: =K52 -> 1,000 € | G52: =L52 -> 1.00 | H52: =E52*F52*G52/1000 -> 518 | J52: =SUMIF('Indicateurs Cumulés'!$F:$F,$B$7,'Indicateurs Cumulés'!CL:CL) -> 2,366 | K52: =IF(ISERROR(M52/(J52*L52)*1000),0,M52/(J52*L52)*1000) -> 1,000 € | L52: 1.00 | M52: =SUMIF('Indicateurs Cumulés'!$F:$F,$B$7,'Indicateurs Cumulés'!CL:CL) -> 2,366 | N52: =IF(ISERROR(M52/SUMIF('Indicateurs Cumulés'!$F:$F,$B$7,'Indicateurs Cumulés'!HT:HT)),"nc",M52/SUMIF('Indicateurs Cumulés'!$F:$F,$B$7,'Indicateurs Cumulés'!HT:HT)) -> 1.7
B53: Commissions apporteurs d'affaires | H53: =M53-SUMIF('Indicateurs Cumulés M-1'!$F:$F,'PNB BDD'!$B$7,'Indicateurs Cumulés M-1'!BW:BW) -> -1,022 | M53: =SUMIF('Indicateurs Cumulés'!$F:$F,$B$7,'Indicateurs Cumulés'!BW:BW) -> -4,339 | N53: =IF(ISERROR(M53/SUMIF('Indicateurs Cumulés'!$F:$F,$B$7,'Indicateurs Cumulés'!HT:HT)),"nc",M53/SUMIF('Indicateurs Cumulés'!$F:$F,$B$7,'Indicateurs Cumulés'!HT:HT)) -> -3.2
B55: CREDIT MLT PRO - Eng. Nets (yc accessoires) | E55: =E56+E57 -> 14,314 | F55: =IF(ISERROR(H55/(E55*G55)),0,H55/(E55*G55)) -> 1.26% | G55: =IF(E55=0,0,SUMPRODUCT(G56:G57,E56:E57)/(E56+E57)) -> 4.00 | H55: =H56+H57+H58+H59 -> 724 | J55: =J56+J57 -> 176,814 | K55: =IF(ISERROR(M55/(J55*L55)),0,M55/(J55*L55)) -> 0.76% | L55: =IF(J55=0,0,SUMPRODUCT(L56:L57,J56:J57)/(J56+J57)) -> 4.40 | M55: =M56+M57+M58+M59 -> 5,901 | N55: =IF(ISERROR(M55/SUMIF('Indicateurs Cumulés'!$F:$F,$B$7,'Indicateurs Cumulés'!HT:HT)),"nc",M55/SUMIF('Indicateurs Cumulés'!$F:$F,$B$7,'Indicateurs Cumulés'!HT:HT)) -> 4.3 | P55: =P56+P57 -> 250,000 | Q55: =IF(ISERROR(S55/(P55*R55)),0,S55/(P55*R55)) -> 0.70% | R55: =IF(P55=0,0,SUMPRODUCT(R56:R57,P56:P57)/(P56+P57)) -> 4.39 | S55: =S56+S57+S58+S59 -> 7,646 | T55: =IF(ISERROR(S55/SUMIF(objectifs!$F:$F,$B$7,objectifs!IC:IC)),"nc",S55/SUMIF(objectifs!$F:$F,$B$7,objectifs!IC:IC)) -> 5.0 | V55: =IF(ISERROR(J55/P55),0,J55/P55) -> 71% | W55: =IF(ISERROR(M55/S55),0,M55/S55) -> 77% | X55: =IF(ISERROR(N55-(T55/12*MONTH($C$9))),"nc",N55-(T55/12*MONTH($C$9))) -> 0.9
B56: Crédit MLT (marge hors accessoires) | E56: =SUMIF('Indicateurs mensuels'!$F:$F,$B$7,'Indicateurs mensuels'!AA:AA) -> 12,914 | F56: =IF(E56=0,0,SUMPRODUCT(('Indicateurs mensuels'!$F$4:$F$374=$B$7)*(('Indicateurs mensuels'!$AA$4:$AA$374)*('Indicateurs mensuels'!$AB$4:$AB$374)/E56))) -> 1.04% | G56: =IF(E56=0,0,SUMPRODUCT(('Indicateurs mensuels'!$F$4:$F$374=$B$7)*(('Indicateurs mensuels'!$AA$4:$AA$374)*('Indicateurs mensuels'!$AC$4:$AC$374)/E56))) -> 4.19 | H56: =E56*F56*G56 -> 564 | J56: =SUMIF('Indicateurs Cumulés'!$F:$F,$B$7,'Indicateurs Cumulés'!AA:AA) -> 167,094 | K56: =IF(J56=0,0,SUMPRODUCT(('Indicateurs Cumulés'!$F$4:$F$374=$B$7)*(('Indicateurs Cumulés'!$AA$4:$AA$374)*('Indicateurs Cumulés'!$AB$4:$AB$374)/J56))) -> 0.58% | L56: =IF(J56=0,0,SUMPRODUCT(('Indicateurs Cumulés'!$F$4:$F$374=$B$7)*(('Indicateurs Cumulés'!$AA$4:$AA$374)*('Indicateurs Cumulés'!$AC$4:$AC$374)/J56))) -> 4.53 | M56: =J56*K56*L56 -> 4,360 | N56: =IF(ISERROR(M56/SUMIF('Indicateurs Cumulés'!$F:$F,$B$7,'Indicateurs Cumulés'!HT:HT)),"nc",M56/SUMIF('Indicateurs Cumulés'!$F:$F,$B$7,'Indicateurs Cumulés'!HT:HT)) -> 3.2 | P56: =SUMIF(objectifs!$F:$F,$B$7,objectifs!Y:Y) -> 238,000 | Q56: =objectifs!$Z$373 -> 0.40% | R56: =objectifs!$AA$373 -> 4.50 | S56: =P56*Q56*R56 -> 4,284 | T56: =IF(ISERROR(S56/SUMIF(objectifs!$F:$F,$B$7,objectifs!IC:IC)),"nc",S56/SUMIF(objectifs!$F:$F,$B$7,objectifs!IC:IC)) -> 2.8 | V56: =IF(ISERROR(J56/P56),0,J56/P56) -> 70% | W56: =IF(ISERROR(M56/S56),0,M56/S56) -> 102% | X56: =IF(ISERROR(N56-(T56/12*MONTH($C$9))),"nc",N56-(T56/12*MONTH($C$9))) -> 1.3
B57: Crédit Bail Mobilier | E57: =SUMIF('Indicateurs mensuels'!$F:$F,$B$7,'Indicateurs mensuels'!GH:GH) -> 1,400 | F57: =IF(E57=0,0,SUMPRODUCT(('Indicateurs mensuels'!$F$4:$F$374=$B$7)*(('Indicateurs mensuels'!$GH$4:$GH$374)*('Indicateurs mensuels'!$GI$4:$GI$374)/E57))) -> 0.87% | G57: =IF(E57=0,0,SUMPRODUCT(('Indicateurs mensuels'!$F$4:$F$374=$B$7)*(('Indicateurs mensuels'!$GH$4:$GH$374)*('Indicateurs mensuels'!$GJ$4:$GJ$374)/E57))) -> 2.27 | H57: =E57*F57*G57 -> 28 | J57: =SUMIF('Indicateurs Cumulés'!$F:$F,$B$7,'Indicateurs Cumulés'!GP:GP) -> 9,720 | K57: =IF(J57=0,0,SUMPRODUCT(('Indicateurs Cumulés'!$F$4:$F$374=$B$7)*(('Indicateurs Cumulés'!$GP$4:$GP$374)*('Indicateurs Cumulés'!$GQ$4:$GQ$374)/J57))) -> 0.90% | L57: =IF(J57=0,0,SUMPRODUCT(('Indicateurs Cumulés'!$F$4:$F$374=$B$7)*(('Indicateurs Cumulés'!$GP$4:$GP$374)*('Indicateurs Cumulés'!$GR$4:$GR$374)/J57))) -> 2.26 | M57: =J57*K57*L57 -> 197 | N57: =IF(ISERROR(M57/SUMIF('Indicateurs Cumulés'!$F:$F,$B$7,'Indicateurs Cumulés'!HT:HT)),"nc",M57/SUMIF('Indicateurs Cumulés'!$F:$F,$B$7,'Indicateurs Cumulés'!HT:HT)) -> 0.1 | P57: =SUMIF(objectifs!$F:$F,$B$7,objectifs!S:S) -> 12,000 | Q57: =objectifs!$T$373 -> 0.40% | R57: =objectifs!$U$373 -> 2.30 | S57: =P57*Q57*R57 -> 110 | T57: =IF(ISERROR(S57/SUMIF(objectifs!$F:$F,$B$7,objectifs!IC:IC)),"nc",S57/SUMIF(objectifs!$F:$F,$B$7,objectifs!IC:IC)) -> 0.1 | V57: =IF(ISERROR(J57/P57),0,J57/P57) -> 81% | W57: =IF(ISERROR(M57/S57),0,M57/S57) -> 179% | X57: =IF(ISERROR(N57-(T57/12*MONTH($C$9))),"nc",N57-(T57/12*MONTH($C$9))) -> 0.1
B58: Frais de dossier (yc CBM) | H58: =SUMIF('Indicateurs mensuels'!$F:$F,$B$7,'Indicateurs mensuels'!CS:CS)+SUMIF('Indicateurs mensuels'!$F:$F,$B$7,'Indicateurs mensuels'!CX:CX) -> 52 | M58: =SUMIF('Indicateurs Cumulés'!$F:$F,$B$7,'Indicateurs Cumulés'!CS:CS)+SUMIF('Indicateurs Cumulés'!$F:$F,$B$7,'Indicateurs Cumulés'!CU:CU) -> 532 | N58: =IF(ISERROR(M58/SUMIF('Indicateurs Cumulés'!$F:$F,$B$7,'Indicateurs Cumulés'!HT:HT)),"nc",M58/SUMIF('Indicateurs Cumulés'!$F:$F,$B$7,'Indicateurs Cumulés'!HT:HT)) -> 0.4 | S58: =SUMIF(objectifs!$F:$F,$B$7,objectifs!BS:BS) -> 750 | T58: =IF(ISERROR(S58/SUMIF(objectifs!$F:$F,$B$7,objectifs!IC:IC)),"nc",S58/SUMIF(objectifs!$F:$F,$B$7,objectifs!IC:IC)) -> 0.5 | W58: =IF(ISERROR(M58/S58),0,M58/S58) -> 71% | X58: =IF(ISERROR(N58-(T58/12*MONTH($C$9))),"nc",N58-(T58/12*MONTH($C$9))) -> 0.1
B59: Commissions ADE | E59: =IF(E56=0,0,SUMPRODUCT(('Indicateurs mensuels'!$F$4:$F$374=$B$7)*(('Indicateurs mensuels'!$AA$4:$AA$374)*('Indicateurs mensuels'!$HP$4:$HP$374)/E56))) -> 114.0% | F59: =IF(E56=0,0,SUMPRODUCT(('Indicateurs mensuels'!$F$4:$F$374=$B$7)*(('Indicateurs mensuels'!$AA$4:$AA$374)*('Indicateurs mensuels'!$HO$4:$HO$374)/E56))) -> 76.4% | H59: =SUMIF('Indicateurs mensuels'!$F:$F,$B$7,'Indicateurs mensuels'!HQ:HQ) -> 80 | J59: =IF(J56=0,0,SUMPRODUCT(('Indicateurs Cumulés'!$F$4:$F$374=$B$7)*(('Indicateurs Cumulés'!$AA$4:$AA$374)*('Indicateurs Cumulés'!$DH$4:$DH$374)/J56))) -> 110.4% | K59: =IF(J56=0,0,SUMPRODUCT(('Indicateurs Cumulés'!$F$4:$F$374=$B$7)*(('Indicateurs Cumulés'!$AA$4:$AA$374)*('Indicateurs Cumulés'!$DG$4:$DG$374)/J56))) -> 63.4% | M59: =SUMIF('Indicateurs Cumulés'!$F:$F,$B$7,'Indicateurs Cumulés'!DI:DI) -> 812 | N59: =IF(ISERROR(M59/SUMIF('Indicateurs Cumulés'!$F:$F,$B$7,'Indicateurs Cumulés'!HT:HT)),"nc",M59/SUMIF('Indicateurs Cumulés'!$F:$F,$B$7,'Indicateurs Cumulés'!HT:HT)) -> 0.6 | P59: =objectifs!$BM$373 -> 110% | Q59: =objectifs!$BL$373 -> 70% | S59: =SUMIF(objectifs!$F:$F,$B$7,objectifs!CB:CB) -> 2,501 | T59: =IF(ISERROR(S59/SUMIF(objectifs!$F:$F,$B$7,objectifs!IC:IC)),"nc",S59/SUMIF(objectifs!$F:$F,$B$7,objectifs!IC:IC)) -> 1.6 | W59: =IF(ISERROR(M59/S59),0,M59/S59) -> 32% | X59: =IF(ISERROR(N59-(T59/12*MONTH($C$9))),"nc",N59-(T59/12*MONTH($C$9))) -> -0.5
B61: BANCA - Ventes nettes | H61: =H62+H68+H75+H76+H77+H78+H82 -> 1,461 | M61: =M62+M68+M75+M76+M77+M78+M82 -> 19,853 | N61: =IF(ISERROR(M61/SUMIF('Indicateurs Cumulés'!$F:$F,$B$7,'Indicateurs Cumulés'!HT:HT)),"nc",M61/SUMIF('Indicateurs Cumulés'!$F:$F,$B$7,'Indicateurs Cumulés'!HT:HT)) -> 14.5 | P61: =P62+P68+P78+P77 -> 59,265 | Q61: =IF(ISERROR(S61/(P61*R61)*1000),0,S61/(P61*R61)*1000) -> 114 € | R61: 5.00 | S61: =S62+S68+S78+S77 -> 33,763 | T61: =IF(ISERROR(S61/SUMIF(objectifs!$F:$F,$B$7,objectifs!IC:IC)),"nc",S61/SUMIF(objectifs!$F:$F,$B$7,objectifs!IC:IC)) -> 22.2 | V61: =IF(ISERROR(J61/P61),0,J61/P61) -> 0% | W61: =IF(ISERROR(M61/S61),0,M61/S61) -> 59% | X61: =IF(ISERROR(N61-(T61/12*MONTH($C$9))),"nc",N61-(T61/12*MONTH($C$9))) -> -0.3
B62: Forfaits - Tarification | E62: =SUM(E63:E67) -> 199 | H62: =SUM(H63:H67) -> 424 | J62: =SUM(J63:J67) -> 5,039 | M62: =SUM(M63:M67) -> 5,626 | N62: =IF(ISERROR(M62/SUMIF('Indicateurs Cumulés'!$F:$F,$B$7,'Indicateurs Cumulés'!HT:HT)),"nc",M62/SUMIF('Indicateurs Cumulés'!$F:$F,$B$7,'Indicateurs Cumulés'!HT:HT)) -> 4.1 | P62: =SUMIF(objectifs!$F:$F,$B$7,objectifs!GD:GD)*0.95 -> 21,280 | Q62: =objectifs!$GD$3 -> 137 € | R62: =objectifs!$GE$3 -> 5.00 | S62: =P62*Q62*R62/1000 -> 14,602 | T62: =IF(ISERROR(S62/SUMIF(objectifs!$F:$F,$B$7,objectifs!IC:IC)),"nc",S62/SUMIF(objectifs!$F:$F,$B$7,objectifs!IC:IC)) -> 9.6 | V62: =IF(ISERROR(J62/P62),0,J62/P62) -> 24% | W62: =IF(ISERROR(M62/S62),0,M62/S62) -> 39% | X62: =IF(ISERROR(N62-(T62/12*MONTH($C$9))),"nc",N62-(T62/12*MONTH($C$9))) -> -2.3
B63: Bouquet liberté HDG | E63: =J63-SUMIF('Indicateurs Cumulés M-1'!$F:$F,$B$7,'Indicateurs Cumulés M-1'!LA:LA) -> 1,480 | F63: =K63 -> 140 € | G63: =L63 -> 5.00 | H63: =E63*F63*G63/1000 -> 1,032 | J63: =SUMIF('Indicateurs Cumulés'!$F:$F,$B$7,'Indicateurs Cumulés'!LA:LA) -> 16,640 | K63: ='Indicateurs Cumulés'!$LA$3 -> 140 € | L63: ='Indicateurs Cumulés'!$LB$3 -> 5.00 | M63: =J63*K63*L63/1000 -> 11,606 | N63: =IF(ISERROR(M63/SUMIF('Indicateurs Cumulés'!$F:$F,$B$7,'Indicateurs Cumulés'!HT:HT)),"nc",M63/SUMIF('Indicateurs Cumulés'!$F:$F,$B$7,'Indicateurs Cumulés'!HT:HT)) -> 8.5
B64: Bouquet liberté Autres | E64: =J64-SUMIF('Indicateurs Cumulés M-1'!$F:$F,$B$7,'Indicateurs Cumulés M-1'!IF:IF) -> -849 | F64: =K64 -> 87 € | G64: 5.00 | H64: =E64*F64*G64/1000 -> -370 | J64: =SUMIF('Indicateurs Cumulés'!$F:$F,$B$7,'Indicateurs Cumulés'!IF:IF) -> -5,491 | K64: ='Indicateurs Cumulés'!$IF$3 -> 87 € | L64: ='Indicateurs Cumulés'!$IV$3 -> 5.00 | M64: =J64*K64*L64/1000 -> -2,392 | N64: =IF(ISERROR(M64/SUMIF('Indicateurs Cumulés'!$F:$F,$B$7,'Indicateurs Cumulés'!HT:HT)),"nc",M64/SUMIF('Indicateurs Cumulés'!$F:$F,$B$7,'Indicateurs Cumulés'!HT:HT)) -> -1.7
B65: Futéo / SOL 16-17 | E65: =J65-SUMIF('Indicateurs Cumulés M-1'!$F:$F,$B$7,'Indicateurs Cumulés M-1'!IG:IG) -> -96 | F65: 12 € | G65: 5.00 | H65: =E65*F65*G65/1000 -> -6 | J65: =SUMIF('Indicateurs Cumulés'!$F:$F,$B$7,'Indicateurs Cumulés'!IG:IG) -> -950 | K65: ='Indicateurs Cumulés'!$IG$3 -> 12 € | L65: ='Indicateurs Cumulés'!$IW$3 -> 5.00 | M65: =J65*K65*L65/1000 -> -57 | N65: =IF(ISERROR(M65/SUMIF('Indicateurs Cumulés'!$F:$F,$B$7,'Indicateurs Cumulés'!HT:HT)),"nc",M65/SUMIF('Indicateurs Cumulés'!$F:$F,$B$7,'Indicateurs Cumulés'!HT:HT)) -> -0.0
B66: Satellis Essentiel / Essentiel + | E66: =J66-SUMIF('Indicateurs Cumulés M-1'!$F:$F,$B$7,'Indicateurs Cumulés M-1'!IH:IH) -> -282 | F66: 125 € | G66: 5.00 | H66: =E66*F66*G66/1000 -> -176 | J66: =SUMIF('Indicateurs Cumulés'!$F:$F,$B$7,'Indicateurs Cumulés'!IH:IH) -> -4,429 | K66: ='Indicateurs Cumulés'!$IH$3 -> 125 € | L66: ='Indicateurs Cumulés'!$IX$3 -> 5.00 | M66: =J66*K66*L66/1000 -> -2,764 | N66: =IF(ISERROR(M66/SUMIF('Indicateurs Cumulés'!$F:$F,$B$7,'Indicateurs Cumulés'!HT:HT)),"nc",M66/SUMIF('Indicateurs Cumulés'!$F:$F,$B$7,'Indicateurs Cumulés'!HT:HT)) -> -2.0
B67: Satellis Intégral | E67: =J67-SUMIF('Indicateurs Cumulés M-1'!$F:$F,$B$7,'Indicateurs Cumulés M-1'!II:II) -> -54 | F67: 210 € | G67: 5.00 | H67: =E67*F67*G67/1000 -> -57 | J67: =SUMIF('Indicateurs Cumulés'!$F:$F,$B$7,'Indicateurs Cumulés'!II:II) -> -731 | K67: ='Indicateurs Cumulés'!$II$3 -> 210 € | L67: ='Indicateurs Cumulés'!$IY$3 -> 5.00 | M67: =J67*K67*L67/1000 -> -768 | N67: =IF(ISERROR(M67/SUMIF('Indicateurs Cumulés'!$F:$F,$B$7,'Indicateurs Cumulés'!HT:HT)),"nc",M67/SUMIF('Indicateurs Cumulés'!$F:$F,$B$7,'Indicateurs Cumulés'!HT:HT)) -> -0.6
B68: Cartes - Tarification | E68: =SUM(E69:E74) -> 244 | H68: =SUM(H69:H74) -> 725 | J68: =SUM(J69:J74) -> 1,499 | M68: =SUM(M69:M74) -> 7,978 | N68: =IF(ISERROR(M68/SUMIF('Indicateurs Cumulés'!$F:$F,$B$7,'Indicateurs Cumulés'!HT:HT)),"nc",M68/SUMIF('Indicateurs Cumulés'!$F:$F,$B$7,'Indicateurs Cumulés'!HT:HT)) -> 5.8 | P68: =SUMIF(objectifs!$F:$F,$B$7,objectifs!GF:GF)*0.95 -> 11,400 | Q68: =objectifs!$GF$3 -> 289 € | R68: =objectifs!$GG$3 -> 5.00 | S68: =P68*Q68*R68/1000 -> 16,484 | T68: =IF(ISERROR(S68/SUMIF(objectifs!$F:$F,$B$7,objectifs!IC:IC)),"nc",S68/SUMIF(objectifs!$F:$F,$B$7,objectifs!IC:IC)) -> 10.9 | V68: =IF(ISERROR(J68/P68),0,J68/P68) -> 13% | W68: =IF(ISERROR(M68/S68),0,M68/S68) -> 48% | X68: =IF(ISERROR(N68-(T68/12*MONTH($C$9))),"nc",N68-(T68/12*MONTH($C$9))) -> -1.4
B69: Carte Infinite | E69: =J69-SUMIF('Indicateurs Cumulés M-1'!$F:$F,$B$7,'Indicateurs Cumulés M-1'!IJ:IJ) -> 10 | F69: =K69 -> 315 € | G69: =L69 -> 5.00 | H69: =E69*F69*G69/1000 -> 16 | J69: =SUMIF('Indicateurs Cumulés'!$F:$F,$B$7,'Indicateurs Cumulés'!IJ:IJ) -> 105 | K69: ='Indicateurs Cumulés'!$IJ$3 -> 315 € | L69: ='Indicateurs Cumulés'!$IZ$3 -> 5.00 | M69: =J69*K69*L69/1000 -> 165 | N69: =IF(ISERROR(M69/SUMIF('Indicateurs Cumulés'!$F:$F,$B$7,'Indicateurs Cumulés'!HT:HT)),"nc",M69/SUMIF('Indicateurs Cumulés'!$F:$F,$B$7,'Indicateurs Cumulés'!HT:HT)) -> 0.1
B70: Carte Platinum (yc izicarte) | E70: =J70-SUMIF('Indicateurs Cumulés M-1'!$F:$F,$B$7,'Indicateurs Cumulés M-1'!IK:IK) -> 52 | F70: =K70 -> 200 € | G70: 5.00 | H70: 52 | J70: =SUMIF('Indicateurs Cumulés'!$F:$F,$B$7,'Indicateurs Cumulés'!IK:IK) -> 762 | K70: ='Indicateurs Cumulés'!$IK$3 -> 200 € | L70: ='Indicateurs Cumulés'!$JA$3 -> 5.00 | M70: 762 | N70: =IF(ISERROR(M70/SUMIF('Indicateurs Cumulés'!$F:$F,$B$7,'Indicateurs Cumulés'!HT:HT)),"nc",M70/SUMIF('Indicateurs Cumulés'!$F:$F,$B$7,'Indicateurs Cumulés'!HT:HT)) -> 0.6
B71: Carte visa premier (yc izicarte) | E71: =J71-SUMIF('Indicateurs Cumulés M-1'!$F:$F,$B$7,'Indicateurs Cumulés M-1'!IL:IL) -> 1,418 | F71: 130 € | G71: 5.00 | H71: 922 | J71: =SUMIF('Indicateurs Cumulés'!$F:$F,$B$7,'Indicateurs Cumulés'!IL:IL) -> 15,773 | K71: ='Indicateurs Cumulés'!$IL$3 -> 130 € | L71: ='Indicateurs Cumulés'!$JB$3 -> 5.00 | M71: 10,252 | N71: =IF(ISERROR(M71/SUMIF('Indicateurs Cumulés'!$F:$F,$B$7,'Indicateurs Cumulés'!HT:HT)),"nc",M71/SUMIF('Indicateurs Cumulés'!$F:$F,$B$7,'Indicateurs Cumulés'!HT:HT)) -> 7.5
B72: Carte visa classique (yc izicarte) | E72: =J72-SUMIF('Indicateurs Cumulés M-1'!$F:$F,$B$7,'Indicateurs Cumulés M-1'!IM:IM) -> -881 | F72: 43 € | G72: 5.00 | H72: -189 | J72: =SUMIF('Indicateurs Cumulés'!$F:$F,$B$7,'Indicateurs Cumulés'!IM:IM) -> -13,464 | K72: ='Indicateurs Cumulés'!$IM$3 -> 43 € | L72: ='Indicateurs Cumulés'!$JC$3 -> 5.00 | M72: -2,895 | N72: =IF(ISERROR(M72/SUMIF('Indicateurs Cumulés'!$F:$F,$B$7,'Indicateurs Cumulés'!HT:HT)),"nc",M72/SUMIF('Indicateurs Cumulés'!$F:$F,$B$7,'Indicateurs Cumulés'!HT:HT)) -> -2.1
B73: Carte Sensea | E73: =J73-SUMIF('Indicateurs Cumulés M-1'!$F:$F,$B$7,'Indicateurs Cumulés M-1'!CI:CI) -> -350 | F73: 43 € | G73: 5.00 | H73: -74 | J73: =SUMIF('Indicateurs Cumulés'!$F:$F,$B$7,'Indicateurs Cumulés'!CI:CI) -> -1,353 | K73: ='Indicateurs Cumulés'!$CI$3 -> 43 € | L73: ='Indicateurs Cumulés'!$CJ$3 -> 5.00 | M73: -288 | N73: =IF(ISERROR(M73/SUMIF('Indicateurs Cumulés'!$F:$F,$B$7,'Indicateurs Cumulés'!HT:HT)),"nc",M73/SUMIF('Indicateurs Cumulés'!$F:$F,$B$7,'Indicateurs Cumulés'!HT:HT)) -> -0.2
B74: Autres Cartes | E74: =J74-SUMIF('Indicateurs Cumulés M-1'!$F:$F,$B$7,'Indicateurs Cumulés M-1'!IN:IN) -> -5 | F74: 12 € | G74: 5.00 | H74: -0 | J74: =SUMIF('Indicateurs Cumulés'!$F:$F,$B$7,'Indicateurs Cumulés'!IN:IN) -> -324 | K74: ='Indicateurs Cumulés'!$IN$3 -> 12 € | L74: ='Indicateurs Cumulés'!$JD$3 -> 5.00 | M74: -19 | N74: =IF(ISERROR(M74/SUMIF('Indicateurs Cumulés'!$F:$F,$B$7,'Indicateurs Cumulés'!HT:HT)),"nc",M74/SUMIF('Indicateurs Cumulés'!$F:$F,$B$7,'Indicateurs Cumulés'!HT:HT)) -> -0.0
B75: Booster Cartes débit différé | E75: =J75-SUMIF('Indicateurs Cumulés M-1'!$F:$F,$B$7,'Indicateurs Cumulés M-1'!KX:KX) -> 654 | F75: =K75 -> 40 € | G75: 5.00 | H75: 131 | J75: =SUMIF('Indicateurs Cumulés'!$F:$F,$B$7,'Indicateurs Cumulés'!KX:KX) -> 7,135 | K75: =IF(ISERROR(M75/(J75*L75)*1000),0,M75/(J75*L75)*1000) -> 40 € | L75: =objectifs!$GG$3 -> 5.00 | M75: =SUMIF('Indicateurs Cumulés'!$F:$F,$B$7,'Indicateurs Cumulés'!KY:KY) -> 1,427 | N75: =IF(ISERROR(M75/SUMIF('Indicateurs Cumulés'!$F:$F,$B$7,'Indicateurs Cumulés'!HT:HT)),"nc",M75/SUMIF('Indicateurs Cumulés'!$F:$F,$B$7,'Indicateurs Cumulés'!HT:HT)) -> 1.0
B76: Bonus Mobilité bancaire | E76: =J76-SUMIF('Indicateurs Cumulés M-1'!$F:$F,$B$7,'Indicateurs Cumulés M-1'!CG:CG) -> 593 | F76: =K76 -> 200 € | G76: =L76 -> 1.00 | H76: 119 | J76: =SUMIF('Indicateurs Cumulés'!$F:$F,$B$7,'Indicateurs Cumulés'!CG:CG) -> 4,495 | K76: =IF(ISERROR(M76/(J76*L76)*1000),0,M76/(J76*L76)*1000) -> 200 € | L76: 1.00 | M76: =SUMIF('Indicateurs Cumulés'!$F:$F,$B$7,'Indicateurs Cumulés'!CH:CH) -> 899 | N76: =IF(ISERROR(M76/SUMIF('Indicateurs Cumulés'!$F:$F,$B$7,'Indicateurs Cumulés'!HT:HT)),"nc",M76/SUMIF('Indicateurs Cumulés'!$F:$F,$B$7,'Indicateurs Cumulés'!HT:HT)) -> 0.7
B77: Options complémentaires sur Bouquet Liberté | E77: =J77-SUMIF('Indicateurs Cumulés M-1'!$F:$F,$B$7,'Indicateurs Cumulés M-1'!GM:GM) -> -48 | F77: =K77 -> 15 € | G77: =L77 -> 5.00 | H77: -4 | J77: =SUMIF('Indicateurs Cumulés'!$F:$F,$B$7,'Indicateurs Cumulés'!GM:GM) -> 132 | K77: =IF(ISERROR(M77/(J77*L77)*1000),0,M77/(J77*L77)*1000) -> 15 € | L77: ='Indicateurs Cumulés'!$IV$3 -> 5.00 | M77: =SUMIF('Indicateurs Cumulés'!$F:$F,$B$7,'Indicateurs Cumulés'!GN:GN) -> 10 | N77: =IF(ISERROR(M77/SUMIF('Indicateurs Cumulés'!$F:$F,$B$7,'Indicateurs Cumulés'!HT:HT)),"nc",M77/SUMIF('Indicateurs Cumulés'!$F:$F,$B$7,'Indicateurs Cumulés'!HT:HT)) -> 0.0 | P77: =SUMIF(objectifs!$F:$F,$B$7,objectifs!FL:FL) -> 1,600 | Q77: =objectifs!$FL$3 -> 15 € | R77: =objectifs!$FM$3 -> 5.00 | S77: =P77*Q77*R77/1000 -> 120 | T77: =IF(ISERROR(S77/SUMIF(objectifs!$F:$F,$B$7,objectifs!IC:IC)),"nc",S77/SUMIF(objectifs!$F:$F,$B$7,objectifs!IC:IC)) -> 0.1 | V77: =IF(ISERROR(J77/P77),0,J77/P77) -> 8% | W77: =IF(ISERROR(M77/S77),0,M77/S77) -> 8% | X77: =IF(ISERROR(N77-(T77/12*MONTH($C$9))),"nc",N77-(T77/12*MONTH($C$9))) -> -0.0
B78: IARD & Prévoyance - Commissions | E78: =J78-(SUMIF('Indicateurs Cumulés M-1'!$F:$F,$B$7,'Indicateurs Cumulés M-1'!HY:HY) +SUMIF('Indicateurs Cumulés M-1'!$F:$F,$B$7,'Indicateurs Cumulés M-1'!HZ:HZ) +SUMIF('Indicateurs Cumulés M-1'!$F:$F,$B$7,'Indicateurs Cumulés M-1'!IA:IA) +SUMIF('Indicateurs Cumulés M-1'!$F:$F,$B$7,'Indicateurs Cumulés M-1'!IB:IB) +SUMIF('Indicateurs Cumulés M-1'!$F:$F,$B$7,'Indicateurs Cumulés M-1'!IC:IC) +SUMIF('Indicateurs Cumulés M-1'!$F:$F,$B$7,'Indicateurs Cumulés M-1'!ID:ID) +SUMIF('Indicateurs Cumulés M-1'!$F:$F,$B$7,'Indicateurs Cumulés M-1'!IE:IE) +SUMIF('Indicateurs Cumulés M-1'!$F:$F,$B$7,'Indicateurs Cumulés M-1'!JK:JK) +SUMIF('Indicateurs Cumulés M-1'!$F:$F,$B$7,'Indicateurs Cumulés M-1'!LC:LC)) -> -432 | F78: =IF(ISERROR(H78/(E78*G78)*1000),0,H78/(E78*G78)*1000) -> 1 € | G78: 5.00 | H78: =M78- (SUMIF('Indicateurs Cumulés M-1'!$F:$F,$B$7,'Indicateurs Cumulés M-1'!IO:IO) +SUMIF('Indicateurs Cumulés M-1'!$F:$F,$B$7,'Indicateurs Cumulés M-1'!IP:IP) +SUMIF('Indicateurs Cumulés M-1'!$F:$F,$B$7,'Indicateurs Cumulés M-1'!IQ:IQ) +SUMIF('Indicateurs Cumulés M-1'!$F:$F,$B$7,'Indicateurs Cumulés M-1'!IR:IR) +SUMIF('Indicateurs Cumulés M-1'!$F:$F,$B$7,'Indicateurs Cumulés M-1'!IS:IS) +SUMIF('Indicateurs Cumulés M-1'!$F:$F,$B$7,'Indicateurs Cumulés M-1'!IT:IT) +SUMIF('Indicateurs Cumulés M-1'!$F:$F,$B$7,'Indicateurs Cumulés M-1'!IU:IU) +SUMIF('Indicateurs Cumulés M-1'!$F:$F,$B$7,'Indicateurs Cumulés M-1'!JL:JL) +SUMIF('Indicateurs Cumulés M-1'!$F:$F,$B$7,'Indicateurs Cumulés M-1'!LD:LD)) -> -2 | J78: =SUMIF('Indicateurs Cumulés'!$F:$F,$B$7,'Indicateurs Cumulés'!HY:HY) +SUMIF('Indicateurs Cumulés'!$F:$F,$B$7,'Indicateurs Cumulés'!HZ:HZ) +SUMIF('Indicateurs Cumulés'!$F:$F,$B$7,'Indicateurs Cumulés'!IA:IA) +SUMIF('Indicateurs Cumulés'!$F:$F,$B$7,'Indicateurs Cumulés'!IB:IB) +SUMIF('Indicateurs Cumulés'!$F:$F,$B$7,'Indicateurs Cumulés'!IC:IC) +SUMIF('Indicateurs Cumulés'!$F:$F,$B$7,'Indicateurs Cumulés'!ID:ID) +SUMIF('Indicateurs Cumulés'!$F:$F,$B$7,'Indicateurs Cumulés'!IE:IE) +SUMIF('Indicateurs Cumulés'!$F:$F,$B$7,'Indicateurs Cumulés'!JK:JK) +SUMIF('Indicateurs Cumulés'!$F:$F,$B$7,'Indicateurs Cumulés'!LC:LC) -> 19,004 | K78: 23 € | L78: =objectifs!$GI$3 -> 5.00 | M78: =SUMIF('Indicateurs Cumulés'!$F:$F,$B$7,'Indicateurs Cumulés'!IO:IO) +SUMIF('Indicateurs Cumulés'!$F:$F,$B$7,'Indicateurs Cumulés'!IP:IP) +SUMIF('Indicateurs Cumulés'!$F:$F,$B$7,'Indicateurs Cumulés'!IQ:IQ) +SUMIF('Indicateurs Cumulés'!$F:$F,$B$7,'Indicateurs Cumulés'!IR:IR) +SUMIF('Indicateurs Cumulés'!$F:$F,$B$7,'Indicateurs Cumulés'!IS:IS) +SUMIF('Indicateurs Cumulés'!$F:$F,$B$7,'Indicateurs Cumulés'!IT:IT) +SUMIF('Indicateurs Cumulés'!$F:$F,$B$7,'Indicateurs Cumulés'!IU:IU) +SUMIF('Indicateurs Cumulés'!$F:$F,$B$7,'Indicateurs Cumulés'!JL:JL) +SUMIF('Indicateurs Cumulés'!$F:$F,$B$7,'Indicateurs Cumulés'!LD:LD) -> 2,171 | N78: =IF(ISERROR(M78/SUMIF('Indicateurs Cumulés'!$F:$F,$B$7,'Indicateurs Cumulés'!HT:HT)),"nc",M78/SUMIF('Indicateurs Cumulés'!$F:$F,$B$7,'Indicateurs Cumulés'!HT:HT)) -> 1.6 | P78: =SUMIF(objectifs!$F:$F,$B$7,objectifs!GH:GH)*0.95 -> 24,985 | Q78: =objectifs!$GH$3 -> 20 € | R78: =objectifs!$GI$3 -> 5.00 | S78: =P78*Q78*R78/1000 -> 2,558 | T78: =IF(ISERROR(S78/SUMIF(objectifs!$F:$F,$B$7,objectifs!IC:IC)),"nc",S78/SUMIF(objectifs!$F:$F,$B$7,objectifs!IC:IC)) -> 1.7 | V78: =IF(ISERROR(J78/P78),0,J78/P78) -> 76% | W78: =IF(ISERROR(M78/S78),0,M78/S78) -> 85% | X78: =IF(ISERROR(N78-(T78/12*MONTH($C$9))),"nc",N78-(T78/12*MONTH($C$9))) -> 0.5
B79: dont AUTO | E79: =J79-SUMIF('Indicateurs Cumulés M-1'!$F:$F,$B$7,'Indicateurs Cumulés M-1'!HY:HY) -> 19 | F79: =K79 -> 43 € | G79: 2.75 | H79: =E79*F79*G79/1000 -> 2 | J79: =SUMIF('Indicateurs Cumulés'!$F:$F,$B$7,'Indicateurs Cumulés'!HY:HY) -> 4,863 | K79: 43 € | L79: =objectifs!$HT$3 -> 2.75 | M79: =SUMIF('Indicateurs Cumulés'!$F:$F,$B$7,'Indicateurs Cumulés'!IO:IO) -> 573 | N79: =IF(ISERROR(M79/SUMIF('Indicateurs Cumulés'!$F:$F,$B$7,'Indicateurs Cumulés'!HT:HT)),"nc",M79/SUMIF('Indicateurs Cumulés'!$F:$F,$B$7,'Indicateurs Cumulés'!HT:HT)) -> 0.4 | P79: =SUMIF(objectifs!$F:$F,$B$7,objectifs!HS:HS) -> 6,400 | Q79: =objectifs!$HS$3 -> 43 € | R79: =objectifs!$HT$3 -> 2.75 | S79: =P79*Q79*R79/1000 -> 754 | T79: =IF(ISERROR(S79/SUMIF(objectifs!$F:$F,$B$7,objectifs!IC:IC)),"nc",S79/SUMIF(objectifs!$F:$F,$B$7,objectifs!IC:IC)) -> 0.5 | V79: =IF(ISERROR(J79/P79),0,J79/P79) -> 76% | W79: =IF(ISERROR(M79/S79),0,M79/S79) -> 76% | X79: =IF(ISERROR(N79-(T79/12*MONTH($C$9))),"nc",N79-(T79/12*MONTH($C$9))) -> 0.1
B80: dont MRH | E80: =J80-SUMIF('Indicateurs Cumulés M-1'!$F:$F,$B$7,'Indicateurs Cumulés M-1'!HZ:HZ) -> 318 | F80: 25 € | G80: 3.96 | H80: =E80*F80*G80/1000 -> 32 | J80: =SUMIF('Indicateurs Cumulés'!$F:$F,$B$7,'Indicateurs Cumulés'!HZ:HZ) -> 3,845 | K80: 25 € | L80: =objectifs!$HV$3 -> 3.96 | M80: =SUMIF('Indicateurs Cumulés'!$F:$F,$B$7,'Indicateurs Cumulés'!IP:IP) -> 381 | N80: =IF(ISERROR(M80/SUMIF('Indicateurs Cumulés'!$F:$F,$B$7,'Indicateurs Cumulés'!HT:HT)),"nc",M80/SUMIF('Indicateurs Cumulés'!$F:$F,$B$7,'Indicateurs Cumulés'!HT:HT)) -> 0.3 | P80: =SUMIF(objectifs!$F:$F,$B$7,objectifs!HU:HU) -> 4,600 | Q80: =objectifs!$HU$3 -> 25 € | R80: =objectifs!$HV$3 -> 3.96 | S80: =P80*Q80*R80/1000 -> 456 | T80: =IF(ISERROR(S80/SUMIF(objectifs!$F:$F,$B$7,objectifs!IC:IC)),"nc",S80/SUMIF(objectifs!$F:$F,$B$7,objectifs!IC:IC)) -> 0.3 | V80: =IF(ISERROR(J80/P80),0,J80/P80) -> 84% | W80: =IF(ISERROR(M80/S80),0,M80/S80) -> 84% | X80: =IF(ISERROR(N80-(T80/12*MONTH($C$9))),"nc",N80-(T80/12*MONTH($C$9))) -> 0.1
B81: dont Sécur Famille | E81: =J81-SUMIF('Indicateurs Cumulés M-1'!$F:$F,$B$7,'Indicateurs Cumulés M-1'!IE:IE) -> -96 | F81: 19 € | G81: 6.00 | H81: =M81-VLOOKUP($B$7,'Indicateurs Cumulés M-1'!$F$3:$JD$390,250,FALSE) -> -11 | J81: =SUMIF('Indicateurs Cumulés'!$F:$F,$B$7,'Indicateurs Cumulés'!IE:IE) -> 8,053 | K81: =+objectifs!$ID$3 -> 19 € | L81: =+objectifs!$IE$3 -> 6.00 | M81: =SUMIF('Indicateurs Cumulés'!$F:$F,$B$7,'Indicateurs Cumulés'!IU:IU) -> 928 | N81: =IF(ISERROR(M81/SUMIF('Indicateurs Cumulés'!$F:$F,$B$7,'Indicateurs Cumulés'!HT:HT)),"nc",M81/SUMIF('Indicateurs Cumulés'!$F:$F,$B$7,'Indicateurs Cumulés'!HT:HT)) -> 0.7 | P81: =SUMIF(objectifs!$F:$F,$B$7,objectifs!ID:ID) -> 10,000 | Q81: =+objectifs!$ID$3 -> 19 € | R81: =+objectifs!$IE$3 -> 6.00 | S81: =P81*Q81*R81/1000 -> 1,152 | T81: =IF(ISERROR(S81/SUMIF(objectifs!$F:$F,$B$7,objectifs!IC:IC)),"nc",S81/SUMIF(objectifs!$F:$F,$B$7,objectifs!IC:IC)) -> 0.8 | V81: =IF(ISERROR(J81/P81),0,J81/P81) -> 81% | W81: =IF(ISERROR(M81/S81),0,M81/S81) -> 81% | X81: =IF(ISERROR(N81-(T81/12*MONTH($C$9))),"nc",N81-(T81/12*MONTH($C$9))) -> 0.2
B82: Booster AUTO & MRH | E82: =E79+E80 -> 337 | F82: =K82 -> 40 € | G82: 5.00 | H82: =E82*F82*G82/1000 -> 67 | J82: =J79+J80 -> 8,708 | K82: 40 € | L82: =objectifs!$GG$3 -> 5.00 | M82: =SUMIF('Indicateurs Cumulés'!$F:$F,$B$7,'Indicateurs Cumulés'!BU:BU)+SUMIF('Indicateurs Cumulés'!$F:$F,$B$7,'Indicateurs Cumulés'!BV:BV) -> 1,742 | N82: =IF(ISERROR(M82/SUMIF('Indicateurs Cumulés'!$F:$F,$B$7,'Indicateurs Cumulés'!HT:HT)),"nc",M82/SUMIF('Indicateurs Cumulés'!$F:$F,$B$7,'Indicateurs Cumulés'!HT:HT)) -> 1.3
B84: BANCA PRO - Ventes nettes | E84: =SUM(E85:E91) -> 14 | H84: =SUM(H85:H91) -> -1 | J84: =SUM(J85:J90) -> 2,234 | M84: =SUM(M85:M91) -> 2,893 | N84: =IF(ISERROR(M84/SUMIF('Indicateurs Cumulés'!$F:$F,$B$7,'Indicateurs Cumulés'!HT:HT)),"nc",M84/SUMIF('Indicateurs Cumulés'!$F:$F,$B$7,'Indicateurs Cumulés'!HT:HT)) -> 2.1 | P84: =SUM(P85:P91) -> 4,570 | S84: =SUM(S85:S91) -> 4,913 | T84: =IF(ISERROR(S84/SUMIF(objectifs!$F:$F,$B$7,objectifs!IC:IC)),"nc",S84/SUMIF(objectifs!$F:$F,$B$7,objectifs!IC:IC)) -> 3.2 | V84: =IF(ISERROR(J84/P84),0,J84/P84) -> 49% | W84: =IF(ISERROR(M84/S84),0,M84/S84) -> 59% | X84: =IF(ISERROR(N84-(T84/12*MONTH($C$9))),"nc",N84-(T84/12*MONTH($C$9))) -> -0.0
B85: Forfaits PRO - Tarification | E85: =J85-SUMIF('Indicateurs Cumulés M-1'!$F:$F,$B$7,'Indicateurs Cumulés M-1'!KC:KC)-SUMIF('Indicateurs Cumulés M-1'!$F:$F,$B$7,'Indicateurs Cumulés M-1'!KE:KE) -> 0 | F85: =K85 -> 270 € | G85: =L85 -> 5.00 | H85: =E85*F85*G85/1000 -> 0 | J85: =SUMIF('Indicateurs Cumulés'!$F:$F,$B$7,'Indicateurs Cumulés'!KC:KC)+SUMIF('Indicateurs Cumulés'!$F:$F,$B$7,'Indicateurs Cumulés'!KE:KE) -> 910 | K85: =IF(ISERROR(M85/(J85*L85)*1000),0,M85/(J85*L85)*1000) -> 270 € | L85: =objectifs!$HF$3 -> 5.00 | M85: =SUMIF('Indicateurs Cumulés'!$F:$F,$B$7,'Indicateurs Cumulés'!KI:KI)+SUMIF('Indicateurs Cumulés'!$F:$F,$B$7,'Indicateurs Cumulés'!KK:KK) -> 1,229 | N85: =IF(ISERROR(M85/SUMIF('Indicateurs Cumulés'!$F:$F,$B$7,'Indicateurs Cumulés'!HT:HT)),"nc",M85/SUMIF('Indicateurs Cumulés'!$F:$F,$B$7,'Indicateurs Cumulés'!HT:HT)) -> 0.9 | P85: =SUMIF(objectifs!$F:$F,$B$7,objectifs!GZ:GZ)+SUMIF(objectifs!$F:$F,$B$7,objectifs!HB:HB) -> 1,500 | Q85: =IF(ISERROR(S85/(P85*R85)*1000),0,S85/(P85*R85)*1000) -> 204 € | R85: =objectifs!$HF$3 -> 5.00 | S85: =SUMIF(objectifs!$F:$F,$B$7,objectifs!HF:HF)+SUMIF(objectifs!$F:$F,$B$7,objectifs!HH:HH) -> 1,529 | T85: =IF(ISERROR(S85/SUMIF(objectifs!$F:$F,$B$7,objectifs!IC:IC)),"nc",S85/SUMIF(objectifs!$F:$F,$B$7,objectifs!IC:IC)) -> 1.0 | V85: 61% | W85: 80% | X85: 0.2
B86: Cartes PRO - Tarification | E86: =J86-SUMIF('Indicateurs Cumulés M-1'!$F:$F,$B$7,'Indicateurs Cumulés M-1'!KD:KD) -SUMIF('Indicateurs Cumulés M-1'!$F:$F,$B$7,'Indicateurs Cumulés M-1'!KF:KF) -SUMIF('Indicateurs Cumulés M-1'!$F:$F,$B$7,'Indicateurs Cumulés M-1'!KG:KG) -> 0 | F86: 95 € | G86: 5.00 | H86: 0 | J86: =SUMIF('Indicateurs Cumulés'!$F:$F,$B$7,'Indicateurs Cumulés'!KD:KD)+SUMIF('Indicateurs Cumulés'!$F:$F,$B$7,'Indicateurs Cumulés'!KF:KF)+SUMIF('Indicateurs Cumulés'!$F:$F,$B$7,'Indicateurs Cumulés'!KG:KG) -> 673 | K86: 95 € | L86: =objectifs!$HG$3 -> 5.00 | M86: =SUMIF('Indicateurs Cumulés'!$F:$F,$B$7,'Indicateurs Cumulés'!KJ:KJ)+SUMIF('Indicateurs Cumulés'!$F:$F,$B$7,'Indicateurs Cumulés'!KL:KL)+SUMIF('Indicateurs Cumulés'!$F:$F,$B$7,'Indicateurs Cumulés'!KM:KM) -> 321 | N86: =IF(ISERROR(M86/SUMIF('Indicateurs Cumulés'!$F:$F,$B$7,'Indicateurs Cumulés'!HT:HT)),"nc",M86/SUMIF('Indicateurs Cumulés'!$F:$F,$B$7,'Indicateurs Cumulés'!HT:HT)) -> 0.2 | P86: =SUMIF(objectifs!$F:$F,$B$7,objectifs!HA:HA)+SUMIF(objectifs!$F:$F,$B$7,objectifs!HC:HC)+SUMIF(objectifs!$F:$F,$B$7,objectifs!HD:HD) -> 1,000 | Q86: 150 € | R86: =objectifs!$HG$3 -> 5.00 | S86: =SUMIF(objectifs!$F:$F,$B$7,objectifs!HG:HG)+SUMIF(objectifs!$F:$F,$B$7,objectifs!HI:HI)+SUMIF(objectifs!$F:$F,$B$7,objectifs!HJ:HJ) -> 748 | T86: =IF(ISERROR(S86/SUMIF(objectifs!$F:$F,$B$7,objectifs!IC:IC)),"nc",S86/SUMIF(objectifs!$F:$F,$B$7,objectifs!IC:IC)) -> 0.5 | V86: 67% | W86: 43% | X86: -0.1
B87: AUTO PRO (ventes brutes) - Commissions | E87: =J87-SUMIF('Indicateurs Cumulés M-1'!$F:$F,$B$7,'Indicateurs Cumulés M-1'!CA:CA) -> -2 | F87: 100 € | G87: 2.75 | H87: -1 | J87: =SUMIF('Indicateurs Cumulés'!$F:$F,$B$7,'Indicateurs Cumulés'!CA:CA) -> 116 | K87: 100 € | L87: =objectifs!$HZ$3 -> 2.75 | M87: =SUMIF('Indicateurs Cumulés'!$F:$F,$B$7,'Indicateurs Cumulés'!CB:CB) -> 32 | N87: =IF(ISERROR(M87/SUMIF('Indicateurs Cumulés'!$F:$F,$B$7,'Indicateurs Cumulés'!HT:HT)),"nc",M87/SUMIF('Indicateurs Cumulés'!$F:$F,$B$7,'Indicateurs Cumulés'!HT:HT)) -> 0.0 | P87: =SUMIF(objectifs!$F:$F,$B$7,objectifs!HW:HW) -> 340 | Q87: 100 € | R87: =objectifs!$HZ$3 -> 2.75 | S87: =SUMIF(objectifs!$F:$F,$B$7,objectifs!HZ:HZ) -> 94 | T87: =IF(ISERROR(S87/SUMIF(objectifs!$F:$F,$B$7,objectifs!IC:IC)),"nc",S87/SUMIF(objectifs!$F:$F,$B$7,objectifs!IC:IC)) -> 0.1 | V87: 34% | W87: 34% | X87: -0.0
B88: Multirisque PRO (ventes brutes) - Commissions | E88: =J88-SUMIF('Indicateurs Cumulés M-1'!$F:$F,$B$7,'Indicateurs Cumulés M-1'!CC:CC) -> 10 | F88: 30 € | G88: 3.96 | H88: 1 | J88: =SUMIF('Indicateurs Cumulés'!$F:$F,$B$7,'Indicateurs Cumulés'!CC:CC) -> 126 | K88: 30 € | L88: =objectifs!$IA$3 -> 3.96 | M88: =SUMIF('Indicateurs Cumulés'!$F:$F,$B$7,'Indicateurs Cumulés'!CD:CD) -> 15 | N88: =IF(ISERROR(M88/SUMIF('Indicateurs Cumulés'!$F:$F,$B$7,'Indicateurs Cumulés'!HT:HT)),"nc",M88/SUMIF('Indicateurs Cumulés'!$F:$F,$B$7,'Indicateurs Cumulés'!HT:HT)) -> 0.0 | P88: =SUMIF(objectifs!$F:$F,$B$7,objectifs!HX:HX) -> 510 | Q88: 30 € | R88: =objectifs!$IA$3 -> 3.96 | S88: =SUMIF(objectifs!$F:$F,$B$7,objectifs!IA:IA) -> 61 | T88: =IF(ISERROR(S88/SUMIF(objectifs!$F:$F,$B$7,objectifs!IC:IC)),"nc",S88/SUMIF(objectifs!$F:$F,$B$7,objectifs!IC:IC)) -> 0.0 | V88: 25% | W88: 25% | X88: -0.0
B89: PAP - Commissions | E89: =J89-SUMIF('Indicateurs Cumulés M-1'!$F:$F,$B$7,'Indicateurs Cumulés M-1'!KH:KH) -> 3 | F89: 18 € | G89: 5.00 | H89: 0 | J89: =SUMIF('Indicateurs Cumulés'!$F:$F,$B$7,'Indicateurs Cumulés'!KH:KH) -> 293 | K89: 18 € | L89: =objectifs!$HK$3 -> 5.00 | M89: =SUMIF('Indicateurs Cumulés'!$F:$F,$B$7,'Indicateurs Cumulés'!KN:KN) -> 26 | N89: =IF(ISERROR(M89/SUMIF('Indicateurs Cumulés'!$F:$F,$B$7,'Indicateurs Cumulés'!HT:HT)),"nc",M89/SUMIF('Indicateurs Cumulés'!$F:$F,$B$7,'Indicateurs Cumulés'!HT:HT)) -> 0.0 | P89: =SUMIF(objectifs!$F:$F,$B$7,objectifs!HE:HE) -> 480 | Q89: 18 € | R89: =objectifs!$HK$3 -> 5.00 | S89: =SUMIF(objectifs!$F:$F,$B$7,objectifs!HK:HK) -> 42 | T89: =IF(ISERROR(S89/SUMIF(objectifs!$F:$F,$B$7,objectifs!IC:IC)),"nc",S89/SUMIF(objectifs!$F:$F,$B$7,objectifs!IC:IC)) -> 0.0 | V89: 61% | W89: 61% | X89: 0.0
B90: Contrats monétiques actifs - Commissions | E90: =J90-SUMIF('Indicateurs Cumulés M-1'!$F:$F,$B$7,'Indicateurs Cumulés M-1'!CE:CE) -> 3 | F90: 100 € | G90: 5.00 | H90: 2 | J90: =SUMIF('Indicateurs Cumulés'!$F:$F,$B$7,'Indicateurs Cumulés'!CE:CE) -> 116 | K90: 100 € | L90: =objectifs!$IB$3 -> 5.00 | M90: =SUMIF('Indicateurs Cumulés'!$F:$F,$B$7,'Indicateurs Cumulés'!CF:CF) -> 58 | N90: =IF(ISERROR(M90/SUMIF('Indicateurs Cumulés'!$F:$F,$B$7,'Indicateurs Cumulés'!HT:HT)),"nc",M90/SUMIF('Indicateurs Cumulés'!$F:$F,$B$7,'Indicateurs Cumulés'!HT:HT)) -> 0.0 | P90: =SUMIF(objectifs!$F:$F,$B$7,objectifs!HY:HY) -> 740 | Q90: 100 € | R90: =objectifs!$IB$3 -> 5.00 | S90: =SUMIF(objectifs!$F:$F,$B$7,objectifs!IB:IB) -> 370 | T90: =IF(ISERROR(S90/SUMIF(objectifs!$F:$F,$B$7,objectifs!IC:IC)),"nc",S90/SUMIF(objectifs!$F:$F,$B$7,objectifs!IC:IC)) -> 0.2 | V90: 16% | W90: 16% | X90: -0.1
B91: Commisions de mouvement | H91: =VLOOKUP($B$7,'Indicateurs Cumulés'!$F$3:$MZ$391,297,FALSE)-VLOOKUP($B$7,'Indicateurs Cumulés M-1'!$F$3:$MZ$391,297,FALSE) -> -3 | M91: =SUMIF('Indicateurs Cumulés'!$F:$F,$B$7,'Indicateurs Cumulés'!KP:KP) -> 1,213 | N91: =IF(ISERROR(M91/SUMIF('Indicateurs Cumulés'!$F:$F,$B$7,'Indicateurs Cumulés'!HT:HT)),"nc",M91/SUMIF('Indicateurs Cumulés'!$F:$F,$B$7,'Indicateurs Cumulés'!HT:HT)) -> 0.9 | S91: =SUMIF(objectifs!$F:$F,$B$7,objectifs!HM:HM) -> 2,069 | T91: =IF(ISERROR(S91/SUMIF(objectifs!$F:$F,$B$7,objectifs!IC:IC)),"nc",S91/SUMIF(objectifs!$F:$F,$B$7,objectifs!IC:IC)) -> 1.4 | V91: 0% | W91: 59% | X91: -0.0
B93: BANCA PRO Relation privée - Ventes nettes | E93: =SUM(E94:E96) -> -56 | H93: =SUM(H94:H96) -> -44 | J93: =SUM(J94:J96) -> 240 | M93: =SUM(M94:M96) -> -34 | N93: =IF(ISERROR(M93/SUMIF('Indicateurs Cumulés'!$F:$F,$B$7,'Indicateurs Cumulés'!HT:HT)),"nc",M93/SUMIF('Indicateurs Cumulés'!$F:$F,$B$7,'Indicateurs Cumulés'!HT:HT)) -> -0.0 | P93: =SUM(P94:P96) -> 3,035 | Q93: =IF(ISERROR(S93/(P93*R93)*1000),0,S93/(P93*R93)*1000) -> 117 € | R93: =IF(ISERROR(SUMPRODUCT(R94:R96,P94:P96)/SUMPRODUCT(P94:P96)),0,SUMPRODUCT(R94:R96,P94:P96)/SUMPRODUCT(P94:P96)) -> 5.00 | S93: =SUM(S94:S96) -> 1,771 | T93: =IF(ISERROR(S93/SUMIF(objectifs!$F:$F,$B$7,objectifs!IC:IC)),"nc",S93/SUMIF(objectifs!$F:$F,$B$7,objectifs!IC:IC)) -> 1.2 | V93: =IF(ISERROR(J93/P93),0,J93/P93) -> 8% | W93: =IF(ISERROR(M93/S93),0,M93/S93) -> -2% | X93: =IF(ISERROR(N93-(T93/12*MONTH($C$9))),"nc",N93-(T93/12*MONTH($C$9))) -> -0.8
B94: Forfaits - Tarification | E94: =J94-SUMIF('Indicateurs Cumulés M-1'!$F:$F,$B$7,'Indicateurs Cumulés M-1'!LG:LG) -> -24 | F94: =K94 -> 137 € | G94: 5.00 | H94: =E94*F94*G94/1000 -> -16 | J94: =SUMIF('Indicateurs Cumulés'!$F:$F,$B$7,'Indicateurs Cumulés'!LG:LG) -> 56 | K94: =objectifs!$GD$3 -> 137 € | L94: =objectifs!$GE$3 -> 5.00 | M94: =SUMIF('Indicateurs Cumulés'!$F:$F,$B$7,'Indicateurs Cumulés'!LH:LH) -> 38 | N94: =IF(ISERROR(M94/SUMIF('Indicateurs Cumulés'!$F:$F,$B$7,'Indicateurs Cumulés'!HT:HT)),"nc",M94/SUMIF('Indicateurs Cumulés'!$F:$F,$B$7,'Indicateurs Cumulés'!HT:HT)) -> 0.0 | P94: =SUMIF(objectifs!$F:$F,$B$7,objectifs!GD:GD)*5% -> 1,120 | Q94: =objectifs!$GD$3 -> 137 € | R94: =objectifs!$GE$3 -> 5.00 | S94: =P94*Q94*R94/1000 -> 769 | T94: =IF(ISERROR(S94/SUMIF(objectifs!$F:$F,$B$7,objectifs!IC:IC)),"nc",S94/SUMIF(objectifs!$F:$F,$B$7,objectifs!IC:IC)) -> 0.5 | V94: =IF(ISERROR(J94/P94),0,J94/P94) -> 5% | W94: =IF(ISERROR(M94/S94),0,M94/S94) -> 5% | X94: =IF(ISERROR(N94-(T94/12*MONTH($C$9))),"nc",N94-(T94/12*MONTH($C$9))) -> -0.3
B95: Cartes - Tarification | E95: =J95-SUMIF('Indicateurs Cumulés M-1'!$F:$F,$B$7,'Indicateurs Cumulés M-1'!LI:LI) -> -18 | F95: 289 € | G95: 5.00 | H95: =E95*F95*G95/1000 -> -26 | J95: =SUMIF('Indicateurs Cumulés'!$F:$F,$B$7,'Indicateurs Cumulés'!LI:LI) -> -68 | K95: =objectifs!$GF$3 -> 289 € | L95: =objectifs!$GG$3 -> 5.00 | M95: =SUMIF('Indicateurs Cumulés'!$F:$F,$B$7,'Indicateurs Cumulés'!LJ:LJ) -> -98 | N95: =IF(ISERROR(M95/SUMIF('Indicateurs Cumulés'!$F:$F,$B$7,'Indicateurs Cumulés'!HT:HT)),"nc",M95/SUMIF('Indicateurs Cumulés'!$F:$F,$B$7,'Indicateurs Cumulés'!HT:HT)) -> -0.1 | P95: =SUMIF(objectifs!$F:$F,$B$7,objectifs!GF:GF)*5% -> 600 | Q95: =objectifs!$GF$3 -> 289 € | R95: =objectifs!$GG$3 -> 5.00 | S95: =P95*Q95*R95/1000 -> 868 | T95: =IF(ISERROR(S95/SUMIF(objectifs!$F:$F,$B$7,objectifs!IC:IC)),"nc",S95/SUMIF(objectifs!$F:$F,$B$7,objectifs!IC:IC)) -> 0.6 | V95: =IF(ISERROR(J95/P95),0,J95/P95) -> -11% | W95: =IF(ISERROR(M95/S95),0,M95/S95) -> -11% | X95: =IF(ISERROR(N95-(T95/12*MONTH($C$9))),"nc",N95-(T95/12*MONTH($C$9))) -> -0.5
B96: IARD & Prévoyance - Commissions | E96: =J96-SUMIF('Indicateurs Cumulés M-1'!$F:$F,$B$7,'Indicateurs Cumulés M-1'!LK:LK) -> -14 | F96: 20 € | G96: 5.00 | H96: =E96*F96*G96/1000 -> -1 | J96: =SUMIF('Indicateurs Cumulés'!$F:$F,$B$7,'Indicateurs Cumulés'!LK:LK) -> 252 | K96: =objectifs!$GH$3 -> 20 € | L96: =objectifs!$GI$3 -> 5.00 | M96: =SUMIF('Indicateurs Cumulés'!$F:$F,$B$7,'Indicateurs Cumulés'!LL:LL) -> 26 | N96: =IF(ISERROR(M96/SUMIF('Indicateurs Cumulés'!$F:$F,$B$7,'Indicateurs Cumulés'!HT:HT)),"nc",M96/SUMIF('Indicateurs Cumulés'!$F:$F,$B$7,'Indicateurs Cumulés'!HT:HT)) -> 0.0 | P96: =SUMIF(objectifs!$F:$F,$B$7,objectifs!GH:GH)*5% -> 1,315 | Q96: =objectifs!$GH$3 -> 20 € | R96: =objectifs!$GI$3 -> 5.00 | S96: =P96*Q96*R96/1000 -> 135 | T96: =IF(ISERROR(S96/SUMIF(objectifs!$F:$F,$B$7,objectifs!IC:IC)),"nc",S96/SUMIF(objectifs!$F:$F,$B$7,objectifs!IC:IC)) -> 0.1 | V96: =IF(ISERROR(J96/P96),0,J96/P96) -> 19% | W96: =IF(ISERROR(M96/S96),0,M96/S96) -> 19% | X96: =IF(ISERROR(N96-(T96/12*MONTH($C$9))),"nc",N96-(T96/12*MONTH($C$9))) -> -0.0
B98: AUTRES | H98: =H99+H103 -> -301 | M98: =M99+M103 -> -3,056 | N98: =IF(ISERROR(M98/SUMIF('Indicateurs Cumulés'!$F:$F,$B$7,'Indicateurs Cumulés'!HT:HT)),"nc",M98/SUMIF('Indicateurs Cumulés'!$F:$F,$B$7,'Indicateurs Cumulés'!HT:HT)) -> -2.2 | S98: =S99+S103 -> -3,348 | T98: =IF(ISERROR(S98/SUMIF(objectifs!$F:$F,$B$7,objectifs!IC:IC)),"nc",S98/SUMIF(objectifs!$F:$F,$B$7,objectifs!IC:IC)) -> -2.2 | W98: =IF(ISERROR(M98/S98),0,M98/S98) -> 91% | X98: =IF(ISERROR(N98-(T98/12*MONTH($C$9))),"nc",N98-(T98/12*MONTH($C$9))) -> -0.8
B99: Remises commerciales | H99: =M99-SUMIF('Indicateurs Cumulés M-1'!$F:$F,$B$7,'Indicateurs Cumulés M-1'!HN:HN) -> -369 | M99: =SUMIF('Indicateurs Cumulés'!$F:$F,$B$7,'Indicateurs Cumulés'!HN:HN) -> -3,895 | N99: =IF(ISERROR(M99/SUMIF('Indicateurs Cumulés'!$F:$F,$B$7,'Indicateurs Cumulés'!HT:HT)),"nc",M99/SUMIF('Indicateurs Cumulés'!$F:$F,$B$7,'Indicateurs Cumulés'!HT:HT)) -> -2.8 | S99: =SUMIF(objectifs!$F:$F,$B$7,objectifs!FU:FU) -> -5,200 | T99: =IF(ISERROR(S99/SUMIF(objectifs!$F:$F,$B$7,objectifs!IC:IC)),"nc",S99/SUMIF(objectifs!$F:$F,$B$7,objectifs!IC:IC)) -> -3.4 | W99: 75% | X99: -0.6
B100: dont hors MAD | N100: =IF(ISERROR(M100/SUMIF('Indicateurs Cumulés'!$F:$F,$B$7,'Indicateurs Cumulés'!HT:HT)),"nc",M100/SUMIF('Indicateurs Cumulés'!$F:$F,$B$7,'Indicateurs Cumulés'!HT:HT)) -> 0.0 | S100: -2,800 | T100: =IF(ISERROR(S100/SUMIF(objectifs!$F:$F,$B$7,objectifs!IC:IC)),"nc",S100/SUMIF(objectifs!$F:$F,$B$7,objectifs!IC:IC)) -> -1.8 | W100: 0% | X100: 1.2
B101: dont MAD | N101: =IF(ISERROR(M101/SUMIF('Indicateurs Cumulés'!$F:$F,$B$7,'Indicateurs Cumulés'!HT:HT)),"nc",M101/SUMIF('Indicateurs Cumulés'!$F:$F,$B$7,'Indicateurs Cumulés'!HT:HT)) -> 0.0 | S101: -1,700 | T101: =IF(ISERROR(S101/SUMIF(objectifs!$F:$F,$B$7,objectifs!IC:IC)),"nc",S101/SUMIF(objectifs!$F:$F,$B$7,objectifs!IC:IC)) -> -1.1 | W101: 0% | X101: 0.7
B102: dont PRO | H102: =M102 -> 0 | M102: =VLOOKUP($B$7,'Indicateurs Cumulés'!$F$3:$MZ$391,73,FALSE) -> 0 | N102: =IF(ISERROR(M102/SUMIF('Indicateurs Cumulés'!$F:$F,$B$7,'Indicateurs Cumulés'!HT:HT)),"nc",M102/SUMIF('Indicateurs Cumulés'!$F:$F,$B$7,'Indicateurs Cumulés'!HT:HT)) -> 0.0 | S102: -700 | T102: =IF(ISERROR(S102/SUMIF(objectifs!$F:$F,$B$7,objectifs!IC:IC)),"nc",S102/SUMIF(objectifs!$F:$F,$B$7,objectifs!IC:IC)) -> -0.5 | W102: 0% | X102: 0.3
B103: Commissions immobilières | H103: =M103-(SUMIF('Indicateurs Cumulés M-1'!$F:$F,$B$7,'Indicateurs Cumulés M-1'!HR:HR)*'Indicateurs Cumulés M-1'!$HR$3 +SUMIF('Indicateurs Cumulés M-1'!$F:$F,$B$7,'Indicateurs Cumulés M-1'!KZ:KZ)*'Indicateurs Cumulés M-1'!$KZ$3 +SUMIF('Indicateurs Cumulés M-1'!$F:$F,$B$7,'Indicateurs Cumulés M-1'!JG:JG)*'Indicateurs Cumulés M-1'!$JG$3 +SUMIF('Indicateurs Cumulés M-1'!$F:$F,$B$7,'Indicateurs Cumulés M-1'!JH:JH)*'Indicateurs Cumulés M-1'!$JH$3) -> 68 | M103: =SUMIF('Indicateurs Cumulés'!$F:$F,$B$7,'Indicateurs Cumulés'!HR:HR)*'Indicateurs Cumulés'!$HR$3 +SUMIF('Indicateurs Cumulés'!$F:$F,$B$7,'Indicateurs Cumulés'!KZ:KZ)*'Indicateurs Cumulés'!$KZ$3 +SUMIF('Indicateurs Cumulés'!$F:$F,$B$7,'Indicateurs Cumulés'!JG:JG)*'Indicateurs Cumulés'!$JG$3 +SUMIF('Indicateurs Cumulés'!$F:$F,$B$7,'Indicateurs Cumulés'!JH:JH)*'Indicateurs Cumulés'!$JH$3 -> 839 | N103: =IF(ISERROR(M103/SUMIF('Indicateurs Cumulés'!$F:$F,$B$7,'Indicateurs Cumulés'!HT:HT)),"nc",M103/SUMIF('Indicateurs Cumulés'!$F:$F,$B$7,'Indicateurs Cumulés'!HT:HT)) -> 0.6 | S103: =SUMIF(objectifs!$F:$F,$B$7,objectifs!FY:FY) -> 1,852 | T103: =IF(ISERROR(S103/SUMIF(objectifs!$F:$F,$B$7,objectifs!IC:IC)),"nc",S103/SUMIF(objectifs!$F:$F,$B$7,objectifs!IC:IC)) -> 1.2 | W103: 45% | X103: -0.2
B105: PNB BDD sur Activité Nouvelle | H105: =H14+H41+H47+H61+H98+H55+H84+H93 -> 16,800 | M105: =M14+M41+M47+M61+M98+M55+M84+M93 -> 131,815 | N105: =IF(ISERROR(M105/SUMIF('Indicateurs Cumulés'!$F:$F,$B$7,'Indicateurs Cumulés'!HT:HT)),"nc",M105/SUMIF('Indicateurs Cumulés'!$F:$F,$B$7,'Indicateurs Cumulés'!HT:HT)) -> 96.1 | S105: =S14+S41+S47+S61+S98+S55+S84+S93 -> 204,509 | T105: =IF(ISERROR(S105/SUMIF(objectifs!$F:$F,$B$7,objectifs!IC:IC)),"nc",S105/SUMIF(objectifs!$F:$F,$B$7,objectifs!IC:IC)) -> 134.6 | W105: =IF(ISERROR(M105/S105),0,M105/S105) -> 64.5% | X105: =IF(ISERROR(N105-(T105/12*MONTH($C$9))),"nc",N105-(T105/12*MONTH($C$9))) -> 6.3
B107: BONUS DIGITAL | E107: Volume | F107: Montant | G107: Durée | H107: PNB | J107: Volume | K107: Montant | L107: Durée | M107: PNB | N107: PNB / ETP perf. | P107: Volume | Q107: Montant | R107: Durée | S107: PNB | T107: PNB / ETP Cible | V107: Volume | W107: PNB annuel | X107: Ecart /obj. PNB/ETP
B108: Evolution stock clients actifs BAD (1 connexion / mois sur 3 mois) | E108: =J108-SUMIF('Indicateurs Cumulés M-1'!$F:$F,$B$7,'Indicateurs Cumulés M-1'!LT:LT) -> -1,065 | F108: =K108 -> 15 € | G108: =L108 -> 5.00 | H108: =+E108*F108*G108/1000 -> -80 | J108: =SUMIF('Indicateurs Cumulés'!$F:$F,$B$7,'Indicateurs Cumulés'!LT:LT) -> 41,240 | K108: 15 € | L108: 5.00 | M108: =SUMIF('Indicateurs Cumulés'!$F:$F,$B$7,'Indicateurs Cumulés'!LZ:LZ) -> 3,093 | N108: =IF(ISERROR(M108/SUMIF('Indicateurs Cumulés'!$F:$F,$B$7,'Indicateurs Cumulés'!HT:HT)),"nc",M108/SUMIF('Indicateurs Cumulés'!$F:$F,$B$7,'Indicateurs Cumulés'!HT:HT)) -> 2.3
B109: Nombre de SED finalisées (en brut) | E109: =J109-SUMIF('Indicateurs Cumulés M-1'!$F:$F,$B$7,'Indicateurs Cumulés M-1'!LU:LU) -> 3,312 | F109: =K109 -> 10 € | G109: =L109 -> 1.00 | H109: =+E109*F109*G109/1000 -> 33 | J109: =SUMIF('Indicateurs Cumulés'!$F:$F,$B$7,'Indicateurs Cumulés'!LU:LU) -> 36,166 | K109: 10 € | L109: 1.00 | M109: =SUMIF('Indicateurs Cumulés'!$F:$F,$B$7,'Indicateurs Cumulés'!MA:MA) -> 362 | N109: =IF(ISERROR(M109/SUMIF('Indicateurs Cumulés'!$F:$F,$B$7,'Indicateurs Cumulés'!HT:HT)),"nc",M109/SUMIF('Indicateurs Cumulés'!$F:$F,$B$7,'Indicateurs Cumulés'!HT:HT)) -> 0.3
B110: Nombre de SAG finalisées (périmètre SAG hors OPC en brut) | E110: =J110-SUMIF('Indicateurs Cumulés M-1'!$F:$F,$B$7,'Indicateurs Cumulés M-1'!LV:LV) -> 25,699 | F110: 3 € | G110: 1.00 | H110: 77 | J110: =SUMIF('Indicateurs Cumulés'!$F:$F,$B$7,'Indicateurs Cumulés'!LV:LV) -> 268,033 | K110: 3 € | L110: 1.00 | M110: =SUMIF('Indicateurs Cumulés'!$F:$F,$B$7,'Indicateurs Cumulés'!MB:MB) -> 804 | N110: =IF(ISERROR(M110/SUMIF('Indicateurs Cumulés'!$F:$F,$B$7,'Indicateurs Cumulés'!HT:HT)),"nc",M110/SUMIF('Indicateurs Cumulés'!$F:$F,$B$7,'Indicateurs Cumulés'!HT:HT)) -> 0.6
B111: Evolution stock de clients équipés E-documents | E111: =J111-SUMIF('Indicateurs Cumulés M-1'!$F:$F,$B$7,'Indicateurs Cumulés M-1'!LW:LW) -> 1,028 | F111: 10 € | G111: 5.00 | H111: 51 | J111: =SUMIF('Indicateurs Cumulés'!$F:$F,$B$7,'Indicateurs Cumulés'!LW:LW) -> 22,360 | K111: 10 € | L111: 5.00 | M111: =SUMIF('Indicateurs Cumulés'!$F:$F,$B$7,'Indicateurs Cumulés'!MC:MC) -> 1,118 | N111: =IF(ISERROR(M111/SUMIF('Indicateurs Cumulés'!$F:$F,$B$7,'Indicateurs Cumulés'!HT:HT)),"nc",M111/SUMIF('Indicateurs Cumulés'!$F:$F,$B$7,'Indicateurs Cumulés'!HT:HT)) -> 0.8
B112: Evolution stock de clients avec Opt-in-mail et tél. | E112: =J112-SUMIF('Indicateurs Cumulés M-1'!$F:$F,$B$7,'Indicateurs Cumulés M-1'!LX:LX) -> 1,616 | F112: 5 € | G112: 3.00 | H112: 24 | J112: =SUMIF('Indicateurs Cumulés'!$F:$F,$B$7,'Indicateurs Cumulés'!LX:LX) -> 14,712 | K112: 5 € | L112: 3.00 | M112: =SUMIF('Indicateurs Cumulés'!$F:$F,$B$7,'Indicateurs Cumulés'!MD:MD) -> 221 | N112: =IF(ISERROR(M112/SUMIF('Indicateurs Cumulés'!$F:$F,$B$7,'Indicateurs Cumulés'!HT:HT)),"nc",M112/SUMIF('Indicateurs Cumulés'!$F:$F,$B$7,'Indicateurs Cumulés'!HT:HT)) -> 0.2
B113: Evolution stock de clients équipés Sécurpass | E113: =J113-SUMIF('Indicateurs Cumulés M-1'!$F:$F,$B$7,'Indicateurs Cumulés M-1'!LY:LY) -> 2,926 | F113: 1 € | G113: 5.00 | H113: 15 | J113: =SUMIF('Indicateurs Cumulés'!$F:$F,$B$7,'Indicateurs Cumulés'!LY:LY) -> 12,774 | K113: 1 € | L113: 5.00 | M113: =SUMIF('Indicateurs Cumulés'!$F:$F,$B$7,'Indicateurs Cumulés'!ME:ME) -> 64 | N113: =IF(ISERROR(M113/SUMIF('Indicateurs Cumulés'!$F:$F,$B$7,'Indicateurs Cumulés'!HT:HT)),"nc",M113/SUMIF('Indicateurs Cumulés'!$F:$F,$B$7,'Indicateurs Cumulés'!HT:HT)) -> 0.0
B115: PNB sur Bonus digital | H115: =SUM(H108:H114) -> 121 | M115: =SUM(M108:M114) -> 5,661 | N115: =IF(ISERROR(M115/SUMIF('Indicateurs Cumulés'!$F:$F,$B$7,'Indicateurs Cumulés'!HT:HT)),"nc",M115/SUMIF('Indicateurs Cumulés'!$F:$F,$B$7,'Indicateurs Cumulés'!HT:HT)) -> 4.1
B117: PNB Part variable | H117: =H115+H105 -> 16,921 | M117: =+M105+M115 -> 137,476 | N117: =IF(ISERROR(M117/SUMIF('Indicateurs Cumulés'!$F:$F,$B$7,'Indicateurs Cumulés'!HT:HT)),"nc",M117/SUMIF('Indicateurs Cumulés'!$F:$F,$B$7,'Indicateurs Cumulés'!HT:HT)) -> 100.2 | S117: =+S105+S115 -> 204,509 | T117: =IF(ISERROR(S117/SUMIF(objectifs!$F:$F,$B$7,objectifs!IC:IC)),"nc",S117/SUMIF(objectifs!$F:$F,$B$7,objectifs!IC:IC)) -> 134.6 | W117: =IF(ISERROR(M117/S117),0,M117/S117) -> 67.2% | X117: =IF(ISERROR(N117-(T117/12*MONTH($C$9))),"nc",N117-(T117/12*MONTH($C$9))) -> 10.5
B120: COLLECTE PRO (yc DAV) - Excédents | E120: =SUM(E121:E124) -> 2,397 | H120: =SUM(H121:H124) -> 103 | J120: =SUM(J121:J124) -> 51,209 | M120: =SUM(M121:M124) -> 1,808 | N120: =IF(ISERROR(M120/SUMIF('Indicateurs Cumulés'!$F:$F,$B$7,'Indicateurs Cumulés'!HT:HT)),"nc",M120/SUMIF('Indicateurs Cumulés'!$F:$F,$B$7,'Indicateurs Cumulés'!HT:HT)) -> 1.3 | P120: =SUM(P121:P124) -> 40,000 | S120: =SUM(S121:S124) -> 1,601 | T120: =IF(ISERROR(S120/SUMIF(objectifs!$F:$F,$B$7,objectifs!IC:IC)),"nc",S120/SUMIF(objectifs!$F:$F,$B$7,objectifs!IC:IC)) -> 1.1 | V120: =IF(ISERROR(J120/P120),0,J120/P120) -> 128% | W120: =IF(ISERROR(M120/S120),0,M120/S120) -> 113% | X120: =IF(ISERROR(N120-(T120/12*MONTH($C$9))),"nc",N120-(T120/12*MONTH($C$9))) -> 0.6
B121: DAV Créditeurs PRO - Variation d'EMJ mensuel | E121: =SUMIF('Indicateurs mensuels'!$F:$F,$B$7,'Indicateurs mensuels'!HR:HR)/12 -> 120 | F121: =K121 -> 1.00% | G121: 5.37 | H121: =E121*F121*G121 -> 6 | J121: =SUMIF('Indicateurs Cumulés'!$F:$F,$B$7,'Indicateurs Cumulés'!JT:JT) -> 1,144 | K121: ='Indicateurs Cumulés'!$JT$3 -> 1.00% | L121: ='Indicateurs Cumulés'!$KA$3 -> 5.37 | M121: =J121*K121*L121 -> 61 | N121: =IF(ISERROR(M121/SUMIF('Indicateurs Cumulés'!$F:$F,$B$7,'Indicateurs Cumulés'!HT:HT)),"nc",M121/SUMIF('Indicateurs Cumulés'!$F:$F,$B$7,'Indicateurs Cumulés'!HT:HT)) -> 0.0 | P121: =SUMIF(objectifs!$F:$F,$B$7,objectifs!GQ:GQ) -> 15,000 | Q121: =objectifs!$FG$373 -> 1.00% | R121: =objectifs!$FH$373 -> 5.37 | S121: =P121*Q121*R121 -> 806 | T121: =IF(ISERROR(S121/SUMIF(objectifs!$F:$F,$B$7,objectifs!IC:IC)),"nc",S121/SUMIF(objectifs!$F:$F,$B$7,objectifs!IC:IC)) -> 0.5 | V121: =IF(ISERROR(J121/P121),0,J121/P121) -> 8% | W121: =IF(ISERROR(M121/S121),0,M121/S121) -> 8% | X121: =IF(ISERROR(N121-(T121/12*MONTH($C$9))),"nc",N121-(T121/12*MONTH($C$9))) -> -0.3
B122: Compte Excédent Pro | E122: =SUMIF('Indicateurs mensuels'!$F:$F,$B$7,'Indicateurs mensuels'!HS:HS) -> 2,719 | F122: 0.60% | G122: 5.37 | H122: =E122*F122*G122 -> 88 | J122: =SUMIF('Indicateurs Cumulés'!$F:$F,$B$7,'Indicateurs Cumulés'!JR:JR) -> 31,147 | K122: ='Indicateurs Cumulés'!$JR$3 -> 0.60% | L122: ='Indicateurs Cumulés'!$JY$3 -> 5.37 | M122: =SUMIF('Indicateurs Cumulés'!$F:$F,$B$7,'Indicateurs Cumulés'!JY:JY) -> 1,004 | N122: =IF(ISERROR(M122/SUMIF('Indicateurs Cumulés'!$F:$F,$B$7,'Indicateurs Cumulés'!HT:HT)),"nc",M122/SUMIF('Indicateurs Cumulés'!$F:$F,$B$7,'Indicateurs Cumulés'!HT:HT)) -> 0.7 | P122: =SUMIF(objectifs!$F:$F,$B$7,objectifs!GO:GO) -> 25,000 | Q122: =objectifs!$CQ$373 -> 0.60% | R122: =objectifs!$CR$373 -> 5.37 | S122: =P122*Q122*R122 -> 806 | T122: =IF(ISERROR(S122/SUMIF(objectifs!$F:$F,$B$7,objectifs!IC:IC)),"nc",S122/SUMIF(objectifs!$F:$F,$B$7,objectifs!IC:IC)) -> 0.5 | V122: =IF(ISERROR(J122/P122),0,J122/P122) -> 125% | W122: =IF(ISERROR(M122/S122),0,M122/S122) -> 125% | X122: =IF(ISERROR(N122-(T122/12*MONTH($C$9))),"nc",N122-(T122/12*MONTH($C$9))) -> 0.4
B123: Assurance Vie | E123: =SUMIF('Indicateurs mensuels'!$F:$F,$B$7,'Indicateurs mensuels'!BX:BX) -> 1,442 | F123: 0.45% | G123: 8.00 | H123: =E123*F123*G123 -> 52 | J123: =SUMIF('Indicateurs Cumulés'!$F:$F,$B$7,'Indicateurs Cumulés'!JQ:JQ) -> 13,678 | K123: ='Indicateurs Cumulés'!$JQ$3 -> 0.45% | L123: ='Indicateurs Cumulés'!$JX$3 -> 8.00 | M123: =SUMIF('Indicateurs Cumulés'!$F:$F,$B$7,'Indicateurs Cumulés'!JX:JX) -> 492 | N123: =IF(ISERROR(M123/SUMIF('Indicateurs Cumulés'!$F:$F,$B$7,'Indicateurs Cumulés'!HT:HT)),"nc",M123/SUMIF('Indicateurs Cumulés'!$F:$F,$B$7,'Indicateurs Cumulés'!HT:HT)) -> 0.4 | P123: =SUMIF(objectifs!$F:$F,$B$7,objectifs!GN:GN) -> 6,000 | Q123: =objectifs!$EE$373 -> 0.45% | R123: =objectifs!$EF$373 -> 8.00 | S123: =P123*Q123*R123 -> 216 | T123: =IF(ISERROR(S123/SUMIF(objectifs!$F:$F,$B$7,objectifs!IC:IC)),"nc",S123/SUMIF(objectifs!$F:$F,$B$7,objectifs!IC:IC)) -> 0.1 | V123: =IF(ISERROR(J123/P123),0,J123/P123) -> 228% | W123: =IF(ISERROR(M123/S123),0,M123/S123) -> 228% | X123: =IF(ISERROR(N123-(T123/12*MONTH($C$9))),"nc",N123-(T123/12*MONTH($C$9))) -> 0.3
B124: Autres | E124: =SUMIF('Indicateurs mensuels'!$F:$F,$B$7,'Indicateurs mensuels'!HU:HU) +SUMIF('Indicateurs mensuels'!$F:$F,$B$7,'Indicateurs mensuels'!HV:HV) +SUMIF('Indicateurs mensuels'!$F:$F,$B$7,'Indicateurs mensuels'!HW:HW) +SUMIF('Indicateurs mensuels'!$F:$F,$B$7,'Indicateurs mensuels'!HX:HX) -> -1,884 | F124: =H124/E124/G124 -> 0.25% | G124: =L124 -> 9.00 | H124: =SUMIF('Indicateurs mensuels'!$F:$F,$B$7,'Indicateurs mensuels'!HY:HY) -> -43 | J124: =SUMIF('Indicateurs Cumulés'!$F:$F,$B$7,'Indicateurs Cumulés'!JM:JM)+SUMIF('Indicateurs Cumulés'!$F:$F,$B$7,'Indicateurs Cumulés'!JO:JO) +SUMIF('Indicateurs Cumulés'!$F:$F,$B$7,'Indicateurs Cumulés'!JS:JS)+SUMIF('Indicateurs Cumulés'!$F:$F,$B$7,'Indicateurs Cumulés'!KV:KV) -> 5,240 | K124: =M124/J124/L124 -> 0.53% | L124: ='Indicateurs Cumulés'!$JU$3 -> 9.00 | M124: =SUMIF('Indicateurs Cumulés'!$F:$F,$B$7,'Indicateurs Cumulés'!JU:JU)+SUMIF('Indicateurs Cumulés'!$F:$F,$B$7,'Indicateurs Cumulés'!JV:JV) +SUMIF('Indicateurs Cumulés'!$F:$F,$B$7,'Indicateurs Cumulés'!JZ:JZ)+SUMIF('Indicateurs Cumulés'!$F:$F,$B$7,'Indicateurs Cumulés'!KW:KW) -> 251 | N124: =IF(ISERROR(M124/SUMIF('Indicateurs Cumulés'!$F:$F,$B$7,'Indicateurs Cumulés'!HT:HT)),"nc",M124/SUMIF('Indicateurs Cumulés'!$F:$F,$B$7,'Indicateurs Cumulés'!HT:HT)) -> 0.2 | P124: =SUMIF(objectifs!$F:$F,$B$7,objectifs!GP:GP) -> -6,000 | Q124: =objectifs!$CM$373 -> 0.70% | R124: =objectifs!$CN$373 -> 5.37 | S124: =P124*Q124*R124 -> -226 | T124: =IF(ISERROR(S124/SUMIF(objectifs!$F:$F,$B$7,objectifs!IC:IC)),"nc",S124/SUMIF(objectifs!$F:$F,$B$7,objectifs!IC:IC)) -> -0.1 | V124: =IF(ISERROR(J124/P124),0,J124/P124) -> -87% | W124: =IF(ISERROR(M124/S124),0,M124/S124) -> -111% | X124: =IF(ISERROR(N124-(T124/12*MONTH($C$9))),"nc",N124-(T124/12*MONTH($C$9))) -> 0.3
B126: CREDIT à la CONSOMMATION PRO - Eng. Nets (yc accessoires) | E126: =E127 -> 1,599 | F126: =IF(ISERROR(H126/(E126*G126)),0,H126/(E126*G126)) -> 3.68% | G126: =G127 -> 2.68 | H126: =H127+H128+H129 -> 158 | J126: =J127 -> 27,892 | K126: =IF(ISERROR(M126/(J126*L126)),0,M126/(J126*L126)) -> 3.40% | L126: =L127 -> 2.75 | M126: =M127+M128+M129 -> 2,604 | N126: =IF(ISERROR(M126/SUMIF('Indicateurs Cumulés'!$F:$F,$B$7,'Indicateurs Cumulés'!HT:HT)),"nc",M126/SUMIF('Indicateurs Cumulés'!$F:$F,$B$7,'Indicateurs Cumulés'!HT:HT)) -> 1.9 | P126: =P127 -> 45,000 | Q126: =IF(ISERROR(S126/(P126*R126)),0,S126/(P126*R126)) -> 4.32% | R126: =R127 -> 2.50 | S126: =S127+S128+S129 -> 4,860 | T126: =IF(ISERROR(S126/SUMIF(objectifs!$F:$F,$B$7,objectifs!IC:IC)),"nc",S126/SUMIF(objectifs!$F:$F,$B$7,objectifs!IC:IC)) -> 3.2 | V126: =IF(ISERROR(J126/P126),0,J126/P126) -> 62% | W126: =IF(ISERROR(M126/S126),0,M126/S126) -> 54% | X126: =IF(ISERROR(N126-(T126/12*MONTH($C$9))),"nc",N126-(T126/12*MONTH($C$9))) -> -0.2
B127: Crédit à la Consommation (marge hors accessoires) | E127: =SUMIF('Indicateurs mensuels'!$F:$F,$B$7,'Indicateurs mensuels'!U:U) -> 1,599 | F127: =IF(E127=0,0,SUMPRODUCT(('Indicateurs mensuels'!$F$4:$F$374=$B$7)*(('Indicateurs mensuels'!$U$4:$U$374)*('Indicateurs mensuels'!$V$4:$V$374)/E127))) -> 2.83% | G127: =IF(E127=0,0,SUMPRODUCT(('Indicateurs mensuels'!$F$4:$F$374=$B$7)*(('Indicateurs mensuels'!$U$4:$U$374)*('Indicateurs mensuels'!$W$4:$W$374)/E127))) -> 2.68 | H127: =E127*F127*G127 -> 121 | J127: =SUMIF('Indicateurs Cumulés'!$F:$F,$B$7,'Indicateurs Cumulés'!U:U) -> 27,892 | K127: =IF(J127=0,0,SUMPRODUCT(('Indicateurs Cumulés'!$F$4:$F$374=$B$7)*(('Indicateurs Cumulés'!$U$4:$U$374)*('Indicateurs Cumulés'!$V$4:$V$374)/J127))) -> 2.60% | L127: =IF(J127=0,0,SUMPRODUCT(('Indicateurs Cumulés'!$F$4:$F$374=$B$7)*(('Indicateurs Cumulés'!$U$4:$U$374)*('Indicateurs Cumulés'!$W$4:$W$374)/J127))) -> 2.75 | M127: =J127*K127*L127 -> 1,991 | N127: =IF(ISERROR(M127/SUMIF('Indicateurs Cumulés'!$F:$F,$B$7,'Indicateurs Cumulés'!HT:HT)),"nc",M127/SUMIF('Indicateurs Cumulés'!$F:$F,$B$7,'Indicateurs Cumulés'!HT:HT)) -> 1.5 | P127: =SUMIF(objectifs!$F:$F,$B$7,objectifs!L:L)*objectifs!$L$375/objectifs!$L$373 -> 45,000 | Q127: =objectifs!$M$373 -> 3.05% | R127: =objectifs!$N$373 -> 2.50 | S127: =P127*Q127*R127 -> 3,431 | T127: =IF(ISERROR(S127/SUMIF(objectifs!$F:$F,$B$7,objectifs!IC:IC)),"nc",S127/SUMIF(objectifs!$F:$F,$B$7,objectifs!IC:IC)) -> 2.3 | V127: =IF(ISERROR(J127/P127),0,J127/P127) -> 62% | W127: =IF(ISERROR(M127/S127),0,M127/S127) -> 58% | X127: =IF(ISERROR(N127-(T127/12*MONTH($C$9))),"nc",N127-(T127/12*MONTH($C$9))) -> -0.1
B128: Frais de dossier | H128: =M128-SUMIF('Indicateurs Cumulés M-1'!$F:$F,$B$7,'Indicateurs Cumulés M-1'!CV:CV) -> 7 | M128: =SUMIF('Indicateurs Cumulés'!$F:$F,$B$7,'Indicateurs Cumulés'!CV:CV) -> 95 | N128: =IF(ISERROR(M128/SUMIF('Indicateurs Cumulés'!$F:$F,$B$7,'Indicateurs Cumulés'!HT:HT)),"nc",M128/SUMIF('Indicateurs Cumulés'!$F:$F,$B$7,'Indicateurs Cumulés'!HT:HT)) -> 0.1 | S128: =SUMIF(objectifs!$F:$F,$B$7,objectifs!BO:BO)*objectifs!$L$375/objectifs!$L$373 -> 270 | T128: =IF(ISERROR(S128/SUMIF(objectifs!$F:$F,$B$7,objectifs!IC:IC)),"nc",S128/SUMIF(objectifs!$F:$F,$B$7,objectifs!IC:IC)) -> 0.2 | W128: =IF(ISERROR(M128/S128),0,M128/S128) -> 35% | X128: =IF(ISERROR(N128-(T128/12*MONTH($C$9))),"nc",N128-(T128/12*MONTH($C$9))) -> -0.0
B129: Commissions ADE | E129: =IF(E127=0,0,SUMPRODUCT(('Indicateurs mensuels'!$F$4:$F$374=$B$7)*(('Indicateurs mensuels'!$U$4:$U$374)*('Indicateurs mensuels'!$CQ$4:$CQ$374)/E127))) -> 143.1% | F129: =IF(E127=0,0,SUMPRODUCT(('Indicateurs mensuels'!$F$4:$F$374=$B$7)*(('Indicateurs mensuels'!$U$4:$U$374)*('Indicateurs mensuels'!$CP$4:$CP$374)/E127))) -> 89.9% | H129: =M129-SUMIF('Indicateurs Cumulés M-1'!$F:$F,$B$7,'Indicateurs Cumulés M-1'!CO:CO) -> 30 | J129: =IF(J127=0,0,SUMPRODUCT(('Indicateurs Cumulés'!$F$4:$F$374=$B$7)*(('Indicateurs Cumulés'!$U$4:$U$374)*('Indicateurs Cumulés'!$CM$4:$CM$374)/J127))) -> 80.5% | K129: =IF(J127=0,0,SUMPRODUCT(('Indicateurs Cumulés'!$F$4:$F$374=$B$7)*(('Indicateurs Cumulés'!$U$4:$U$374)*('Indicateurs Cumulés'!$CN$4:$CN$374)/J126))) -> 143.1% | M129: =SUMIF('Indicateurs Cumulés'!$F:$F,$B$7,'Indicateurs Cumulés'!CO:CO) -> 518 | N129: =IF(ISERROR(M129/SUMIF('Indicateurs Cumulés'!$F:$F,$B$7,'Indicateurs Cumulés'!HT:HT)),"nc",M129/SUMIF('Indicateurs Cumulés'!$F:$F,$B$7,'Indicateurs Cumulés'!HT:HT)) -> 0.4 | P129: =P45 -> 135% | Q129: =Q45 -> 95% | S129: =SUMIF(objectifs!$F:$F,$B$7,objectifs!BY:BY)*objectifs!$L$375/objectifs!$L$373 -> 1,159 | T129: =IF(ISERROR(S129/SUMIF(objectifs!$F:$F,$B$7,objectifs!IC:IC)),"nc",S129/SUMIF(objectifs!$F:$F,$B$7,objectifs!IC:IC)) -> 0.8 | W129: =IF(ISERROR(M129/S129),0,M129/S129) -> 45% | X129: =IF(ISERROR(N129-(T129/12*MONTH($C$9))),"nc",N129-(T129/12*MONTH($C$9))) -> -0.1
B131: CREDIT IMMOBILIER PRO - Eng. Nets (yc accessoires) | E131: =E132 -> 12,910 | F131: =IF(ISERROR(H131/(E131*G131)),0,H131/(E131*G131)) -> 0.66% | G131: =G132 -> 7.11 | H131: =H132+H133+H134+H135 -> 607 | J131: =J132 -> 94,214 | K131: =IF(ISERROR(M131/(J131*L131)),0,M131/(J131*L131)) -> 0.40% | L131: =L132 -> 7.06 | M131: =M132+M133+M134+M135 -> 2,672 | N131: =IF(ISERROR(M131/SUMIF('Indicateurs Cumulés'!$F:$F,$B$7,'Indicateurs Cumulés'!HT:HT)),"nc",M131/SUMIF('Indicateurs Cumulés'!$F:$F,$B$7,'Indicateurs Cumulés'!HT:HT)) -> 1.9 | P131: =P132 -> 120,000 | Q131: =IF(ISERROR(S131/(P131*R131)),0,S131/(P131*R131)) -> 0.49% | R131: =R132 -> 7.50 | S131: =S132+S133+S134+S135 -> 4,375 | T131: =IF(ISERROR(S131/SUMIF(objectifs!$F:$F,$B$7,objectifs!IC:IC)),"nc",S131/SUMIF(objectifs!$F:$F,$B$7,objectifs!IC:IC)) -> 2.9 | V131: =IF(ISERROR(J131/P131),0,J131/P131) -> 79% | W131: =IF(ISERROR(M131/S131),0,M131/S131) -> 61% | X131: =IF(ISERROR(N131-(T131/12*MONTH($C$9))),"nc",N131-(T131/12*MONTH($C$9))) -> 0.0
B132: Crédit Immobilier (marge hors accessoires) | E132: =SUMIF('Indicateurs mensuels'!$F:$F,$B$7,'Indicateurs mensuels'!X:X) -> 12,910 | F132: =IF(E132=0,0,SUMPRODUCT(('Indicateurs mensuels'!$F$4:$F$374=$B$7)*(('Indicateurs mensuels'!$X$4:$X$374)*('Indicateurs mensuels'!$Y$4:$Y$374)/E132))) -> 0.31% | G132: =IF(E132=0,0,SUMPRODUCT(('Indicateurs mensuels'!$F$4:$F$374=$B$7)*(('Indicateurs mensuels'!$X$4:$X$374)*('Indicateurs mensuels'!$Z$4:$Z$374)/E132))) -> 7.11 | H132: =E132*F132*G132 -> 280 | J132: =SUMIF('Indicateurs Cumulés'!$F:$F,$B$7,'Indicateurs Cumulés'!X:X) -> 94,214 | K132: =IF(J132=0,0,SUMPRODUCT(('Indicateurs Cumulés'!$F$4:$F$374=$B$7)*(('Indicateurs Cumulés'!$X$4:$X$374)*('Indicateurs Cumulés'!$Y$4:$Y$374)/J132))) -> 0.07% | L132: =IF(J132=0,0,SUMPRODUCT(('Indicateurs Cumulés'!$F$4:$F$374=$B$7)*(('Indicateurs Cumulés'!$X$4:$X$374)*('Indicateurs Cumulés'!$Z$4:$Z$374)/J132))) -> 7.06 | M132: =J132*K132*L132 -> 485 | N132: =IF(ISERROR(M132/SUMIF('Indicateurs Cumulés'!$F:$F,$B$7,'Indicateurs Cumulés'!HT:HT)),"nc",M132/SUMIF('Indicateurs Cumulés'!$F:$F,$B$7,'Indicateurs Cumulés'!HT:HT)) -> 0.4 | P132: =SUMIF(objectifs!$F:$F,$B$7,objectifs!O:O)*objectifs!$O$375/objectifs!$O$373 -> 120,000 | Q132: =objectifs!$Q$373 -> 0.20% | R132: =objectifs!$R$373 -> 7.50 | S132: =P132*Q132*R132 -> 1,800 | T132: =IF(ISERROR(S132/SUMIF(objectifs!$F:$F,$B$7,objectifs!IC:IC)),"nc",S132/SUMIF(objectifs!$F:$F,$B$7,objectifs!IC:IC)) -> 1.2 | V132: =IF(ISERROR(J132/P132),0,J132/P132) -> 79% | W132: =IF(ISERROR(M132/S132),0,M132/S132) -> 27% | X132: =IF(ISERROR(N132-(T132/12*MONTH($C$9))),"nc",N132-(T132/12*MONTH($C$9))) -> -0.4
B133: Frais de dossier | H133: =M133-SUMIF('Indicateurs Cumulés M-1'!$F:$F,$B$7,'Indicateurs Cumulés M-1'!CX:CX) -> 36 | M133: =SUMIF('Indicateurs Cumulés'!$F:$F,$B$7,'Indicateurs Cumulés'!CX:CX) -> 248 | N133: =IF(ISERROR(M133/SUMIF('Indicateurs Cumulés'!$F:$F,$B$7,'Indicateurs Cumulés'!HT:HT)),"nc",M133/SUMIF('Indicateurs Cumulés'!$F:$F,$B$7,'Indicateurs Cumulés'!HT:HT)) -> 0.2 | S133: =SUMIF(objectifs!$F:$F,$B$7,objectifs!BP:BP)*objectifs!$O$375/objectifs!$O$373 -> 360 | T133: =IF(ISERROR(S133/SUMIF(objectifs!$F:$F,$B$7,objectifs!IC:IC)),"nc",S133/SUMIF(objectifs!$F:$F,$B$7,objectifs!IC:IC)) -> 0.2 | W133: =IF(ISERROR(M133/S133),0,M133/S133) -> 69% | X133: =IF(ISERROR(N133-(T133/12*MONTH($C$9))),"nc",N133-(T133/12*MONTH($C$9))) -> 0.0
B134: Commissions ADE (coefficient multiplicateur de 1,3 X) | E134: =IF(E132=0,0,SUMPRODUCT(('Indicateurs mensuels'!$F$4:$F$374=$B$7)*(('Indicateurs mensuels'!$X$4:$X$374)*('Indicateurs mensuels'!$CK$4:$CK$374)/E132))) -> 134.4% | F134: =IF(E132=0,0,SUMPRODUCT(('Indicateurs mensuels'!$F$4:$F$374=$B$7)*(('Indicateurs mensuels'!$X$4:$X$374)*('Indicateurs mensuels'!$CJ$4:$CJ$374)/E132))) -> 64.4% | H134: =M134-SUMIF('Indicateurs Cumulés M-1'!$F:$F,$B$7,'Indicateurs Cumulés M-1'!CR:CR) -> 268 | J134: =IF(J132=0,0,SUMPRODUCT(('Indicateurs Cumulés'!$F$4:$F$374=$B$7)*(('Indicateurs Cumulés'!$X$4:$X$374)*('Indicateurs Cumulés'!$CQ$4:$CQ$374)/J132))) -> 137.4% | K134: =IF(J132=0,0,SUMPRODUCT(('Indicateurs Cumulés'!$F$4:$F$374=$B$7)*(('Indicateurs Cumulés'!$X$4:$X$374)*('Indicateurs Cumulés'!$CP$4:$CP$374)/J132))) -> 62.2% | M134: =SUMIF('Indicateurs Cumulés'!$F:$F,$B$7,'Indicateurs Cumulés'!CR:CR) -> 1,796 | N134: =IF(ISERROR(M134/SUMIF('Indicateurs Cumulés'!$F:$F,$B$7,'Indicateurs Cumulés'!HT:HT)),"nc",M134/SUMIF('Indicateurs Cumulés'!$F:$F,$B$7,'Indicateurs Cumulés'!HT:HT)) -> 1.3 | P134: =P49 -> 145% | Q134: =Q49 -> 70% | S134: =SUMIF(objectifs!$F:$F,$B$7,objectifs!BX:BX)*objectifs!$O$375/objectifs!$O$373 -> 1,956 | T134: =IF(ISERROR(S134/SUMIF(objectifs!$F:$F,$B$7,objectifs!IC:IC)),"nc",S134/SUMIF(objectifs!$F:$F,$B$7,objectifs!IC:IC)) -> 1.3 | W134: =IF(ISERROR(M134/S134),0,M134/S134) -> 92% | X134: =IF(ISERROR(N134-(T134/12*MONTH($C$9))),"nc",N134-(T134/12*MONTH($C$9))) -> 0.5
B135: Commissions SACCEF | H135: =M135-SUMIF('Indicateurs Cumulés M-1'!$F:$F,$B$7,'Indicateurs Cumulés M-1'!CT:CT) -> 23 | M135: =SUMIF('Indicateurs Cumulés'!$F:$F,$B$7,'Indicateurs Cumulés'!CT:CT) -> 142 | N135: =IF(ISERROR(M135/SUMIF('Indicateurs Cumulés'!$F:$F,$B$7,'Indicateurs Cumulés'!HT:HT)),"nc",M135/SUMIF('Indicateurs Cumulés'!$F:$F,$B$7,'Indicateurs Cumulés'!HT:HT)) -> 0.1 | S135: =SUMIF(objectifs!$F:$F,$B$7,objectifs!CA:CA)*objectifs!$O$375/objectifs!$O$373 -> 258 | T135: =IF(ISERROR(S135/SUMIF(objectifs!$F:$F,$B$7,objectifs!IC:IC)),"nc",S135/SUMIF(objectifs!$F:$F,$B$7,objectifs!IC:IC)) -> 0.2 | W135: =IF(ISERROR(M135/S135),0,M135/S135) -> 55% | X135: =IF(ISERROR(N135-(T135/12*MONTH($C$9))),"nc",N135-(T135/12*MONTH($C$9))) -> -0.0
B137: CREDIT MLT PRO - Eng. Nets (yc accessoires) | E137: =E138+E139 -> 14,314 | F137: =IF(ISERROR(H137/(E137*G137)),0,H137/(E137*G137)) -> 1.26% | G137: =IF(E137=0,0,SUMPRODUCT(G138:G139,E138:E139)/(E138+E139)) -> 4.00 | H137: =H138+H139+H140+H141 -> 724 | J137: =J138+J139 -> 176,814 | K137: =IF(ISERROR(M137/(J137*L137)),0,M137/(J137*L137)) -> 0.76% | L137: =IF(J137=0,0,SUMPRODUCT(L138:L139,J138:J139)/(J138+J139)) -> 4.40 | M137: =M138+M139+M140+M141 -> 5,901 | N137: =IF(ISERROR(M137/SUMIF('Indicateurs Cumulés'!$F:$F,$B$7,'Indicateurs Cumulés'!HT:HT)),"nc",M137/SUMIF('Indicateurs Cumulés'!$F:$F,$B$7,'Indicateurs Cumulés'!HT:HT)) -> 4.3 | P137: =P138+P139 -> 250,000 | Q137: =IF(ISERROR(S137/(P137*R137)),0,S137/(P137*R137)) -> 0.70% | R137: =IF(P137=0,0,SUMPRODUCT(R138:R139,P138:P139)/(P138+P139)) -> 4.39 | S137: =S138+S139+S140+S141 -> 7,646 | T137: =IF(ISERROR(S137/SUMIF(objectifs!$F:$F,$B$7,objectifs!IC:IC)),"nc",S137/SUMIF(objectifs!$F:$F,$B$7,objectifs!IC:IC)) -> 5.0 | V137: =IF(ISERROR(J137/P137),0,J137/P137) -> 71% | W137: =IF(ISERROR(M137/S137),0,M137/S137) -> 77% | X137: =IF(ISERROR(N137-(T137/12*MONTH($C$9))),"nc",N137-(T137/12*MONTH($C$9))) -> 0.9
B138: Crédit MLT (marge hors accessoires) | E138: =SUMIF('Indicateurs mensuels'!$F:$F,$B$7,'Indicateurs mensuels'!AA:AA) -> 12,914 | F138: =IF(E138=0,0,SUMPRODUCT(('Indicateurs mensuels'!$F$4:$F$374=$B$7)*(('Indicateurs mensuels'!$AA$4:$AA$374)*('Indicateurs mensuels'!$AB$4:$AB$374)/E138))) -> 1.04% | G138: =IF(E138=0,0,SUMPRODUCT(('Indicateurs mensuels'!$F$4:$F$374=$B$7)*(('Indicateurs mensuels'!$AA$4:$AA$374)*('Indicateurs mensuels'!$AC$4:$AC$374)/E138))) -> 4.19 | H138: =E138*F138*G138 -> 564 | J138: =SUMIF('Indicateurs Cumulés'!$F:$F,$B$7,'Indicateurs Cumulés'!AA:AA) -> 167,094 | K138: =IF(J138=0,0,SUMPRODUCT(('Indicateurs Cumulés'!$F$4:$F$374=$B$7)*(('Indicateurs Cumulés'!$AA$4:$AA$374)*('Indicateurs Cumulés'!$AB$4:$AB$374)/J138))) -> 0.58% | L138: =IF(J138=0,0,SUMPRODUCT(('Indicateurs Cumulés'!$F$4:$F$374=$B$7)*(('Indicateurs Cumulés'!$AA$4:$AA$374)*('Indicateurs Cumulés'!$AC$4:$AC$374)/J138))) -> 4.53 | M138: =J138*K138*L138 -> 4,360 | N138: =IF(ISERROR(M138/SUMIF('Indicateurs Cumulés'!$F:$F,$B$7,'Indicateurs Cumulés'!HT:HT)),"nc",M138/SUMIF('Indicateurs Cumulés'!$F:$F,$B$7,'Indicateurs Cumulés'!HT:HT)) -> 3.2 | P138: =SUMIF(objectifs!$F:$F,$B$7,objectifs!Y:Y) -> 238,000 | Q138: =objectifs!$Z$373 -> 0.40% | R138: =objectifs!$AA$373 -> 4.50 | S138: =P138*Q138*R138 -> 4,284 | T138: =IF(ISERROR(S138/SUMIF(objectifs!$F:$F,$B$7,objectifs!IC:IC)),"nc",S138/SUMIF(objectifs!$F:$F,$B$7,objectifs!IC:IC)) -> 2.8 | V138: =IF(ISERROR(J138/P138),0,J138/P138) -> 70% | W138: =IF(ISERROR(M138/S138),0,M138/S138) -> 102% | X138: =IF(ISERROR(N138-(T138/12*MONTH($C$9))),"nc",N138-(T138/12*MONTH($C$9))) -> 1.3
B139: Crédit Bail Mobilier | E139: =SUMIF('Indicateurs mensuels'!$F:$F,$B$7,'Indicateurs mensuels'!GH:GH) -> 1,400 | F139: =IF(E139=0,0,SUMPRODUCT(('Indicateurs mensuels'!$F$4:$F$374=$B$7)*(('Indicateurs mensuels'!$GH$4:$GH$374)*('Indicateurs mensuels'!$GI$4:$GI$374)/E139))) -> 0.87% | G139: =IF(E139=0,0,SUMPRODUCT(('Indicateurs mensuels'!$F$4:$F$374=$B$7)*(('Indicateurs mensuels'!$GH$4:$GH$374)*('Indicateurs mensuels'!$GJ$4:$GJ$374)/E139))) -> 2.27 | H139: =E139*F139*G139 -> 28 | J139: =SUMIF('Indicateurs Cumulés'!$F:$F,$B$7,'Indicateurs Cumulés'!GP:GP) -> 9,720 | K139: =IF(J139=0,0,SUMPRODUCT(('Indicateurs Cumulés'!$F$4:$F$374=$B$7)*(('Indicateurs Cumulés'!$GP$4:$GP$374)*('Indicateurs Cumulés'!$GQ$4:$GQ$374)/J139))) -> 0.90% | L139: =IF(J139=0,0,SUMPRODUCT(('Indicateurs Cumulés'!$F$4:$F$374=$B$7)*(('Indicateurs Cumulés'!$GP$4:$GP$374)*('Indicateurs Cumulés'!$GR$4:$GR$374)/J139))) -> 2.26 | M139: =J139*K139*L139 -> 197 | N139: =IF(ISERROR(M139/SUMIF('Indicateurs Cumulés'!$F:$F,$B$7,'Indicateurs Cumulés'!HT:HT)),"nc",M139/SUMIF('Indicateurs Cumulés'!$F:$F,$B$7,'Indicateurs Cumulés'!HT:HT)) -> 0.1 | P139: =SUMIF(objectifs!$F:$F,$B$7,objectifs!S:S) -> 12,000 | Q139: =objectifs!$T$373 -> 0.40% | R139: =objectifs!$U$373 -> 2.30 | S139: =P139*Q139*R139 -> 110 | T139: =IF(ISERROR(S139/SUMIF(objectifs!$F:$F,$B$7,objectifs!IC:IC)),"nc",S139/SUMIF(objectifs!$F:$F,$B$7,objectifs!IC:IC)) -> 0.1 | V139: =IF(ISERROR(J139/P139),0,J139/P139) -> 81% | W139: =IF(ISERROR(M139/S139),0,M139/S139) -> 179% | X139: =IF(ISERROR(N139-(T139/12*MONTH($C$9))),"nc",N139-(T139/12*MONTH($C$9))) -> 0.1
B140: Frais de dossier (yc CBM) | H140: =SUMIF('Indicateurs mensuels'!$F:$F,$B$7,'Indicateurs mensuels'!CS:CS)+SUMIF('Indicateurs mensuels'!$F:$F,$B$7,'Indicateurs mensuels'!CX:CX) -> 52 | M140: =SUMIF('Indicateurs Cumulés'!$F:$F,$B$7,'Indicateurs Cumulés'!CS:CS)+SUMIF('Indicateurs Cumulés'!$F:$F,$B$7,'Indicateurs Cumulés'!CU:CU) -> 532 | N140: =IF(ISERROR(M140/SUMIF('Indicateurs Cumulés'!$F:$F,$B$7,'Indicateurs Cumulés'!HT:HT)),"nc",M140/SUMIF('Indicateurs Cumulés'!$F:$F,$B$7,'Indicateurs Cumulés'!HT:HT)) -> 0.4 | S140: =SUMIF(objectifs!$F:$F,$B$7,objectifs!BS:BS) -> 750 | T140: =IF(ISERROR(S140/SUMIF(objectifs!$F:$F,$B$7,objectifs!IC:IC)),"nc",S140/SUMIF(objectifs!$F:$F,$B$7,objectifs!IC:IC)) -> 0.5 | W140: =IF(ISERROR(M140/S140),0,M140/S140) -> 71% | X140: =IF(ISERROR(N140-(T140/12*MONTH($C$9))),"nc",N140-(T140/12*MONTH($C$9))) -> 0.1
B141: Commissions ADE | E141: =IF(E138=0,0,SUMPRODUCT(('Indicateurs mensuels'!$F$4:$F$374=$B$7)*(('Indicateurs mensuels'!$AA$4:$AA$374)*('Indicateurs mensuels'!$HP$4:$HP$374)/E138))) -> 114.0% | F141: =IF(E138=0,0,SUMPRODUCT(('Indicateurs mensuels'!$F$4:$F$374=$B$7)*(('Indicateurs mensuels'!$AA$4:$AA$374)*('Indicateurs mensuels'!$HO$4:$HO$374)/E138))) -> 76.4% | H141: =SUMIF('Indicateurs mensuels'!$F:$F,$B$7,'Indicateurs mensuels'!HQ:HQ) -> 80 | J141: =IF(J138=0,0,SUMPRODUCT(('Indicateurs Cumulés'!$F$4:$F$374=$B$7)*(('Indicateurs Cumulés'!$AA$4:$AA$374)*('Indicateurs Cumulés'!$DH$4:$DH$374)/J138))) -> 110.4% | K141: =IF(J138=0,0,SUMPRODUCT(('Indicateurs Cumulés'!$F$4:$F$374=$B$7)*(('Indicateurs Cumulés'!$AA$4:$AA$374)*('Indicateurs Cumulés'!$DG$4:$DG$374)/J138))) -> 63.4% | M141: =SUMIF('Indicateurs Cumulés'!$F:$F,$B$7,'Indicateurs Cumulés'!DI:DI) -> 812 | N141: =IF(ISERROR(M141/SUMIF('Indicateurs Cumulés'!$F:$F,$B$7,'Indicateurs Cumulés'!HT:HT)),"nc",M141/SUMIF('Indicateurs Cumulés'!$F:$F,$B$7,'Indicateurs Cumulés'!HT:HT)) -> 0.6 | P141: =P59 -> 110% | Q141: =Q59 -> 70% | S141: =SUMIF(objectifs!$F:$F,$B$7,objectifs!CB:CB) -> 2,501 | T141: =IF(ISERROR(S141/SUMIF(objectifs!$F:$F,$B$7,objectifs!IC:IC)),"nc",S141/SUMIF(objectifs!$F:$F,$B$7,objectifs!IC:IC)) -> 1.6 | W141: =IF(ISERROR(M141/S141),0,M141/S141) -> 32% | X141: =IF(ISERROR(N141-(T141/12*MONTH($C$9))),"nc",N141-(T141/12*MONTH($C$9))) -> -0.5
B143: BANCA PRO - Ventes nettes | E143: =SUM(E144:E150) -> 14 | H143: =SUM(H144:H150) -> -1 | J143: =SUM(J144:J150) -> 2,234 | M143: =SUM(M144:M150) -> 2,893 | N143: =IF(ISERROR(M143/SUMIF('Indicateurs Cumulés'!$F:$F,$B$7,'Indicateurs Cumulés'!HT:HT)),"nc",M143/SUMIF('Indicateurs Cumulés'!$F:$F,$B$7,'Indicateurs Cumulés'!HT:HT)) -> 2.1 | P143: =SUM(P144:P150) -> 4,570 | S143: =SUM(S144:S150) -> 4,913 | T143: =IF(ISERROR(S143/SUMIF(objectifs!$F:$F,$B$7,objectifs!IC:IC)),"nc",S143/SUMIF(objectifs!$F:$F,$B$7,objectifs!IC:IC)) -> 3.2 | V143: =IF(ISERROR(J143/P143),0,J143/P143) -> 49% | W143: =IF(ISERROR(M143/S143),0,M143/S143) -> 59% | X143: =IF(ISERROR(N143-(T143/12*MONTH($C$9))),"nc",N143-(T143/12*MONTH($C$9))) -> -0.0
B144: Forfaits PRO - Tarification | E144: =J144-SUMIF('Indicateurs Cumulés M-1'!$F:$F,$B$7,'Indicateurs Cumulés M-1'!KC:KC)-SUMIF('Indicateurs Cumulés M-1'!$F:$F,$B$7,'Indicateurs Cumulés M-1'!KE:KE) -> 0 | F144: =K144 -> 270 € | G144: =L144 -> 5.00 | H144: =E144*F144*G144/1000 -> 0 | J144: =SUMIF('Indicateurs Cumulés'!$F:$F,$B$7,'Indicateurs Cumulés'!KC:KC)+SUMIF('Indicateurs Cumulés'!$F:$F,$B$7,'Indicateurs Cumulés'!KE:KE) -> 910 | K144: =IF(ISERROR(M144/(J144*L144)*1000),0,M144/(J144*L144)*1000) -> 270 € | L144: =objectifs!$HF$3 -> 5.00 | M144: =SUMIF('Indicateurs Cumulés'!$F:$F,$B$7,'Indicateurs Cumulés'!KI:KI)+SUMIF('Indicateurs Cumulés'!$F:$F,$B$7,'Indicateurs Cumulés'!KK:KK) -> 1,229 | N144: =IF(ISERROR(M144/SUMIF('Indicateurs Cumulés'!$F:$F,$B$7,'Indicateurs Cumulés'!HT:HT)),"nc",M144/SUMIF('Indicateurs Cumulés'!$F:$F,$B$7,'Indicateurs Cumulés'!HT:HT)) -> 0.9 | P144: =SUMIF(objectifs!$F:$F,$B$7,objectifs!GZ:GZ)+SUMIF(objectifs!$F:$F,$B$7,objectifs!HB:HB) -> 1,500 | Q144: =IF(ISERROR(S144/(P144*R144)*1000),0,S144/(P144*R144)*1000) -> 204 € | R144: =objectifs!$HF$3 -> 5.00 | S144: =SUMIF(objectifs!$F:$F,$B$7,objectifs!HF:HF)+SUMIF(objectifs!$F:$F,$B$7,objectifs!HH:HH) -> 1,529 | T144: =IF(ISERROR(S144/SUMIF(objectifs!$F:$F,$B$7,objectifs!IC:IC)),"nc",S144/SUMIF(objectifs!$F:$F,$B$7,objectifs!IC:IC)) -> 1.0 | V144: 61% | W144: 80% | X144: 0.2
B145: Cartes PRO - Tarification | E145: =J145-SUMIF('Indicateurs Cumulés M-1'!$F:$F,$B$7,'Indicateurs Cumulés M-1'!KD:KD) -SUMIF('Indicateurs Cumulés M-1'!$F:$F,$B$7,'Indicateurs Cumulés M-1'!KF:KF) -SUMIF('Indicateurs Cumulés M-1'!$F:$F,$B$7,'Indicateurs Cumulés M-1'!KG:KG) -> 0 | F145: 95 € | G145: 5.00 | H145: 0 | J145: =SUMIF('Indicateurs Cumulés'!$F:$F,$B$7,'Indicateurs Cumulés'!KD:KD)+SUMIF('Indicateurs Cumulés'!$F:$F,$B$7,'Indicateurs Cumulés'!KF:KF)+SUMIF('Indicateurs Cumulés'!$F:$F,$B$7,'Indicateurs Cumulés'!KG:KG) -> 673 | K145: 95 € | L145: =objectifs!$HG$3 -> 5.00 | M145: =SUMIF('Indicateurs Cumulés'!$F:$F,$B$7,'Indicateurs Cumulés'!KJ:KJ)+SUMIF('Indicateurs Cumulés'!$F:$F,$B$7,'Indicateurs Cumulés'!KL:KL)+SUMIF('Indicateurs Cumulés'!$F:$F,$B$7,'Indicateurs Cumulés'!KM:KM) -> 321 | N145: =IF(ISERROR(M145/SUMIF('Indicateurs Cumulés'!$F:$F,$B$7,'Indicateurs Cumulés'!HT:HT)),"nc",M145/SUMIF('Indicateurs Cumulés'!$F:$F,$B$7,'Indicateurs Cumulés'!HT:HT)) -> 0.2 | P145: =SUMIF(objectifs!$F:$F,$B$7,objectifs!HA:HA)+SUMIF(objectifs!$F:$F,$B$7,objectifs!HC:HC)+SUMIF(objectifs!$F:$F,$B$7,objectifs!HD:HD) -> 1,000 | Q145: 150 € | R145: =objectifs!$HG$3 -> 5.00 | S145: =SUMIF(objectifs!$F:$F,$B$7,objectifs!HG:HG)+SUMIF(objectifs!$F:$F,$B$7,objectifs!HI:HI)+SUMIF(objectifs!$F:$F,$B$7,objectifs!HJ:HJ) -> 748 | T145: =IF(ISERROR(S145/SUMIF(objectifs!$F:$F,$B$7,objectifs!IC:IC)),"nc",S145/SUMIF(objectifs!$F:$F,$B$7,objectifs!IC:IC)) -> 0.5 | V145: 67% | W145: 43% | X145: -0.1
B146: AUTO PRO (ventes brutes) - Commissions | E146: =J146-SUMIF('Indicateurs Cumulés M-1'!$F:$F,$B$7,'Indicateurs Cumulés M-1'!CA:CA) -> -2 | F146: 100 € | G146: 2.75 | H146: -1 | J146: =SUMIF('Indicateurs Cumulés'!$F:$F,$B$7,'Indicateurs Cumulés'!CA:CA) -> 116 | K146: 100 € | L146: =objectifs!$HZ$3 -> 2.75 | M146: =SUMIF('Indicateurs Cumulés'!$F:$F,$B$7,'Indicateurs Cumulés'!CB:CB) -> 32 | N146: =IF(ISERROR(M146/SUMIF('Indicateurs Cumulés'!$F:$F,$B$7,'Indicateurs Cumulés'!HT:HT)),"nc",M146/SUMIF('Indicateurs Cumulés'!$F:$F,$B$7,'Indicateurs Cumulés'!HT:HT)) -> 0.0 | P146: =SUMIF(objectifs!$F:$F,$B$7,objectifs!HW:HW) -> 340 | Q146: 100 € | R146: =objectifs!$HZ$3 -> 2.75 | S146: =SUMIF(objectifs!$F:$F,$B$7,objectifs!HZ:HZ) -> 94 | T146: =IF(ISERROR(S146/SUMIF(objectifs!$F:$F,$B$7,objectifs!IC:IC)),"nc",S146/SUMIF(objectifs!$F:$F,$B$7,objectifs!IC:IC)) -> 0.1 | V146: 34% | W146: 34% | X146: -0.0
B147: Multirisque PRO (ventes brutes) - Commissions | E147: =J147-SUMIF('Indicateurs Cumulés M-1'!$F:$F,$B$7,'Indicateurs Cumulés M-1'!CC:CC) -> 10 | F147: 30 € | G147: 3.96 | H147: 1 | J147: =SUMIF('Indicateurs Cumulés'!$F:$F,$B$7,'Indicateurs Cumulés'!CC:CC) -> 126 | K147: 30 € | L147: =objectifs!$IA$3 -> 3.96 | M147: =SUMIF('Indicateurs Cumulés'!$F:$F,$B$7,'Indicateurs Cumulés'!CD:CD) -> 15 | N147: =IF(ISERROR(M147/SUMIF('Indicateurs Cumulés'!$F:$F,$B$7,'Indicateurs Cumulés'!HT:HT)),"nc",M147/SUMIF('Indicateurs Cumulés'!$F:$F,$B$7,'Indicateurs Cumulés'!HT:HT)) -> 0.0 | P147: =SUMIF(objectifs!$F:$F,$B$7,objectifs!HX:HX) -> 510 | Q147: 30 € | R147: =objectifs!$IA$3 -> 3.96 | S147: =SUMIF(objectifs!$F:$F,$B$7,objectifs!IA:IA) -> 61 | T147: =IF(ISERROR(S147/SUMIF(objectifs!$F:$F,$B$7,objectifs!IC:IC)),"nc",S147/SUMIF(objectifs!$F:$F,$B$7,objectifs!IC:IC)) -> 0.0 | V147: 25% | W147: 25% | X147: -0.0
B148: PAP - Commissions | E148: =J148-SUMIF('Indicateurs Cumulés M-1'!$F:$F,$B$7,'Indicateurs Cumulés M-1'!KH:KH) -> 3 | F148: 18 € | G148: 5.00 | H148: 0 | J148: =SUMIF('Indicateurs Cumulés'!$F:$F,$B$7,'Indicateurs Cumulés'!KH:KH) -> 293 | K148: 18 € | L148: =objectifs!$HK$3 -> 5.00 | M148: =SUMIF('Indicateurs Cumulés'!$F:$F,$B$7,'Indicateurs Cumulés'!KN:KN) -> 26 | N148: =IF(ISERROR(M148/SUMIF('Indicateurs Cumulés'!$F:$F,$B$7,'Indicateurs Cumulés'!HT:HT)),"nc",M148/SUMIF('Indicateurs Cumulés'!$F:$F,$B$7,'Indicateurs Cumulés'!HT:HT)) -> 0.0 | P148: =SUMIF(objectifs!$F:$F,$B$7,objectifs!HE:HE) -> 480 | Q148: 18 € | R148: =objectifs!$HK$3 -> 5.00 | S148: =SUMIF(objectifs!$F:$F,$B$7,objectifs!HK:HK) -> 42 | T148: =IF(ISERROR(S148/SUMIF(objectifs!$F:$F,$B$7,objectifs!IC:IC)),"nc",S148/SUMIF(objectifs!$F:$F,$B$7,objectifs!IC:IC)) -> 0.0 | V148: 61% | W148: 61% | X148: 0.0
B149: Contrats monétiques actifs - Commissions | E149: =J149-SUMIF('Indicateurs Cumulés M-1'!$F:$F,$B$7,'Indicateurs Cumulés M-1'!CE:CE) -> 3 | F149: 100 € | G149: 5.00 | H149: 2 | J149: =SUMIF('Indicateurs Cumulés'!$F:$F,$B$7,'Indicateurs Cumulés'!CE:CE) -> 116 | K149: 100 € | L149: =objectifs!$IB$3 -> 5.00 | M149: =SUMIF('Indicateurs Cumulés'!$F:$F,$B$7,'Indicateurs Cumulés'!CF:CF) -> 58 | N149: =IF(ISERROR(M149/SUMIF('Indicateurs Cumulés'!$F:$F,$B$7,'Indicateurs Cumulés'!HT:HT)),"nc",M149/SUMIF('Indicateurs Cumulés'!$F:$F,$B$7,'Indicateurs Cumulés'!HT:HT)) -> 0.0 | P149: =SUMIF(objectifs!$F:$F,$B$7,objectifs!HY:HY) -> 740 | Q149: 100 € | R149: =objectifs!$IB$3 -> 5.00 | S149: =SUMIF(objectifs!$F:$F,$B$7,objectifs!IB:IB) -> 370 | T149: =IF(ISERROR(S149/SUMIF(objectifs!$F:$F,$B$7,objectifs!IC:IC)),"nc",S149/SUMIF(objectifs!$F:$F,$B$7,objectifs!IC:IC)) -> 0.2 | V149: 16% | W149: 16% | X149: -0.1
B150: Commisions de mouvement | H150: =VLOOKUP($B$7,'Indicateurs Cumulés'!$F$3:$MZ$391,297,FALSE)-VLOOKUP($B$7,'Indicateurs Cumulés M-1'!$F$3:$MZ$391,297,FALSE) -> -3 | M150: =SUMIF('Indicateurs Cumulés'!$F:$F,$B$7,'Indicateurs Cumulés'!KP:KP) -> 1,213 | N150: =IF(ISERROR(M150/SUMIF('Indicateurs Cumulés'!$F:$F,$B$7,'Indicateurs Cumulés'!HT:HT)),"nc",M150/SUMIF('Indicateurs Cumulés'!$F:$F,$B$7,'Indicateurs Cumulés'!HT:HT)) -> 0.9 | S150: =SUMIF(objectifs!$F:$F,$B$7,objectifs!HM:HM) -> 2,069 | T150: =IF(ISERROR(S150/SUMIF(objectifs!$F:$F,$B$7,objectifs!IC:IC)),"nc",S150/SUMIF(objectifs!$F:$F,$B$7,objectifs!IC:IC)) -> 1.4 | V150: 0% | W150: 59% | X150: -0.0
B152: BANCA PRO Relation privée - Ventes nettes | E152: =SUM(E153:E155) -> -56 | H152: =SUM(H153:H155) -> -44 | J152: =SUM(J153:J155) -> 240 | M152: =SUM(M153:M155) -> -34 | N152: =IF(ISERROR(M152/SUMIF('Indicateurs Cumulés'!$F:$F,$B$7,'Indicateurs Cumulés'!HT:HT)),"nc",M152/SUMIF('Indicateurs Cumulés'!$F:$F,$B$7,'Indicateurs Cumulés'!HT:HT)) -> -0.0 | P152: =SUM(P153:P155) -> 3,035 | Q152: =IF(ISERROR(S152/(P152*R152)*1000),0,S152/(P152*R152)*1000) -> 117 € | R152: =IF(ISERROR(SUMPRODUCT(R153:R155,P153:P155)/SUMPRODUCT(P153:P155)),0,SUMPRODUCT(R153:R155,P153:P155)/SUMPRODUCT(P153:P155)) -> 5.00 | S152: =SUM(S153:S155) -> 1,771 | T152: =IF(ISERROR(S152/SUMIF(objectifs!$F:$F,$B$7,objectifs!IC:IC)),"nc",S152/SUMIF(objectifs!$F:$F,$B$7,objectifs!IC:IC)) -> 1.2 | V152: =IF(ISERROR(J152/P152),0,J152/P152) -> 8% | W152: =IF(ISERROR(M152/S152),0,M152/S152) -> -2% | X152: =IF(ISERROR(N152-(T152/12*MONTH($C$9))),"nc",N152-(T152/12*MONTH($C$9))) -> -0.8
B153: Forfaits - Tarification | E153: =J153-SUMIF('Indicateurs Cumulés M-1'!$F:$F,$B$7,'Indicateurs Cumulés M-1'!LG:LG) -> -24 | F153: =K153 -> 137 € | G153: =L153 -> 5.00 | H153: =E153*F153*G153/1000 -> -16 | J153: =SUMIF('Indicateurs Cumulés'!$F:$F,$B$7,'Indicateurs Cumulés'!LG:LG) -> 56 | K153: =objectifs!$GD$3 -> 137 € | L153: =objectifs!$GE$3 -> 5.00 | M153: =SUMIF('Indicateurs Cumulés'!$F:$F,$B$7,'Indicateurs Cumulés'!LH:LH) -> 38 | N153: =IF(ISERROR(M153/SUMIF('Indicateurs Cumulés'!$F:$F,$B$7,'Indicateurs Cumulés'!HT:HT)),"nc",M153/SUMIF('Indicateurs Cumulés'!$F:$F,$B$7,'Indicateurs Cumulés'!HT:HT)) -> 0.0 | P153: =SUMIF(objectifs!$F:$F,$B$7,objectifs!GD:GD)*5% -> 1,120 | Q153: =objectifs!$GD$3 -> 137 € | R153: =objectifs!$GE$3 -> 5.00 | S153: =P153*Q153*R153/1000 -> 769 | T153: =IF(ISERROR(S153/SUMIF(objectifs!$F:$F,$B$7,objectifs!IC:IC)),"nc",S153/SUMIF(objectifs!$F:$F,$B$7,objectifs!IC:IC)) -> 0.5 | V153: =IF(ISERROR(J153/P153),0,J153/P153) -> 5% | W153: =IF(ISERROR(M153/S153),0,M153/S153) -> 5% | X153: =IF(ISERROR(N153-(T153/12*MONTH($C$9))),"nc",N153-(T153/12*MONTH($C$9))) -> -0.3
B154: Cartes - Tarification | E154: =J154-SUMIF('Indicateurs Cumulés M-1'!$F:$F,$B$7,'Indicateurs Cumulés M-1'!LI:LI) -> -18 | F154: 289 € | G154: 5.00 | H154: =E154*F154*G154/1000 -> -26 | J154: =SUMIF('Indicateurs Cumulés'!$F:$F,$B$7,'Indicateurs Cumulés'!LI:LI) -> -68 | K154: =objectifs!$GF$3 -> 289 € | L154: =objectifs!$GG$3 -> 5.00 | M154: =SUMIF('Indicateurs Cumulés'!$F:$F,$B$7,'Indicateurs Cumulés'!LJ:LJ) -> -98 | N154: =IF(ISERROR(M154/SUMIF('Indicateurs Cumulés'!$F:$F,$B$7,'Indicateurs Cumulés'!HT:HT)),"nc",M154/SUMIF('Indicateurs Cumulés'!$F:$F,$B$7,'Indicateurs Cumulés'!HT:HT)) -> -0.1 | P154: =SUMIF(objectifs!$F:$F,$B$7,objectifs!GF:GF)*5% -> 600 | Q154: =objectifs!$GF$3 -> 289 € | R154: =objectifs!$GG$3 -> 5.00 | S154: =P154*Q154*R154/1000 -> 868 | T154: =IF(ISERROR(S154/SUMIF(objectifs!$F:$F,$B$7,objectifs!IC:IC)),"nc",S154/SUMIF(objectifs!$F:$F,$B$7,objectifs!IC:IC)) -> 0.6 | V154: =IF(ISERROR(J154/P154),0,J154/P154) -> -11% | W154: =IF(ISERROR(M154/S154),0,M154/S154) -> -11% | X154: =IF(ISERROR(N154-(T154/12*MONTH($C$9))),"nc",N154-(T154/12*MONTH($C$9))) -> -0.5
B155: IARD & Prévoyance - Commissions | E155: =J155-SUMIF('Indicateurs Cumulés M-1'!$F:$F,$B$7,'Indicateurs Cumulés M-1'!LK:LK) -> -14 | F155: 20 € | G155: 5.00 | H155: =E155*F155*G155/1000 -> -1 | J155: =SUMIF('Indicateurs Cumulés'!$F:$F,$B$7,'Indicateurs Cumulés'!LK:LK) -> 252 | K155: =objectifs!$GH$3 -> 20 € | L155: =objectifs!$GI$3 -> 5.00 | M155: =SUMIF('Indicateurs Cumulés'!$F:$F,$B$7,'Indicateurs Cumulés'!LL:LL) -> 26 | N155: =IF(ISERROR(M155/SUMIF('Indicateurs Cumulés'!$F:$F,$B$7,'Indicateurs Cumulés'!HT:HT)),"nc",M155/SUMIF('Indicateurs Cumulés'!$F:$F,$B$7,'Indicateurs Cumulés'!HT:HT)) -> 0.0 | P155: =SUMIF(objectifs!$F:$F,$B$7,objectifs!GH:GH)*5% -> 1,315 | Q155: =objectifs!$GH$3 -> 20 € | R155: =objectifs!$GI$3 -> 5.00 | S155: =P155*Q155*R155/1000 -> 135 | T155: =IF(ISERROR(S155/SUMIF(objectifs!$F:$F,$B$7,objectifs!IC:IC)),"nc",S155/SUMIF(objectifs!$F:$F,$B$7,objectifs!IC:IC)) -> 0.1 | V155: =IF(ISERROR(J155/P155),0,J155/P155) -> 19% | W155: =IF(ISERROR(M155/S155),0,M155/S155) -> 19% | X155: =IF(ISERROR(N155-(T155/12*MONTH($C$9))),"nc",N155-(T155/12*MONTH($C$9))) -> -0.0
B157: AUTRES | H157: =M157 -> 0 | M157: =VLOOKUP($B$7,'Indicateurs Cumulés'!$F$3:$MZ$391,73,FALSE) -> 0 | N157: =IF(ISERROR(M157/SUMIF('Indicateurs Cumulés'!$F:$F,$B$7,'Indicateurs Cumulés'!HT:HT)),"nc",M157/SUMIF('Indicateurs Cumulés'!$F:$F,$B$7,'Indicateurs Cumulés'!HT:HT)) -> 0.0 | S157: =VLOOKUP($B$7,objectifs!$F$3:$AAB$391,172,FALSE)*objectifs!$FU$375/objectifs!$FU$373 -> -700 | T157: =IF(ISERROR(S157/SUMIF(objectifs!$F:$F,$B$7,objectifs!IC:IC)),"nc",S157/SUMIF(objectifs!$F:$F,$B$7,objectifs!IC:IC)) -> -0.5 | W157: =IF(ISERROR(M157/S157),0,M157/S157) -> 0% | X157: =IF(ISERROR(N157-(T157/12*MONTH($C$9))),"nc",N157-(T157/12*MONTH($C$9))) -> 0.3
B159: ZOOM PNB PRO* sur Activité Nouvelle | H159: =H152+H120+H126+H131+H137+H143+H157 -> 1,547 | M159: =M152+M120+M126+M131+M137+M143+M157 -> 15,844 | N159: =IF(ISERROR(M159/SUMIF('Indicateurs Cumulés'!$F:$F,$B$7,'Indicateurs Cumulés'!HT:HT)),"nc",M159/SUMIF('Indicateurs Cumulés'!$F:$F,$B$7,'Indicateurs Cumulés'!HT:HT)) -> 11.6 | S159: =S152+S120+S126+S131+S137+S143+S157 -> 24,465 | T159: =IF(ISERROR(S159/SUMIF(objectifs!$F:$F,$B$7,objectifs!IC:IC)),"nc",S159/SUMIF(objectifs!$F:$F,$B$7,objectifs!IC:IC)) -> 16.1 | W159: =IF(ISERROR(M159/S159),0,M159/S159) -> 64.8% | X159: =IF(ISERROR(N159-(T159/12*MONTH($C$9))),"nc",N159-(T159/12*MONTH($C$9))) -> 0.8
B160: * y compris relation privée du pro

Sheet Lexique
B4: INDICATEURS
A5: Structure
B6: •Mise en place d’une synthèse BDD et d’un zoom Pro (yc relation privée du pro)
B7: •Application des taux réels sur la majorité des lignes de produits Collecte | C7: Les marges de certains produits sont adaptées au niveau local (marges figées) pour être en phase avec la politique commerciale de la CEGEE.
B8: •Ajout de l’indicateur PNB/ETP sur chaque ligne
B9: •Intégration d’un suivi bancarisation « relation privée » du Pro dans la synthèse BDD
A11: ETP
B12: •Le PNB par ETP sur objectifs est déterminé à partir des ETP cible. | C12: Déterminé lors de la fixation des objectifs, il ne change pas
B13: •Le PNB par ETP sur réalisations est calculé à partir de la moyenne des ETP performance. | C13: Mis a jour mensuellement en moyennant les ETP depuis le début d'année
A15: Collecte
B16: •Taux de marge figé à 0,20% sur les produits LEP, LDD, LJ, DAT, Emprunt Ecureuil
B17: •Taux du LGP | C17: Les taux boostés bénéficient d'un mode de calcul adapté a la politique commerciale de la CEGEE
B18: •Ajout des versements FCP structurés (objectif : 75 M€ de versements et 2,1 M€ de PNB)
B19: •Mise en place d'un cap / floor a 150% de l'objectif sur les comptes créditeurs en cas de forte variation
A21: Crédits
B22: •Commissions ADE | C22: Ajout d'un coefficient multiplicateur de 1,3 X sur le montant généré
B23: •Ajout d’un bonus de 1000€ pour chaque client devenu Bpe / JBPe via un crédit immobilier
B24: •Intégration des commissions apporteurs d’affaires venant en déduction du PNB crédit
A26: Bancarisation
B27: •Ajout d’un Booster Cartes à débit différé (40€ par carte à débit différé sur 5 ans) | C27: Sur chaque vente nette de carte à débit différé yc cartes PRO
B28: •Ajout d’un Bonus Mobilité bancaire | C28: 200€ pour chaque client sur la base de la mobilité réglementaire brute
B29: •Ajout d’un Booster sur IARD Auto et MRH (40€ par vente sur 5 ans) | C29: Bonus s'appliquant sur chaque vente nette Auto ou MRH
B30: •Mise en place d’un suivi sur options sur Bouquet Liberté (comptabilisé a partir de la 3e option) | C30: 15€ supplémentaires comptabilisés à compter de la 3e option sur un BL. Pas de pénalité pour les BL ayant moins de 2 options
A32: Autres
B33: •Mise a jour du taux sur commissions immobilières à 4%
B34: •Mise a jour du taux sur remises commerciales à 4%
A36: Bonus digital
B37: •Mise en place d'un floor à 0 sur le PNB lorsque les réalisations sont négatives | C37: Floor mis en place sur les données agrégées pour les secteurs et Dirco

Sheet Liste agences mai 2019
A1: CEGEE | B1: AUBE_HAUTE_MARNE | C1: BAS_RHIN | D1: HAUT_RHIN | E1: MARNE_ARDENNES | F1: MEURTHE_ET_MOSELLE_MEUSE | G1: MOSELLE | H1: VOSGES | I1: AGENCE_PERSONNEL | J1: MESANGE | K1: MBL | L1: BANQUE_DIRIGEANT
A2: AUBE_HAUTE_MARNE | B2: Territoire_TROYES | C2: Territoire_CHAUMONT
A3: BAS_RHIN | B3: Territoire_STRASBOURG | C3: Territoire_HAGUENAU | D3: Territoire_SELESTAT
A4: HAUT_RHIN | B4: Territoire_COLMAR | C4: Territoire_MULHOUSE
A5: MARNE_ARDENNES | B5: Territoire_CHARLEVILLE_MEZIERES | C5: Territoire_CHALONS_EN_CHAMPAGNE | D5: Territoire_REIMS
A6: MEURTHE_ET_MOSELLE_MEUSE | B6: Territoire_PONT_A_MOUSSON | C6: Territoire_NANCY | D6: Territoire_VERDUN
A7: MOSELLE | B7: Territoire_MOSELLE_EST | C7: Territoire_METZ | D7: Territoire_MOSELLE_NORD
A8: VOSGES | B8: Territoire_EPINAL | C8: Territoire_SAINT_DIE
A9: Territoire_TROYES | B9: AIX EN OTHE | C9: ARCIS SUR AUBE | D9: BAR SUR AUBE | E9: BAR SUR SEINE | F9: BRIENNE LE CHATEAU | G9: LA CHAPELLE ST LUC | H9: NOGENT SUR SEINE | I9: ROMILLY SUR SEINE | J9: SAINT ANDRE LES VERGERS | K9: SAINT JULIEN LES VILLAS | L9: SAINTE SAVINE | M9: TROYES 1ER MAI | N9: TROYES BROSSOLETTE | O9: TROYES CHARTREUX | P9: TROYES GAMBETTA | Q9: TROYES ZOLA
A10: Territoire_CHAUMONT | B10: BOURBONNE LES BAINS | C10: CHALINDREY | D10: CHATEAUVILLAIN | E10: CHAUMONT HOTEL DE VILLE | F10: CHAUMONT REPUBLIQUE | G10: JOINVILLE | H10: LANGRES | I10: NOGENT EN BASSIGNY | J10: SAINT DIZIER CENTRE | K10: SAINT DIZIER EUROPE | L10: WASSY
A11: Territoire_STRASBOURG | B11: BISCHHEIM | C11: ECKBOLSHEIM | D11: ESPACE MESANGE | E11: LA WANTZENAU | F11: MUNDOLSHEIM | G11: OBERHAUSBERGEN | H11: REICHSTETT | I11: SCHILTIGHEIM CENTRE | J11: SCHILTIGHEIM KLEBER | K11: STRASBOURG ANVERS | L11: STRASBOURG AUSTERLITZ | M11: STRASBOURG CRONENBOURG | N11: STRASBOURG DANUBE | O11: STRASBOURG ESPLANADE | P11: STRASBOURG FRANCS BOURGEOIS | Q11: STRASBOURG GARE | R11: STRASBOURG HALLES | S11: STRASBOURG KOENIGSHOFFEN | T11: STRASBOURG MEINAU | U11: STRASBOURG MONTAGNE VERTE | V11: STRASBOURG NEUDORF | W11: STRASBOURG ROBERTSAU | X11: STRASBOURG STOCKFELD | Y11: STRASBOURG VOSGES | Z11: VENDENHEIM
A12: Territoire_HAGUENAU | B12: BETSCHDORF | C12: BISCHWILLER | D12: BOUXWILLER | E12: BRUMATH | F12: DIEMERINGEN | G12: DRUSENHEIM | H12: GUNDERSHOFFEN | I12: HAGUENAU HOUBLON | J12: HAGUENAU MUSAU | K12: HERRLISHEIM | L12: HOCHFELDEN | M12: HOERDT | N12: INGWILLER | O12: LAUTERBOURG | P12: MARMOUTIER | Q12: NIEDERBRONN LES BAINS | R12: PFAFFENHOFFEN | S12: REICHSHOFFEN | T12: SARRE UNION | U12: SAVERNE | V12: SCHWEIGHOUSE SUR MODER | W12: SELTZ | X12: SOUFFLENHEIM | Y12: SOULTZ SOUS FORETS | Z12: TRUCHTERSHEIM | AA12: WEITBRUCH | AB12: WINGEN SUR MODER | AC12: WISSEMBOURG | AD12: WOERTH
A13: Territoire_SELESTAT | B13: BARR | C13: BENFELD | D13: CHATENOIS | E13: ERSTEIN | F13: FEGERSHEIM | G13: ILLKIRCH CENTRE | H13: ILLKIRCH NORD | I13: LINGOLSHEIM | J13: MARCKOLSHEIM | K13: MARLENHEIM | L13: MOLSHEIM | M13: MUTZIG | N13: OBERNAI | O13: OSTWALD | P13: ROSHEIM | Q13: SCHIRMECK | R13: SELESTAT CENTRE | S13: SELESTAT OUEST | T13: VILLE | U13: WASSELONNE
A14: Territoire_COLMAR | B14: COLMAR MARAICHERS | C14: COLMAR REPUBLIQUE | D14: COLMAR SAINT JOSEPH | E14: COLMAR SAINTE MARIE | F14: COLMAR VAUBAN | G14: ENSISHEIM | H14: GUEBWILLER | I14: HORBOURG WIHR | J14: INGERSHEIM | K14: KAYSERSBERG | L14: LAPOUTROIE | M14: LIEPVRE | N14: MUNSTER | O14: MUNTZENHEIM | P14: NEUF BRISACH | Q14: ORBEY | R14: PULVERSHEIM | S14: RIBEAUVILLE | T14: ROUFFACH | U14: SAINTE MARIE AUX MINES | V14: SOULTZ | W14: SOULTZMATT | X14: WINTZENHEIM
A15: Territoire_MULHOUSE | B15: ALTKIRCH | C15: BRUNSTATT | D15: CERNAY | E15: DANNEMARIE | F15: FERRETTE | G15: HUNINGUE | H15: ILLZACH | I15: MASEVAUX | J15: MULHOUSE DORNACH | K15: MULHOUSE REUNION | L15: MULHOUSE ROOSEVELT | M15: PFASTATT | N15: RIEDISHEIM | O15: RIXHEIM | P15: SAINT AMARIN | Q15: SAINT LOUIS | R15: SEPPOIS LE BAS | S15: SIERENTZ | T15: THANN | U15: WITTELSHEIM | V15: WITTENHEIM
A16: Territoire_CHARLEVILLE_MEZIERES | B16: CARIGNAN | C16: CHARLEVILLE JEAN JAURES | D16: CHARLEVILLE MEZIERES | E16: CHARLEVILLE MOHON | F16: CHARLEVILLE NEVERS | G16: GIVET | H16: MOUZON | I16: RETHEL | J16: REVIN | K16: ROCROI | L16: SEDAN | M16: VILLERS SEMEUSE CORA | N16: VOUZIERS | O16: VRIGNE AUX BOIS
A17: Territoire_CHALONS_EN_CHAMPAGNE | B17: CHALONS ROOSEVELT | C17: CHALONS VIVIERS | D17: FAGNIERES LECLERC | E17: MONTMIRAIL | F17: MOURMELON SUIPPES | G17: SAINTE MENEHOULD | H17: SARRY | I17: SEZANNE | J17: VERTUS | K17: VITRY LE FRANCOIS
A18: Territoire_REIMS | B18: AY CHAMPAGNE | C18: BETHENY | D18: DAMERY | E18: DORMANS | F18: EPERNAY | G18: FISMES | H18: PIERRY LECLERC | I18: REIMS CENTRE VILLE | J18: REIMS CHATILLONS | K18: REIMS EUROPE | L18: REIMS HIPPODROME | M18: REIMS HOTEL DE VILLE | N18: REIMS JEAN JAURES | O18: REIMS SAINT MARCEAUX | P18: REIMS SAINT REMI | Q18: REIMS SAINT THOMAS | R18: REIMS SAINTE ANNE | S18: TINQUEUX | T18: VERZY
A19: Territoire_PONT_A_MOUSSON | B19: BRIEY | C19: CHALIGNY NEUVES MAISONS | D19: CHAMPIGNEULLES | E19: DIEULOUARD | F19: FROUARD | G19: JARNY | H19: JOEUF | I19: LAXOU ARISTIDE BRIAND | J19: LAXOU LA SAPINIERE | K19: LUDRES | L19: NANCY PLATEAU DE HAYE | M19: NANCY TROIS MAISONS | N19: PAGNY SUR MOSELLE | O19: PIENNES | P19: POMPEY | Q19: PONT A MOUSSON BREUIL | R19: PONT A MOUSSON CENTRALE | S19: TOUL REPUBLIQUE | T19: VEZELISE | U19: VILLERS GENERAL LECLERC
A20: Territoire_NANCY | B20: BACCARAT | C20: BAYON | D20: BLAINVILLE | E20: BLAMONT | F20: DOMBASLE SUR MEURTHE | G20: ESSEY LES NANCY | H20: JARVILLE LA MALGRANGE | I20: LUNEVILLE CARNOT | J20: LUNEVILLE CHATEAU | K20: NANCY ARTEM | L20: NANCY JEAN JAURES | M20: NANCY PLACE DOMBASLE | N20: NANCY POINT CENTRAL | O20: NANCY SAINT SEBASTIEN | P20: SAINT MAX | Q20: SAINT NICOLAS DE PORT | R20: TOMBLAINE | S20: VANDOEUVRE LES NANCY
A21: Territoire_VERDUN | B21: BAR LE DUC | C21: COMMERCY | D21: ETAIN | E21: LIGNY EN BARROIS | F21: LONGUYON | G21: LONGWY BAS | H21: LONGWY HAUT | I21: MONTMEDY | J21: REVIGNY SUR ORNAIN | K21: SAINT MIHIEL | L21: STENAY | M21: VAUCOULEURS | N21: VERDUN CENTRALE | O21: VERDUN MAZEL | P21: VILLERUPT
A22: Territoire_MOSELLE_EST | B22: BEHREN LES FORBACH | C22: BITCHE | D22: CHATEAU SALINS | E22: CREUTZWALD | F22: DIEUZE | G22: FAULQUEMONT | H22: FORBACH CENTRALE | I22: GROSBLIEDERSTROFF | J22: HOMBOURG HAUT | K22: MERLEBACH | L22: MORHANGE | M22: NEUNKIRCH | N22: PHALSBOURG | O22: PUTTELANGE AUX LACS | P22: SAINT AVOLD | Q22: SARREBOURG | R22: SARREGUEMINES | S22: STIRING WENDEL | T22: VALMONT
A23: Territoire_METZ | B23: ARS SUR MOSELLE | C23: BOULAY | D23: CLOUANGE | E23: MAIZIERES LES METZ | F23: MARANGE SILVANGE | G23: MARLY | H23: METZ CATHEDRALE | I23: METZ MOZART | J23: METZ PLAPPEVILLE | K23: METZ POMPIDOU | L23: METZ REPUBLIQUE | M23: METZ SAINT LIVIER | N23: METZ SAINT LOUIS | O23: METZ SAINT MAXIMIN | P23: METZ SARRE | Q23: MONTIGNY LES METZ | R23: MOULINS LES METZ | S23: REMILLY | T23: ROMBAS | U23: SAINT JULIEN LES METZ | V23: SAINTE MARIE AUX CHENES | W23: WOIPPY
A24: Territoire_MOSELLE_NORD | B24: AUDUN LE TICHE | C24: BOUSSE | D24: BOUZONVILLE | E24: CATTENOM | F24: FAMECK | G24: FLORANGE | H24: FONTOY | I24: GUENANGE | J24: HAGONDANGE | K24: HAYANGE | L24: HETTANGE GRANDE | M24: METZERVISSE | N24: NILVANGE | O24: SIERCK LES BAINS | P24: TERVILLE | Q24: THIONVILLE CENTRALE | R24: THIONVILLE COTE DES ROSES | S24: THIONVILLE LA MILLIAIRE | T24: UCKANGE | U24: YUTZ
A25: Territoire_EPINAL | B25: CHANTRAINE | C25: CHARMES | D25: CHATENOIS VOSGES | E25: DARNEY | F25: DOCELLES | G25: ELOYES | H25: EPINAL ARISTIDE BRIAND | I25: EPINAL AVRINSART | J25: EPINAL LEOPOLD BOURG | K25: GOLBEY | L25: LE VAL D AJOL | M25: MIRECOURT | N25: NEUFCHATEAU | O25: NOMEXY | P25: REMIREMONT | Q25: THAON LES VOSGES | R25: VITTEL | S25: XERTIGNY
A26: Territoire_SAINT_DIE | B26: BRUYERES | C26: CORNIMONT LA BRESSE | D26: FRAIZE | E26: GERARDMER | F26: GRANGES AUMONTZEY | G26: LE THILLOT | H26: MOYENMOUTIER | I26: RAMBERVILLERS | J26: RAON L ETAPE | K26: SAINT DIE | L26: SAINT DIE CATHEDRALE | M26: SENONES | N26: VAGNEY

Sheet Indicateurs Cumulés
C1: 1 | F1: 2 | G1: 3 | H1: 4 | I1: 5 | J1: 6 | K1: 7 | L1: 8 | M1: 9 | N1: 10 | O1: 11 | P1: 12 | Q1: 13 | R1: 14 | S1: 15 | T1: 16 | U1: 17 | V1: 18 | W1: 19 | X1: 20 | Y1: 21 | Z1: 22 | AA1: 23 | AB1: 24 | AC1: 25 | AD1: 26 | AE1: 27 | AF1: 28 | AG1: 29 | AH1: 30 | AI1: 31 | AJ1: 32 | AK1: 33 | AL1: 34 | AM1: 35 | AN1: 36 | AO1: 37 | AP1: 38 | AQ1: 39 | AR1: 40 | AS1: 41 | AT1: 42 | AU1: 43 | AV1: 44 | AW1: 45 | AX1: 46 | AY1: 47 | AZ1: 48 | BA1: 49 | BB1: 50 | BC1: 51 | BD1: 52 | BE1: 53 | BF1: 54 | BG1: 55 | BH1: 56 | BI1: 57 | BJ1: 58 | BK1: 59 | BL1: 60 | BM1: 61 | BN1: 62 | BO1: 63 | BP1: 64 | BQ1: 65 | BR1: 66 | BS1: 67 | BT1: 68 | BU1: 69 | BV1: 70 | BW1: 71 | BX1: 72 | BY1: 73 | BZ1: 74 | CA1: 75 | CB1: 76 | CC1: 77 | CD1: 78 | CE1: 79 | CF1: 80 | CG1: 81 | CH1: 82 | CI1: 83 | CJ1: 84 | CK1: 85 | CL1: 86 | CM1: 87 | CN1: 88 | CO1: 89 | CP1: 90 | CQ1: 91 | CR1: 92 | CS1: 93 | CT1: 94 | CU1: 95 | CV1: 96 | CW1: 97 | CX1: 98 | CY1: 99 | CZ1: 100 | DA1: 101 | DB1: 102 | DC1: 103 | DD1: 104 | DE1: 105 | DF1: 106 | DG1: 107 | DH1: 108 | DI1: 109 | DJ1: 110 | DK1: 111 | DL1: 112 | DM1: 113 | DN1: 114 | DO1: 115 | DP1: 116 | DQ1: 117 | DR1: 118 | DS1: 119 | DT1: 120 | DU1: 121 | DV1: 122 | DW1: 123 | DX1: 124 | DY1: 125 | DZ1: 126 | EA1: 127 | EB1: 128 | EC1: 129 | ED1: 130 | EE1: 131 | EF1: 132 | EG1: 133 | EH1: 134 | EI1: 135 | EJ1: 136 | EK1: 137 | EL1: 138 | EM1: 139 | EN1: 140 | EO1: 141 | EP1: 142 | EQ1: 143 | ER1: 144 | ES1: 145 | ET1: 146 | EU1: 147 | EV1: 148 | EW1: 149 | EX1: 150 | EY1: 151 | EZ1: 152 | FA1: 153 | FB1: 154 | FC1: 155 | FD1: 156 | FE1: 157 | FF1: 158 | FG1: 159 | FH1: 160 | FI1: 161 | FJ1: 162 | FK1: 163 | FL1: 164 | FM1: 165 | FN1: 166 | FO1: 167 | FP1: 168 | FQ1: 169 | FR1: 170 | FS1: 171 | FT1: 172 | FU1: 173 | FV1: 174 | FW1: 175 | FX1: 176 | FY1: 177 | FZ1: 178 | GA1: 179 | GB1: 180 | GC1: 181 | GD1: 182 | GE1: 183 | GF1: 184 | GG1: 185 | GH1: 186 | GI1: 187 | GJ1: 188 | GK1: 189 | GL1: 190 | GM1: 191 | GN1: 192 | GO1: 193 | GP1: 194 | GQ1: 195 | GR1: 196 | GS1: 197 | GT1: 198 | GU1: 199 | GV1: 200 | GW1: 201 | GX1: 202 | GY1: 203 | GZ1: 204 | HA1: 205 | HB1: 206 | HC1: 207 | HD1: 208 | HE1: 209 | HF1: 210 | HG1: 211 | HH1: 212 | HI1: 213 | HJ1: 214 | HK1: 215 | HL1: 216 | HM1: 217 | HN1: 218 | HO1: 219 | HP1: 220 | HQ1: 221 | HR1: 222 | HS1: 223 | HT1: 224 | HU1: 225 | HV1: 226 | HW1: 227 | HX1: 228 | HY1: 229 | HZ1: 230 | IA1: 231 | IB1: 232 | IC1: 233 | ID1: 234 | IE1: 235 | IF1: 236 | IG1: 237 | IH1: 238 | II1: 239 | IJ1: 240 | IK1: 241 | IL1: 242 | IM1: 243 | IN1: 244 | IO1: 245 | IP1: 246 | IQ1: 247 | IR1: 248 | IS1: 249 | IT1: 250 | IU1: 251 | IV1: 252 | IW1: 253 | IX1: 254 | IY1: 255 | IZ1: 256 | JA1: 257 | JB1: 258 | JC1: 259 | JD1: 260 | JE1: 261 | JF1: 262 | JG1: 263 | JH1: 264 | JI1: 265 | JJ1: 266 | JK1: 267 | JL1: 268 | JM1: 269 | JN1: 270 | JO1: 271 | JP1: 272 | JQ1: 273 | JR1: 274 | JS1: 275 | JT1: 276 | JU1: 277 | JV1: 278 | JW1: 279 | JX1: 280 | JY1: 281 | JZ1: 282 | KA1: 283 | KB1: 284 | KC1: 285 | KD1: 286 | KE1: 287 | KF1: 288 | KG1: 289 | KH1: 290 | KI1: 291 | KJ1: 292 | KK1: 293 | KL1: 294 | KM1: 295 | KN1: 296 | KO1: 297 | KP1: 298 | KQ1: 299 | KR1: 300 | KS1: 301 | KT1: 302 | KU1: 303 | KV1: 304 | KW1: 305 | KX1: 306 | KY1: 307 | KZ1: 308 | LA1: 309 | LB1: 310 | LC1: 311 | LD1: 312 | LE1: 313 | LF1: 314 | LG1: 315 | LH1: 316 | LI1: 317 | LJ1: 318 | LK1: 319 | LL1: 320 | LM1: 321 | LN1: 322 | LO1: 323 | LP1: 324 | LQ1: 325 | LR1: 326 | LS1: 327 | LT1: 328 | LU1: 329 | LV1: 330 | LW1: 331 | LX1: 332 | LY1: 333 | LZ1: 334 | MA1: 335 | MB1: 336 | MC1: 337 | MD1: 338 | ME1: 339
A2: Id_UC | B2: Id_groupe | C2: Id_PV | D2: Lib_PV | E2: Id_Agence | F2: Lib_Agence | G2: DATE Financements Revolving | H2: Fin Revolving | I2: Tx marg Revolving | J2: DVMA Revolving | K2: DATE CRED | L2: volumes conso BDD | M2: Tx marg conso BDD | N2: DVMA Conso BDD | O2: Marge | P2: volumes immo BDD | Q2: Durée initiale Immo BDD | R2: Tx marg immo BDD | S2: DVMA Immo BDD | T2: DVMA IF Immo BDD | U2: volumes conso PRO | V2: Tx marg conso PRO | W2: DVMA Conso PRO | X2: volumes immo PRO | Y2: Tx marg immo PRO | Z2: DVMA Immo PRO | AA2: volumes Equip | AB2: Tx marg Equip | AC2: DVMA EQUIP | AD2: FDD Immo BDD | AE2: FDD conso BDD | AF2: FDD Equip PRO | AG2: ADE Immo BDD | AH2: ADE Conso BDD | AI2: CAUTION Immo BDD | AJ2: DATE ASSVIE | AK2: Flux IT | AL2: com IT | AM2: Tx com IT | AN2: Flux N3D | AO2: dont Flux N3D UC | AP2: % flux N3D en UC | AQ2: com N3D | AR2: Tx com N3D | AS2: Flux N+ et NP | AT2: dont Flux N+ et NP UC | AU2: %Flux N+ et NP en UC | AV2: com N+ et NP | AW2: Tx com N+ et NP | AX2: Flux Autres Ecu Vie | AY2: dont Flux Autres Ecu Vie UC | AZ2: % Flux Autres Ecu Vie UC | BA2: com Autres Ecu Vie | BB2: Tx com Autres Ecu Vie | BC2: Flux total ECUVIE | BD2: dont total ECUVIE en UC | BE2: % total ECUVIE en UC | BF2: com total ECUVIE | BG2: TX com total ECUVIE | BH2: DVMA | BI2: zoom PNB Crédit CONSO PRO | BJ2: zoom PNB Crédit IMMO PRO | BK2: PNB Crédit CONSO (yc revolving) | BL2: PNB Crédit IMMO | BM2: PNB Crédit MLT | BN2: TCA IMMO BDD | BO2: TCI IMMO BDD | BP2: Id Ecureuil Vie | BQ2: Arbitrage fonds € vers UC Volume | BR2: Arbitrage fonds € vers UC PNB | BS2: FCP structurés (versements) | BT2: FCP structurés PNB | BU2: Booster IARD Auto | BV2: Booster IARD MRH | BW2: Comm apporteurs d'affaires BDD | BX2: Remises commerciales dont Hors MAD | BY2: Remises commerciales dont MAD | BZ2: Remises commerciales dont PRO | CA2: Auto PRO Volume | CB2: Auto PRO PNB | CC2: MRH PRO Volume | CD2: MRH PRO PNB | CE2: Contrats monétiques actif PRO | CF2: Contrats monétiques actif PRO PNB | CG2: Contrats Mobilité bancaire | CH2: Bonus Mobilité bancaire | CI2: Carte Senséa | CJ2: PNB cartes Senséa | CK2: Bonus Bancarisation Crédit Immo | CL2: Bonus Bancarisation PNB Crédit Immo | CM2: taux de pénétration DES PRET CONSO PRO | CN2: QUOTITE ASSUREE CONSO PRO | CO2: PNB CNP CONSO PRO | CP2: QUOTITE ASSUREE IMMO PRO | CQ2: Tx pénétration IMMO PRO | CR2: PNB CNP IMMO PRO | CS2: FDD EQUIP MARCHE BDD | CT2: CAUTION IMMO PRO | CU2: FDD CB Marché PRO | CV2: FDD CONSO MARCHE PRO | CW2: FDD CONSO MARCHE BDD | CX2: FDD IMMO MARCHE PRO | CY2: FDD IMMO MARCHE BDD | CZ2: taux de pénétration DES PRET IMMO | DA2: QUOTITE ASSUREE IMMO | DB2: PNB CNP IMMO BDD | DC2: taux de pénétration DES PRET CONSO BDD | DD2: QUOTITE ASSUREE CONSO BDD | DE2: PNB CNP CONSO BDD | DF2: Taux de conso de l'enveloppe dérogatoire CNP IMMO | DG2: taux de pénétration DES PRET MLT agences | DH2: QUOTITE ASSUREE MLT agences | DI2: PNB CNP MLT agences | DJ2: Volumes LA BDD | DK2: Tx marg LA BDD | DL2: DVMA LA BDD | DM2: PNB LA BDD | DN2: Volumes LB BDD | DO2: Tx marg LB BDD | DP2: DVMA LB BDD | DQ2: PNB LB BDD | DR2: Volumes LGF BDD | DS2: Tx marg LGF BDD | DT2: DVMA LGF BDD | DU2: PNB LGF BDD | DV2: Volumes LGP BDD | DW2: Tx marg LGP BDD | DX2: DVMA LGP BDD | DY2: PNB LGP BDD | DZ2: Volumes LEP BDD | EA2: Tx marg LEP BDD | EB2: DVMA LEP BDD | EC2: PNB LEP BDD | ED2: Volumes LDD BDD | EE2: Tx marg LDD BDD | EF2: DVMA LDD BDD | EG2: PNB LDD BDD | EH2: Volumes LJ (yc 10-12) BDD | EI2: Tx marg LJ (yc 10-12) BDD | EJ2: DVMA LJ (yc 10-12) BDD | EK2: PNB LJ (yc 10-12) BDD | EL2: Volumes CEL BDD | EM2: Tx marg CEL BDD | EN2: DVMA CEL BDD | EO2: PNB CEL BDD | EP2: Volumes SLR BDD | EQ2: Tx marg SLR BDD | ER2: DVMA SLR BDD | ES2: PNB SLR BDD | ET2: Volumes DAT BDD | EU2: Tx marg DAT BDD | EV2: DVMA DAT BDD | EW2: PNB DAT BDD | EX2: Volumes PEL BDD | EY2: Tx marg PEL BDD | EZ2: DVMA PEL BDD | FA2: PNB PEL BDD | FB2: Volumes PEP BDD | FC2: Tx marg PEP BDD | FD2: DVMA PEP BDD | FE2: PNB PEP BDD | FF2: Volumes Ass Vie encours BDD | FG2: Tx marg Ass Vie encours BDD | FH2: DVMA Ass Vie encours BDD | FI2: PNB Ass Vie encours BDD | FJ2: Volumes Ass Vie flux BDD | FK2: Tx marg Ass Vie flux BDD | FL2: DVMA Ass Vie flux BDD | FM2: PNB Ass Vie flux BDD | FN2: Volumes OPCVM encours BDD | FO2: Tx marg OPCVM encours BDD | FP2: DVMA OPCVM encours BDD | FQ2: PNBOPCVM encours BDD | FR2: Volumes OPCVM flux BDD | FS2: Tx marg OPCVM flux BDD | FT2: DVMA OPCVM flux BDD | FU2: PNB OPCVM flux BDD | FV2: Volumes Emprunt BDD | FW2: Tx marg Emprunt BDD | FX2: DVMA Emprunt BDD | FY2: PNB Emprunt BDD | FZ2: Volumes PS BDD | GA2: Tx marg PS BDD | GB2: DVMA PS BDD | GC2: PNB PS BDD | GD2: Volumes Epargne Bilan BDD | GE2: PNB Epargne Bilan BDD | GF2: Volumes Epargne Financière BDD | GG2: PNB Epargne Financière BDD | GH2: Volumes CDD créditeurs BDD hors plafond | GI2: Tx marg CDD créditeurs BDD | GJ2: DVMA CDD créditeurs BDD | GK2: PNB CDD créditeurs BDD | GL2: Volumes CDD créditeurs PRO hors plafond | GM2: Options complémentaires BL > 2e | GN2: PNB option | GP2: Volumes Crédit Bail BDD | GQ2: Tx marg Crédit Bail BDD | GR2: DVMA Crédit Bail BDD | GS2: PNB Crédit Bail BDD | GT2: Volumes Ass Vie BP1818 encours | GU2: Tx marg Ass Vie BP1818 encours | GV2: DVMA Ass Vie BP1818 encours | GW2: PNB Ass Vie BP1818 encours | GX2: Volumes Ass Vie BP1818 flux | GY2: Tx marg Ass Vie BP1818 flux | GZ2: DVMA Ass Vie BP1818 flux | HA2: PNB Ass Vie BP1818 flux | HB2: Volumes OPCVM BP1818 encours | HC2: Tx marg OPCVM BP1818 encours | HD2: DVMA OPCVM BP1818 encours | HE2: PNB OPCVM BP1818 encours | HF2: Volumes OPCVM BP1818 flux | HG2: Tx marg OPCVM BP1818 flux | HH2: DVMA OPCVM BP1818 flux | HI2: PNB OPCVM BP1818 flux | HJ2: Volumes Autres Val MOB | HK2: Tx marg Autres Val MOB | HL2: DVMA Autres Val MOB | HM2: PNB Autres Val MOB | HN2: Volumes Remises | HO2: Volumes Facturé | HP2: PNB TOTAL (tous produits hors banca pro) | HQ2: Volumes CDD créditeurs BDD plafond (+150% et -50%) | HR2: I selection Volumes (taux pour calcul PNB) | HT2: ETP Performance | HU2: PNB ADE Autres | HV2: Marge CONSO yc access. | HW2: Marge IMMO yc access. | HX2: Marge MLT yc access. | HY2: Auto Part | HZ2: MRH Part | IA2: Santé Part | IB2: GAV Part | IC2: PJ-GU Part | ID2: ESO Part | IE2: GF Part | IF2: Bouquet liberté Autres | IG2: Futéo / SOL 16-17 / Jeune / Autonomie | IH2: Satellis Essentiel / Essentiel + | II2: Satellis Intégral | IJ2: Carte Infinite | IK2: Carte Platinum (yc izicarte) | IL2: Carte visa premier (yc izicarte) | IM2: Carte visa classique (yc izicarte) | IN2: Autres Cartes | IO2: Auto | IP2: MRH | IQ2: Santé | IR2: GAV | IS2: PJ GU | IT2: ESO | IU2: GF | IV2: Bouquet liberté Autres | IW2: Futéo / SOL 16-17 / Jeune / Autonomie | IX2: Satellis Essentiel / Essentiel + | IY2: Satellis Intégral | IZ2: Carte Infinite | JA2: Carte Platinum (yc izicarte) | JB2: Carte visa premier (yc izicarte) | JC2: Carte visa classique (yc izicarte) | JD2: Autres Cartes | JE2: PNB BANCA PART | JF2: PNB PRO Crédit MLT | JG2: SCPI Volumes (taux pour calcul PNB) | JH2: STRADIM Volumes (taux pour calcul PNB) | JI2: DVMA | JJ2: tarif | JK2: Assistance Vie | JL2: Assistance Vie | JM2: Volumes DAT PRO | JN2: Tx marg DAT PRO | JO2: Volumes PS PRO | JP2: Volumes Ass Vie flux PRO | JQ2: Volumes Ass Vie encours PRO | JR2: Volumes CE PRO | JS2: Volumes Autre Epargne PRO | JT2: Volumes CDD créditeurs PRO plafond (+150% et -50%) | JU2: PNB DAT PRO | JV2: PNB PS PRO | JW2: PNB Ass Vie flux PRO | JX2: PNB Ass Vie encours PRO | JY2: PNB CE PRO | JZ2: PNB Autre Epargne PRO | KA2: PNB CDD créditeurs PRO plafond (+150% et -50%) | KB2: PNB PRO Collecte yc DAV | KC2: Ventes nettes Libre Convergence Labelis | KD2: Business Platinum | KE2: Auto entrepreneur | KF2: Business | KG2: Business Gold | KH2: PAP | KI2: PNB Libre Convergence | KJ2: Business Platinum | KK2: Auto entrepreneur | KL2: Business | KM2: Business Gold | KN2: PAP | KO2: PNB PRO Banca | KP2: com mouv | KQ2: Ventes nettes PV agences | KR2: Ventes nettes PV pros | KS2: Evol. PROS ACTIFS | KT2: DVMA IARD | KU2: Ventes nettes PRO | KV2: Volumes PEL PRO | KW2: PNB PEL PRO | KX2: CARTE dd ventes nettes | KY2: PNB CARTE débit dif bonus de 40€ x 5 ans par carte nette | KZ2: CFF Volumes (taux de 1,00% pour calcul PNB) | LA2: Bouquet liberté HDG | LB2: Bouquet liberté HDG | LC2: Prévoyance du locataire | LD2: Prévoyance du locataire | LE2: PNB TOTAL | LF2: PNB PRO | LG2: Forfaits Part PRO | LH2: PNB Forfaits Part PRO | LI2: Cartes Part PRO | LJ2: PNB Cartes Part PRO | LK2: IARD Part PRO | LL2: PNB IARD Part PRO | LM2: PNB TOTAL (Hors booster) | LN2: PNB TOTAL (Hors booster) / ETP | LO2: PNB TOTAL COLLECTE | LP2: PNB TOTAL CREDITS | LQ2: PNB TOTAL AUTRES | LR2: PNB BANCA part du PRO | LS2: PNB TOTAL / ETP | LT2: Evolution stock clients actifs BAD (1 connexion / mois sur 3 mois) | LU2: Nombre de SED finalisées (en brut) | LV2: Nombre de SAG finalisées (périmètre SAG hors OPC en brut) | LW2: Evolution stock de clients équipés E-documents | LX2: Evolution stock de clients avec Opt-in-mail et tél. | LY2: Evolution stock de clients équipés Sécurpass | LZ2: Evolution stock clients actifs BAD (1 connexion / mois sur 3 mois) PNB | MA2: Nombre de SED finalisées (en brut) PNB | MB2: Nombre de SAG finalisées (périmètre SAG hors OPC en brut) PNB | MC2: Evolution stock de clients équipés E-documents PNB | MD2: Evolution stock de clients avec Opt-in-mail et tél. PNB | ME2: Evolution stock de clients équipés Sécurpass PNB | MF2: PV Bernard L. | MH2: tx
G3: 2019-08-31 | BQ3: =objectifs!EA373 -> 0.25% | BR3: =objectifs!EB373 -> 8.00 | BS3: 2.80% | BT3: 1.00 | BU3: 40 € | BV3: =BU3 -> 40 € | CA3: 100 € | CB3: 2.75 | CC3: 30 € | CD3: 3.96 | CE3: 100 € | CF3: 5.00 | CH3: 200 € | CI3: 43 € | CJ3: 5.00 | CL3: 1,000 € | CR3: =DB3 -> 1.30 | DB3: 1.30 | EZ3: =objectifs!DX373 -> 8.50 | GM3: =objectifs!FL3 -> 15 € | GN3: =objectifs!FM3 -> 5.00 | HR3: =objectifs!FW373 -> 4.00% | HY3: 43 € | HZ3: 25 € | IA3: 65 € | IB3: 15 € | IC3: 3 € | ID3: 14 € | IE3: 19 € | IF3: 87 € | IG3: 12 € | IH3: 125 € | II3: 210 € | IJ3: 315 € | IK3: 200 € | IL3: 130 € | IM3: 43 € | IN3: 12 € | IO3: 2.75 | IP3: 3.96 | IQ3: 3.94 | IR3: 5.37 | IS3: 6.19 | IT3: 7.00 | IU3: 6.00 | IV3: 5.00 | IW3: 5.00 | IX3: 5.00 | IY3: 5.00 | IZ3: 5.00 | JA3: 5.00 | JB3: 5.00 | JC3: 5.00 | JD3: 5.00 | JG3: =objectifs!FW373 -> 4.00% | JH3: 2.00% | JK3: 45 € | JL3: 9.50 | JM3: 0.20% | JO3: 1.00% | JQ3: 0.45% | JR3: =JS3 -> 0.60% | JS3: 0.60% | JT3: 1.00% | JU3: 9.00 | JV3: 5.00 | JX3: 8.00 | JY3: 5.37 | JZ3: 5.37 | KA3: 5.37 | KC3: =objectifs!GZ3 -> 288 € | KD3: =objectifs!HA3 -> 195 € | KE3: =objectifs!HB3 -> 120 € | KF3: =objectifs!HC3 -> 47 € | KG3: =objectifs!HD3 -> 130 € | KH3: =objectifs!HE3 -> 18 € | KI3: =objectifs!HF3 -> 5.00 | KJ3: =objectifs!HG3 -> 5.00 | KK3: =objectifs!HH3 -> 5.00 | KL3: =objectifs!HI3 -> 5.00 | KM3: =objectifs!HJ3 -> 5.00 | KN3: =objectifs!HK3 -> 5.00 | KV3: =EY374 -> 0.00% | KW3: =JU3 -> 9.00 | KY3: 40 € | KZ3: 1.00% | LA3: 140 € | LB3: 5.00 | LC3: 20 € | LD3: 4.50 | LG3: 137 € | LH3: 5.00 | LI3: 289 € | LJ3: 5.00 | LK3: 20 € | LL3: 5.00 | LT3: 5.00 | LU3: 1.00 | LV3: 1.00 | LW3: 5.00 | LX3: 3.00 | LY3: 5.00 | LZ3: 15 € | MA3: 10 € | MB3: 3 € | MC3: 10 € | MD3: 5 € | ME3: 1 €
A4: 105006 | B4: 200262 | C4: 6 | D4: STRASBOURG NEUDORF | E4: 6 | F4: STRASBOURG NEUDORF | G4: =$G$3 -> 2019-08-31 | H4: 169 | I4: 4.32% | J4: 1.57 | K4: 2019-08-31 | L4: 1,275 | M4: 3.48% | N4: 2.31 | O4: =L4*M4*N4 -> 102 | P4: 5,185 | Q4: 0 | R4: 0.16% | S4: 7.07 | T4: 10.84 | U4: 4 | V4: 6.34% | W4: 5.78 | X4: 1,167 | Y4: 0.03% | Z4: 7.94 | AA4: 39 | AB4: 3.08% | AC4: 0.98 | AD4: 12.8 | AE4: 16.9 | AF4: 0.4 | AG4: 582.7 | AH4: 22.0 | AI4: 8.0 | AJ4: 201908 | AK4: 3.00 | AL4: 0.07 | AM4: =IF(ISERROR(AL4/AK4),0,AL4/AK4) -> 2.40% | AN4: 341.19 | AO4: 35.56 | AP4: =IF(ISERROR(AO4/AN4),0,AO4/AN4) -> 10% | AQ4: 4.46 | AR4: =IF(ISERROR(AQ4/AN4),0,AQ4/AN4) -> 1.31% | AS4: 1,316.97 | AT4: 110.85 | AU4: =IF(ISERROR(AT4/AS4),0,AT4/AS4) -> 8.4% | AV4: 6.54 | AW4: =IF(ISERROR(AV4/AS4),0,AV4/AS4) -> 0.50% | AX4: 89.80 | AY4: 1.75 | AZ4: =IF(ISERROR(AY4/AX4),0,AY4/AX4) -> 1.95% | BA4: 1.37 | BB4: =IF(ISERROR(BA4/AX4),0,BA4/AX4) -> 1.53% | BC4: 1,750.97 | BD4: 148.17 | BE4: =IF(ISERROR(BD4/BC4),0,BD4/BC4) -> 8.5% | BF4: 12.45 | BG4: =IF(ISERROR(BF4/BC4),0,BF4/BC4) -> 0.71% | BI4: =(U4*V4*W4)+CV4+CO4 -> 2 | BJ4: =(X4*Y4*Z4)+CR4+CT4+CX4 -> 12 | BK4: =(H4*I4*J4)+(L4*M4*N4)+CW4+DE4 -> 144 | BL4: =(P4*R4*S4)+AD4+AI4+DB4+CL4 -> 172 | BM4: =(AA4*AB4*AC4)+CU4+DI4+GS4+AF4 -> 2 | BN4: 1.25% | BO4: 0.15% | BP4: 6 | BQ4: 245 | BR4: =BQ4*$BQ$3*$BR$3 -> 5 | BS4: 134 | BT4: =BS4*$BS$3*$BT$3 -> 4 | BU4: =HY4*$BU$3*$IV$3/1000 -> 4 | BV4: =HZ4*$BV$3*$IV$3/1000 -> 0 | BW4: -8 | BZ4: 0 | CA4: 0 | CB4: =CA4*$CA$3*$CB$3/1000 -> 0 | CC4: 0 | CD4: =CC4*$CC$3*$CD$3/1000 -> 0 | CE4: 4 | CF4: =CE4*$CE$3*$CF$3/1000 -> 2 | CG4: 14 | CH4: =+CG4*$CH$3/1000 -> 2.8 | CI4: -34 | CJ4: =(CI4*$CI$3*$CJ$3)/1000 -> -7 | CK4: 4 | CL4: =CK4*$CL$3/1000 -> 4 | CM4: 100.00% | CN4: 50.00% | CO4: 0 | CP4: 100.00% | CQ4: 32.97% | CR4: 7 | CS4: =AF4 -> 0.4 | CT4: 2 | CU4: 0.00 | CV4: 0 | CW4: 5 | CX4: 0 | CY4: =+AD4 -> 13 | CZ4: 63.06% | DA4: 125.27% | DB4: 90 | DC4: 96.41% | DD4: 133.76% | DE4: 25 | DG4: 100.00% | DH4: 100.00% | DI4: 0 | DJ4: -87 | DK4: =DK$374 -> 0.70% | DL4: 5.33 | DM4: =DJ4*DK4*DL4 -> -3 | DN4: 25 | DO4: =DO$374 -> 0.76% | DP4: 5.33 | DQ4: =DN4*DO4*DP4 -> 1 | DR4: -42 | DS4: =DS$374 -> 0.85% | DT4: 5.33 | DU4: =DR4*DS4*DT4 -> -2 | DV4: 182 | DW4: =DW$374 -> 0.40% | DX4: 1.40 | DY4: =DV4*DW4*DX4 -> 1 | DZ4: -409 | EA4: =EA$374 -> 0.20% | EB4: 5.37 | EC4: =DZ4*EA4*EB4 -> -4 | ED4: 195 | EE4: =EE$374 -> 0.20% | EF4: 5.37 | EG4: =ED4*EE4*EF4 -> 2 | EH4: -31 | EI4: =EI$374 -> 0.20% | EJ4: 5.37 | EK4: =EH4*EI4*EJ4 -> -0 | EL4: 49 | EM4: =EM$374 -> 0.35% | EN4: 5.33 | EO4: =EL4*EM4*EN4 -> 1 | EP4: -6 | EQ4: =EQ$374 -> 0.10% | ER4: 8.65 | ES4: =EP4*EQ4*ER4 -> -0 | ET4: -71 | EU4: =EU$374 -> 0.20% | EV4: 9.00 | EW4: =ET4*EU4*EV4 -> -1 | EX4: -271 | EY4: =$EY$374 -> 0.00% | EZ4: 8.59 | FA4: =EX4*EY4*EZ4 -> 0 | FB4: -4 | FC4: =FC$374 -> -0.18% | FD4: 0.78 | FE4: =FB4*FC4*FD4 -> 0 | FF4: -390 | FG4: =FG$374 -> 0.45% | FH4: 8.00 | FI4: =FF4*FG4*FH4 -> -14 | FJ4: 1,944 | FK4: =BG4 -> 0.71% | FL4: =FL$374 -> 1.00 | FM4: =FJ4*FK4*FL4 -> 14 | FN4: -98 | FO4: =FO$374 -> 0.65% | FP4: 5.00 | FQ4: =FN4*FO4*FP4 -> -3 | FR4: 18 | FS4: =FS$374 -> 0.40% | FT4: 1.00 | FU4: =FR4*FS4*FT4 -> 0 | FV4: -598 | FW4: =FW$374 -> 0.20% | FX4: 8.00 | FY4: =FV4*FW4*FX4 -> -10 | FZ4: 203 | GA4: =GA$374 -> 1.00% | GB4: 5.00 | GC4: =FZ4*GA4*GB4 -> 10 | GD4: =DJ4+DN4+DR4+DV4+DZ4+ED4+EH4+EL4+ET4+EX4+FB4+FV4+FZ4+EP4+JR4 -> -542 | GE4: =DM4+DQ4+DU4+DY4+EC4+EG4+EK4+EO4+EW4+FA4+FE4+FY4+GC4+ES4+JY4 -> 5 | GF4: =FF4+FN4+GT4+HB4+HJ4 -> -307 | GG4: =FI4+FM4+FQ4+FU4+GW4+HA4+HE4+HI4+HM4+BR4+BT4 -> 14 | GH4: 42 | GI4: =GI$374 -> 1.00% | GJ4: 5.37 | GK4: =GH4*GI4*GJ4 -> 2 | GL4: 221 | GM4: 0 | GN4: =GM4*$GM$3*$GN$3/1000 -> 0 | GP4: 0 | GQ4: 0.00% | GR4: 0 | GS4: =GP4*GQ4*GR4 -> 0 | GT4: 179 | GU4: =GU$374 -> 0.45% | GV4: 8.00 | GW4: =GT4*GU4*GV4 -> 6 | GX4: 282 | GY4: =FK4 -> 0.71% | GZ4: =GZ$374 -> 1.00 | HA4: =GX4*GY4*GZ4 -> 2 | HB4: 0 | HC4: =HC$374 -> 0.65% | HD4: 5.00 | HE4: =HB4*HC4*HD4 -> 0 | HF4: 0 | HG4: =FS4 -> 0.40% | HH4: =HH$374 -> 1.00 | HI4: =HF4*HG4*HH4 -> 0 | HJ4: 2 | HK4: =HK$374 -> 1.00% | HL4: 5.00 | HM4: =HJ4*HK4*HL4 -> 0 | HN4: -16 | HO4: 444 | HQ4: =IF(ISERROR(IF(VLOOKUP($C4,'Indicateurs Cumulés'!$C$3:$HP$560,188,FALSE)/(VLOOKUP($C4,objectifs!$C$3:$AAB$559,158,FALSE))>=1.5,(VLOOKUP($C4,objectifs!$C$3:$AAB$559,158,FALSE))*1.5,IF(VLOOKUP($C4,'Indicateurs Cumulés'!$C$3:$HP$560,188,FALSE)/(VLOOKUP($C4,objectifs!$C$3:$AAB$559,158,FALSE))<=-0.5,(VLOOKUP($C4,objectifs!$C$3:$AAB$559,158,FALSE))*-0.5,VLOOKUP($C4,'Indicateurs Cumulés'!$C$3:$HP$560,188,FALSE)))),VLOOKUP($C4,'Indicateurs Cumulés'!$C$3:$HP$560,188,FALSE),IF(VLOOKUP($C4,'Indicateurs Cumulés'!$C$3:$HP$560,188,FALSE)/(VLOOKUP($C4,objectifs!$C$3:$AAB$559,158,FALSE))>=1.5,(VLOOKUP($C4,objectifs!$C$3:$AAB$559,158,FALSE))*1.5,IF(VLOOKUP($C4,'Indicateurs Cumulés'!$C$3:$HP$560,188,FALSE)/(VLOOKUP($C4,objectifs!$C$3:$AAB$559,158,FALSE))<=-0.5,(VLOOKUP($C4,objectifs!$C$3:$AAB$559,158,FALSE))*-0.5,VLOOKUP($C4,'Indicateurs Cumulés'!$C$3:$HP$560,188,FALSE)))) -> 42 | HR4: 0 | HT4: 7.8 | HV4: =IF(ISERROR((L4*M4*N4+H4*I4*J4+CW4+DE4)/((H4*N4+L4*N4))),0,(L4*M4*N4+H4*I4*J4+CW4+DE4)/((H4*N4+L4*N4))) -> 4.32% | HW4: =IF(ISERROR((P4*R4*S4+CY4+DB4+AI4)/(P4*S4)),0,(P4*R4*S4+CY4+DB4+AI4)/(P4*S4)) -> 0.46% | HX4: =IF(ISERROR((AA4*AB4*AC4+GP4*GQ4*GR4+CS4)/((AA4*AC4+GP4*GR4))),0,(AA4*AB4*AC4+GP4*GQ4*GR4+CS4+DI4)/((AA4*AC4+GP4*GR4))) -> 4.37% | HY4: 19 | HZ4: 1 | IA4: -1 | IB4: 13 | IC4: 7 | ID4: 7 | IE4: 24 | IF4: -72 | IG4: -5 | IH4: -56 | II4: -4 | IJ4: 3 | IK4: -1 | IL4: 100 | IM4: -109 | IN4: 0 | IO4: =HY4*IO$3*HY$3/1000 -> 2 | IP4: =HZ4*IP$3*HZ$3/1000 -> 0 | IQ4: -0 | IR4: 1 | IS4: 0 | IT4: =ID4*IT$3*ID$3/1000 -> 1 | IU4: 3 | IV4: -31 | IW4: -0 | IX4: -35 | IY4: -4 | IZ4: 5 | JA4: -1 | JB4: 65 | JC4: -23 | JD4: 0 | JE4: =SUM(IO4:JD4)+BU4+BV4+GN4+JL4+KY4+LB4+LD4+CH4+CJ4 -> 67 | JF4: =BI4+BJ4+BM4 -> 15 | JG4: 0 | JH4: 0 | JI4: =IF(ISERROR((HY4*$IO$3+HZ4*$IP$3+IA4*$IQ$3+IB4*$IR$3+IC4*$IS$3+ID4*$IT$3+IE4*$IU$3+IF4*$IV$3+IG4*$IW$3+IH4*$IX$3+II4*$IY$3+IJ4*$IZ$3+IK4*$JA$3+IL4*$JB$3+IM4*$JC$3+IN4*$JD$3+JK4*$JL$3+GM4*$GN$3+LA4*$LB$3+LC4*$LD$3)/JH4),0,(HY4*$IO$3+HZ4*$IP$3+IA4*$IQ$3+IB4*$IR$3+IC4*$IS$3+ID4*$IT$3+IE4*$IU$3+IF4*$IV$3+IG4*$IW$3+IH4*$IX$3+II4*$IY$3+IJ4*$IZ$3+IK4*$JA$3+IL4*$JB$3+IM4*$JC$3+IN4*$JD$3+JK4*$JL$3+GM4*$GN$3+LA4*$LB$3+LC4*$LD$3)/JH4) -> 0.00 | JJ4: =IF(ISERROR(JE4/(JH4*JI4)*1000),0,JE4/(JH4*JI4)*1000) -> 0.00 | JK4: 0 | JL4: =JK4*JK$3*JL$3/1000 -> 0 | JM4: 0 | JN4: =$EU$374 -> 0.20% | JO4: 11 | JQ4: 15 | JR4: 324 | JS4: 144 | JT4: =IF(ISERROR(IF(VLOOKUP($C4,'Indicateurs Cumulés'!$C$3:$HP$560,192,FALSE)/(VLOOKUP($C4,objectifs!$C$3:$AAB$559,162,FALSE))>=1.5,(VLOOKUP($C4,objectifs!$C$3:$AAB$559,162,FALSE))*1.5,IF(VLOOKUP($C4,'Indicateurs Cumulés'!$C$3:$HP$560,192,FALSE)/(VLOOKUP($C4,objectifs!$C$3:$AAB$559,162,FALSE))<=-0.5,(VLOOKUP($C4,objectifs!$C$3:$AAB$559,162,FALSE))*-0.5,VLOOKUP($C4,'Indicateurs Cumulés'!$C$3:$HP$560,192,FALSE)))),VLOOKUP($C4,'Indicateurs Cumulés'!$C$3:$HP$560,192,FALSE),IF(VLOOKUP($C4,'Indicateurs Cumulés'!$C$3:$HP$560,192,FALSE)/(VLOOKUP($C4,objectifs!$C$3:$AAB$559,162,FALSE))>=1.5,(VLOOKUP($C4,objectifs!$C$3:$AAB$559,162,FALSE))*1.5,IF(VLOOKUP($C4,'Indicateurs Cumulés'!$C$3:$HP$560,192,FALSE)/(VLOOKUP($C4,objectifs!$C$3:$AAB$559,162,FALSE))<=-0.5,(VLOOKUP($C4,objectifs!$C$3:$AAB$559,162,FALSE))*-0.5,VLOOKUP($C4,'Indicateurs Cumulés'!$C$3:$HP$560,192,FALSE)))) -> 8 | JU4: =JM4*$JM$3*$JU$3 -> 0 | JV4: =JO4*$JO$3*$JV$3 -> 1 | JX4: =JQ4*$JQ$3*$JX$3 -> 1 | JY4: =JR4*$JR$3*$JY$3 -> 10 | JZ4: =JS4*$JS$3*$JZ$3 -> 5 | KA4: =JT4*$JT$3*$KA$3 -> 0 | KB4: =JU4+JV4+JW4+JX4+JY4+JZ4+KA4+KW4 -> 17 | KC4: 4 | KD4: 0 | KE4: -1 | KF4: 3 | KG4: 0 | KH4: 0 | KI4: =KC4*KI$3*KC$3/1000 -> 6 | KJ4: 0 | KK4: -1 | KL4: 1 | KM4: 0 | KN4: 0 | KO4: =SUM(KI4:KN4)+KP4+CB4+CD4+CF4 -> 15 | KP4: 7 | KT4: =IF(ISERROR((HY4*$IO$3+HZ4*$IP$3+IA4*$IQ$3+IB4*$IR$3+IC4*$IS$3+ID4*$IT$3+IE4*$IU$3)/(SUM(HY4:IE4))),$KT$374,(HY4*$IO$3+HZ4*$IP$3+IA4*$IQ$3+IB4*$IR$3+IC4*$IS$3+ID4*$IT$3+IE4*$IU$3)/(SUM(HY4:IE4))) -> 5.12 | KU4: =SUM(KC4:KH4) -> 6 | KV4: -3 | KW4: =KV4*$KV$3*$KW$3 -> 0 | KX4: 74 | KY4: =KX4*$KY$3*$JB$3/1000 -> 15 | KZ4: 0 | LA4: =IJ4+IK4+IL4 -> 102 | LB4: =LA4*$LA$3*$LB$3/1000 -> 71 | LC4: 0 | LD4: =LC4*$LC$3*$LD$3/1000 -> 0 | LE4: =(H4*I4*J4+L4*M4*N4+P4*R4*S4+AA4*AB4*AC4+AD4+AF4+AI4+CU4+CW4+DB4+DE4+DI4+GS4+BW4+CL4)*1+(GE4+GG4+(HQ4*GI4*GJ4))*1+(HN4+HR4*$HR$3+JG4*$JG$3+KZ4*$KZ$3++JH4*$JH$3)*1+(SUM(IO4:JD4)+JL4+GN4+KY4+LB4+LD4+SUM(KI4:KN4)+BU4+BV4+CB4+CD4+CF4+CH4+KP4+LH4+LJ4+LL4+CJ4)*1 -> 412.4 | LF4: =(U4*V4*W4+X4*Y4*Z4+AA4*AB4*AC4+AF4+CU4+CV4+CX4+CO4+CR4+CT4+DI4+GS4)+(SUM(JU4:KA4)+KW4)+(SUM(KI4:KN4)+KP4+CB4+CD4+CF4)+(LH4+LJ4+LL4)+BZ4 -> 63 | LG4: 5 | LH4: =LG4*$LG$3*$LH$3/1000 -> 3 | LI4: 9 | LJ4: =LI4*$LI$3*$LJ$3/1000 -> 13 | LK4: 0 | LL4: =LK4*$LK$3*$LL$3/1000 -> 0 | LM4: =LE4-KY4-BU4-BV4-CH4-CL4 -> 387 | LN4: =IF(HT4=0,0,LM4/HT4) -> 49.6 | LO4: =(GE4+GG4)+(HQ4*GI4*GJ4) -> 21 | LP4: =BL4+BK4+BM4 -> 318 | LQ4: =(HR4*$HR$3)+(KZ4*$KZ$3)+(JG4*$JG$3)+(JH4*$JH$3)+HN4 -> -16 | LR4: =LH4+LJ4+LL4 -> 16 | LS4: =IF(HT4=0,0,LE4/HT4) -> 52.90 | LT4: 233 | LU4: 287 | LV4: 1102 | LW4: 173 | LX4: 83 | LY4: 105 | LZ4: =IF(LT4<0,0,LT4*$LT$3*$LZ$3/1000) -> 17.5 | MA4: =IF(LU4<0,0,LU4*$LU$3*$MA$3/1000) -> 2.9 | MB4: =IF(LV4<0,0,LV4*$LV$3*$MB$3/1000) -> 3.3 | MC4: =IF(LW4<0,0,LW4*$LW$3*$MC$3/1000) -> 8.7 | MD4: =IF(LX4<0,0,LX4*$LX$3*$MD$3/1000) -> 1.2 | ME4: =IF(LY4<0,0,LY4*$LY$3*$ME$3/1000) -> 0.5 | MF4: =+LE4+SUM(LZ4:ME4) -> 446 | MH4: =CY4/P4 -> 0.25%
A5: 105101 | B5: 200262 | C5: 7 | D5: ILLKIRCH CENTRE | E5: 7 | F5: ILLKIRCH CENTRE | G5: =$G$3 -> 2019-08-31 | H5: 158 | I5: 4.32% | J5: 1.57 | K5: 2019-08-31 | L5: 2,270 | M5: 2.94% | N5: 2.71 | O5: =L5*M5*N5 -> 181 | P5: 7,281 | Q5: 0 | R5: -0.00% | S5: 6.14 | T5: 9.42 | U5: 359 | V5: 2.06% | W5: 2.60 | X5: 792 | Y5: -0.09% | Z5: 8.08 | AA5: 90 | AB5: 1.29% | AC5: 2.06 | AD5: 16.8 | AE5: 23.3 | AF5: 0.6 | AG5: 1,390.6 | AH5: 38.2 | AI5: 9.8 | AJ5: 201908 | AK5: 25.00 | AL5: 0.17 | AM5: =IF(ISERROR(AL5/AK5),0,AL5/AK5) -> 0.67% | AN5: 803.08 | AO5: 187.37 | AP5: 23% | AQ5: 5.61 | AR5: 0.70% | AS5: 2,302.90 | AT5: 387.51 | AU5: 16.8% | AV5: 5.71 | AW5: 0.25% | AX5: 92.21 | AY5: 12.11 | AZ5: 13.13% | BA5: 1.85 | BB5: 2.00% | BC5: 3,223.19 | BD5: 587.00 | BE5: 18.2% | BF5: 13.33 | BG5: 0.41% | BI5: 26 | BJ5: =(X5*Y5*Z5)+CR5+CT5+CX5 -> 7 | BK5: 256 | BL5: 163 | BM5: 6 | BN5: 1.25% | BO5: 0.00% | BP5: 7 | BQ5: 396 | BR5: =BQ5*$BQ$3*$BR$3 -> 8 | BS5: 474 | BT5: =BS5*$BS$3*$BT$3 -> 13 | BU5: =HY5*$BU$3*$IV$3/1000 -> 7 | BV5: =HZ5*$BV$3*$IV$3/1000 -> 1 | BW5: -14 | BZ5: 0 | CA5: 0 | CB5: =CA5*$CA$3*$CB$3/1000 -> 0 | CC5: 0 | CD5: =CC5*$CC$3*$CD$3/1000 -> 0 | CE5: 4 | CF5: =CE5*$CE$3*$CF$3/1000 -> 2 | CG5: 34 | CH5: =+CG5*$CH$3/1000 -> 6.8 | CI5: 0 | CJ5: =(CI5*$CI$3*$CJ$3)/1000 -> 0 | CK5: 14 | CL5: 14 | CM5: 83.27% | CN5: 117.61% | CO5: 6 | CP5: 200.00% | CQ5: 27.85% | CR5: 10 | CS5: 0.6 | CT5: 2 | CU5: 0.40 | CV5: 1 | CW5: 9 | CX5: 1 | CY5: =+AD5 -> 17 | CZ5: 47.36% | DA5: 154.81% | DB5: 124 | DC5: 94.63% | DD5: 148.93% | DE5: 55 | DG5: 8.33% | DH5: 100.00% | DI5: 0 | DJ5: -334 | DK5: 0.70% | DL5: 5.33 | DM5: =DJ5*DK5*DL5 -> -12 | DN5: 587 | DO5: 0.76% | DP5: 5.33 | DQ5: =DN5*DO5*DP5 -> 24 | DR5: -29 | DS5: 0.85% | DT5: 5.33 | DU5: =DR5*DS5*DT5 -> -1 | DV5: 354 | DW5: 0.40% | DX5: 1.40 | DY5: =DV5*DW5*DX5 -> 2 | DZ5: -449 | EA5: 0.20% | EB5: 5.37 | EC5: =DZ5*EA5*EB5 -> -5 | ED5: -15 | EE5: 0.20% | EF5: 5.37 | EG5: =ED5*EE5*EF5 -> -0 | EH5: -37 | EI5: 0.20% | EJ5: 5.37 | EK5: =EH5*EI5*EJ5 -> -0 | EL5: -9 | EM5: 0.35% | EN5: 5.33 | EO5: =EL5*EM5*EN5 -> -0 | EP5: -30 | EQ5: 0.10% | ER5: 6.58 | ES5: =EP5*EQ5*ER5 -> -0 | ET5: -162 | EU5: 0.20% | EV5: 9.00 | EW5: =ET5*EU5*EV5 -> -3 | EX5: -77 | EY5: =$EY$374 -> 0.00% | EZ5: 7.72 | FA5: =EX5*EY5*EZ5 -> 0 | FB5: 0 | FC5: -0.18% | FD5: 0.78 | FE5: =FB5*FC5*FD5 -> 0 | FF5: 1,173 | FG5: 0.45% | FH5: 8.00 | FI5: =FF5*FG5*FH5 -> 42 | FJ5: 3,262 | FK5: 0.41% | FL5: 1.00 | FM5: =FJ5*FK5*FL5 -> 13 | FN5: -267 | FO5: 0.65% | FP5: 5.00 | FQ5: =FN5*FO5*FP5 -> -9 | FR5: 49 | FS5: 0.40% | FT5: 1.00 | FU5: =FR5*FS5*FT5 -> 0 | FV5: -616 | FW5: 0.20% | FX5: 8.00 | FY5: =FV5*FW5*FX5 -> -10 | FZ5: 123 | GA5: 1.00% | GB5: 5.00 | GC5: =FZ5*GA5*GB5 -> 6 | GD5: 828 | GE5: 49 | GF5: =FF5+FN5+GT5+HB5+HJ5 -> 2,090 | GG5: 120 | GH5: -266 | GI5: 1.00% | GJ5: 5.37 | GK5: =GH5*GI5*GJ5 -> -14 | GL5: 185 | GM5: 0 | GN5: =GM5*$GM$3*$GN$3/1000 -> 0 | GP5: 247 | GQ5: 0.47% | GR5: 2.37 | GS5: =GP5*GQ5*GR5 -> 3 | GT5: 817 | GU5: 0.45% | GV5: 8.00 | GW5: =GT5*GU5*GV5 -> 29 | GX5: 817 | GY5: =FK5 -> 0.41% | GZ5: 1.00 | HA5: =GX5*GY5*GZ5 -> 3 | HB5: 0 | HC5: 0.65% | HD5: 5.00 | HE5: =HB5*HC5*HD5 -> 0 | HF5: 0 | HG5: =FS5 -> 0.40% | HH5: 1.00 | HI5: 0 | HJ5: 367 | HK5: 1.00% | HL5: 5.00 | HM5: 18 | HN5: -31 | HO5: 388 | HQ5: =IF(ISERROR(IF(VLOOKUP($C5,'Indicateurs Cumulés'!$C$3:$HP$560,188,FALSE)/(VLOOKUP($C5,objectifs!$C$3:$AAB$559,158,FALSE))>=1.5,(VLOOKUP($C5,objectifs!$C$3:$AAB$559,158,FALSE))*1.5,IF(VLOOKUP($C5,'Indicateurs Cumulés'!$C$3:$HP$560,188,FALSE)/(VLOOKUP($C5,objectifs!$C$3:$AAB$559,158,FALSE))<=-0.5,(VLOOKUP($C5,objectifs!$C$3:$AAB$559,158,FALSE))*-0.5,VLOOKUP($C5,'Indicateurs Cumulés'!$C$3:$HP$560,188,FALSE)))),VLOOKUP($C5,'Indicateurs Cumulés'!$C$3:$HP$560,188,FALSE),IF(VLOOKUP($C5,'Indicateurs Cumulés'!$C$3:$HP$560,188,FALSE)/(VLOOKUP($C5,objectifs!$C$3:$AAB$559,158,FALSE))>=1.5,(VLOOKUP($C5,objectifs!$C$3:$AAB$559,158,FALSE))*1.5,IF(VLOOKUP($C5,'Indicateurs Cumulés'!$C$3:$HP$560,188,FALSE)/(VLOOKUP($C5,objectifs!$C$3:$AAB$559,158,FALSE))<=-0.5,(VLOOKUP($C5,objectifs!$C$3:$AAB$559,158,FALSE))*-0.5,VLOOKUP($C5,'Indicateurs Cumulés'!$C$3:$HP$560,188,FALSE)))) -> -266 | HR5: 0 | HT5: 7.4 | HV5: 3.88% | HW5: 0.33% | HX5: 0.77% | HY5: 36 | HZ5: 4 | IA5: 0 | IB5: 8 | IC5: -26 | ID5: 17 | IE5: 18 | IF5: -24 | IG5: 1 | IH5: -38 | II5: -8 | IJ5: 6 | IK5: 3 | IL5: 32 | IM5: -80 | IN5: -5 | IO5: =HY5*IO$3*HY$3/1000 -> 4 | IP5: =HZ5*IP$3*HZ$3/1000 -> 0 | IQ5: =IA5*IQ$3*IA$3/1000 -> 0 | IR5: =IB5*IR$3*IB$3/1000 -> 1 | IS5: =IC5*IS$3*IC$3/1000 -> -1 | IT5: =ID5*IT$3*ID$3/1000 -> 2 | IU5: =IE5*IU$3*IE$3/1000 -> 2 | IV5: =IF5*IV$3*IF$3/1000 -> -10 | IW5: =IG5*IW$3*IG$3/1000 -> 0 | IX5: =IH5*IX$3*IH$3/1000 -> -24 | IY5: =II5*IY$3*II$3/1000 -> -8 | IZ5: =IJ5*IZ$3*IJ$3/1000 -> 9 | JA5: =IK5*JA$3*IK$3/1000 -> 3 | JB5: =IL5*JB$3*IL$3/1000 -> 21 | JC5: =IM5*JC$3*IM$3/1000 -> -17 | JD5: =IN5*JD$3*IN$3/1000 -> -0 | JE5: 40 | JF5: 39 | JG5: 0 | JH5: 0 | JI5: =IF(ISERROR((HY5*$IO$3+HZ5*$IP$3+IA5*$IQ$3+IB5*$IR$3+IC5*$IS$3+ID5*$IT$3+IE5*$IU$3+IF5*$IV$3+IG5*$IW$3+IH5*$IX$3+II5*$IY$3+IJ5*$IZ$3+IK5*$JA$3+IL5*$JB$3+IM5*$JC$3+IN5*$JD$3+JK5*$JL$3+GM5*$GN$3+LA5*$LB$3+LC5*$LD$3)/JH5),0,(HY5*$IO$3+HZ5*$IP$3+IA5*$IQ$3+IB5*$IR$3+IC5*$IS$3+ID5*$IT$3+IE5*$IU$3+IF5*$IV$3+IG5*$IW$3+IH5*$IX$3+II5*$IY$3+IJ5*$IZ$3+IK5*$JA$3+IL5*$JB$3+IM5*$JC$3+IN5*$JD$3+JK5*$JL$3+GM5*$GN$3+LA5*$LB$3+LC5*$LD$3)/JH5) -> 0.00 | JJ5: =IF(ISERROR(JE5/(JH5*JI5)*1000),0,JE5/(JH5*JI5)*1000) -> 0.00 | JK5: 0 | JL5: =JK5*JK$3*JL$3/1000 -> 0 | JM5: -16 | JN5: =$EU$374 -> 0.20% | JO5: 22 | JQ5: 10 | JR5: 1,521 | JS5: 25 | JT5: =IF(ISERROR(IF(VLOOKUP($C5,'Indicateurs Cumulés'!$C$3:$HP$560,192,FALSE)/(VLOOKUP($C5,objectifs!$C$3:$AAB$559,162,FALSE))>=1.5,(VLOOKUP($C5,objectifs!$C$3:$AAB$559,162,FALSE))*1.5,IF(VLOOKUP($C5,'Indicateurs Cumulés'!$C$3:$HP$560,192,FALSE)/(VLOOKUP($C5,objectifs!$C$3:$AAB$559,162,FALSE))<=-0.5,(VLOOKUP($C5,objectifs!$C$3:$AAB$559,162,FALSE))*-0.5,VLOOKUP($C5,'Indicateurs Cumulés'!$C$3:$HP$560,192,FALSE)))),VLOOKUP($C5,'Indicateurs Cumulés'!$C$3:$HP$560,192,FALSE),IF(VLOOKUP($C5,'Indicateurs Cumulés'!$C$3:$HP$560,192,FALSE)/(VLOOKUP($C5,objectifs!$C$3:$AAB$559,162,FALSE))>=1.5,(VLOOKUP($C5,objectifs!$C$3:$AAB$559,162,FALSE))*1.5,IF(VLOOKUP($C5,'Indicateurs Cumulés'!$C$3:$HP$560,192,FALSE)/(VLOOKUP($C5,objectifs!$C$3:$AAB$559,162,FALSE))<=-0.5,(VLOOKUP($C5,objectifs!$C$3:$AAB$559,162,FALSE))*-0.5,VLOOKUP($C5,'Indicateurs Cumulés'!$C$3:$HP$560,192,FALSE)))) -> 8 | JU5: =JM5*$JM$3*$JU$3 -> -0 | JV5: =JO5*$JO$3*$JV$3 -> 1 | JX5: =JQ5*$JQ$3*$JX$3 -> 0 | JY5: =JR5*$JR$3*$JY$3 -> 49 | JZ5: =JS5*$JS$3*$JZ$3 -> 1 | KA5: =JT5*$JT$3*$KA$3 -> 0 | KB5: =JU5+JV5+JW5+JX5+JY5+JZ5+KA5+KW5 -> 51 | KC5: 9 | KD5: 3 | KE5: -1 | KF5: -1 | KG5: 1 | KH5: 1 | KI5: =KC5*KI$3*KC$3/1000 -> 13 | KJ5: =KD5*KJ$3*KD$3/1000 -> 3 | KK5: =KE5*KK$3*KE$3/1000 -> -1 | KL5: =KF5*KL$3*KF$3/1000 -> -0 | KM5: =KG5*KM$3*KG$3/1000 -> 1 | KN5: =KH5*KN$3*KH$3/1000 -> 0 | KO5: =SUM(KI5:KN5)+KP5+CB5+CD5+CF5 -> 28 | KP5: 11 | KT5: 3.93 | KU5: =SUM(KC5:KH5) -> 12 | KV5: 0 | KW5: =KV5*$KV$3*$KW$3 -> 0 | KX5: 73 | KY5: =KX5*$KY$3*$JB$3/1000 -> 15 | KZ5: 0 | LA5: =IJ5+IK5+IL5 -> 41 | LB5: =LA5*$LA$3*$LB$3/1000 -> 29 | LC5: 0 | LD5: =LC5*$LC$3*$LD$3/1000 -> 0 | LE5: =(H5*I5*J5+L5*M5*N5+P5*R5*S5+AA5*AB5*AC5+AD5+AF5+AI5+CU5+CW5+DB5+DE5+DI5+GS5+BW5+CL5)*1+(GE5+GG5+(HQ5*GI5*GJ5))*1+(HN5+HR5*$HR$3+JG5*$JG$3+KZ5*$KZ$3++JH5*$JH$3)*1+(SUM(IO5:JD5)+JL5+GN5+KY5+LB5+LD5+SUM(KI5:KN5)+BU5+BV5+CB5+CD5+CF5+CH5+KP5+LH5+LJ5+LL5+CJ5)*1 -> 605.0 | LF5: 121 | LG5: 2 | LH5: =LG5*$LG$3*$LH$3/1000 -> 1 | LI5: 1 | LJ5: =LI5*$LI$3*$LJ$3/1000 -> 1 | LK5: -2 | LL5: =LK5*$LK$3*$LL$3/1000 -> -0 | LM5: =LE5-KY5-BU5-BV5-CH5-CL5 -> 562 | LN5: 75.8 | LO5: =(GE5+GG5)+(HQ5*GI5*GJ5) -> 154 | LP5: 425 | LQ5: =(HR5*$HR$3)+(KZ5*$KZ$3)+(JG5*$JG$3)+(JH5*$JH$3)+HN5 -> -31 | LR5: =LH5+LJ5+LL5 -> 3 | LS5: 81.70 | LT5: 250 | LU5: 137 | LV5: 1082 | LW5: 210 | LX5: 66 | LY5: 67 | LZ5: =IF(LT5<0,0,LT5*$LT$3*$LZ$3/1000) -> 18.8 | MA5: =IF(LU5<0,0,LU5*$LU$3*$MA$3/1000) -> 1.4 | MB5: =IF(LV5<0,0,LV5*$LV$3*$MB$3/1000) -> 3.2 | MC5: =IF(LW5<0,0,LW5*$LW$3*$MC$3/1000) -> 10.5 | MD5: =IF(LX5<0,0,LX5*$LX$3*$MD$3/1000) -> 1.0 | ME5: =IF(LY5<0,0,LY5*$LY$3*$ME$3/1000) -> 0.3 | MF5: =+LE5+SUM(LZ5:ME5) -> 640 | MH5: 0.23%
A6: 105101 | B6: 200262 | C6: 8 | D6: FEGERSHEIM | E6: 8 | F6: FEGERSHEIM | G6: 2019-08-31 | H6: 79 | I6: 4.32% | J6: 1.57 | K6: 2019-08-31 | L6: 941 | M6: 2.03% | N6: 2.87 | O6: 55 | P6: 3,573 | Q6: 0 | R6: 0.20% | S6: 7.85 | T6: 12.03 | U6: 157 | V6: 2.50% | W6: 2.45 | X6: 91 | Y6: -0.36% | Z6: 7.56 | AA6: 45 | AB6: 1.53% | AC6: 1.43 | AD6: 14.7 | AE6: 18.7 | AF6: 0.7 | AG6: 91.8 | AH6: 29.2 | AI6: 6.3 | AJ6: 201908 | AK6: 56.12 | AL6: 0 | AM6: 0.00% | AN6: 318.45 | AO6: 103.10 | AP6: 32% | AQ6: 2.65 | AR6: 0.83% | AS6: 784.84 | AT6: 200.46 | AU6: 25.5% | AV6: 0.87 | AW6: 0.11% | AX6: 117.91 | AY6: 28.12 | AZ6: 23.85% | BA6: 1.05 | BB6: 0.89% | BC6: 1,278.93 | BD6: 331.68 | BE6: 25.9% | BF6: 4.62 | BG6: 0.36% | BI6: 13 | BJ6: -2 | BK6: 81 | BL6: 142 | BM6: 7 | BN6: 1.21% | BO6: 0.00% | BP6: 8 | BQ6: 72 | BR6: 1 | BS6: 237 | BT6: 7 | BU6: -1 | BV6: 1 | BW6: -6 | BZ6: 0 | CA6: 0 | CB6: 0 | CC6: 2 | CD6: 0 | CE6: -5 | CF6: -3 | CG6: 4 | CH6: 0.8 | CI6: 1 | CJ6: 0 | CK6: 1 | CL6: =CK6*$CL$3/1000 -> 1 | CM6: 100.00% | CN6: 87.26% | CO6: 2 | CP6: 0.00% | CQ6: 0.00% | CR6: 0 | CS6: 0.7 | CT6: 0 | CU6: 1.65 | CV6: 1 | CW6: 4 | CX6: 0 | CY6: 15 | CZ6: 56.01% | DA6: 126.88% | DB6: 65 | DC6: 94.09% | DD6: 120.07% | DE6: 16 | DG6: 83.33% | DH6: 100.00% | DI6: 0 | DJ6: 262 | DK6: 0.70% | DL6: 5.33 | DM6: 10 | DN6: 428 | DO6: 0.76% | DP6: 5.33 | DQ6: 17 | DR6: -74 | DS6: 0.85% | DT6: 5.33 | DU6: -3 | DV6: 254 | DW6: 0.40% | DX6: 1.40 | DY6: 1 | DZ6: -221 | EA6: 0.20% | EB6: 5.37 | EC6: -2 | ED6: 155 | EE6: 0.20% | EF6: 5.37 | EG6: 2 | EH6: -41 | EI6: 0.20% | EJ6: 5.37 | EK6: -0 | EL6: 48 | EM6: 0.35% | EN6: 5.33 | EO6: 1 | EP6: -1 | EQ6: 0.10% | ER6: 7.20 | ES6: -0 | ET6: -181 | EU6: 0.20% | EV6: 9.00 | EW6: -3 | EX6: 96 | EY6: 0.00% | EZ6: 8.59 | FA6: 0 | FB6: -1 | FC6: -0.18% | FD6: 0.78 | FE6: 0 | FF6: -247 | FG6: 0.45% | FH6: 8.00 | FI6: -9 | FJ6: 1,028 | FK6: 0.36% | FL6: 1.00 | FM6: 4 | FN6: -63 | FO6: 0.65% | FP6: 5.00 | FQ6: -2 | FR6: 7 | FS6: 0.40% | FT6: 1.00 | FU6: 0 | FV6: -515 | FW6: 0.20% | FX6: 8.00 | FY6: -8 | FZ6: 252 | GA6: 1.00% | GB6: 5.00 | GC6: 13 | GD6: 662 | GE6: 32 | GF6: -115 | GG6: 9 | GH6: -139 | GI6: 1.00% | GJ6: 5.37 | GK6: -7 | GL6: 47 | GM6: 0 | GN6: 0 | GP6: 176 | GQ6: 1.10% | GR6: 2.06 | GS6: 4 | GT6: 136 | GU6: 0.45% | GV6: 8.00 | GW6: 5 | GX6: 200 | GY6: 0.36% | GZ6: 1.00 | HA6: 1 | HB6: 0 | HC6: 0.65% | HD6: 5.00 | HE6: 0 | HF6: 0 | HG6: 0.40% | HH6: 1.00 | HI6: 0 | HJ6: 59 | HK6: 1.00% | HL6: 5.00 | HM6: 3 | HN6: -13 | HO6: 195 | HQ6: =IF(ISERROR(IF(VLOOKUP($C6,'Indicateurs Cumulés'!$C$3:$HP$560,188,FALSE)/(VLOOKUP($C6,objectifs!$C$3:$AAB$559,158,FALSE))>=1.5,(VLOOKUP($C6,objectifs!$C$3:$AAB$559,158,FALSE))*1.5,IF(VLOOKUP($C6,'Indicateurs Cumulés'!$C$3:$HP$560,188,FALSE)/(VLOOKUP($C6,objectifs!$C$3:$AAB$559,158,FALSE))<=-0.5,(VLOOKUP($C6,objectifs!$C$3:$AAB$559,158,FALSE))*-0.5,VLOOKUP($C6,'Indicateurs Cumulés'!$C$3:$HP$560,188,FALSE)))),VLOOKUP($C6,'Indicateurs Cumulés'!$C$3:$HP$560,188,FALSE),IF(VLOOKUP($C6,'Indicateurs Cumulés'!$C$3:$HP$560,188,FALSE)/(VLOOKUP($C6,objectifs!$C$3:$AAB$559,158,FALSE))>=1.5,(VLOOKUP($C6,objectifs!$C$3:$AAB$559,158,FALSE))*1.5,IF(VLOOKUP($C6,'Indicateurs Cumulés'!$C$3:$HP$560,188,FALSE)/(VLOOKUP($C6,objectifs!$C$3:$AAB$559,158,FALSE))<=-0.5,(VLOOKUP($C6,objectifs!$C$3:$AAB$559,158,FALSE))*-0.5,VLOOKUP($C6,'Indicateurs Cumulés'!$C$3:$HP$560,188,FALSE)))) -> -139 | HR6: 0 | HT6: 3.4 | HV6: 2.76% | HW6: 0.50% | HX6: 1.35% | HY6: -7 | HZ6: 3 | IA6: 1 | IB6: 4 | IC6: -7 | ID6: -1 | IE6: 38 | IF6: -63 | IG6: -3 | IH6: -4 | II6: 0 | IJ6: 0 | IK6: -2 | IL6: 82 | IM6: -79 | IN6: 1 | IO6: -1 | IP6: 0 | IQ6: 0 | IR6: 0 | IS6: -0 | IT6: -0 | IU6: 4 | IV6: -27 | IW6: -0 | IX6: -2 | IY6: 0 | IZ6: 0 | JA6: -2 | JB6: 53 | JC6: -17 | JD6: 0 | JE6: 69 | JF6: 19 | JG6: 0 | JH6: 0 | JI6: 0.00 | JJ6: 0.00 | JK6: 0 | JL6: 0 | JM6: -143 | JN6: 0.20% | JO6: 12 | JQ6: 25 | JR6: 201 | JS6: -134 | JT6: =IF(ISERROR(IF(VLOOKUP($C6,'Indicateurs Cumulés'!$C$3:$HP$560,192,FALSE)/(VLOOKUP($C6,objectifs!$C$3:$AAB$559,162,FALSE))>=1.5,(VLOOKUP($C6,objectifs!$C$3:$AAB$559,162,FALSE))*1.5,IF(VLOOKUP($C6,'Indicateurs Cumulés'!$C$3:$HP$560,192,FALSE)/(VLOOKUP($C6,objectifs!$C$3:$AAB$559,162,FALSE))<=-0.5,(VLOOKUP($C6,objectifs!$C$3:$AAB$559,162,FALSE))*-0.5,VLOOKUP($C6,'Indicateurs Cumulés'!$C$3:$HP$560,192,FALSE)))),VLOOKUP($C6,'Indicateurs Cumulés'!$C$3:$HP$560,192,FALSE),IF(VLOOKUP($C6,'Indicateurs Cumulés'!$C$3:$HP$560,192,FALSE)/(VLOOKUP($C6,objectifs!$C$3:$AAB$559,162,FALSE))>=1.5,(VLOOKUP($C6,objectifs!$C$3:$AAB$559,162,FALSE))*1.5,IF(VLOOKUP($C6,'Indicateurs Cumulés'!$C$3:$HP$560,192,FALSE)/(VLOOKUP($C6,objectifs!$C$3:$AAB$559,162,FALSE))<=-0.5,(VLOOKUP($C6,objectifs!$C$3:$AAB$559,162,FALSE))*-0.5,VLOOKUP($C6,'Indicateurs Cumulés'!$C$3:$HP$560,192,FALSE)))) -> 8 | JU6: -3 | JV6: 1 | JX6: 1 | JY6: 6 | JZ6: -4 | KA6: 0 | KB6: 2 | KC6: 3 | KD6: 0 | KE6: 0 | KF6: 1 | KG6: 0 | KH6: 1 | KI6: 4 | KJ6: 0 | KK6: 0 | KL6: 0 | KM6: 0 | KN6: 0 | KO6: 6 | KP6: 4 | KT6: 6.31 | KU6: 5 | KV6: -29 | KW6: 0 | KX6: 22 | KY6: 4 | KZ6: 0 | LA6: 80 | LB6: 56 | LC6: -1 | LD6: -0 | LE6: 323.0 | LF6: 29 | LG6: 2 | LH6: 1 | LI6: 1 | LJ6: 1 | LK6: -5 | LL6: -1 | LM6: 318 | LN6: 94.0 | LO6: 34 | LP6: 230 | LQ6: -13 | LR6: 2 | LS6: 95.57 | LT6: 149 | LU6: 7 | LV6: 659 | LW6: 69 | LX6: 24 | LY6: 27 | LZ6: 11.2 | MA6: 0.1 | MB6: 2.0 | MC6: 3.5 | MD6: 0.4 | ME6: 0.1 | MF6: 340 | MH6: 0.41%
A7: 105006 | B7: 200262 | C7: 10 | D7: STRASBOURG MEINAU | E7: 10 | F7: STRASBOURG MEINAU | G7: 2019-08-31 | H7: 101 | I7: 4.32% | J7: 1.57 | K7: 2019-08-31 | L7: 610 | M7: 3.43% | N7: 2.62 | O7: 55 | P7: 3,207 | Q7: 0 | R7: 0.01% | S7: 8.04 | T7: 12.27 | U7: 21 | V7: 2.21% | W7: 3.43 | X7: 458 | Y7: 0.23% | Z7: 7.74 | AA7: 0 | AB7: 0.00% | AC7: 0 | AD7: 12.8 | AE7: 5.0 | AF7: 0 | AG7: 86.1 | AH7: 9.6 | AI7: 6.0 | AJ7: 201908 | AK7: 13.50 | AL7: 0.32 | AM7: 2.40% | AN7: 109.75 | AO7: 16.40 | AP7: 15% | AQ7: 1.92 | AR7: 1.75% | AS7: 590.02 | AT7: 17.03 | AU7: 2.9% | AV7: 1.73 | AW7: 0.29% | AX7: 35.61 | AY7: 2.84 | AZ7: 7.99% | BA7: 0.76 | BB7: 2.12% | BC7: 748.88 | BD7: 36.27 | BE7: 4.8% | BF7: 4.73 | BG7: 0.63% | BI7: 2 | BJ7: 20 | BK7: 79 | BL7: 83 | BM7: 0 | BN7: 1.43% | BO7: 0.00% | BP7: 10 | BQ7: 30 | BR7: 1 | BS7: 51 | BT7: 1 | BU7: -0 | BV7: 2 | BW7: -4 | BZ7: 0 | CA7: 0 | CB7: 0 | CC7: 0 | CD7: 0 | CE7: -1 | CF7: -1 | CG7: 14 | CH7: 2.8 | CI7: -3 | CJ7: -1 | CK7: 7 | CL7: 7 | CM7: 0.00% | CN7: 0.00% | CO7: 0 | CP7: 164.94% | CQ7: 62.27% | CR7: 9 | CS7: 0 | CT7: 0 | CU7: 0.00 | CV7: 0 | CW7: 3 | CX7: 2 | CY7: 13 | CZ7: 51.36% | DA7: 151.32% | DB7: 55 | DC7: 90.19% | DD7: 145.90% | DE7: 14 | DG7: 0.00% | DH7: 0.00% | DI7: 0 | DJ7: 118 | DK7: 0.70% | DL7: 5.33 | DM7: 4 | DN7: 389 | DO7: 0.76% | DP7: 5.33 | DQ7: 16 | DR7: -44 | DS7: 0.85% | DT7: 5.33 | DU7: -2 | DV7: -176 | DW7: 0.40% | DX7: 1.40 | DY7: -1 | DZ7: -207 | EA7: 0.20% | EB7: 5.37 | EC7: -2 | ED7: 137 | EE7: 0.20% | EF7: 5.37 | EG7: 1 | EH7: -37 | EI7: 0.20% | EJ7: 5.37 | EK7: -0 | EL7: -29 | EM7: 0.35% | EN7: 5.33 | EO7: -1 | EP7: -1 | EQ7: 0.10% | ER7: 8.25 | ES7: -0 | ET7: 87 | EU7: 0.20% | EV7: 9.00 | EW7: 2 | EX7: -142 | EY7: 0.00% | EZ7: 8.59 | FA7: 0 | FB7: 0 | FC7: -0.18% | FD7: 0.78 | FE7: 0 | FF7: -748 | FG7: 0.45% | FH7: 8.00 | FI7: -27 | FJ7: 791 | FK7: 0.63% | FL7: 1.00 | FM7: 5 | FN7: -95 | FO7: 0.65% | FP7: 5.00 | FQ7: -3 | FR7: 9 | FS7: 0.40% | FT7: 1.00 | FU7: 0 | FV7: -296 | FW7: 0.20% | FX7: 8.00 | FY7: -5 | FZ7: -12 | GA7: 1.00% | GB7: 5.00 | GC7: -1 | GD7: -212 | GE7: 12 | GF7: -1,033 | GG7: -29 | GH7: 42 | GI7: 1.00% | GJ7: 5.37 | GK7: 2 | GL7: 31 | GM7: 0 | GN7: 0 | GP7: 0 | GQ7: 0.00% | GR7: 0 | GS7: 0 | GT7: -217 | GU7: 0.45% | GV7: 8.00 | GW7: -8 | GX7: 0 | GY7: 0.63% | GZ7: 1.00 | HA7: 0 | HB7: 0 | HC7: 0.65% | HD7: 5.00 | HE7: 0 | HF7: 0 | HG7: 0.40% | HH7: 1.00 | HI7: 0 | HJ7: 27 | HK7: 1.00% | HL7: 5.00 | HM7: 1 | HN7: -10 | HO7: 246 | HQ7: =IF(ISERROR(IF(VLOOKUP($C7,'Indicateurs Cumulés'!$C$3:$HP$560,188,FALSE)/(VLOOKUP($C7,objectifs!$C$3:$AAB$559,158,FALSE))>=1.5,(VLOOKUP($C7,objectifs!$C$3:$AAB$559,158,FALSE))*1.5,IF(VLOOKUP($C7,'Indicateurs Cumulés'!$C$3:$HP$560,188,FALSE)/(VLOOKUP($C7,objectifs!$C$3:$AAB$559,158,FALSE))<=-0.5,(VLOOKUP($C7,objectifs!$C$3:$AAB$559,158,FALSE))*-0.5,VLOOKUP($C7,'Indicateurs Cumulés'!$C$3:$HP$560,188,FALSE)))),VLOOKUP($C7,'Indicateurs Cumulés'!$C$3:$HP$560,188,FALSE),IF(VLOOKUP($C7,'Indicateurs Cumulés'!$C$3:$HP$560,188,FALSE)/(VLOOKUP($C7,objectifs!$C$3:$AAB$559,158,FALSE))>=1.5,(VLOOKUP($C7,objectifs!$C$3:$AAB$559,158,FALSE))*1.5,IF(VLOOKUP($C7,'Indicateurs Cumulés'!$C$3:$HP$560,188,FALSE)/(VLOOKUP($C7,objectifs!$C$3:$AAB$559,158,FALSE))<=-0.5,(VLOOKUP($C7,objectifs!$C$3:$AAB$559,158,FALSE))*-0.5,VLOOKUP($C7,'Indicateurs Cumulés'!$C$3:$HP$560,188,FALSE)))) -> 42 | HR7: 360 | HT7: 3.4 | HV7: 4.22% | HW7: 0.29% | HX7: 0.00% | HY7: -1 | HZ7: 8 | IA7: 1 | IB7: -4 | IC7: 2 | ID7: 1 | IE7: 16 | IF7: -2 | IG7: 5 | IH7: -11 | II7: -1 | IJ7: 4 | IK7: -1 | IL7: 17 | IM7: -20 | IN7: -2 | IO7: -0 | IP7: 1 | IQ7: 0 | IR7: -0 | IS7: 0 | IT7: 0 | IU7: 2 | IV7: -1 | IW7: 0 | IX7: -7 | IY7: -1 | IZ7: 6 | JA7: -1 | JB7: 11 | JC7: -4 | JD7: -0 | JE7: 26 | JF7: 21 | JG7: 0 | JH7: 0 | JI7: 0.00 | JJ7: 0.00 | JK7: 0 | JL7: 0 | JM7: -1 | JN7: 0.20% | JO7: 1 | JQ7: 0 | JR7: 2 | JS7: -94 | JT7: =IF(ISERROR(IF(VLOOKUP($C7,'Indicateurs Cumulés'!$C$3:$HP$560,192,FALSE)/(VLOOKUP($C7,objectifs!$C$3:$AAB$559,162,FALSE))>=1.5,(VLOOKUP($C7,objectifs!$C$3:$AAB$559,162,FALSE))*1.5,IF(VLOOKUP($C7,'Indicateurs Cumulés'!$C$3:$HP$560,192,FALSE)/(VLOOKUP($C7,objectifs!$C$3:$AAB$559,162,FALSE))<=-0.5,(VLOOKUP($C7,objectifs!$C$3:$AAB$559,162,FALSE))*-0.5,VLOOKUP($C7,'Indicateurs Cumulés'!$C$3:$HP$560,192,FALSE)))),VLOOKUP($C7,'Indicateurs Cumulés'!$C$3:$HP$560,192,FALSE),IF(VLOOKUP($C7,'Indicateurs Cumulés'!$C$3:$HP$560,192,FALSE)/(VLOOKUP($C7,objectifs!$C$3:$AAB$559,162,FALSE))>=1.5,(VLOOKUP($C7,objectifs!$C$3:$AAB$559,162,FALSE))*1.5,IF(VLOOKUP($C7,'Indicateurs Cumulés'!$C$3:$HP$560,192,FALSE)/(VLOOKUP($C7,objectifs!$C$3:$AAB$559,162,FALSE))<=-0.5,(VLOOKUP($C7,objectifs!$C$3:$AAB$559,162,FALSE))*-0.5,VLOOKUP($C7,'Indicateurs Cumulés'!$C$3:$HP$560,192,FALSE)))) -> 8 | JU7: -0 | JV7: 0 | JX7: 0 | JY7: 0 | JZ7: -3 | KA7: 0 | KB7: -3 | KC7: -2 | KD7: 0 | KE7: 0 | KF7: 0 | KG7: -1 | KH7: 0 | KI7: -3 | KJ7: 0 | KK7: 0 | KL7: 0 | KM7: -1 | KN7: 0 | KO7: -3 | KP7: 1 | KT7: 5.51 | KU7: -3 | KV7: 27 | KW7: 0 | KX7: 11 | KY7: 2 | KZ7: 0 | LA7: 20 | LB7: 14 | LC7: 1 | LD7: 0 | LE7: 171.1 | LF7: 18 | LG7: 2 | LH7: 1 | LI7: 0 | LJ7: 0 | LK7: 2 | LL7: 0 | LM7: 158 | LN7: 47.0 | LO7: -15 | LP7: 161 | LQ7: 4 | LR7: 2 | LS7: 50.97 | LT7: 107 | LU7: 86 | LV7: 572 | LW7: 132 | LX7: -38 | LY7: 48 | LZ7: 8.0 | MA7: 0.9 | MB7: 1.7 | MC7: 6.6 | MD7: 0.0 | ME7: 0.2 | MF7: 189 | MH7: 0.40%
A8: 105006 | B8: 200262 | C8: 12 | D8: STRASBOURG STOCKFELD | E8: 12 | F8: STRASBOURG STOCKFELD | G8: 2019-08-31 | H8: 85 | I8: 4.32% | J8: 1.57 | K8: 2019-08-31 | L8: 366 | M8: 3.92% | N8: 2.21 | O8: 32 | P8: 531 | Q8: 0 | R8: 0.14% | S8: 8.73 | T8: 13.14 | U8: 0 | V8: 0.00% | W8: 0 | X8: 0 | Y8: 0.00% | Z8: 0 | AA8: 15 | AB8: 1.33% | AC8: 2.38 | AD8: 0.8 | AE8: 3.3 | AF8: 0.2 | AG8: 25.5 | AH8: 5.9 | AI8: 0.1 | AJ8: 201908 | AK8: 24.94 | AL8: 0.60 | AM8: 2.40% | AN8: 171.40 | AO8: 43.80 | AP8: 26% | AQ8: 2.69 | AR8: 1.57% | AS8: 166.49 | AT8: 2.97 | AU8: 1.8% | AV8: 0.23 | AW8: 0.14% | AX8: 45.48 | AY8: 1.47 | AZ8: 3.24% | BA8: 0.50 | BB8: 1.10% | BC8: 408.30 | BD8: 48.24 | BE8: 11.8% | BF8: 4.02 | BG8: 0.99% | BI8: 0 | BJ8: 0 | BK8: 46 | BL8: 39 | BM8: 1 | BN8: 1.36% | BP8: 12 | BQ8: 51 | BR8: 1 | BS8: 65 | BT8: 2 | BU8: 0 | BV8: -1 | BW8: -5 | BZ8: 0 | CA8: 0 | CB8: 0 | CC8: 0 | CD8: 0 | CE8: -6 | CF8: -3 | CG8: 3 | CH8: 0.6 | CI8: -1 | CJ8: -0 | CK8: 1 | CL8: 1 | CM8: 0.00% | CN8: 0.00% | CO8: 0 | CP8: 0.00% | CQ8: 0.00% | CR8: 0 | CS8: 0.2 | CT8: 0 | CU8: 0.00 | CV8: 0 | CW8: 2 | CX8: 0 | CY8: 1 | CZ8: 100.00% | DA8: 199.62% | DB8: 30 | DC8: 92.48% | DD8: 131.34% | DE8: 7 | DG8: 0.00% | DH8: 0.00% | DI8: 0 | DJ8: -32 | DK8: 0.70% | DL8: 5.33 | DM8: -1 | DN8: 65 | DO8: 0.76% | DP8: 5.33 | DQ8: 3 | DR8: 23 | DS8: 0.85% | DT8: 5.33 | DU8: 1 | DV8: 63 | DW8: 0.40% | DX8: 1.40 | DY8: 0 | DZ8: -125 | EA8: 0.20% | EB8: 5.37 | EC8: -1 | ED8: 26 | EE8: 0.20% | EF8: 5.37 | EG8: 0 | EH8: -16 | EI8: 0.20% | EJ8: 5.37 | EK8: -0 | EL8: 7 | EM8: 0.35% | EN8: 5.33 | EO8: 0 | EP8: 8 | EQ8: 0.10% | ER8: 7.29 | ES8: 0 | ET8: -9 | EU8: 0.20% | EV8: 9.00 | EW8: -0 | EX8: -333 | EY8: 0.00% | EZ8: 8.59 | FA8: 0 | FB8: 0 | FC8: -0.18% | FD8: 0.78 | FE8: 0 | FF8: -284 | FG8: 0.45% | FH8: 8.00 | FI8: -10 | FJ8: 411 | FK8: 0.99% | FL8: 1.00 | FM8: 4 | FN8: -51 | FO8: 0.65% | FP8: 5.00 | FQ8: -2 | FR8: 4 | FS8: 0.40% | FT8: 1.00 | FU8: 0 | FV8: -243 | FW8: 0.20% | FX8: 8.00 | FY8: -4 | FZ8: 118 | GA8: 1.00% | GB8: 5.00 | GC8: 6 | GD8: -492 | GE8: 2 | GF8: -327 | GG8: -5 | GH8: 21 | GI8: 1.00% | GJ8: 5.37 | GK8: 1 | GL8: 20 | GM8: 0 | GN8: 0 | GP8: 0 | GQ8: 0.00% | GR8: 0 | GS8: 0 | GT8: 0 | GU8: 0.45% | GV8: 8.00 | GW8: 0 | GX8: 0 | GY8: 0.99% | GZ8: 1.00 | HA8: 0 | HB8: 0 | HC8: 0.65% | HD8: 5.00 | HE8: 0 | HF8: 0 | HG8: 0.40% | HH8: 1.00 | HI8: 0 | HJ8: 8 | HK8: 1.00% | HL8: 5.00 | HM8: 0 | HN8: -7 | HO8: 210 | HQ8: =IF(ISERROR(IF(VLOOKUP($C8,'Indicateurs Cumulés'!$C$3:$HP$560,188,FALSE)/(VLOOKUP($C8,objectifs!$C$3:$AAB$559,158,FALSE))>=1.5,(VLOOKUP($C8,objectifs!$C$3:$AAB$559,158,FALSE))*1.5,IF(VLOOKUP($C8,'Indicateurs Cumulés'!$C$3:$HP$560,188,FALSE)/(VLOOKUP($C8,objectifs!$C$3:$AAB$559,158,FALSE))<=-0.5,(VLOOKUP($C8,objectifs!$C$3:$AAB$559,158,FALSE))*-0.5,VLOOKUP($C8,'Indicateurs Cumulés'!$C$3:$HP$560,188,FALSE)))),VLOOKUP($C8,'Indicateurs Cumulés'!$C$3:$HP$560,188,FALSE),IF(VLOOKUP($C8,'Indicateurs Cumulés'!$C$3:$HP$560,188,FALSE)/(VLOOKUP($C8,objectifs!$C$3:$AAB$559,158,FALSE))>=1.5,(VLOOKUP($C8,objectifs!$C$3:$AAB$559,158,FALSE))*1.5,IF(VLOOKUP($C8,'Indicateurs Cumulés'!$C$3:$HP$560,188,FALSE)/(VLOOKUP($C8,objectifs!$C$3:$AAB$559,158,FALSE))<=-0.5,(VLOOKUP($C8,objectifs!$C$3:$AAB$559,158,FALSE))*-0.5,VLOOKUP($C8,'Indicateurs Cumulés'!$C$3:$HP$560,188,FALSE)))) -> 21 | HR8: 0 | HT8: 3.1 | HV8: 4.62% | HW8: 0.81% | HX8: 1.75% | HY8: 2 | HZ8: -6 | IA8: 1 | IB8: 3 | IC8: -2 | ID8: 7 | IE8: 16 | IF8: 3 | IG8: 1 | IH8: -14 | II8: -1 | IJ8: 0 | IK8: -2 | IL8: 32 | IM8: -23 | IN8: -3 | IO8: 0 | IP8: -1 | IQ8: 0 | IR8: 0 | IS8: -0 | IT8: 1 | IU8: 2 | IV8: 1 | IW8: 0 | IX8: -9 | IY8: -1 | IZ8: 0 | JA8: -2 | JB8: 21 | JC8: -5 | JD8: -0 | JE8: 34 | JF8: 1 | JG8: 0 | JH8: 0 | JI8: 0.00 | JJ8: 0.00 | JK8: 0 | JL8: 0 | JM8: 0 | JN8: 0.20% | JO8: -0 | JQ8: 0 | JR8: -44 | JS8: -32 | JT8: =IF(ISERROR(IF(VLOOKUP($C8,'Indicateurs Cumulés'!$C$3:$HP$560,192,FALSE)/(VLOOKUP($C8,objectifs!$C$3:$AAB$559,162,FALSE))>=1.5,(VLOOKUP($C8,objectifs!$C$3:$AAB$559,162,FALSE))*1.5,IF(VLOOKUP($C8,'Indicateurs Cumulés'!$C$3:$HP$560,192,FALSE)/(VLOOKUP($C8,objectifs!$C$3:$AAB$559,162,FALSE))<=-0.5,(VLOOKUP($C8,objectifs!$C$3:$AAB$559,162,FALSE))*-0.5,VLOOKUP($C8,'Indicateurs Cumulés'!$C$3:$HP$560,192,FALSE)))),VLOOKUP($C8,'Indicateurs Cumulés'!$C$3:$HP$560,192,FALSE),IF(VLOOKUP($C8,'Indicateurs Cumulés'!$C$3:$HP$560,192,FALSE)/(VLOOKUP($C8,objectifs!$C$3:$AAB$559,162,FALSE))>=1.5,(VLOOKUP($C8,objectifs!$C$3:$AAB$559,162,FALSE))*1.5,IF(VLOOKUP($C8,'Indicateurs Cumulés'!$C$3:$HP$560,192,FALSE)/(VLOOKUP($C8,objectifs!$C$3:$AAB$559,162,FALSE))<=-0.5,(VLOOKUP($C8,objectifs!$C$3:$AAB$559,162,FALSE))*-0.5,VLOOKUP($C8,'Indicateurs Cumulés'!$C$3:$HP$560,192,FALSE)))) -> 8 | JU8: 0 | JV8: -0 | JX8: 0 | JY8: -1 | JZ8: -1 | KA8: 0 | KB8: -2 | KC8: -1 | KD8: 0 | KE8: -1 | KF8: -3 | KG8: 0 | KH8: 0 | KI8: -1 | KJ8: 0 | KK8: -1 | KL8: -1 | KM8: 0 | KN8: 0 | KO8: -4 | KP8: 1 | KT8: 6.40 | KU8: -5 | KV8: -8 | KW8: 0 | KX8: 26 | KY8: 5 | KZ8: 0 | LA8: 30 | LB8: 21 | LC8: -1 | LD8: -0 | LE8: 93.7 | LF8: -13 | LG8: -2 | LH8: -1 | LI8: -4 | LJ8: -6 | LK8: 0 | LL8: 0 | LM8: 88 | LN8: 28.6 | LO8: -1 | LP8: 85 | LQ8: -7 | LR8: -7 | LS8: 30.52 | LT8: 75 | LU8: 46 | LV8: 628 | LW8: 35 | LX8: 13 | LY8: 27 | LZ8: 5.6 | MA8: 0.5 | MB8: 1.9 | MC8: 1.8 | MD8: 0.2 | ME8: 0.1 | MF8: 104 | MH8: 0.16%
A9: 105101 | B9: 200262 | C9: 13 | D9: ILLKIRCH NORD | E9: 7 | F9: ILLKIRCH CENTRE | G9: 2019-08-31 | H9: 64 | I9: 4.32% | J9: 1.57 | K9: 2019-08-31 | L9: 626 | M9: 2.99% | N9: 2.35 | O9: 44 | P9: 4,952 | Q9: 0 | R9: 0.04% | S9: 7.39 | T9: 11.58 | U9: 17 | V9: 2.98% | W9: 2.08 | X9: 191 | Y9: -0.15% | Z9: 7.56 | AA9: 0 | AB9: 0.00% | AC9: 0 | AD9: 12.5 | AE9: 4.6 | AF9: 0 | AG9: 399.2 | AH9: 11.0 | AI9: 10.2 | AJ9: 201908 | AK9: 4.60 | AL9: 0 | AM9: 0.00% | AN9: 305.61 | AO9: 97.39 | AP9: 32% | AQ9: 1.73 | AR9: 0.57% | AS9: 432.77 | AT9: 65.41 | AU9: 15.1% | AV9: 0.73 | AW9: 0.17% | AX9: 59.72 | AY9: 2.40 | AZ9: 4.02% | BA9: 1.03 | BB9: 1.72% | BC9: 802.70 | BD9: 165.21 | BE9: 20.6% | BF9: 3.49 | BG9: 0.43% | BI9: 2 | BJ9: -1 | BK9: 63 | BL9: 114 | BM9: 0 | BN9: 1.25% | BO9: 0.00% | BP9: 13 | BQ9: 22 | BR9: 0 | BS9: 160 | BT9: 4 | BU9: 3 | BV9: 5 | BW9: -12 | BZ9: 0 | CA9: 0 | CB9: 0 | CC9: -2 | CD9: -0 | CE9: 0 | CF9: 0 | CG9: 20 | CH9: 4.0 | CI9: -1 | CJ9: -0 | CK9: 7 | CL9: 7 | CM9: 100.00% | CN9: 200.00% | CO9: 0 | CP9: 0.00% | CQ9: 0.00% | CR9: 0 | CS9: 0 | CT9: 0 | CU9: 0.00 | CV9: 0 | CW9: 3 | CX9: 1 | CY9: 12 | CZ9: 38.72% | DA9: 137.16% | DB9: 70 | DC9: 78.77% | DD9: 158.37% | DE9: 12 | DG9: 0.00% | DH9: 0.00% | DI9: 0 | DJ9: 80 | DK9: 0.70% | DL9: 5.33 | DM9: 3 | DN9: -164 | DO9: 0.76% | DP9: 5.33 | DQ9: -7 | DR9: 16 | DS9: 0.85% | DT9: 5.33 | DU9: 1 | DV9: 87 | DW9: 0.40% | DX9: 1.40 | DY9: 0 | DZ9: -67 | EA9: 0.20% | EB9: 5.37 | EC9: -1 | ED9: 63 | EE9: 0.20% | EF9: 5.37 | EG9: 1 | EH9: -9 | EI9: 0.20% | EJ9: 5.37 | EK9: -0 | EL9: -67 | EM9: 0.35% | EN9: 5.33 | EO9: -1 | EP9: -2 | EQ9: 0.10% | ER9: 6.19 | ES9: -0 | ET9: -4 | EU9: 0.20% | EV9: 9.00 | EW9: -0 | EX9: -5 | EY9: 0.00% | EZ9: 6.95 | FA9: 0 | FB9: 0 | FC9: -0.18% | FD9: 0.78 | FE9: 0 | FF9: -357 | FG9: 0.45% | FH9: 8.00 | FI9: -13 | FJ9: 781 | FK9: 0.43% | FL9: 1.00 | FM9: 3 | FN9: -53 | FO9: 0.65% | FP9: 5.00 | FQ9: -2 | FR9: 16 | FS9: 0.40% | FT9: 1.00 | FU9: 0 | FV9: -162 | FW9: 0.20% | FX9: 8.00 | FY9: -3 | FZ9: 68 | GA9: 1.00% | GB9: 5.00 | GC9: 3 | GD9: -128 | GE9: -2 | GF9: -358 | GG9: -4 | GH9: -324 | GI9: 1.00% | GJ9: 5.37 | GK9: -17 | GL9: -3 | GM9: 0 | GN9: 0 | GP9: 0 | GQ9: 0.00% | GR9: 0 | GS9: 0 | GT9: 38 | GU9: 0.45% | GV9: 8.00 | GW9: 1 | GX9: 100 | GY9: 0.43% | GZ9: 1.00 | HA9: 0 | HB9: 0 | HC9: 0.65% | HD9: 5.00 | HE9: 0 | HF9: 0 | HG9: 0.40% | HH9: 1.00 | HI9: 0 | HJ9: 14 | HK9: 1.00% | HL9: 5.00 | HM9: 1 | HN9: -9 | HO9: 119 | HQ9: =IF(ISERROR(IF(VLOOKUP($C9,'Indicateurs Cumulés'!$C$3:$HP$560,188,FALSE)/(VLOOKUP($C9,objectifs!$C$3:$AAB$559,158,FALSE))>=1.5,(VLOOKUP($C9,objectifs!$C$3:$AAB$559,158,FALSE))*1.5,IF(VLOOKUP($C9,'Indicateurs Cumulés'!$C$3:$HP$560,188,FALSE)/(VLOOKUP($C9,objectifs!$C$3:$AAB$559,158,FALSE))<=-0.5,(VLOOKUP($C9,objectifs!$C$3:$AAB$559,158,FALSE))*-0.5,VLOOKUP($C9,'Indicateurs Cumulés'!$C$3:$HP$560,188,FALSE)))),VLOOKUP($C9,'Indicateurs Cumulés'!$C$3:$HP$560,188,FALSE),IF(VLOOKUP($C9,'Indicateurs Cumulés'!$C$3:$HP$560,188,FALSE)/(VLOOKUP($C9,objectifs!$C$3:$AAB$559,158,FALSE))>=1.5,(VLOOKUP($C9,objectifs!$C$3:$AAB$559,158,FALSE))*1.5,IF(VLOOKUP($C9,'Indicateurs Cumulés'!$C$3:$HP$560,188,FALSE)/(VLOOKUP($C9,objectifs!$C$3:$AAB$559,158,FALSE))<=-0.5,(VLOOKUP($C9,objectifs!$C$3:$AAB$559,158,FALSE))*-0.5,VLOOKUP($C9,'Indicateurs Cumulés'!$C$3:$HP$560,188,FALSE)))) -> -140 | HR9: 0 | HT9: 1.0 | HV9: 3.87% | HW9: 0.29% | HX9: 0.00% | HY9: 17 | HZ9: 27 | IA9: 3 | IB9: -2 | IC9: -7 | ID9: 0 | IE9: 5 | IF9: -7 | IG9: 0 | IH9: -6 | II9: -4 | IJ9: 2 | IK9: -2 | IL9: 27 | IM9: -20 | IN9: -2 | IO9: 2 | IP9: 3 | IQ9: 1 | IR9: -0 | IS9: -0 | IT9: 0 | IU9: 1 | IV9: -3 | IW9: 0 | IX9: -4 | IY9: -4 | IZ9: 3 | JA9: -2 | JB9: 18 | JC9: -4 | JD9: -0 | JE9: 42 | JF9: 1 | JG9: 0 | JH9: 0 | JI9: 0.00 | JJ9: 0.00 | JK9: 0 | JL9: 0 | JM9: -1 | JN9: 0.20% | JO9: 0 | JQ9: 4 | JR9: 38 | JS9: -1 | JT9: =IF(ISERROR(IF(VLOOKUP($C9,'Indicateurs Cumulés'!$C$3:$HP$560,192,FALSE)/(VLOOKUP($C9,objectifs!$C$3:$AAB$559,162,FALSE))>=1.5,(VLOOKUP($C9,objectifs!$C$3:$AAB$559,162,FALSE))*1.5,IF(VLOOKUP($C9,'Indicateurs Cumulés'!$C$3:$HP$560,192,FALSE)/(VLOOKUP($C9,objectifs!$C$3:$AAB$559,162,FALSE))<=-0.5,(VLOOKUP($C9,objectifs!$C$3:$AAB$559,162,FALSE))*-0.5,VLOOKUP($C9,'Indicateurs Cumulés'!$C$3:$HP$560,192,FALSE)))),VLOOKUP($C9,'Indicateurs Cumulés'!$C$3:$HP$560,192,FALSE),IF(VLOOKUP($C9,'Indicateurs Cumulés'!$C$3:$HP$560,192,FALSE)/(VLOOKUP($C9,objectifs!$C$3:$AAB$559,162,FALSE))>=1.5,(VLOOKUP($C9,objectifs!$C$3:$AAB$559,162,FALSE))*1.5,IF(VLOOKUP($C9,'Indicateurs Cumulés'!$C$3:$HP$560,192,FALSE)/(VLOOKUP($C9,objectifs!$C$3:$AAB$559,162,FALSE))<=-0.5,(VLOOKUP($C9,objectifs!$C$3:$AAB$559,162,FALSE))*-0.5,VLOOKUP($C9,'Indicateurs Cumulés'!$C$3:$HP$560,192,FALSE)))) -> -3 | JU9: -0 | JV9: 0 | JX9: 0 | JY9: 1 | JZ9: -0 | KA9: -0 | KB9: 1 | KC9: 1 | KD9: 0 | KE9: 1 | KF9: 1 | KG9: 0 | KH9: 0 | KI9: 1 | KJ9: 0 | KK9: 1 | KL9: 0 | KM9: 0 | KN9: 0 | KO9: 2 | KP9: 0 | KT9: 3.29 | KU9: 3 | KV9: 4 | KW9: 0 | KX9: 7 | KY9: 1 | KZ9: 0 | LA9: 27 | LB9: 19 | LC9: 0 | LD9: 0 | LE9: 183.2 | LF9: 0 | LG9: -2 | LH9: -1 | LI9: -2 | LJ9: -3 | LK9: 6 | LL9: 1 | LM9: 162 | LN9: 162.6 | LO9: -13 | LP9: 177 | LQ9: -9 | LR9: -4 | LS9: 183.89 | LT9: 71 | LU9: 106 | LV9: 355 | LW9: 68 | LX9: 211 | LY9: 20 | LZ9: 5.3 | MA9: 1.1 | MB9: 1.1 | MC9: 3.4 | MD9: 3.2 | ME9: 0.1 | MF9: 197 | MH9: 0.25%
A10: 105101 | B10: 200262 | C10: 14 | D10: OSTWALD | E10: 15 | F10: LINGOLSHEIM | G10: 2019-08-31 | H10: 70 | I10: 4.32% | J10: 1.57 | K10: 2019-08-31 | L10: 542 | M10: 3.02% | N10: 2.50 | O10: 41 | P10: 2,211 | Q10: 0 | R10: 0.20% | S10: 6.96 | T10: 10.70 | U10: 10 | V10: 2.18% | W10: 0.96 | X10: 212 | Y10: -0.06% | Z10: 6.34 | AA10: 483 | AB10: -0.16% | AC10: 4.38 | AD10: 7.1 | AE10: 4.6 | AF10: 0.5 | AG10: 44.0 | AH10: 9.0 | AI10: 4.4 | AJ10: 201908 | AK10: 0 | AL10: 0 | AM10: 0.00% | AN10: 114.49 | AO10: 33.93 | AP10: 30% | AQ10: 0.99 | AR10: 0.86% | AS10: 511.64 | AT10: 81.60 | AU10: 15.9% | AV10: 0.07 | AW10: 0.01% | AX10: 48.58 | AY10: 1.60 | AZ10: 3.29% | BA10: 0.43 | BB10: 0.88% | BC10: 674.71 | BD10: 117.12 | BE10: 17.4% | BF10: 1.49 | BG10: 0.22% | BI10: 0 | BJ10: 1 | BK10: 58 | BL10: 81 | BM10: -3 | BN10: 1.08% | BO10: 0.00% | BP10: 14 | BQ10: 58 | BR10: 1 | BS10: 64 | BT10: 2 | BU10: 1 | BV10: 1 | BW10: -10 | BZ10: 0 | CA10: 0 | CB10: 0 | CC10: 0 | CD10: 0 | CE10: -6 | CF10: -3 | CG10: 7 | CH10: 1.4 | CI10: -4 | CJ10: -1 | CK10: 1 | CL10: 1 | CM10: 100.00% | CN10: 100.00% | CO10: 0 | CP10: 0.00% | CQ10: 0.00% | CR10: 1 | CS10: 0.5 | CT10: 1 | CU10: 0.00 | CV10: 0 | CW10: 2 | CX10: 1 | CY10: 7 | CZ10: 61.07% | DA10: 141.03% | DB10: 39 | DC10: 93.25% | DD10: 124.91% | DE10: 10 | DG10: 0.00% | DH10: 0.00% | DI10: 0 | DJ10: 177 | DK10: 0.70% | DL10: 5.33 | DM10: 7 | DN10: 211 | DO10: 0.76% | DP10: 5.33 | DQ10: 9 | DR10: -74 | DS10: 0.85% | DT10: 5.33 | DU10: -3 | DV10: 123 | DW10: 0.40% | DX10: 1.40 | DY10: 1 | DZ10: -211 | EA10: 0.20% | EB10: 5.37 | EC10: -2 | ED10: 75 | EE10: 0.20% | EF10: 5.37 | EG10: 1 | EH10: -5 | EI10: 0.20% | EJ10: 5.37 | EK10: -0 | EL10: 15 | EM10: 0.35% | EN10: 5.33 | EO10: 0 | EP10: 2 | EQ10: 0.10% | ER10: 8.59 | ES10: 0 | ET10: 145 | EU10: 0.20% | EV10: 9.00 | EW10: 3 | EX10: -181 | EY10: 0.00% | EZ10: 2.99 | FA10: 0 | FB10: 0 | FC10: -0.18% | FD10: 0.78 | FE10: 0 | FF10: 357 | FG10: 0.45% | FH10: 8.00 | FI10: 13 | FJ10: 603 | FK10: 0.22% | FL10: 1.00 | FM10: 1 | FN10: -27 | FO10: 0.65% | FP10: 5.00 | FQ10: -1 | FR10: 10 | FS10: 0.40% | FT10: 1.00 | FU10: 0 | FV10: -142 | FW10: 0.20% | FX10: 8.00 | FY10: -2 | FZ10: -34 | GA10: 1.00% | GB10: 5.00 | GC10: -2 | GD10: 50 | GE10: 8 | GF10: 714 | GG10: 31 | GH10: -109 | GI10: 1.00% | GJ10: 5.37 | GK10: -6 | GL10: -207 | GM10: 0 | GN10: 0 | GP10: 0 | GQ10: 0.00% | GR10: 0 | GS10: 0 | GT10: 403 | GU10: 0.45% | GV10: 8.00 | GW10: 14 | GX10: 403 | GY10: 0.22% | GZ10: 1.00 | HA10: 1 | HB10: 0 | HC10: 0.65% | HD10: 5.00 | HE10: 0 | HF10: 0 | HG10: 0.40% | HH10: 1.00 | HI10: 0 | HJ10: -20 | HK10: 1.00% | HL10: 5.00 | HM10: -1 | HN10: -9 | HO10: 119 | HQ10: =IF(ISERROR(IF(VLOOKUP($C10,'Indicateurs Cumulés'!$C$3:$HP$560,188,FALSE)/(VLOOKUP($C10,objectifs!$C$3:$AAB$559,158,FALSE))>=1.5,(VLOOKUP($C10,objectifs!$C$3:$AAB$559,158,FALSE))*1.5,IF(VLOOKUP($C10,'Indicateurs Cumulés'!$C$3:$HP$560,188,FALSE)/(VLOOKUP($C10,objectifs!$C$3:$AAB$559,158,FALSE))<=-0.5,(VLOOKUP($C10,objectifs!$C$3:$AAB$559,158,FALSE))*-0.5,VLOOKUP($C10,'Indicateurs Cumulés'!$C$3:$HP$560,188,FALSE)))),VLOOKUP($C10,'Indicateurs Cumulés'!$C$3:$HP$560,188,FALSE),IF(VLOOKUP($C10,'Indicateurs Cumulés'!$C$3:$HP$560,188,FALSE)/(VLOOKUP($C10,objectifs!$C$3:$AAB$559,158,FALSE))>=1.5,(VLOOKUP($C10,objectifs!$C$3:$AAB$559,158,FALSE))*1.5,IF(VLOOKUP($C10,'Indicateurs Cumulés'!$C$3:$HP$560,188,FALSE)/(VLOOKUP($C10,objectifs!$C$3:$AAB$559,158,FALSE))<=-0.5,(VLOOKUP($C10,objectifs!$C$3:$AAB$559,158,FALSE))*-0.5,VLOOKUP($C10,'Indicateurs Cumulés'!$C$3:$HP$560,188,FALSE)))) -> -109 | HR10: 0 | HT10: 1.0 | HV10: 3.78% | HW10: 0.52% | HX10: -0.14% | HY10: 7 | HZ10: 6 | IA10: -1 | IB10: 0 | IC10: -5 | ID10: 1 | IE10: -1 | IF10: 0 | IG10: -1 | IH10: -5 | II10: -7 | IJ10: 2 | IK10: 4 | IL10: 6 | IM10: -13 | IN10: 0 | IO10: 1 | IP10: 1 | IQ10: -0 | IR10: 0 | IS10: -0 | IT10: 0 | IU10: -0 | IV10: 0 | IW10: -0 | IX10: -3 | IY10: -7 | IZ10: 3 | JA10: 4 | JB10: 4 | JC10: -3 | JD10: 0 | JE10: 12 | JF10: -1 | JG10: 0 | JH10: 0 | JI10: 0.00 | JJ10: 0.00 | JK10: 0 | JL10: 0 | JM10: 0 | JN10: 0.20% | JO10: 0 | JQ10: -0 | JR10: -52 | JS10: -32 | JT10: =IF(ISERROR(IF(VLOOKUP($C10,'Indicateurs Cumulés'!$C$3:$HP$560,192,FALSE)/(VLOOKUP($C10,objectifs!$C$3:$AAB$559,162,FALSE))>=1.5,(VLOOKUP($C10,objectifs!$C$3:$AAB$559,162,FALSE))*1.5,IF(VLOOKUP($C10,'Indicateurs Cumulés'!$C$3:$HP$560,192,FALSE)/(VLOOKUP($C10,objectifs!$C$3:$AAB$559,162,FALSE))<=-0.5,(VLOOKUP($C10,objectifs!$C$3:$AAB$559,162,FALSE))*-0.5,VLOOKUP($C10,'Indicateurs Cumulés'!$C$3:$HP$560,192,FALSE)))),VLOOKUP($C10,'Indicateurs Cumulés'!$C$3:$HP$560,192,FALSE),IF(VLOOKUP($C10,'Indicateurs Cumulés'!$C$3:$HP$560,192,FALSE)/(VLOOKUP($C10,objectifs!$C$3:$AAB$559,162,FALSE))>=1.5,(VLOOKUP($C10,objectifs!$C$3:$AAB$559,162,FALSE))*1.5,IF(VLOOKUP($C10,'Indicateurs Cumulés'!$C$3:$HP$560,192,FALSE)/(VLOOKUP($C10,objectifs!$C$3:$AAB$559,162,FALSE))<=-0.5,(VLOOKUP($C10,objectifs!$C$3:$AAB$559,162,FALSE))*-0.5,VLOOKUP($C10,'Indicateurs Cumulés'!$C$3:$HP$560,192,FALSE)))) -> -3 | JU10: 0 | JV10: 0 | JX10: -0 | JY10: -2 | JZ10: -1 | KA10: -0 | KB10: -3 | KC10: 0 | KD10: 0 | KE10: 0 | KF10: -2 | KG10: 2 | KH10: 0 | KI10: 0 | KJ10: 0 | KK10: 0 | KL10: -0 | KM10: 1 | KN10: 0 | KO10: -1 | KP10: 1 | KT10: 1.30 | KU10: 0 | KV10: 11 | KW10: 0 | KX10: 9 | KY10: 2 | KZ10: 0 | LA10: 12 | LB10: 8 | LC10: 0 | LD10: 0 | LE10: 157.0 | LF10: -10 | LG10: -1 | LH10: -1 | LI10: -3 | LJ10: -4 | LK10: 2 | LL10: 0 | LM10: 150 | LN10: 152.0 | LO10: 33 | LP10: 136 | LQ10: -9 | LR10: -5 | LS10: 158.88 | LT10: 62 | LU10: 48 | LV10: 374 | LW10: 33 | LX10: 24 | LY10: 16 | LZ10: 4.7 | MA10: 0.5 | MB10: 1.1 | MC10: 1.7 | MD10: 0.4 | ME10: 0.1 | MF10: 165 | MH10: 0.32%
A11: 105101 | B11: 200262 | C11: 15 | D11: LINGOLSHEIM | E11: 15 | F11: LINGOLSHEIM | G11: 2019-08-31 | H11: 99 | I11: 4.32% | J11: 1.57 | K11: 2019-08-31 | L11: 1,046 | M11: 2.96% | N11: 2.40 | O11: 74 | P11: 2,516 | Q11: 0 | R11: 0.21% | S11: 7.31 | T11: 11.45 | U11: 30 | V11: 2.87% | W11: 1.78 | X11: 180 | Y11: 0.03% | Z11: 6.10 | AA11: 209 | AB11: 1.21% | AC11: 2.66 | AD11: 8.1 | AE11: 11.9 | AF11: 1.4 | AG11: 806.5 | AH11: 17.1 | AI11: 4.8 | AJ11: 201908 | AK11: 0 | AL11: 0 | AM11: 0.00% | AN11: 287.18 | AO11: 117.73 | AP11: 41% | AQ11: 2.09 | AR11: 0.73% | AS11: 1,231.64 | AT11: 164.00 | AU11: 13.3% | AV11: 1.23 | AW11: 0.10% | AX11: 66.22 | AY11: 1.15 | AZ11: 1.74% | BA11: 1.33 | BB11: 2.00% | BC11: 1,585.04 | BD11: 282.88 | BE11: 17.8% | BF11: 4.65 | BG11: 0.29% | BI11: 2 | BJ11: 2 | BK11: 106 | BL11: 130 | BM11: 9 | BN11: 1.08% | BO11: 0.00% | BP11: 15 | BQ11: 145 | BR11: 3 | BS11: 140 | BT11: 4 | BU11: 2 | BV11: 3 | BW11: -11 | BZ11: 0 | CA11: 0 | CB11: 0 | CC11: 1 | CD11: 0 | CE11: 1 | CF11: 1 | CG11: 16 | CH11: 3.2 | CI11: -24 | CJ11: -5 | CK11: 4 | CL11: 4 | CM11: 100.00% | CN11: 100.00% | CO11: 0 | CP11: 0.00% | CQ11: 0.00% | CR11: 0 | CS11: 1.4 | CT11: 0 | CU11: 0.00 | CV11: 0 | CW11: 4 | CX11: 1 | CY11: 8 | CZ11: 63.36% | DA11: 152.76% | DB11: 74 | DC11: 94.73% | DD11: 129.14% | DE11: 21 | DG11: 38.99% | DH11: 158.58% | DI11: 1 | DJ11: 514 | DK11: 0.70% | DL11: 5.33 | DM11: 19 | DN11: 113 | DO11: 0.76% | DP11: 5.33 | DQ11: 5 | DR11: 5 | DS11: 0.85% | DT11: 5.33 | DU11: 0 | DV11: 554 | DW11: 0.40% | DX11: 1.40 | DY11: 3 | DZ11: -216 | EA11: 0.20% | EB11: 5.37 | EC11: -2 | ED11: 27 | EE11: 0.20% | EF11: 5.37 | EG11: 0 | EH11: -35 | EI11: 0.20% | EJ11: 5.37 | EK11: -0 | EL11: -12 | EM11: 0.35% | EN11: 5.33 | EO11: -0 | EP11: -2 | EQ11: 0.10% | ER11: 8.80 | ES11: -0 | ET11: -39 | EU11: 0.20% | EV11: 9.00 | EW11: -1 | EX11: -180 | EY11: 0.00% | EZ11: 8.59 | FA11: 0 | FB11: 0 | FC11: -0.18% | FD11: 0.78 | FE11: 0 | FF11: 609 | FG11: 0.45% | FH11: 8.00 | FI11: 22 | FJ11: 1,489 | FK11: 0.29% | FL11: 1.00 | FM11: 4 | FN11: -36 | FO11: 0.65% | FP11: 5.00 | FQ11: -1 | FR11: 41 | FS11: 0.40% | FT11: 1.00 | FU11: 0 | FV11: -241 | FW11: 0.20% | FX11: 8.00 | FY11: -4 | FZ11: -102 | GA11: 1.00% | GB11: 5.00 | GC11: -5 | GD11: 292 | GE11: 12 | GF11: 623 | GG11: 35 | GH11: 2 | GI11: 1.00% | GJ11: 5.37 | GK11: 0 | GL11: -148 | GM11: 0 | GN11: 0 | GP11: 0 | GQ11: 0.00% | GR11: 0 | GS11: 0 | GT11: -6 | GU11: 0.45% | GV11: 8.00 | GW11: -0 | GX11: 0 | GY11: 0.29% | GZ11: 1.00 | HA11: 0 | HB11: 0 | HC11: 0.65% | HD11: 5.00 | HE11: 0 | HF11: 0 | HG11: 0.40% | HH11: 1.00 | HI11: 0 | HJ11: 55 | HK11: 1.00% | HL11: 5.00 | HM11: 3 | HN11: -11 | HO11: 226 | HQ11: =IF(ISERROR(IF(VLOOKUP($C11,'Indicateurs Cumulés'!$C$3:$HP$560,188,FALSE)/(VLOOKUP($C11,objectifs!$C$3:$AAB$559,158,FALSE))>=1.5,(VLOOKUP($C11,objectifs!$C$3:$AAB$559,158,FALSE))*1.5,IF(VLOOKUP($C11,'Indicateurs Cumulés'!$C$3:$HP$560,188,FALSE)/(VLOOKUP($C11,objectifs!$C$3:$AAB$559,158,FALSE))<=-0.5,(VLOOKUP($C11,objectifs!$C$3:$AAB$559,158,FALSE))*-0.5,VLOOKUP($C11,'Indicateurs Cumulés'!$C$3:$HP$560,188,FALSE)))),VLOOKUP($C11,'Indicateurs Cumulés'!$C$3:$HP$560,188,FALSE),IF(VLOOKUP($C11,'Indicateurs Cumulés'!$C$3:$HP$560,188,FALSE)/(VLOOKUP($C11,objectifs!$C$3:$AAB$559,158,FALSE))>=1.5,(VLOOKUP($C11,objectifs!$C$3:$AAB$559,158,FALSE))*1.5,IF(VLOOKUP($C11,'Indicateurs Cumulés'!$C$3:$HP$560,188,FALSE)/(VLOOKUP($C11,objectifs!$C$3:$AAB$559,158,FALSE))<=-0.5,(VLOOKUP($C11,objectifs!$C$3:$AAB$559,158,FALSE))*-0.5,VLOOKUP($C11,'Indicateurs Cumulés'!$C$3:$HP$560,188,FALSE)))) -> 2 | HR11: 0 | HT11: 4.5 | HV11: 3.87% | HW11: 0.68% | HX11: 1.70% | HY11: 8 | HZ11: 16 | IA11: -1 | IB11: 6 | IC11: 7 | ID11: 8 | IE11: 13 | IF11: -30 | IG11: -5 | IH11: -14 | II11: -1 | IJ11: 2 | IK11: 3 | IL11: 57 | IM11: -47 | IN11: -1 | IO11: 1 | IP11: 2 | IQ11: -0 | IR11: 0 | IS11: 0 | IT11: 1 | IU11: 1 | IV11: -13 | IW11: -0 | IX11: -9 | IY11: -1 | IZ11: 3 | JA11: 3 | JB11: 37 | JC11: -10 | JD11: -0 | JE11: 74 | JF11: 13 | JG11: 0 | JH11: 0 | JI11: 0.00 | JJ11: 0.00 | JK11: 0 | JL11: 0 | JM11: -3 | JN11: 0.20% | JO11: 1 | JQ11: 3 | JR11: -95 | JS11: -75 | JT11: =IF(ISERROR(IF(VLOOKUP($C11,'Indicateurs Cumulés'!$C$3:$HP$560,192,FALSE)/(VLOOKUP($C11,objectifs!$C$3:$AAB$559,162,FALSE))>=1.5,(VLOOKUP($C11,objectifs!$C$3:$AAB$559,162,FALSE))*1.5,IF(VLOOKUP($C11,'Indicateurs Cumulés'!$C$3:$HP$560,192,FALSE)/(VLOOKUP($C11,objectifs!$C$3:$AAB$559,162,FALSE))<=-0.5,(VLOOKUP($C11,objectifs!$C$3:$AAB$559,162,FALSE))*-0.5,VLOOKUP($C11,'Indicateurs Cumulés'!$C$3:$HP$560,192,FALSE)))),VLOOKUP($C11,'Indicateurs Cumulés'!$C$3:$HP$560,192,FALSE),IF(VLOOKUP($C11,'Indicateurs Cumulés'!$C$3:$HP$560,192,FALSE)/(VLOOKUP($C11,objectifs!$C$3:$AAB$559,162,FALSE))>=1.5,(VLOOKUP($C11,objectifs!$C$3:$AAB$559,162,FALSE))*1.5,IF(VLOOKUP($C11,'Indicateurs Cumulés'!$C$3:$HP$560,192,FALSE)/(VLOOKUP($C11,objectifs!$C$3:$AAB$559,162,FALSE))<=-0.5,(VLOOKUP($C11,objectifs!$C$3:$AAB$559,162,FALSE))*-0.5,VLOOKUP($C11,'Indicateurs Cumulés'!$C$3:$HP$560,192,FALSE)))) -> -3 | JU11: -0 | JV11: 0 | JX11: 0 | JY11: -3 | JZ11: -2 | KA11: -0 | KB11: -6 | KC11: -1 | KD11: 0 | KE11: 0 | KF11: -1 | KG11: 1 | KH11: 0 | KI11: -1 | KJ11: 0 | KK11: 0 | KL11: -0 | KM11: 1 | KN11: 0 | KO11: 5 | KP11: 5 | KT11: 5.10 | KU11: -1 | KV11: 7 | KW11: 0 | KX11: 64 | KY11: 13 | KZ11: 0 | LA11: 62 | LB11: 43 | LC11: 1 | LD11: 0 | LE11: 346.3 | LF11: 9 | LG11: 0 | LH11: 0 | LI11: -2 | LJ11: -3 | LK11: -1 | LL11: -0 | LM11: 321 | LN11: 71.3 | LO11: 46 | LP11: 245 | LQ11: -11 | LR11: -3 | LS11: 76.85 | LT11: 123 | LU11: 149 | LV11: 836 | LW11: 148 | LX11: 111 | LY11: 40 | LZ11: 9.2 | MA11: 1.5 | MB11: 2.5 | MC11: 7.4 | MD11: 1.7 | ME11: 0.2 | MF11: 369 | MH11: 0.32%
A12: 105006 | B12: 200262 | C12: 19 | D12: STRASBOURG ANVERS | E12: 19 | F12: STRASBOURG ANVERS | G12: 2019-08-31 | H12: 86 | I12: 4.32% | J12: 1.57 | K12: 2019-08-31 | L12: 911 | M12: 2.76% | N12: 2.63 | O12: 66 | P12: 7,829 | Q12: 0 | R12: 0.06% | S12: 8.05 | T12: 12.08 | U12: 112 | V12: 3.58% | W12: 2.06 | X12: 1,339 | Y12: -0.06% | Z12: 7.92 | AA12: 2,718 | AB12: 1.72% | AC12: 6.16 | AD12: 16.7 | AE12: 17.0 | AF12: 8.1 | AG12: 205.9 | AH12: 12.9 | AI12: 11.8 | AJ12: 201908 | AK12: 25.00 | AL12: 0.60 | AM12: 2.40% | AN12: 413.50 | AO12: 67.17 | AP12: 16% | AQ12: 3.61 | AR12: 0.87% | AS12: 998.07 | AT12: 24.44 | AU12: 2.4% | AV12: 1.64 | AW12: 0.16% | AX12: 102.88 | AY12: 9.15 | AZ12: 8.89% | BA12: 1.47 | BB12: 1.43% | BC12: 1,539.45 | BD12: 100.76 | BE12: 6.5% | BF12: 7.31 | BG12: 0.48% | BI12: 11 | BJ12: 27 | BK12: 94 | BL12: 225 | BM12: 305 | BN12: 1.32% | BO12: 0.00% | BP12: 19 | BQ12: 293 | BR12: 6 | BS12: 174 | BT12: 5 | BU12: 3 | BV12: 2 | BW12: -16 | BZ12: 0 | CA12: 2 | CB12: 1 | CC12: -1 | CD12: -0 | CE12: -4 | CF12: -2 | CG12: 23 | CH12: 4.6 | CI12: -6 | CJ12: -1 | CK12: 10 | CL12: 10 | CM12: 100.00% | CN12: 141.07% | CO12: 2 | CP12: 135.90% | CQ12: 58.11% | CR12: 26 | CS12: 8.1 | CT12: 2 | CU12: 0.43 | CV12: 1 | CW12: 5 | CX12: 6 | CY12: 17 | CZ12: 48.52% | DA12: 139.80% | DB12: 147 | DC12: 61.17% | DD12: 178.78% | DE12: 17 | DG12: 30.13% | DH12: 100.00% | DI12: 8 | DJ12: 119 | DK12: 0.70% | DL12: 5.33 | DM12: 4 | DN12: 267 | DO12: 0.76% | DP12: 5.33 | DQ12: 11 | DR12: -42 | DS12: 0.85% | DT12: 5.33 | DU12: -2 | DV12: 1,129 | DW12: 0.40% | DX12: 1.40 | DY12: 6 | DZ12: -350 | EA12: 0.20% | EB12: 5.37 | EC12: -4 | ED12: 18 | EE12: 0.20% | EF12: 5.37 | EG12: 0 | EH12: -23 | EI12: 0.20% | EJ12: 5.37 | EK12: -0 | EL12: -1 | EM12: 0.35% | EN12: 5.33 | EO12: -0 | EP12: -27 | EQ12: 0.10% | ER12: 7.80 | ES12: -0 | ET12: -115 | EU12: 0.20% | EV12: 9.00 | EW12: -2 | EX12: -371 | EY12: 0.00% | EZ12: 8.59 | FA12: 0 | FB12: 0 | FC12: -0.18% | FD12: 0.78 | FE12: 0 | FF12: -498 | FG12: 0.45% | FH12: 8.00 | FI12: -18 | FJ12: 1,708 | FK12: 0.48% | FL12: 1.00 | FM12: 8 | FN12: -68 | FO12: 0.65% | FP12: 5.00 | FQ12: -2 | FR12: 204 | FS12: 0.40% | FT12: 1.00 | FU12: 1 | FV12: -617 | FW12: 0.20% | FX12: 8.00 | FY12: -10 | FZ12: 232 | GA12: 1.00% | GB12: 5.00 | GC12: 12 | GD12: 728 | GE12: 32 | GF12: -573 | GG12: -0 | GH12: -286 | GI12: 1.00% | GJ12: 5.37 | GK12: -15 | GL12: -629 | GM12: 0 | GN12: 0 | GP12: 72 | GQ12: 1.05% | GR12: 1.62 | GS12: 1 | GT12: -27 | GU12: 0.45% | GV12: 8.00 | GW12: -1 | GX12: 0 | GY12: 0.48% | GZ12: 1.00 | HA12: 0 | HB12: 0 | HC12: 0.65% | HD12: 5.00 | HE12: 0 | HF12: 0 | HG12: 0.40% | HH12: 1.00 | HI12: 0 | HJ12: 20 | HK12: 1.00% | HL12: 5.00 | HM12: 1 | HN12: -21 | HO12: 322 | HQ12: =IF(ISERROR(IF(VLOOKUP($C12,'Indicateurs Cumulés'!$C$3:$HP$560,188,FALSE)/(VLOOKUP($C12,objectifs!$C$3:$AAB$559,158,FALSE))>=1.5,(VLOOKUP($C12,objectifs!$C$3:$AAB$559,158,FALSE))*1.5,IF(VLOOKUP($C12,'Indicateurs Cumulés'!$C$3:$HP$560,188,FALSE)/(VLOOKUP($C12,objectifs!$C$3:$AAB$559,158,FALSE))<=-0.5,(VLOOKUP($C12,objectifs!$C$3:$AAB$559,158,FALSE))*-0.5,VLOOKUP($C12,'Indicateurs Cumulés'!$C$3:$HP$560,188,FALSE)))),VLOOKUP($C12,'Indicateurs Cumulés'!$C$3:$HP$560,188,FALSE),IF(VLOOKUP($C12,'Indicateurs Cumulés'!$C$3:$HP$560,188,FALSE)/(VLOOKUP($C12,objectifs!$C$3:$AAB$559,158,FALSE))>=1.5,(VLOOKUP($C12,objectifs!$C$3:$AAB$559,158,FALSE))*1.5,IF(VLOOKUP($C12,'Indicateurs Cumulés'!$C$3:$HP$560,188,FALSE)/(VLOOKUP($C12,objectifs!$C$3:$AAB$559,158,FALSE))<=-0.5,(VLOOKUP($C12,objectifs!$C$3:$AAB$559,158,FALSE))*-0.5,VLOOKUP($C12,'Indicateurs Cumulés'!$C$3:$HP$560,188,FALSE)))) -> -286 | HR12: 0 | HT12: 4.4 | HV12: 3.58% | HW12: 0.34% | HX12: 1.81% | HY12: 15 | HZ12: 9 | IA12: 4 | IB12: 5 | IC12: 7 | ID12: 1 | IE12: 34 | IF12: -22 | IG12: -5 | IH12: -8 | II12: -2 | IJ12: 0 | IK12: 24 | IL12: 25 | IM12: -45 | IN12: 0 | IO12: 2 | IP12: 1 | IQ12: 1 | IR12: 0 | IS12: 0 | IT12: 0 | IU12: 4 | IV12: -10 | IW12: -0 | IX12: -5 | IY12: -2 | IZ12: 0 | JA12: 24 | JB12: 16 | JC12: -10 | JD12: 0 | JE12: 80 | JF12: 344 | JG12: 0 | JH12: 0 | JI12: 0.00 | JJ12: 0.00 | JK12: 0 | JL12: 0 | JM12: -38 | JN12: 0.20% | JO12: -51 | JQ12: -19 | JR12: 509 | JS12: 181 | JT12: =IF(ISERROR(IF(VLOOKUP($C12,'Indicateurs Cumulés'!$C$3:$HP$560,192,FALSE)/(VLOOKUP($C12,objectifs!$C$3:$AAB$559,162,FALSE))>=1.5,(VLOOKUP($C12,objectifs!$C$3:$AAB$559,162,FALSE))*1.5,IF(VLOOKUP($C12,'Indicateurs Cumulés'!$C$3:$HP$560,192,FALSE)/(VLOOKUP($C12,objectifs!$C$3:$AAB$559,162,FALSE))<=-0.5,(VLOOKUP($C12,objectifs!$C$3:$AAB$559,162,FALSE))*-0.5,VLOOKUP($C12,'Indicateurs Cumulés'!$C$3:$HP$560,192,FALSE)))),VLOOKUP($C12,'Indicateurs Cumulés'!$C$3:$HP$560,192,FALSE),IF(VLOOKUP($C12,'Indicateurs Cumulés'!$C$3:$HP$560,192,FALSE)/(VLOOKUP($C12,objectifs!$C$3:$AAB$559,162,FALSE))>=1.5,(VLOOKUP($C12,objectifs!$C$3:$AAB$559,162,FALSE))*1.5,IF(VLOOKUP($C12,'Indicateurs Cumulés'!$C$3:$HP$560,192,FALSE)/(VLOOKUP($C12,objectifs!$C$3:$AAB$559,162,FALSE))<=-0.5,(VLOOKUP($C12,objectifs!$C$3:$AAB$559,162,FALSE))*-0.5,VLOOKUP($C12,'Indicateurs Cumulés'!$C$3:$HP$560,192,FALSE)))) -> -3 | JU12: -1 | JV12: -3 | JX12: -1 | JY12: 16 | JZ12: 6 | KA12: -0 | KB12: 18 | KC12: 2 | KD12: 1 | KE12: -2 | KF12: -2 | KG12: -1 | KH12: 3 | KI12: 3 | KJ12: 1 | KK12: -1 | KL12: -0 | KM12: -1 | KN12: 0 | KO12: 10 | KP12: 10 | KT12: 4.98 | KU12: 1 | KV12: -46 | KW12: 0 | KX12: 81 | KY12: 16 | KZ12: 0 | LA12: 49 | LB12: 34 | LC12: 0 | LD12: 0 | LE12: 692.6 | LF12: 371 | LG12: 0 | LH12: 0 | LI12: -1 | LJ12: -1 | LK12: -1 | LL12: -0 | LM12: 657 | LN12: 149.5 | LO12: 16 | LP12: 624 | LQ12: -21 | LR12: -2 | LS12: 157.62 | LT12: 158 | LU12: 113 | LV12: 694 | LW12: 115 | LX12: 129 | LY12: 25 | LZ12: 11.9 | MA12: 1.1 | MB12: 2.1 | MC12: 5.8 | MD12: 1.9 | ME12: 0.1 | MF12: 715 | MH12: 0.21%
A13: 105006 | B13: 200262 | C13: 20 | D13: STRASBOURG ROBERTSAU | E13: 20 | F13: STRASBOURG ROBERTSAU | G13: 2019-08-31 | H13: 105 | I13: 4.32% | J13: 1.57 | K13: 2019-08-31 | L13: 1,549 | M13: 2.84% | N13: 2.57 | O13: 113 | P13: 6,633 | Q13: 0 | R13: 0.05% | S13: 7.38 | T13: 11.44 | U13: -23 | V13: 2.83% | W13: 2.13 | X13: 1,244 | Y13: 0.13% | Z13: 8.66 | AA13: 215 | AB13: 0.67% | AC13: 3.36 | AD13: 16.5 | AE13: 17.0 | AF13: 0.9 | AG13: 181.0 | AH13: 23.1 | AI13: 11.2 | AJ13: 201908 | AK13: 0 | AL13: 0 | AM13: 0.00% | AN13: 197.07 | AO13: 39.11 | AP13: 20% | AQ13: 2.44 | AR13: 1.24% | AS13: 2,208.77 | AT13: 558.07 | AU13: 25.3% | AV13: 4.22 | AW13: 0.19% | AX13: 77.12 | AY13: 13.08 | AZ13: 16.96% | BA13: 1.14 | BB13: 1.48% | BC13: 2,482.96 | BD13: 610.25 | BE13: 24.6% | BF13: 7.81 | BG13: 0.31% | BI13: -2 | BJ13: 62 | BK13: 158 | BL13: 165 | BM13: 11 | BN13: 1.31% | BO13: 0.00% | BP13: 20 | BQ13: 126 | BR13: 3 | BS13: 117 | BT13: 3 | BU13: 1 | BV13: -3 | BW13: -5 | BZ13: 0 | CA13: 0 | CB13: 0 | CC13: 1 | CD13: 0 | CE13: -2 | CF13: -1 | CG13: 10 | CH13: 2.0 | CI13: -11 | CJ13: -2 | CK13: 2 | CL13: 2 | CM13: 100.00% | CN13: 53.85% | CO13: -0 | CP13: 179.19% | CQ13: 79.48% | CR13: 44 | CS13: 0.9 | CT13: 2 | CU13: 0.40 | CV13: 0 | CW13: 5 | CX13: 2 | CY13: 16 | CZ13: 43.86% | DA13: 145.29% | DB13: 111 | DC13: 91.05% | DD13: 137.68% | DE13: 32 | DG13: 100.00% | DH13: 100.00% | DI13: 1 | DJ13: -178 | DK13: 0.70% | DL13: 5.33 | DM13: -7 | DN13: -673 | DO13: 0.76% | DP13: 5.33 | DQ13: -27 | DR13: -34 | DS13: 0.85% | DT13: 5.33 | DU13: -2 | DV13: 91 | DW13: 0.40% | DX13: 1.40 | DY13: 1 | DZ13: -405 | EA13: 0.20% | EB13: 5.37 | EC13: -4 | ED13: -147 | EE13: 0.20% | EF13: 5.37 | EG13: -2 | EH13: -39 | EI13: 0.20% | EJ13: 5.37 | EK13: -0 | EL13: -39 | EM13: 0.35% | EN13: 5.33 | EO13: -1 | EP13: -6 | EQ13: 0.10% | ER13: 9.28 | ES13: -0 | ET13: -97 | EU13: 0.20% | EV13: 9.00 | EW13: -2 | EX13: -459 | EY13: 0.00% | EZ13: 8.59 | FA13: 0 | FB13: 0 | FC13: -0.18% | FD13: 0.78 | FE13: 0 | FF13: 311 | FG13: 0.45% | FH13: 8.00 | FI13: 11 | FJ13: 2,449 | FK13: 0.31% | FL13: 1.00 | FM13: 8 | FN13: -119 | FO13: 0.65% | FP13: 5.00 | FQ13: -4 | FR13: 89 | FS13: 0.40% | FT13: 1.00 | FU13: 0 | FV13: -566 | FW13: 0.20% | FX13: 8.00 | FY13: -9 | FZ13: -52 | GA13: 1.00% | GB13: 5.00 | GC13: -3 | GD13: -2,397 | GE13: -49 | GF13: 185 | GG13: 21 | GH13: -110 | GI13: 1.00% | GJ13: 5.37 | GK13: -6 | GL13: -372 | GM13: 0 | GN13: 0 | GP13: 293 | GQ13: 0.86% | GR13: 1.48 | GS13: 4 | GT13: 0 | GU13: 0.45% | GV13: 8.00 | GW13: 0 | GX13: 0 | GY13: 0.31% | GZ13: 1.00 | HA13: 0 | HB13: 4 | HC13: 0.65% | HD13: 5.00 | HE13: 0 | HF13: 4 | HG13: 0.40% | HH13: 1.00 | HI13: 0 | HJ13: -10 | HK13: 1.00% | HL13: 5.00 | HM13: -0 | HN13: -21 | HO13: 313 | HQ13: =IF(ISERROR(IF(VLOOKUP($C13,'Indicateurs Cumulés'!$C$3:$HP$560,188,FALSE)/(VLOOKUP($C13,objectifs!$C$3:$AAB$559,158,FALSE))>=1.5,(VLOOKUP($C13,objectifs!$C$3:$AAB$559,158,FALSE))*1.5,IF(VLOOKUP($C13,'Indicateurs Cumulés'!$C$3:$HP$560,188,FALSE)/(VLOOKUP($C13,objectifs!$C$3:$AAB$559,158,FALSE))<=-0.5,(VLOOKUP($C13,objectifs!$C$3:$AAB$559,158,FALSE))*-0.5,VLOOKUP($C13,'Indicateurs Cumulés'!$C$3:$HP$560,188,FALSE)))),VLOOKUP($C13,'Indicateurs Cumulés'!$C$3:$HP$560,188,FALSE),IF(VLOOKUP($C13,'Indicateurs Cumulés'!$C$3:$HP$560,188,FALSE)/(VLOOKUP($C13,objectifs!$C$3:$AAB$559,158,FALSE))>=1.5,(VLOOKUP($C13,objectifs!$C$3:$AAB$559,158,FALSE))*1.5,IF(VLOOKUP($C13,'Indicateurs Cumulés'!$C$3:$HP$560,188,FALSE)/(VLOOKUP($C13,objectifs!$C$3:$AAB$559,158,FALSE))<=-0.5,(VLOOKUP($C13,objectifs!$C$3:$AAB$559,158,FALSE))*-0.5,VLOOKUP($C13,'Indicateurs Cumulés'!$C$3:$HP$560,188,FALSE)))) -> -110 | HR13: 0 | HT13: 5.4 | HV13: 3.72% | HW13: 0.33% | HX13: 0.91% | HY13: 6 | HZ13: -17 | IA13: -1 | IB13: -15 | IC13: -9 | ID13: 5 | IE13: 16 | IF13: -58 | IG13: 3 | IH13: -11 | II13: -7 | IJ13: 0 | IK13: 5 | IL13: 93 | IM13: -65 | IN13: -7 | IO13: 1 | IP13: -2 | IQ13: -0 | IR13: -1 | IS13: -0 | IT13: 0 | IU13: 2 | IV13: -25 | IW13: 0 | IX13: -7 | IY13: -7 | IZ13: 0 | JA13: 5 | JB13: 60 | JC13: -14 | JD13: -0 | JE13: 86 | JF13: 72 | JG13: 0 | JH13: 0 | JI13: 0.00 | JJ13: 0.00 | JK13: 0 | JL13: 0 | JM13: 0 | JN13: 0.20% | JO13: 40 | JQ13: 318 | JR13: 210 | JS13: -36 | JT13: =IF(ISERROR(IF(VLOOKUP($C13,'Indicateurs Cumulés'!$C$3:$HP$560,192,FALSE)/(VLOOKUP($C13,objectifs!$C$3:$AAB$559,162,FALSE))>=1.5,(VLOOKUP($C13,objectifs!$C$3:$AAB$559,162,FALSE))*1.5,IF(VLOOKUP($C13,'Indicateurs Cumulés'!$C$3:$HP$560,192,FALSE)/(VLOOKUP($C13,objectifs!$C$3:$AAB$559,162,FALSE))<=-0.5,(VLOOKUP($C13,objectifs!$C$3:$AAB$559,162,FALSE))*-0.5,VLOOKUP($C13,'Indicateurs Cumulés'!$C$3:$HP$560,192,FALSE)))),VLOOKUP($C13,'Indicateurs Cumulés'!$C$3:$HP$560,192,FALSE),IF(VLOOKUP($C13,'Indicateurs Cumulés'!$C$3:$HP$560,192,FALSE)/(VLOOKUP($C13,objectifs!$C$3:$AAB$559,162,FALSE))>=1.5,(VLOOKUP($C13,objectifs!$C$3:$AAB$559,162,FALSE))*1.5,IF(VLOOKUP($C13,'Indicateurs Cumulés'!$C$3:$HP$560,192,FALSE)/(VLOOKUP($C13,objectifs!$C$3:$AAB$559,162,FALSE))<=-0.5,(VLOOKUP($C13,objectifs!$C$3:$AAB$559,162,FALSE))*-0.5,VLOOKUP($C13,'Indicateurs Cumulés'!$C$3:$HP$560,192,FALSE)))) -> -3 | JU13: 0 | JV13: 2 | JX13: 11 | JY13: 7 | JZ13: -1 | KA13: -0 | KB13: 19 | KC13: 1 | KD13: 0 | KE13: -1 | KF13: 0 | KG13: 0 | KH13: 0 | KI13: 1 | KJ13: 0 | KK13: -1 | KL13: 0 | KM13: 0 | KN13: 0 | KO13: 7 | KP13: 7 | KT13: 4.00 | KU13: 0 | KV13: -40 | KW13: 0 | KX13: 46 | KY13: 9 | KZ13: 0 | LA13: 98 | LB13: 68 | LC13: 0 | LD13: 0 | LE13: 365.4 | LF13: 96 | LG13: -1 | LH13: -1 | LI13: -1 | LJ13: -1 | LK13: 6 | LL13: 1 | LM13: 354 | LN13: 65.4 | LO13: -34 | LP13: 334 | LQ13: -21 | LR13: -2 | LS13: 67.42 | LT13: 136 | LU13: 144 | LV13: 529 | LW13: 131 | LX13: 0 | LY13: 49 | LZ13: 10.2 | MA13: 1.4 | MB13: 1.6 | MC13: 6.6 | MD13: 0.0 | ME13: 0.2 | MF13: 385 | MH13: 0.25%
A14: 105006 | B14: 200262 | C14: 23 | D14: STRASBOURG VOSGES | E14: 23 | F14: STRASBOURG VOSGES | G14: 2019-08-31 | H14: 67 | I14: 4.32% | J14: 1.57 | K14: 2019-08-31 | L14: 620 | M14: 2.69% | N14: 2.62 | O14: 44 | P14: 896 | Q14: 0 | R14: 0.03% | S14: 8.18 | T14: 12.49 | U14: 7 | V14: 0.34% | W14: 5.87 | X14: 0 | Y14: 0.00% | Z14: 0 | AA14: 478 | AB14: 0.35% | AC14: 6.38 | AD14: 3.4 | AE14: 7.7 | AF14: 1.2 | AG14: 20.8 | AH14: 26.0 | AI14: 1.2 | AJ14: 201908 | AK14: 3.00 | AL14: 0.07 | AM14: 2.40% | AN14: 195.79 | AO14: 24.46 | AP14: 12% | AQ14: 1.73 | AR14: 0.88% | AS14: 404.50 | AT14: 74.74 | AU14: 18.5% | AV14: 0.27 | AW14: 0.07% | AX14: 46.88 | AY14: 1.81 | AZ14: 3.87% | BA14: 0.75 | BB14: 1.61% | BC14: 650.17 | BD14: 101.01 | BE14: 15.5% | BF14: 2.83 | BG14: 0.44% | BI14: 0 | BJ14: 0 | BK14: 65 | BL14: 33 | BM14: 13 | BN14: 1.42% | BO14: 0.00% | BP14: 23 | BQ14: 58 | BR14: 1 | BS14: 86 | BT14: 2 | BU14: -1 | BV14: 1 | BW14: -10 | BZ14: 0 | CA14: 0 | CB14: 0 | CC14: 0 | CD14: 0 | CE14: 0 | CF14: 0 | CG14: 7 | CH14: 1.4 | CI14: -2 | CJ14: -0 | CK14: 1 | CL14: 1 | CM14: -141.38% | CN14: 100.00% | CO14: -0 | CP14: 0.00% | CQ14: 0.00% | CR14: 0 | CS14: 1.2 | CT14: 0 | CU14: 0.00 | CV14: 0 | CW14: 3 | CX14: 0 | CY14: 3 | CZ14: 63.45% | DA14: 149.42% | DB14: 25 | DC14: 97.10% | DD14: 136.64% | DE14: 14 | DG14: 100.00% | DH14: 100.00% | DI14: 1 | DJ14: 320 | DK14: 0.70% | DL14: 5.33 | DM14: 12 | DN14: 291 | DO14: 0.76% | DP14: 5.33 | DQ14: 12 | DR14: -32 | DS14: 0.85% | DT14: 5.33 | DU14: -1 | DV14: 1,000 | DW14: 0.40% | DX14: 1.40 | DY14: 6 | DZ14: -310 | EA14: 0.20% | EB14: 5.37 | EC14: -3 | ED14: 87 | EE14: 0.20% | EF14: 5.37 | EG14: 1 | EH14: -39 | EI14: 0.20% | EJ14: 5.37 | EK14: -0 | EL14: 16 | EM14: 0.35% | EN14: 5.33 | EO14: 0 | EP14: -13 | EQ14: 0.10% | ER14: 7.47 | ES14: -0 | ET14: -283 | EU14: 0.20% | EV14: 9.00 | EW14: -5 | EX14: -131 | EY14: 0.00% | EZ14: 8.59 | FA14: 0 | FB14: 0 | FC14: -0.18% | FD14: 0.78 | FE14: 0 | FF14: -270 | FG14: 0.45% | FH14: 8.00 | FI14: -10 | FJ14: 830 | FK14: 0.44% | FL14: 1.00 | FM14: 4 | FN14: -152 | FO14: 0.65% | FP14: 5.00 | FQ14: -5 | FR14: 5 | FS14: 0.40% | FT14: 1.00 | FU14: 0 | FV14: -404 | FW14: 0.20% | FX14: 8.00 | FY14: -6 | FZ14: -14 | GA14: 1.00% | GB14: 5.00 | GC14: -1 | GD14: 388 | GE14: 10 | GF14: 353 | GG14: 24 | GH14: -494 | GI14: 1.00% | GJ14: 5.37 | GK14: -27 | GL14: 83 | GM14: 0 | GN14: 0 | GP14: 0 | GQ14: 0.00% | GR14: 0 | GS14: 0 | GT14: 800 | GU14: 0.45% | GV14: 8.00 | GW14: 29 | GX14: 800 | GY14: 0.44% | GZ14: 1.00 | HA14: 3 | HB14: 0 | HC14: 0.65% | HD14: 5.00 | HE14: 0 | HF14: 0 | HG14: 0.40% | HH14: 1.00 | HI14: 0 | HJ14: -25 | HK14: 1.00% | HL14: 5.00 | HM14: -1 | HN14: -12 | HO14: 206 | HQ14: =IF(ISERROR(IF(VLOOKUP($C14,'Indicateurs Cumulés'!$C$3:$HP$560,188,FALSE)/(VLOOKUP($C14,objectifs!$C$3:$AAB$559,158,FALSE))>=1.5,(VLOOKUP($C14,objectifs!$C$3:$AAB$559,158,FALSE))*1.5,IF(VLOOKUP($C14,'Indicateurs Cumulés'!$C$3:$HP$560,188,FALSE)/(VLOOKUP($C14,objectifs!$C$3:$AAB$559,158,FALSE))<=-0.5,(VLOOKUP($C14,objectifs!$C$3:$AAB$559,158,FALSE))*-0.5,VLOOKUP($C14,'Indicateurs Cumulés'!$C$3:$HP$560,188,FALSE)))),VLOOKUP($C14,'Indicateurs Cumulés'!$C$3:$HP$560,188,FALSE),IF(VLOOKUP($C14,'Indicateurs Cumulés'!$C$3:$HP$560,188,FALSE)/(VLOOKUP($C14,objectifs!$C$3:$AAB$559,158,FALSE))>=1.5,(VLOOKUP($C14,objectifs!$C$3:$AAB$559,158,FALSE))*1.5,IF(VLOOKUP($C14,'Indicateurs Cumulés'!$C$3:$HP$560,188,FALSE)/(VLOOKUP($C14,objectifs!$C$3:$AAB$559,158,FALSE))<=-0.5,(VLOOKUP($C14,objectifs!$C$3:$AAB$559,158,FALSE))*-0.5,VLOOKUP($C14,'Indicateurs Cumulés'!$C$3:$HP$560,188,FALSE)))) -> -262 | HR14: 0 | HT14: 3.4 | HV14: 3.61% | HW14: 0.43% | HX14: 0.42% | HY14: -3 | HZ14: 3 | IA14: 1 | IB14: -9 | IC14: -16 | ID14: -1 | IE14: -17 | IF14: -1 | IG14: -1 | IH14: -2 | II14: 0 | IJ14: 0 | IK14: 1 | IL14: -10 | IM14: -17 | IN14: -1 | IO14: -0 | IP14: 0 | IQ14: 0 | IR14: -1 | IS14: -0 | IT14: -0 | IU14: -2 | IV14: -0 | IW14: -0 | IX14: -1 | IY14: 0 | IZ14: 0 | JA14: 1 | JB14: -7 | JC14: -4 | JD14: -0 | JE14: -17 | JF14: 13 | JG14: 0 | JH14: 0 | JI14: 0.00 | JJ14: 0.00 | JK14: 0 | JL14: 0 | JM14: -88 | JN14: 0.20% | JO14: 0 | JQ14: 191 | JR14: -102 | JS14: -75 | JT14: =IF(ISERROR(IF(VLOOKUP($C14,'Indicateurs Cumulés'!$C$3:$HP$560,192,FALSE)/(VLOOKUP($C14,objectifs!$C$3:$AAB$559,162,FALSE))>=1.5,(VLOOKUP($C14,objectifs!$C$3:$AAB$559,162,FALSE))*1.5,IF(VLOOKUP($C14,'Indicateurs Cumulés'!$C$3:$HP$560,192,FALSE)/(VLOOKUP($C14,objectifs!$C$3:$AAB$559,162,FALSE))<=-0.5,(VLOOKUP($C14,objectifs!$C$3:$AAB$559,162,FALSE))*-0.5,VLOOKUP($C14,'Indicateurs Cumulés'!$C$3:$HP$560,192,FALSE)))),VLOOKUP($C14,'Indicateurs Cumulés'!$C$3:$HP$560,192,FALSE),IF(VLOOKUP($C14,'Indicateurs Cumulés'!$C$3:$HP$560,192,FALSE)/(VLOOKUP($C14,objectifs!$C$3:$AAB$559,162,FALSE))>=1.5,(VLOOKUP($C14,objectifs!$C$3:$AAB$559,162,FALSE))*1.5,IF(VLOOKUP($C14,'Indicateurs Cumulés'!$C$3:$HP$560,192,FALSE)/(VLOOKUP($C14,objectifs!$C$3:$AAB$559,162,FALSE))<=-0.5,(VLOOKUP($C14,objectifs!$C$3:$AAB$559,162,FALSE))*-0.5,VLOOKUP($C14,'Indicateurs Cumulés'!$C$3:$HP$560,192,FALSE)))) -> 8 | JU14: -2 | JV14: 0 | JX14: 7 | JY14: -3 | JZ14: -2 | KA14: 0 | KB14: 0 | KC14: 5 | KD14: 0 | KE14: 0 | KF14: 4 | KG14: 0 | KH14: 0 | KI14: 7 | KJ14: 0 | KK14: 0 | KL14: 1 | KM14: 0 | KN14: 0 | KO14: 11 | KP14: 2 | KT14: 5.92 | KU14: 9 | KV14: 4 | KW14: 0 | KX14: 13 | KY14: 3 | KZ14: 0 | LA14: -9 | LB14: -6 | LC14: 0 | LD14: 0 | LE14: 100.7 | LF14: 22 | LG14: -1 | LH14: -1 | LI14: -1 | LJ14: -1 | LK14: 1 | LL14: 0 | LM14: 96 | LN14: 28.2 | LO14: 19 | LP14: 111 | LQ14: -12 | LR14: -2 | LS14: 29.65 | LT14: 102 | LU14: 88 | LV14: 410 | LW14: 79 | LX14: 50 | LY14: 19 | LZ14: 7.7 | MA14: 0.9 | MB14: 1.2 | MC14: 4.0 | MD14: 0.8 | ME14: 0.1 | MF14: 115 | MH14: 0.38%
A15: 105006 | B15: 200262 | C15: 24 | D15: STRASBOURG AUSTERLITZ | E15: 24 | F15: STRASBOURG AUSTERLITZ | G15: 2019-08-31 | H15: 87 | I15: 4.32% | J15: 1.57 | K15: 2019-08-31 | L15: 514 | M15: 3.53% | N15: 2.57 | O15: 47 | P15: 2,255 | Q15: 0 | R15: 0.13% | S15: 7.75 | T15: 12.06 | U15: 0 | V15: 0.00% | W15: 0 | X15: 113 | Y15: 0.06% | Z15: 4.38 | AA15: 0 | AB15: 0.00% | AC15: 0 | AD15: 6.0 | AE15: 6.6 | AF15: 0 | AG15: 44.8 | AH15: 8.1 | AI15: 2.9 | AJ15: 201908 | AK15: 0 | AL15: 0 | AM15: 0.00% | AN15: 173.56 | AO15: 32.78 | AP15: 19% | AQ15: 1.85 | AR15: 1.07% | AS15: 864.86 | AT15: 107.85 | AU15: 12.5% | AV15: 1.43 | AW15: 0.17% | AX15: 27.68 | AY15: 1.33 | AZ15: 4.82% | BA15: 0.56 | BB15: 2.03% | BC15: 1,066.09 | BD15: 141.96 | BE15: 13.3% | BF15: 3.84 | BG15: 0.36% | BI15: 0 | BJ15: 1 | BK15: 67 | BL15: 70 | BM15: 0 | BN15: 1.29% | BO15: 0.00% | BP15: 24 | BQ15: 21 | BR15: 0 | BS15: 106 | BT15: 3 | BU15: -0 | BV15: 2 | BW15: -8 | BZ15: 0 | CA15: 0 | CB15: 0 | CC15: 1 | CD15: 0 | CE15: 0 | CF15: 0 | CG15: 14 | CH15: 2.8 | CI15: -12 | CJ15: -3 | CK15: 2 | CL15: 2 | CM15: 0.00% | CN15: 0.00% | CO15: 0 | CP15: 0.00% | CQ15: 0.00% | CR15: 0 | CS15: 0 | CT15: 0 | CU15: 0.00 | CV15: 0 | CW15: 3 | CX15: 1 | CY15: 6 | CZ15: 45.22% | DA15: 134.73% | DB15: 37 | DC15: 99.32% | DD15: 128.54% | DE15: 11 | DG15: 0.00% | DH15: 0.00% | DI15: 0 | DJ15: 12 | DK15: 0.70% | DL15: 5.33 | DM15: 0 | DN15: 0 | DO15: 0.76% | DP15: 5.33 | DQ15: 0 | DR15: 52 | DS15: 0.85% | DT15: 5.33 | DU15: 2 | DV15: 6 | DW15: 0.40% | DX15: 1.40 | DY15: 0 | DZ15: -208 | EA15: 0.20% | EB15: 5.37 | EC15: -2 | ED15: 99 | EE15: 0.20% | EF15: 5.37 | EG15: 1 | EH15: -28 | EI15: 0.20% | EJ15: 5.37 | EK15: -0 | EL15: 35 | EM15: 0.35% | EN15: 5.33 | EO15: 1 | EP15: 0 | EQ15: 0.10% | ER15: 9.68 | ES15: 0 | ET15: -114 | EU15: 0.20% | EV15: 9.00 | EW15: -2 | EX15: -686 | EY15: 0.00% | EZ15: 8.59 | FA15: 0 | FB15: 0 | FC15: -0.18% | FD15: 0.78 | FE15: 0 | FF15: 206 | FG15: 0.45% | FH15: 8.00 | FI15: 7 | FJ15: 1,015 | FK15: 0.36% | FL15: 1.00 | FM15: 4 | FN15: -0 | FO15: 0.65% | FP15: 5.00 | FQ15: -0 | FR15: 16 | FS15: 0.40% | FT15: 1.00 | FU15: 0 | FV15: -178 | FW15: 0.20% | FX15: 8.00 | FY15: -3 | FZ15: -248 | GA15: 1.00% | GB15: 5.00 | GC15: -12 | GD15: -1,752 | GE15: -31 | GF15: 687 | GG15: 34 | GH15: 372 | GI15: 1.00% | GJ15: 5.37 | GK15: 20 | GL15: -108 | GM15: 0 | GN15: 0 | GP15: 0 | GQ15: 0.00% | GR15: 0 | GS15: 0 | GT15: 445 | GU15: 0.45% | GV15: 8.00 | GW15: 16 | GX15: 445 | GY15: 0.36% | GZ15: 1.00 | HA15: 2 | HB15: 0 | HC15: 0.65% | HD15: 5.00 | HE15: 0 | HF15: 0 | HG15: 0.40% | HH15: 1.00 | HI15: 0 | HJ15: 36 | HK15: 1.00% | HL15: 5.00 | HM15: 2 | HN15: -7 | HO15: 216 | HQ15: =IF(ISERROR(IF(VLOOKUP($C15,'Indicateurs Cumulés'!$C$3:$HP$560,188,FALSE)/(VLOOKUP($C15,objectifs!$C$3:$AAB$559,158,FALSE))>=1.5,(VLOOKUP($C15,objectifs!$C$3:$AAB$559,158,FALSE))*1.5,IF(VLOOKUP($C15,'Indicateurs Cumulés'!$C$3:$HP$560,188,FALSE)/(VLOOKUP($C15,objectifs!$C$3:$AAB$559,158,FALSE))<=-0.5,(VLOOKUP($C15,objectifs!$C$3:$AAB$559,158,FALSE))*-0.5,VLOOKUP($C15,'Indicateurs Cumulés'!$C$3:$HP$560,188,FALSE)))),VLOOKUP($C15,'Indicateurs Cumulés'!$C$3:$HP$560,188,FALSE),IF(VLOOKUP($C15,'Indicateurs Cumulés'!$C$3:$HP$560,188,FALSE)/(VLOOKUP($C15,objectifs!$C$3:$AAB$559,158,FALSE))>=1.5,(VLOOKUP($C15,objectifs!$C$3:$AAB$559,158,FALSE))*1.5,IF(VLOOKUP($C15,'Indicateurs Cumulés'!$C$3:$HP$560,188,FALSE)/(VLOOKUP($C15,objectifs!$C$3:$AAB$559,158,FALSE))<=-0.5,(VLOOKUP($C15,objectifs!$C$3:$AAB$559,158,FALSE))*-0.5,VLOOKUP($C15,'Indicateurs Cumulés'!$C$3:$HP$560,188,FALSE)))) -> 372 | HR15: 0 | HT15: 2.8 | HV15: 4.31% | HW15: 0.39% | HX15: 0.00% | HY15: -1 | HZ15: 9 | IA15: -2 | IB15: -1 | IC15: 5 | ID15: 6 | IE15: 17 | IF15: 16 | IG15: -1 | IH15: -14 | II15: -3 | IJ15: 1 | IK15: 4 | IL15: 5 | IM15: -12 | IN15: 0 | IO15: -0 | IP15: 1 | IQ15: -1 | IR15: -0 | IS15: 0 | IT15: 1 | IU15: 2 | IV15: 7 | IW15: -0 | IX15: -9 | IY15: -3 | IZ15: 2 | JA15: 4 | JB15: 3 | JC15: -3 | JD15: 0 | JE15: 19 | JF15: 1 | JG15: 0 | JH15: 0 | JI15: 0.00 | JJ15: 0.00 | JK15: 0 | JL15: 0 | JM15: 0 | JN15: 0.20% | JO15: 4 | JQ15: -25 | JR15: -495 | JS15: -8 | JT15: =IF(ISERROR(IF(VLOOKUP($C15,'Indicateurs Cumulés'!$C$3:$HP$560,192,FALSE)/(VLOOKUP($C15,objectifs!$C$3:$AAB$559,162,FALSE))>=1.5,(VLOOKUP($C15,objectifs!$C$3:$AAB$559,162,FALSE))*1.5,IF(VLOOKUP($C15,'Indicateurs Cumulés'!$C$3:$HP$560,192,FALSE)/(VLOOKUP($C15,objectifs!$C$3:$AAB$559,162,FALSE))<=-0.5,(VLOOKUP($C15,objectifs!$C$3:$AAB$559,162,FALSE))*-0.5,VLOOKUP($C15,'Indicateurs Cumulés'!$C$3:$HP$560,192,FALSE)))),VLOOKUP($C15,'Indicateurs Cumulés'!$C$3:$HP$560,192,FALSE),IF(VLOOKUP($C15,'Indicateurs Cumulés'!$C$3:$HP$560,192,FALSE)/(VLOOKUP($C15,objectifs!$C$3:$AAB$559,162,FALSE))>=1.5,(VLOOKUP($C15,objectifs!$C$3:$AAB$559,162,FALSE))*1.5,IF(VLOOKUP($C15,'Indicateurs Cumulés'!$C$3:$HP$560,192,FALSE)/(VLOOKUP($C15,objectifs!$C$3:$AAB$559,162,FALSE))<=-0.5,(VLOOKUP($C15,objectifs!$C$3:$AAB$559,162,FALSE))*-0.5,VLOOKUP($C15,'Indicateurs Cumulés'!$C$3:$HP$560,192,FALSE)))) -> -3 | JU15: 0 | JV15: 0 | JX15: -1 | JY15: -16 | JZ15: -0 | KA15: -0 | KB15: -17 | KC15: -4 | KD15: 0 | KE15: 0 | KF15: -3 | KG15: 1 | KH15: 0 | KI15: -6 | KJ15: 0 | KK15: 0 | KL15: -1 | KM15: 1 | KN15: 0 | KO15: -3 | KP15: 2 | KT15: 5.90 | KU15: -6 | KV15: -59 | KW15: 0 | KX15: 31 | KY15: 6 | KZ15: 0 | LA15: 10 | LB15: 7 | LC15: 0 | LD15: 0 | LE15: 153.1 | LF15: -27 | LG15: -3 | LH15: -2 | LI15: -4 | LJ15: -6 | LK15: -1 | LL15: -0 | LM15: 141 | LN15: 50.1 | LO15: 23 | LP15: 137 | LQ15: -7 | LR15: -8 | LS15: 54.57 | LT15: 124 | LU15: 78 | LV15: 678 | LW15: 71 | LX15: 63 | LY15: 33 | LZ15: 9.3 | MA15: 0.8 | MB15: 2.0 | MC15: 3.6 | MD15: 0.9 | ME15: 0.2 | MF15: 170 | MH15: 0.27%
A16: 105006 | B16: 200262 | C16: 25 | D16: STRASBOURG ESPLANADE | E16: 25 | F16: STRASBOURG ESPLANADE | G16: 2019-08-31 | H16: 106 | I16: 4.32% | J16: 1.57 | K16: 2019-08-31 | L16: 680 | M16: 4.15% | N16: 2.31 | O16: 65 | P16: 2,810 | Q16: 0 | R16: 0.12% | S16: 6.48 | T16: 9.92 | U16: 16 | V16: 2.82% | W16: 2.05 | X16: 571 | Y16: 0.03% | Z16: 6.09 | AA16: 1,568 | AB16: 0.69% | AC16: 5.24 | AD16: 9.0 | AE16: 6.2 | AF16: 3.9 | AG16: 63.3 | AH16: 13.8 | AI16: 3.4 | AJ16: 201908 | AK16: 0 | AL16: 0 | AM16: 0.00% | AN16: 244.96 | AO16: 96.06 | AP16: 39% | AQ16: 1.60 | AR16: 0.66% | AS16: 609.15 | AT16: 161.51 | AU16: 26.5% | AV16: 1.06 | AW16: 0.17% | AX16: 30.60 | AY16: 1.99 | AZ16: 6.51% | BA16: 0.64 | BB16: 2.09% | BC16: 884.71 | BD16: 259.56 | BE16: 29.3% | BF16: 3.30 | BG16: 0.37% | BI16: 1 | BJ16: 16 | BK16: 91 | BL16: 92 | BM16: 62 | BN16: 1.32% | BO16: 0.00% | BP16: 25 | BQ16: 173 | BR16: 3 | BS16: 69 | BT16: 2 | BU16: -2 | BV16: -5 | BW16: 0 | BZ16: 0 | CA16: 1 | CB16: 0 | CC16: 0 | CD16: 0 | CE16: -8 | CF16: -4 | CG16: 1 | CH16: 0.2 | CI16: -10 | CJ16: -2 | CK16: 3 | CL16: 3 | CM16: 100.00% | CN16: 200.00% | CO16: 0 | CP16: 125.47% | CQ16: 100.00% | CR16: 13 | CS16: 3.9 | CT16: 1 | CU16: 0.00 | CV16: 0 | CW16: 3 | CX16: 1 | CY16: 9 | CZ16: 71.07% | DA16: 141.23% | DB16: 55 | DC16: 86.48% | DD16: 157.94% | DE16: 15 | DG16: 100.00% | DH16: 137.19% | DI16: 2 | DJ16: 60 | DK16: 0.70% | DL16: 5.33 | DM16: 2 | DN16: 67 | DO16: 0.76% | DP16: 5.33 | DQ16: 3 | DR16: -18 | DS16: 0.85% | DT16: 5.33 | DU16: -1 | DV16: 41 | DW16: 0.40% | DX16: 1.40 | DY16: 0 | DZ16: -263 | EA16: 0.20% | EB16: 5.37 | EC16: -3 | ED16: -86 | EE16: 0.20% | EF16: 5.37 | EG16: -1 | EH16: -25 | EI16: 0.20% | EJ16: 5.37 | EK16: -0 | EL16: -5 | EM16: 0.35% | EN16: 5.33 | EO16: -0 | EP16: 1 | EQ16: 0.10% | ER16: 8.65 | ES16: 0 | ET16: -39 | EU16: 0.20% | EV16: 9.00 | EW16: -1 | EX16: -115 | EY16: 0.00% | EZ16: 8.59 | FA16: 0 | FB16: 0 | FC16: -0.18% | FD16: 0.78 | FE16: 0 | FF16: -176 | FG16: 0.45% | FH16: 8.00 | FI16: -6 | FJ16: 854 | FK16: 0.37% | FL16: 1.00 | FM16: 3 | FN16: -96 | FO16: 0.65% | FP16: 5.00 | FQ16: -3 | FR16: 8 | FS16: 0.40% | FT16: 1.00 | FU16: 0 | FV16: -499 | FW16: 0.20% | FX16: 8.00 | FY16: -8 | FZ16: -34 | GA16: 1.00% | GB16: 5.00 | GC16: -2 | GD16: -946 | GE16: -11 | GF16: 151 | GG16: 14 | GH16: 101 | GI16: 1.00% | GJ16: 5.37 | GK16: 5 | GL16: -74 | GM16: 0 | GN16: 0 | GP16: 0 | GQ16: 0.00% | GR16: 0 | GS16: 0 | GT16: 572 | GU16: 0.45% | GV16: 8.00 | GW16: 21 | GX16: 576 | GY16: 0.37% | GZ16: 1.00 | HA16: 2 | HB16: 0 | HC16: 0.65% | HD16: 5.00 | HE16: 0 | HF16: 0 | HG16: 0.40% | HH16: 1.00 | HI16: 0 | HJ16: -148 | HK16: 1.00% | HL16: 5.00 | HM16: -7 | HN16: -13 | HO16: 299 | HQ16: =IF(ISERROR(IF(VLOOKUP($C16,'Indicateurs Cumulés'!$C$3:$HP$560,188,FALSE)/(VLOOKUP($C16,objectifs!$C$3:$AAB$559,158,FALSE))>=1.5,(VLOOKUP($C16,objectifs!$C$3:$AAB$559,158,FALSE))*1.5,IF(VLOOKUP($C16,'Indicateurs Cumulés'!$C$3:$HP$560,188,FALSE)/(VLOOKUP($C16,objectifs!$C$3:$AAB$559,158,FALSE))<=-0.5,(VLOOKUP($C16,objectifs!$C$3:$AAB$559,158,FALSE))*-0.5,VLOOKUP($C16,'Indicateurs Cumulés'!$C$3:$HP$560,188,FALSE)))),VLOOKUP($C16,'Indicateurs Cumulés'!$C$3:$HP$560,188,FALSE),IF(VLOOKUP($C16,'Indicateurs Cumulés'!$C$3:$HP$560,188,FALSE)/(VLOOKUP($C16,objectifs!$C$3:$AAB$559,158,FALSE))>=1.5,(VLOOKUP($C16,objectifs!$C$3:$AAB$559,158,FALSE))*1.5,IF(VLOOKUP($C16,'Indicateurs Cumulés'!$C$3:$HP$560,188,FALSE)/(VLOOKUP($C16,objectifs!$C$3:$AAB$559,158,FALSE))<=-0.5,(VLOOKUP($C16,objectifs!$C$3:$AAB$559,158,FALSE))*-0.5,VLOOKUP($C16,'Indicateurs Cumulés'!$C$3:$HP$560,188,FALSE)))) -> 101 | HR16: 0 | HT16: 3.9 | HV16: 5.00% | HW16: 0.49% | HX16: 0.76% | HY16: -8 | HZ16: -27 | IA16: 0 | IB16: -9 | IC16: -19 | ID16: -2 | IE16: -18 | IF16: -15 | IG16: -1 | IH16: -9 | II16: -2 | IJ16: 1 | IK16: 0 | IL16: 2 | IM16: -22 | IN16: 2 | IO16: -1 | IP16: -3 | IQ16: 0 | IR16: -1 | IS16: -0 | IT16: -0 | IU16: -2 | IV16: -7 | IW16: -0 | IX16: -6 | IY16: -2 | IZ16: 2 | JA16: 0 | JB16: 1 | JC16: -5 | JD16: 0 | JE16: -30 | JF16: 80 | JG16: 0 | JH16: 0 | JI16: 0.00 | JJ16: 0.00 | JK16: 0 | JL16: 0 | JM16: -1 | JN16: 0.20% | JO16: 1 | JQ16: -69 | JR16: -32 | JS16: -5 | JT16: =IF(ISERROR(IF(VLOOKUP($C16,'Indicateurs Cumulés'!$C$3:$HP$560,192,FALSE)/(VLOOKUP($C16,objectifs!$C$3:$AAB$559,162,FALSE))>=1.5,(VLOOKUP($C16,objectifs!$C$3:$AAB$559,162,FALSE))*1.5,IF(VLOOKUP($C16,'Indicateurs Cumulés'!$C$3:$HP$560,192,FALSE)/(VLOOKUP($C16,objectifs!$C$3:$AAB$559,162,FALSE))<=-0.5,(VLOOKUP($C16,objectifs!$C$3:$AAB$559,162,FALSE))*-0.5,VLOOKUP($C16,'Indicateurs Cumulés'!$C$3:$HP$560,192,FALSE)))),VLOOKUP($C16,'Indicateurs Cumulés'!$C$3:$HP$560,192,FALSE),IF(VLOOKUP($C16,'Indicateurs Cumulés'!$C$3:$HP$560,192,FALSE)/(VLOOKUP($C16,objectifs!$C$3:$AAB$559,162,FALSE))>=1.5,(VLOOKUP($C16,objectifs!$C$3:$AAB$559,162,FALSE))*1.5,IF(VLOOKUP($C16,'Indicateurs Cumulés'!$C$3:$HP$560,192,FALSE)/(VLOOKUP($C16,objectifs!$C$3:$AAB$559,162,FALSE))<=-0.5,(VLOOKUP($C16,objectifs!$C$3:$AAB$559,162,FALSE))*-0.5,VLOOKUP($C16,'Indicateurs Cumulés'!$C$3:$HP$560,192,FALSE)))) -> -3 | JU16: -0 | JV16: 0 | JX16: -2 | JY16: -1 | JZ16: -0 | KA16: -0 | KB16: -4 | KC16: -3 | KD16: -3 | KE16: 1 | KF16: 1 | KG16: -2 | KH16: 0 | KI16: -4 | KJ16: -3 | KK16: 1 | KL16: 0 | KM16: -1 | KN16: 0 | KO16: -6 | KP16: 6 | KT16: 5.02 | KU16: -6 | KV16: -0 | KW16: 0 | KX16: -3 | KY16: -1 | KZ16: 0 | LA16: 3 | LB16: 2 | LC16: 0 | LD16: 0 | LE16: 193.5 | LF16: 60 | LG16: -2 | LH16: -1 | LI16: -6 | LJ16: -9 | LK16: -3 | LL16: -0 | LM16: 198 | LN16: 50.9 | LO16: 9 | LP16: 245 | LQ16: -13 | LR16: -10 | LS16: 49.73 | LT16: 114 | LU16: 52 | LV16: 579 | LW16: 60 | LX16: 12 | LY16: 27 | LZ16: 8.6 | MA16: 0.5 | MB16: 1.7 | MC16: 3.0 | MD16: 0.2 | ME16: 0.1 | MF16: 208 | MH16: 0.32%
A17: 105006 | B17: 200262 | C17: 26 | D17: STRASBOURG DANUBE | E17: 26 | F17: STRASBOURG DANUBE | G17: 2019-08-31 | H17: 59 | I17: 4.32% | J17: 1.57 | K17: 2019-08-31 | L17: 435 | M17: 2.37% | N17: 2.39 | O17: 25 | P17: 1,612 | Q17: 0 | R17: -0.01% | S17: 7.89 | T17: 12.16 | U17: 0 | V17: 0.00% | W17: 0 | X17: 222 | Y17: -0.04% | Z17: 7.56 | AA17: 0 | AB17: 0.00% | AC17: 0 | AD17: 5.3 | AE17: 5.3 | AF17: 0 | AG17: -177.7 | AH17: 5.9 | AI17: 2.9 | AJ17: 201908 | AK17: 0 | AL17: 0 | AM17: 0.00% | AN17: 113.69 | AO17: 26.12 | AP17: 23% | AQ17: 0.87 | AR17: 0.77% | AS17: 185.46 | AT17: 49.10 | AU17: 26.5% | AV17: 0.08 | AW17: 0.04% | AX17: 28.97 | AY17: 3.89 | AZ17: 13.41% | BA17: 0.54 | BB17: 1.87% | BC17: 328.12 | BD17: 79.10 | BE17: 24.1% | BF17: 1.50 | BG17: 0.46% | BI17: 0 | BJ17: 10 | BK17: 40 | BL17: 48 | BM17: 0 | BN17: 1.44% | BO17: 0.00% | BP17: 26 | BQ17: 81 | BR17: 2 | BS17: 17 | BT17: 0 | BU17: 2 | BV17: 1 | BW17: -2 | BZ17: 0 | CA17: 0 | CB17: 0 | CC17: 1 | CD17: 0 | CE17: 0 | CF17: 0 | CG17: 12 | CH17: 2.4 | CI17: -4 | CJ17: -1 | CK17: 1 | CL17: 1 | CM17: 0.00% | CN17: 0.00% | CO17: 0 | CP17: 200.00% | CQ17: 100.00% | CR17: 11 | CS17: 0 | CT17: 0 | CU17: 0.00 | CV17: 0 | CW17: 2 | CX17: 0 | CY17: 5 | CZ17: 63.76% | DA17: 178.43% | DB17: 40 | DC17: 66.46% | DD17: 186.29% | DE17: 9 | DG17: 0.00% | DH17: 0.00% | DI17: 0 | DJ17: 249 | DK17: 0.70% | DL17: 5.33 | DM17: 9 | DN17: 46 | DO17: 0.76% | DP17: 5.33 | DQ17: 2 | DR17: -18 | DS17: 0.85% | DT17: 5.33 | DU17: -1 | DV17: 93 | DW17: 0.40% | DX17: 1.40 | DY17: 1 | DZ17: -99 | EA17: 0.20% | EB17: 5.37 | EC17: -1 | ED17: 48 | EE17: 0.20% | EF17: 5.37 | EG17: 1 | EH17: -14 | EI17: 0.20% | EJ17: 5.37 | EK17: -0 | EL17: 53 | EM17: 0.35% | EN17: 5.33 | EO17: 1 | EP17: 4 | EQ17: 0.10% | ER17: 8.55 | ES17: 0 | ET17: -55 | EU17: 0.20% | EV17: 9.00 | EW17: -1 | EX17: 216 | EY17: 0.00% | EZ17: 3.56 | FA17: 0 | FB17: 0 | FC17: -0.18% | FD17: 0.78 | FE17: 0 | FF17: -52 | FG17: 0.45% | FH17: 8.00 | FI17: -2 | FJ17: 344 | FK17: 0.46% | FL17: 1.00 | FM17: 2 | FN17: -25 | FO17: 0.65% | FP17: 5.00 | FQ17: -1 | FR17: 11 | FS17: 0.40% | FT17: 1.00 | FU17: 0 | FV17: -71 | FW17: 0.20% | FX17: 8.00 | FY17: -1 | FZ17: 70 | GA17: 1.00% | GB17: 5.00 | GC17: 3 | GD17: 513 | GE17: 12 | GF17: -79 | GG17: 1 | GH17: -297 | GI17: 1.00% | GJ17: 5.37 | GK17: -16 | GL17: -27 | GM17: 5 | GN17: 0 | GP17: 0 | GQ17: 0.00% | GR17: 0 | GS17: 0 | GT17: 0 | GU17: 0.45% | GV17: 8.00 | GW17: 0 | GX17: 0 | GY17: 0.46% | GZ17: 1.00 | HA17: 0 | HB17: 0 | HC17: 0.65% | HD17: 5.00 | HE17: 0 | HF17: 0 | HG17: 0.40% | HH17: 1.00 | HI17: 0 | HJ17: -2 | HK17: 1.00% | HL17: 5.00 | HM17: -0 | HN17: -8 | HO17: 118 | HQ17: =IF(ISERROR(IF(VLOOKUP($C17,'Indicateurs Cumulés'!$C$3:$HP$560,188,FALSE)/(VLOOKUP($C17,objectifs!$C$3:$AAB$559,158,FALSE))>=1.5,(VLOOKUP($C17,objectifs!$C$3:$AAB$559,158,FALSE))*1.5,IF(VLOOKUP($C17,'Indicateurs Cumulés'!$C$3:$HP$560,188,FALSE)/(VLOOKUP($C17,objectifs!$C$3:$AAB$559,158,FALSE))<=-0.5,(VLOOKUP($C17,objectifs!$C$3:$AAB$559,158,FALSE))*-0.5,VLOOKUP($C17,'Indicateurs Cumulés'!$C$3:$HP$560,188,FALSE)))),VLOOKUP($C17,'Indicateurs Cumulés'!$C$3:$HP$560,188,FALSE),IF(VLOOKUP($C17,'Indicateurs Cumulés'!$C$3:$HP$560,188,FALSE)/(VLOOKUP($C17,objectifs!$C$3:$AAB$559,158,FALSE))>=1.5,(VLOOKUP($C17,objectifs!$C$3:$AAB$559,158,FALSE))*1.5,IF(VLOOKUP($C17,'Indicateurs Cumulés'!$C$3:$HP$560,188,FALSE)/(VLOOKUP($C17,objectifs!$C$3:$AAB$559,158,FALSE))<=-0.5,(VLOOKUP($C17,objectifs!$C$3:$AAB$559,158,FALSE))*-0.5,VLOOKUP($C17,'Indicateurs Cumulés'!$C$3:$HP$560,188,FALSE)))) -> -131 | HR17: 0 | HT17: 2.0 | HV17: 3.40% | HW17: 0.37% | HX17: 0.00% | HY17: 11 | HZ17: 5 | IA17: 0 | IB17: -5 | IC17: -4 | ID17: 0 | IE17: -1 | IF17: -9 | IG17: -2 | IH17: -1 | II17: 0 | IJ17: 1 | IK17: -1 | IL17: 11 | IM17: -12 | IN17: 3 | IO17: 1 | IP17: 0 | IQ17: 0 | IR17: -0 | IS17: -0 | IT17: 0 | IU17: -0 | IV17: -4 | IW17: -0 | IX17: -1 | IY17: 0 | IZ17: 2 | JA17: -1 | JB17: 7 | JC17: -3 | JD17: 0 | JE17: 16 | JF17: 10 | JG17: 0 | JH17: 0 | JI17: 0.00 | JJ17: 0.00 | JK17: 0 | JL17: 0 | JM17: 0 | JN17: 0.20% | JO17: -0 | JQ17: 0 | JR17: -10 | JS17: -109 | JT17: =IF(ISERROR(IF(VLOOKUP($C17,'Indicateurs Cumulés'!$C$3:$HP$560,192,FALSE)/(VLOOKUP($C17,objectifs!$C$3:$AAB$559,162,FALSE))>=1.5,(VLOOKUP($C17,objectifs!$C$3:$AAB$559,162,FALSE))*1.5,IF(VLOOKUP($C17,'Indicateurs Cumulés'!$C$3:$HP$560,192,FALSE)/(VLOOKUP($C17,objectifs!$C$3:$AAB$559,162,FALSE))<=-0.5,(VLOOKUP($C17,objectifs!$C$3:$AAB$559,162,FALSE))*-0.5,VLOOKUP($C17,'Indicateurs Cumulés'!$C$3:$HP$560,192,FALSE)))),VLOOKUP($C17,'Indicateurs Cumulés'!$C$3:$HP$560,192,FALSE),IF(VLOOKUP($C17,'Indicateurs Cumulés'!$C$3:$HP$560,192,FALSE)/(VLOOKUP($C17,objectifs!$C$3:$AAB$559,162,FALSE))>=1.5,(VLOOKUP($C17,objectifs!$C$3:$AAB$559,162,FALSE))*1.5,IF(VLOOKUP($C17,'Indicateurs Cumulés'!$C$3:$HP$560,192,FALSE)/(VLOOKUP($C17,objectifs!$C$3:$AAB$559,162,FALSE))<=-0.5,(VLOOKUP($C17,objectifs!$C$3:$AAB$559,162,FALSE))*-0.5,VLOOKUP($C17,'Indicateurs Cumulés'!$C$3:$HP$560,192,FALSE)))) -> -3 | JU17: 0 | JV17: -0 | JX17: 0 | JY17: -0 | JZ17: -4 | KA17: -0 | KB17: -4 | KC17: 1 | KD17: 0 | KE17: -1 | KF17: 0 | KG17: 0 | KH17: 0 | KI17: 1 | KJ17: 0 | KK17: -1 | KL17: 0 | KM17: 0 | KN17: 0 | KO17: 1 | KP17: 0 | KT17: -1.26 | KU17: 0 | KV17: 1 | KW17: 0 | KX17: 7 | KY17: 1 | KZ17: 0 | LA17: 11 | LB17: 8 | LC17: 0 | LD17: 0 | LE17: 97.4 | LF17: 4 | LG17: -1 | LH17: -1 | LI17: -2 | LJ17: -3 | LK17: -2 | LL17: -0 | LM17: 89 | LN17: 44.8 | LO17: 6 | LP17: 89 | LQ17: -8 | LR17: -4 | LS17: 48.77 | LT17: 87 | LU17: 73 | LV17: 210 | LW17: 75 | LX17: -11 | LY17: 19 | LZ17: 6.5 | MA17: 0.7 | MB17: 0.6 | MC17: 3.8 | MD17: 0.0 | ME17: 0.1 | MF17: 109 | MH17: 0.33%
A18: 105006 | B18: 200262 | C18: 27 | D18: SCHILTIGHEIM CENTRE | E18: 27 | F18: SCHILTIGHEIM CENTRE | G18: 2019-08-31 | H18: 132 | I18: 4.32% | J18: 1.57 | K18: 2019-08-31 | L18: 1,556 | M18: 3.25% | N18: 2.33 | O18: 118 | P18: 4,443 | Q18: 0 | R18: 0.13% | S18: 8.45 | T18: 13.14 | U18: 236 | V18: 2.79% | W18: 2.48 | X18: 328 | Y18: 0.23% | Z18: 8.25 | AA18: 1,268 | AB18: 0.76% | AC18: 3.93 | AD18: 19.4 | AE18: 13.9 | AF18: 5.0 | AG18: 115.1 | AH18: 20.0 | AI18: 10.7 | AJ18: 201908 | AK18: 40.00 | AL18: 0.48 | AM18: 1.20% | AN18: 283.46 | AO18: 87.61 | AP18: 31% | AQ18: 2.55 | AR18: 0.90% | AS18: 1,358.83 | AT18: 156.10 | AU18: 11.5% | AV18: 2.39 | AW18: 0.18% | AX18: 61.93 | AY18: 2.43 | AZ18: 3.92% | BA18: 0.77 | BB18: 1.25% | BC18: 1,744.22 | BD18: 246.13 | BE18: 14.1% | BF18: 6.19 | BG18: 0.35% | BI18: 20 | BJ18: 9 | BK18: 157 | BL18: 179 | BM18: 48 | BN18: 1.30% | BO18: 0.00% | BP18: 27 | BQ18: 50 | BR18: 1 | BS18: 158 | BT18: 4 | BU18: -0 | BV18: 1 | BW18: -19 | BZ18: 0 | CA18: 1 | CB18: 0 | CC18: 5 | CD18: 1 | CE18: 2 | CF18: 1 | CG18: 22 | CH18: 4.4 | CI18: -6 | CJ18: -1 | CK18: 12 | CL18: 12 | CM18: 86.61% | CN18: 119.33% | CO18: 3 | CP18: 100.00% | CQ18: 20.50% | CR18: 1 | CS18: 5.0 | CT18: 1 | CU18: 0.00 | CV18: 1 | CW18: 5 | CX18: 1 | CY18: 19 | CZ18: 53.56% | DA18: 149.53% | DB18: 90 | DC18: 90.61% | DD18: 119.03% | DE18: 25 | DG18: 100.00% | DH18: 100.00% | DI18: 5 | DJ18: 178 | DK18: 0.70% | DL18: 5.33 | DM18: 7 | DN18: -119 | DO18: 0.76% | DP18: 5.33 | DQ18: -5 | DR18: -1 | DS18: 0.85% | DT18: 5.33 | DU18: -0 | DV18: 280 | DW18: 0.40% | DX18: 1.40 | DY18: 2 | DZ18: -333 | EA18: 0.20% | EB18: 5.37 | EC18: -4 | ED18: -38 | EE18: 0.20% | EF18: 5.37 | EG18: -0 | EH18: -27 | EI18: 0.20% | EJ18: 5.37 | EK18: -0 | EL18: 7 | EM18: 0.35% | EN18: 5.33 | EO18: 0 | EP18: -44 | EQ18: 0.10% | ER18: 9.67 | ES18: -0 | ET18: -20 | EU18: 0.20% | EV18: 9.00 | EW18: -0 | EX18: -182 | EY18: 0.00% | EZ18: 8.59 | FA18: 0 | FB18: 0 | FC18: -0.18% | FD18: 0.78 | FE18: 0 | FF18: 204 | FG18: 0.45% | FH18: 8.00 | FI18: 7 | FJ18: 1,910 | FK18: 0.35% | FL18: 1.00 | FM18: 7 | FN18: -32 | FO18: 0.65% | FP18: 5.00 | FQ18: -1 | FR18: 4 | FS18: 0.40% | FT18: 1.00 | FU18: 0 | FV18: -297 | FW18: 0.20% | FX18: 8.00 | FY18: -5 | FZ18: 90 | GA18: 1.00% | GB18: 5.00 | GC18: 5 | GD18: -246 | GE18: 7 | GF18: 283 | GG18: 23 | GH18: -1 | GI18: 1.00% | GJ18: 5.37 | GK18: -0 | GL18: 333 | GM18: 0 | GN18: 0 | GP18: 0 | GQ18: 0.00% | GR18: 0 | GS18: 0 | GT18: 100 | GU18: 0.45% | GV18: 8.00 | GW18: 4 | GX18: 100 | GY18: 0.35% | GZ18: 1.00 | HA18: 0 | HB18: 0 | HC18: 0.65% | HD18: 5.00 | HE18: 0 | HF18: 0 | HG18: 0.40% | HH18: 1.00 | HI18: 0 | HJ18: 10 | HK18: 1.00% | HL18: 5.00 | HM18: 1 | HN18: -17 | HO18: 338 | HQ18: =IF(ISERROR(IF(VLOOKUP($C18,'Indicateurs Cumulés'!$C$3:$HP$560,188,FALSE)/(VLOOKUP($C18,objectifs!$C$3:$AAB$559,158,FALSE))>=1.5,(VLOOKUP($C18,objectifs!$C$3:$AAB$559,158,FALSE))*1.5,IF(VLOOKUP($C18,'Indicateurs Cumulés'!$C$3:$HP$560,188,FALSE)/(VLOOKUP($C18,objectifs!$C$3:$AAB$559,158,FALSE))<=-0.5,(VLOOKUP($C18,objectifs!$C$3:$AAB$559,158,FALSE))*-0.5,VLOOKUP($C18,'Indicateurs Cumulés'!$C$3:$HP$560,188,FALSE)))),VLOOKUP($C18,'Indicateurs Cumulés'!$C$3:$HP$560,188,FALSE),IF(VLOOKUP($C18,'Indicateurs Cumulés'!$C$3:$HP$560,188,FALSE)/(VLOOKUP($C18,objectifs!$C$3:$AAB$559,158,FALSE))>=1.5,(VLOOKUP($C18,objectifs!$C$3:$AAB$559,158,FALSE))*1.5,IF(VLOOKUP($C18,'Indicateurs Cumulés'!$C$3:$HP$560,188,FALSE)/(VLOOKUP($C18,objectifs!$C$3:$AAB$559,158,FALSE))<=-0.5,(VLOOKUP($C18,objectifs!$C$3:$AAB$559,158,FALSE))*-0.5,VLOOKUP($C18,'Indicateurs Cumulés'!$C$3:$HP$560,188,FALSE)))) -> -1 | HR18: 0 | HT18: 4.9 | HV18: 4.00% | HW18: 0.45% | HX18: 0.97% | HY18: -2 | HZ18: 5 | IA18: -2 | IB18: -12 | IC18: -17 | ID18: 6 | IE18: 3 | IF18: -10 | IG18: 1 | IH18: -7 | II18: 0 | IJ18: 1 | IK18: -3 | IL18: 33 | IM18: -14 | IN18: 1 | IO18: -0 | IP18: 0 | IQ18: -1 | IR18: -1 | IS18: -0 | IT18: 1 | IU18: 0 | IV18: -4 | IW18: 0 | IX18: -4 | IY18: 0 | IZ18: 2 | JA18: -3 | JB18: 21 | JC18: -3 | JD18: 0 | JE18: 40 | JF18: 78 | JG18: 0 | JH18: 0 | JI18: 0.00 | JJ18: 0.00 | JK18: 0 | JL18: 0 | JM18: 0 | JN18: 0.20% | JO18: 38 | JQ18: 64 | JR18: 262 | JS18: 10 | JT18: =IF(ISERROR(IF(VLOOKUP($C18,'Indicateurs Cumulés'!$C$3:$HP$560,192,FALSE)/(VLOOKUP($C18,objectifs!$C$3:$AAB$559,162,FALSE))>=1.5,(VLOOKUP($C18,objectifs!$C$3:$AAB$559,162,FALSE))*1.5,IF(VLOOKUP($C18,'Indicateurs Cumulés'!$C$3:$HP$560,192,FALSE)/(VLOOKUP($C18,objectifs!$C$3:$AAB$559,162,FALSE))<=-0.5,(VLOOKUP($C18,objectifs!$C$3:$AAB$559,162,FALSE))*-0.5,VLOOKUP($C18,'Indicateurs Cumulés'!$C$3:$HP$560,192,FALSE)))),VLOOKUP($C18,'Indicateurs Cumulés'!$C$3:$HP$560,192,FALSE),IF(VLOOKUP($C18,'Indicateurs Cumulés'!$C$3:$HP$560,192,FALSE)/(VLOOKUP($C18,objectifs!$C$3:$AAB$559,162,FALSE))>=1.5,(VLOOKUP($C18,objectifs!$C$3:$AAB$559,162,FALSE))*1.5,IF(VLOOKUP($C18,'Indicateurs Cumulés'!$C$3:$HP$560,192,FALSE)/(VLOOKUP($C18,objectifs!$C$3:$AAB$559,162,FALSE))<=-0.5,(VLOOKUP($C18,objectifs!$C$3:$AAB$559,162,FALSE))*-0.5,VLOOKUP($C18,'Indicateurs Cumulés'!$C$3:$HP$560,192,FALSE)))) -> 8 | JU18: 0 | JV18: 2 | JX18: 2 | JY18: 8 | JZ18: 0 | KA18: 0 | KB18: 13 | KC18: 9 | KD18: 0 | KE18: 2 | KF18: 1 | KG18: 3 | KH18: 1 | KI18: 13 | KJ18: 0 | KK18: 1 | KL18: 0 | KM18: 2 | KN18: 0 | KO18: 30 | KP18: 12 | KT18: 5.43 | KU18: 16 | KV18: 27 | KW18: 0 | KX18: 36 | KY18: 7 | KZ18: 0 | LA18: 31 | LB18: 22 | LC18: 0 | LD18: 0 | LE18: 466.7 | LF18: 140 | LG18: 9 | LH18: 6 | LI18: 8 | LJ18: 12 | LK18: 6 | LL18: 1 | LM18: 442 | LN18: 90.2 | LO18: 30 | LP18: 385 | LQ18: -17 | LR18: 18 | LS18: 95.09 | LT18: 187 | LU18: 111 | LV18: 762 | LW18: 159 | LX18: 100 | LY18: 58 | LZ18: 14.0 | MA18: 1.1 | MB18: 2.3 | MC18: 8.0 | MD18: 1.5 | ME18: 0.3 | MF18: 494 | MH18: 0.44%
A19: 105006 | B19: 200262 | C19: 28 | D19: BISCHHEIM | E19: 28 | F19: BISCHHEIM | G19: 2019-08-31 | H19: 136 | I19: 4.32% | J19: 1.57 | K19: 2019-08-31 | L19: 993 | M19: 2.99% | N19: 2.45 | O19: 73 | P19: 3,241 | Q19: 0 | R19: 0.19% | S19: 7.33 | T19: 11.01 | U19: 33 | V19: 2.33% | W19: 3.43 | X19: 283 | Y19: 0.55% | Z19: 7.78 | AA19: 160 | AB19: 0.85% | AC19: 3.01 | AD19: 10.4 | AE19: 7.5 | AF19: 0.9 | AG19: 490.3 | AH19: 19.8 | AI19: 5.8 | AJ19: 201908 | AK19: 1.50 | AL19: 0.04 | AM19: 2.40% | AN19: 236.25 | AO19: 72.03 | AP19: 30% | AQ19: 2.95 | AR19: 1.25% | AS19: 1,369.58 | AT19: 165.02 | AU19: 12.0% | AV19: 1.73 | AW19: 0.13% | AX19: 121.92 | AY19: 15.87 | AZ19: 13.01% | BA19: 2.09 | BB19: 1.71% | BC19: 1,729.24 | BD19: 252.92 | BE19: 14.6% | BF19: 6.81 | BG19: 0.39% | BI19: 4 | BJ19: 29 | BK19: 108 | BL19: 163 | BM19: 6 | BN19: 1.43% | BO19: 0.00% | BP19: 28 | BQ19: 216 | BR19: 4 | BS19: 94 | BT19: 3 | BU19: 3 | BV19: 2 | BW19: -6 | BZ19: 0 | CA19: 2 | CB19: 1 | CC19: -2 | CD19: -0 | CE19: 0 | CF19: 0 | CG19: 9 | CH19: 1.8 | CI19: -3 | CJ19: -1 | CK19: 6 | CL19: 6 | CM19: 100.00% | CN19: 200.00% | CO19: 1 | CP19: 200.00% | CQ19: 99.65% | CR19: 15 | CS19: 0.9 | CT19: 1 | CU19: 0.20 | CV19: 0 | CW19: 5 | CX19: 1 | CY19: 10 | CZ19: 75.66% | DA19: 162.47% | DB19: 96 | DC19: 96.65% | DD19: 140.19% | DE19: 22 | DG19: 100.00% | DH19: 100.00% | DI19: 0 | DJ19: -39 | DK19: 0.70% | DL19: 5.33 | DM19: -1 | DN19: 21 | DO19: 0.76% | DP19: 5.33 | DQ19: 1 | DR19: -10 | DS19: 0.85% | DT19: 5.33 | DU19: -0 | DV19: 3 | DW19: 0.40% | DX19: 1.40 | DY19: 0 | DZ19: -239 | EA19: 0.20% | EB19: 5.37 | EC19: -3 | ED19: 139 | EE19: 0.20% | EF19: 5.37 | EG19: 1 | EH19: -51 | EI19: 0.20% | EJ19: 5.37 | EK19: -1 | EL19: 8 | EM19: 0.35% | EN19: 5.33 | EO19: 0 | EP19: 5 | EQ19: 0.10% | ER19: 5.88 | ES19: 0 | ET19: -66 | EU19: 0.20% | EV19: 9.00 | EW19: -1 | EX19: 330 | EY19: 0.00% | EZ19: 8.59 | FA19: 0 | FB19: -5 | FC19: -0.18% | FD19: 0.78 | FE19: 0 | FF19: 361 | FG19: 0.45% | FH19: 8.00 | FI19: 13 | FJ19: 1,784 | FK19: 0.39% | FL19: 1.00 | FM19: 7 | FN19: -107 | FO19: 0.65% | FP19: 5.00 | FQ19: -3 | FR19: 19 | FS19: 0.40% | FT19: 1.00 | FU19: 0 | FV19: -399 | FW19: 0.20% | FX19: 8.00 | FY19: -6 | FZ19: -64 | GA19: 1.00% | GB19: 5.00 | GC19: -3 | GD19: -247 | GE19: -9 | GF19: 340 | GG19: 28 | GH19: 437 | GI19: 1.00% | GJ19: 5.37 | GK19: 23 | GL19: 103 | GM19: 0 | GN19: 0 | GP19: 18 | GQ19: 1.95% | GR19: 1.93 | GS19: 1 | GT19: 0 | GU19: 0.45% | GV19: 8.00 | GW19: 0 | GX19: 0 | GY19: 0.39% | GZ19: 1.00 | HA19: 0 | HB19: 0 | HC19: 0.65% | HD19: 5.00 | HE19: 0 | HF19: 0 | HG19: 0.40% | HH19: 1.00 | HI19: 0 | HJ19: 86 | HK19: 1.00% | HL19: 5.00 | HM19: 4 | HN19: -13 | HO19: 285 | HQ19: =IF(ISERROR(IF(VLOOKUP($C19,'Indicateurs Cumulés'!$C$3:$HP$560,188,FALSE)/(VLOOKUP($C19,objectifs!$C$3:$AAB$559,158,FALSE))>=1.5,(VLOOKUP($C19,objectifs!$C$3:$AAB$559,158,FALSE))*1.5,IF(VLOOKUP($C19,'Indicateurs Cumulés'!$C$3:$HP$560,188,FALSE)/(VLOOKUP($C19,objectifs!$C$3:$AAB$559,158,FALSE))<=-0.5,(VLOOKUP($C19,objectifs!$C$3:$AAB$559,158,FALSE))*-0.5,VLOOKUP($C19,'Indicateurs Cumulés'!$C$3:$HP$560,188,FALSE)))),VLOOKUP($C19,'Indicateurs Cumulés'!$C$3:$HP$560,188,FALSE),IF(VLOOKUP($C19,'Indicateurs Cumulés'!$C$3:$HP$560,188,FALSE)/(VLOOKUP($C19,objectifs!$C$3:$AAB$559,158,FALSE))>=1.5,(VLOOKUP($C19,objectifs!$C$3:$AAB$559,158,FALSE))*1.5,IF(VLOOKUP($C19,'Indicateurs Cumulés'!$C$3:$HP$560,188,FALSE)/(VLOOKUP($C19,objectifs!$C$3:$AAB$559,158,FALSE))<=-0.5,(VLOOKUP($C19,objectifs!$C$3:$AAB$559,158,FALSE))*-0.5,VLOOKUP($C19,'Indicateurs Cumulés'!$C$3:$HP$560,188,FALSE)))) -> 437 | HR19: 0 | HT19: 3.7 | HV19: 3.92% | HW19: 0.66% | HX19: 1.17% | HY19: 16 | HZ19: 12 | IA19: 0 | IB19: -6 | IC19: -11 | ID19: 3 | IE19: 14 | IF19: -19 | IG19: -2 | IH19: -12 | II19: -4 | IJ19: 0 | IK19: 4 | IL19: 33 | IM19: -43 | IN19: 0 | IO19: 2 | IP19: 1 | IQ19: 0 | IR19: -0 | IS19: -0 | IT19: 0 | IU19: 2 | IV19: -8 | IW19: -0 | IX19: -7 | IY19: -4 | IZ19: 0 | JA19: 4 | JB19: 21 | JC19: -9 | JD19: 0 | JE19: 34 | JF19: 39 | JG19: 0 | JH19: 0 | JI19: 0.00 | JJ19: 0.00 | JK19: 0 | JL19: 0 | JM19: -45 | JN19: 0.20% | JO19: 21 | JQ19: 1 | JR19: 120 | JS19: -15 | JT19: =IF(ISERROR(IF(VLOOKUP($C19,'Indicateurs Cumulés'!$C$3:$HP$560,192,FALSE)/(VLOOKUP($C19,objectifs!$C$3:$AAB$559,162,FALSE))>=1.5,(VLOOKUP($C19,objectifs!$C$3:$AAB$559,162,FALSE))*1.5,IF(VLOOKUP($C19,'Indicateurs Cumulés'!$C$3:$HP$560,192,FALSE)/(VLOOKUP($C19,objectifs!$C$3:$AAB$559,162,FALSE))<=-0.5,(VLOOKUP($C19,objectifs!$C$3:$AAB$559,162,FALSE))*-0.5,VLOOKUP($C19,'Indicateurs Cumulés'!$C$3:$HP$560,192,FALSE)))),VLOOKUP($C19,'Indicateurs Cumulés'!$C$3:$HP$560,192,FALSE),IF(VLOOKUP($C19,'Indicateurs Cumulés'!$C$3:$HP$560,192,FALSE)/(VLOOKUP($C19,objectifs!$C$3:$AAB$559,162,FALSE))>=1.5,(VLOOKUP($C19,objectifs!$C$3:$AAB$559,162,FALSE))*1.5,IF(VLOOKUP($C19,'Indicateurs Cumulés'!$C$3:$HP$560,192,FALSE)/(VLOOKUP($C19,objectifs!$C$3:$AAB$559,162,FALSE))<=-0.5,(VLOOKUP($C19,objectifs!$C$3:$AAB$559,162,FALSE))*-0.5,VLOOKUP($C19,'Indicateurs Cumulés'!$C$3:$HP$560,192,FALSE)))) -> 8 | JU19: -1 | JV19: 1 | JX19: 0 | JY19: 4 | JZ19: -0 | KA19: 0 | KB19: 4 | KC19: -1 | KD19: 0 | KE19: -1 | KF19: 0 | KG19: -2 | KH19: 0 | KI19: -1 | KJ19: 0 | KK19: -1 | KL19: 0 | KM19: -1 | KN19: 0 | KO19: 2 | KP19: 5 | KT19: 3.44 | KU19: -4 | KV19: 3 | KW19: 0 | KX19: 5 | KY19: 1 | KZ19: 0 | LA19: 37 | LB19: 26 | LC19: 0 | LD19: 0 | LE19: 327.9 | LF19: 36 | LG19: -4 | LH19: -3 | LI19: -4 | LJ19: -6 | LK19: 0 | LL19: 0 | LM19: 313 | LN19: 84.6 | LO19: 42 | LP19: 278 | LQ19: -13 | LR19: -9 | LS19: 88.53 | LT19: 170 | LU19: 89 | LV19: 700 | LW19: 130 | LX19: 175 | LY19: 51 | LZ19: 12.8 | MA19: 0.9 | MB19: 2.1 | MC19: 6.5 | MD19: 2.6 | ME19: 0.3 | MF19: 353 | MH19: 0.32%
A20: 105006 | B20: 200262 | C20: 29 | D20: SCHILTIGHEIM KLEBER | E20: 29 | F20: SCHILTIGHEIM KLEBER | G20: 2019-08-31 | H20: 115 | I20: 4.32% | J20: 1.57 | K20: 2019-08-31 | L20: 921 | M20: 3.16% | N20: 2.29 | O20: 67 | P20: 1,460 | Q20: 0 | R20: 0.03% | S20: 7.51 | T20: 11.58 | U20: 22 | V20: 2.79% | W20: 2.08 | X20: 0 | Y20: 0.00% | Z20: 0 | AA20: 69 | AB20: 2.07% | AC20: 2.99 | AD20: 4.8 | AE20: 9.9 | AF20: 1.2 | AG20: 47.3 | AH20: 13.8 | AI20: 3.3 | AJ20: 201908 | AK20: 32.00 | AL20: 0.48 | AM20: 1.50% | AN20: 252.47 | AO20: 41.06 | AP20: 16% | AQ20: 1.12 | AR20: 0.44% | AS20: 834.57 | AT20: 149.58 | AU20: 17.9% | AV20: 0.86 | AW20: 0.10% | AX20: 23.98 | AY20: 3.52 | AZ20: 14.69% | BA20: 0.48 | BB20: 1.99% | BC20: 1,143.02 | BD20: 194.16 | BE20: 17.0% | BF20: 2.94 | BG20: 0.26% | BI20: 2 | BJ20: 0 | BK20: 92 | BL20: 46 | BM20: 6 | BN20: 1.44% | BO20: 0.00% | BP20: 29 | BQ20: 144 | BR20: 3 | BS20: 78 | BT20: 2 | BU20: 3 | BV20: 2 | BW20: 0 | BZ20: 0 | CA20: 0 | CB20: 0 | CC20: 1 | CD20: 0 | CE20: 1 | CF20: 1 | CG20: 14 | CH20: 2.8 | CI20: 20 | CJ20: 4 | CK20: 2 | CL20: 2 | CM20: 100.00% | CN20: 100.00% | CO20: 0 | CP20: 0.00% | CQ20: 0.00% | CR20: 0 | CS20: 1.2 | CT20: 0 | CU20: 0.00 | CV20: 0 | CW20: 0 | CX20: 0 | CY20: 5 | CZ20: 74.70% | DA20: 181.24% | DB20: 32 | DC20: 98.43% | DD20: 123.67% | DE20: 17 | DG20: 100.00% | DH20: 100.00% | DI20: 0 | DJ20: -44 | DK20: 0.70% | DL20: 5.33 | DM20: -2 | DN20: 201 | DO20: 0.76% | DP20: 5.33 | DQ20: 8 | DR20: -14 | DS20: 0.85% | DT20: 5.33 | DU20: -1 | DV20: 300 | DW20: 0.40% | DX20: 1.40 | DY20: 2 | DZ20: -129 | EA20: 0.20% | EB20: 5.37 | EC20: -1 | ED20: -27 | EE20: 0.20% | EF20: 5.37 | EG20: -0 | EH20: -15 | EI20: 0.20% | EJ20: 5.37 | EK20: -0 | EL20: 55 | EM20: 0.35% | EN20: 5.33 | EO20: 1 | EP20: -5 | EQ20: 0.10% | ER20: 8.76 | ES20: -0 | ET20: -5 | EU20: 0.20% | EV20: 9.00 | EW20: -0 | EX20: -296 | EY20: 0.00% | EZ20: 8.59 | FA20: 0 | FB20: 0 | FC20: -0.18% | FD20: 0.78 | FE20: 0 | FF20: 472 | FG20: 0.45% | FH20: 8.00 | FI20: 17 | FJ20: 1,192 | FK20: 0.26% | FL20: 1.00 | FM20: 3 | FN20: -62 | FO20: 0.65% | FP20: 5.00 | FQ20: -2 | FR20: 6 | FS20: 0.40% | FT20: 1.00 | FU20: 0 | FV20: -457 | FW20: 0.20% | FX20: 8.00 | FY20: -7 | FZ20: 82 | GA20: 1.00% | GB20: 5.00 | GC20: 4 | GD20: -216 | GE20: 8 | GF20: 563 | GG20: 30 | GH20: -44 | GI20: 1.00% | GJ20: 5.37 | GK20: -2 | GL20: 22 | GM20: 0 | GN20: 0 | GP20: 0 | GQ20: 0.00% | GR20: 0 | GS20: 0 | GT20: 100 | GU20: 0.45% | GV20: 8.00 | GW20: 4 | GX20: 100 | GY20: 0.26% | GZ20: 1.00 | HA20: 0 | HB20: 0 | HC20: 0.65% | HD20: 5.00 | HE20: 0 | HF20: 0 | HG20: 0.40% | HH20: 1.00 | HI20: 0 | HJ20: 53 | HK20: 1.00% | HL20: 5.00 | HM20: 3 | HN20: -8 | HO20: 187 | HQ20: =IF(ISERROR(IF(VLOOKUP($C20,'Indicateurs Cumulés'!$C$3:$HP$560,188,FALSE)/(VLOOKUP($C20,objectifs!$C$3:$AAB$559,158,FALSE))>=1.5,(VLOOKUP($C20,objectifs!$C$3:$AAB$559,158,FALSE))*1.5,IF(VLOOKUP($C20,'Indicateurs Cumulés'!$C$3:$HP$560,188,FALSE)/(VLOOKUP($C20,objectifs!$C$3:$AAB$559,158,FALSE))<=-0.5,(VLOOKUP($C20,objectifs!$C$3:$AAB$559,158,FALSE))*-0.5,VLOOKUP($C20,'Indicateurs Cumulés'!$C$3:$HP$560,188,FALSE)))),VLOOKUP($C20,'Indicateurs Cumulés'!$C$3:$HP$560,188,FALSE),IF(VLOOKUP($C20,'Indicateurs Cumulés'!$C$3:$HP$560,188,FALSE)/(VLOOKUP($C20,objectifs!$C$3:$AAB$559,158,FALSE))>=1.5,(VLOOKUP($C20,objectifs!$C$3:$AAB$559,158,FALSE))*1.5,IF(VLOOKUP($C20,'Indicateurs Cumulés'!$C$3:$HP$560,188,FALSE)/(VLOOKUP($C20,objectifs!$C$3:$AAB$559,158,FALSE))<=-0.5,(VLOOKUP($C20,objectifs!$C$3:$AAB$559,158,FALSE))*-0.5,VLOOKUP($C20,'Indicateurs Cumulés'!$C$3:$HP$560,188,FALSE)))) -> -44 | HR20: 0 | HT20: 3.0 | HV20: 3.87% | HW20: 0.40% | HX20: 2.79% | HY20: 16 | HZ20: 9 | IA20: 0 | IB20: -9 | IC20: 1 | ID20: 5 | IE20: 24 | IF20: 15 | IG20: -1 | IH20: -8 | II20: 0 | IJ20: 0 | IK20: 2 | IL20: 30 | IM20: -11 | IN20: -4 | IO20: 2 | IP20: 1 | IQ20: 0 | IR20: -1 | IS20: 0 | IT20: 0 | IU20: 3 | IV20: 7 | IW20: -0 | IX20: -5 | IY20: 0 | IZ20: 0 | JA20: 2 | JB20: 20 | JC20: -2 | JD20: -0 | JE20: 68 | JF20: 7 | JG20: 0 | JH20: 0 | JI20: 0.00 | JJ20: 0.00 | JK20: 0 | JL20: 0 | JM20: 0 | JN20: 0.20% | JO20: 35 | JQ20: 100 | JR20: 139 | JS20: 24 | JT20: =IF(ISERROR(IF(VLOOKUP($C20,'Indicateurs Cumulés'!$C$3:$HP$560,192,FALSE)/(VLOOKUP($C20,objectifs!$C$3:$AAB$559,162,FALSE))>=1.5,(VLOOKUP($C20,objectifs!$C$3:$AAB$559,162,FALSE))*1.5,IF(VLOOKUP($C20,'Indicateurs Cumulés'!$C$3:$HP$560,192,FALSE)/(VLOOKUP($C20,objectifs!$C$3:$AAB$559,162,FALSE))<=-0.5,(VLOOKUP($C20,objectifs!$C$3:$AAB$559,162,FALSE))*-0.5,VLOOKUP($C20,'Indicateurs Cumulés'!$C$3:$HP$560,192,FALSE)))),VLOOKUP($C20,'Indicateurs Cumulés'!$C$3:$HP$560,192,FALSE),IF(VLOOKUP($C20,'Indicateurs Cumulés'!$C$3:$HP$560,192,FALSE)/(VLOOKUP($C20,objectifs!$C$3:$AAB$559,162,FALSE))>=1.5,(VLOOKUP($C20,objectifs!$C$3:$AAB$559,162,FALSE))*1.5,IF(VLOOKUP($C20,'Indicateurs Cumulés'!$C$3:$HP$560,192,FALSE)/(VLOOKUP($C20,objectifs!$C$3:$AAB$559,162,FALSE))<=-0.5,(VLOOKUP($C20,objectifs!$C$3:$AAB$559,162,FALSE))*-0.5,VLOOKUP($C20,'Indicateurs Cumulés'!$C$3:$HP$560,192,FALSE)))) -> 8 | JU20: 0 | JV20: 2 | JX20: 4 | JY20: 4 | JZ20: 1 | KA20: 0 | KB20: 11 | KC20: 0 | KD20: 1 | KE20: 0 | KF20: 1 | KG20: 1 | KH20: 1 | KI20: 0 | KJ20: 1 | KK20: 0 | KL20: 0 | KM20: 1 | KN20: 0 | KO20: 7 | KP20: 4 | KT20: 4.71 | KU20: 4 | KV20: 11 | KW20: 0 | KX20: 38 | KY20: 8 | KZ20: 0 | LA20: 32 | LB20: 22 | LC20: 0 | LD20: 0 | LE20: 238.6 | LF20: 19 | LG20: -2 | LH20: -1 | LI20: -3 | LJ20: -4 | LK20: -1 | LL20: -0 | LM20: 221 | LN20: 73.4 | LO20: 35 | LP20: 144 | LQ20: -8 | LR20: -6 | LS20: 79.14 | LT20: 113 | LU20: 120 | LV20: 582 | LW20: 100 | LX20: 103 | LY20: 37 | LZ20: 8.5 | MA20: 1.2 | MB20: 1.7 | MC20: 5.0 | MD20: 1.5 | ME20: 0.2 | MF20: 257 | MH20: 0.33%
A21: 105060 | B21: 200262 | C21: 30 | D21: BRUMATH | E21: 30 | F21: BRUMATH | G21: 2019-08-31 | H21: 127 | I21: 4.32% | J21: 1.57 | K21: 2019-08-31 | L21: 1,546 | M21: 3.15% | N21: 2.53 | O21: 123 | P21: 5,499 | Q21: 0 | R21: 0.12% | S21: 8.07 | T21: 12.43 | U21: 58 | V21: 2.43% | W21: 2.37 | X21: 518 | Y21: 0.08% | Z21: 7.42 | AA21: 1,826 | AB21: 0.60% | AC21: 4.06 | AD21: 20.2 | AE21: 16.2 | AF21: 6.3 | AG21: 520.8 | AH21: 27.3 | AI21: 11.3 | AJ21: 201908 | AK21: 0 | AL21: 0 | AM21: 0.00% | AN21: 459.90 | AO21: 69.94 | AP21: 15% | AQ21: 5.24 | AR21: 1.14% | AS21: 2,142.08 | AT21: 137.38 | AU21: 6.4% | AV21: 4.83 | AW21: 0.23% | AX21: 112.94 | AY21: 8.74 | AZ21: 7.74% | BA21: 2.02 | BB21: 1.78% | BC21: 2,714.92 | BD21: 216.05 | BE21: 8.0% | BF21: 12.08 | BG21: 0.44% | BI21: 4 | BJ21: 18 | BK21: 175 | BL21: 202 | BM21: 63 | BN21: 1.33% | BO21: 0.00% | BP21: 30 | BQ21: 123 | BR21: 2 | BS21: 254 | BT21: 7 | BU21: 3 | BV21: 2 | BW21: -31 | BZ21: 0 | CA21: 0 | CB21: 0 | CC21: 1 | CD21: 0 | CE21: 2 | CF21: 1 | CG21: 11 | CH21: 2.2 | CI21: -5 | CJ21: -1 | CK21: 9 | CL21: 9 | CM21: 100.00% | CN21: 100.00% | CO21: 0 | CP21: 151.51% | CQ21: 63.91% | CR21: 11 | CS21: 6.3 | CT21: 1 | CU21: 0.28 | CV21: 0 | CW21: 8 | CX21: 2 | CY21: 20 | CZ21: 54.67% | DA21: 144.42% | DB21: 108 | DC21: 97.05% | DD21: 136.30% | DE21: 35 | DG21: 72.53% | DH21: 114.70% | DI21: 10 | DJ21: 679 | DK21: 0.70% | DL21: 5.33 | DM21: 25 | DN21: 30 | DO21: 0.76% | DP21: 5.33 | DQ21: 1 | DR21: 27 | DS21: 0.85% | DT21: 5.33 | DU21: 1 | DV21: 331 | DW21: 0.40% | DX21: 1.40 | DY21: 2 | DZ21: -271 | EA21: 0.20% | EB21: 5.37 | EC21: -3 | ED21: 193 | EE21: 0.20% | EF21: 5.37 | EG21: 2 | EH21: -40 | EI21: 0.20% | EJ21: 5.37 | EK21: -0 | EL21: -46 | EM21: 0.35% | EN21: 5.33 | EO21: -1 | EP21: -33 | EQ21: 0.10% | ER21: 8.44 | ES21: -0 | ET21: -41 | EU21: 0.20% | EV21: 9.00 | EW21: -1 | EX21: -282 | EY21: 0.00% | EZ21: 8.59 | FA21: 0 | FB21: -5 | FC21: -0.18% | FD21: 0.78 | FE21: 0 | FF21: 796 | FG21: 0.45% | FH21: 8.00 | FI21: 29 | FJ21: 2,496 | FK21: 0.44% | FL21: 1.00 | FM21: 11 | FN21: -127 | FO21: 0.65% | FP21: 5.00 | FQ21: -4 | FR21: 68 | FS21: 0.40% | FT21: 1.00 | FU21: 0 | FV21: -479 | FW21: 0.20% | FX21: 8.00 | FY21: -8 | FZ21: 237 | GA21: 1.00% | GB21: 5.00 | GC21: 12 | GD21: 729 | GE21: 44 | GF21: 784 | GG21: 51 | GH21: 85 | GI21: 1.00% | GJ21: 5.37 | GK21: 5 | GL21: -100 | GM21: 0 | GN21: 0 | GP21: 98 | GQ21: 0.84% | GR21: 2.37 | GS21: 2 | GT21: 0 | GU21: 0.45% | GV21: 8.00 | GW21: 0 | GX21: 0 | GY21: 0.44% | GZ21: 1.00 | HA21: 0 | HB21: 0 | HC21: 0.65% | HD21: 5.00 | HE21: 0 | HF21: 0 | HG21: 0.40% | HH21: 1.00 | HI21: 0 | HJ21: 116 | HK21: 1.00% | HL21: 5.00 | HM21: 6 | HN21: -19 | HO21: 330 | HQ21: =IF(ISERROR(IF(VLOOKUP($C21,'Indicateurs Cumulés'!$C$3:$HP$560,188,FALSE)/(VLOOKUP($C21,objectifs!$C$3:$AAB$559,158,FALSE))>=1.5,(VLOOKUP($C21,objectifs!$C$3:$AAB$559,158,FALSE))*1.5,IF(VLOOKUP($C21,'Indicateurs Cumulés'!$C$3:$HP$560,188,FALSE)/(VLOOKUP($C21,objectifs!$C$3:$AAB$559,158,FALSE))<=-0.5,(VLOOKUP($C21,objectifs!$C$3:$AAB$559,158,FALSE))*-0.5,VLOOKUP($C21,'Indicateurs Cumulés'!$C$3:$HP$560,188,FALSE)))),VLOOKUP($C21,'Indicateurs Cumulés'!$C$3:$HP$560,188,FALSE),IF(VLOOKUP($C21,'Indicateurs Cumulés'!$C$3:$HP$560,188,FALSE)/(VLOOKUP($C21,objectifs!$C$3:$AAB$559,158,FALSE))>=1.5,(VLOOKUP($C21,objectifs!$C$3:$AAB$559,158,FALSE))*1.5,IF(VLOOKUP($C21,'Indicateurs Cumulés'!$C$3:$HP$560,188,FALSE)/(VLOOKUP($C21,objectifs!$C$3:$AAB$559,158,FALSE))<=-0.5,(VLOOKUP($C21,objectifs!$C$3:$AAB$559,158,FALSE))*-0.5,VLOOKUP($C21,'Indicateurs Cumulés'!$C$3:$HP$560,188,FALSE)))) -> 85 | HR21: 0 | HT21: 7.3 | HV21: 4.13% | HW21: 0.44% | HX21: 0.82% | HY21: 15 | HZ21: 12 | IA21: -3 | IB21: 3 | IC21: -5 | ID21: 5 | IE21: 28 | IF21: -28 | IG21: -7 | IH21: -33 | II21: -7 | IJ21: 1 | IK21: 0 | IL21: 81 | IM21: -84 | IN21: 0 | IO21: 2 | IP21: 1 | IQ21: -1 | IR21: 0 | IS21: -0 | IT21: 0 | IU21: 3 | IV21: -12 | IW21: -0 | IX21: -21 | IY21: -7 | IZ21: 2 | JA21: 0 | JB21: 53 | JC21: -18 | JD21: 0 | JE21: 70 | JF21: 85 | JG21: 14 | JH21: 0 | JI21: 0.00 | JJ21: 0.00 | JK21: 0 | JL21: 0 | JM21: -6 | JN21: 0.20% | JO21: 24 | JQ21: 11 | JR21: 429 | JS21: -127 | JT21: =IF(ISERROR(IF(VLOOKUP($C21,'Indicateurs Cumulés'!$C$3:$HP$560,192,FALSE)/(VLOOKUP($C21,objectifs!$C$3:$AAB$559,162,FALSE))>=1.5,(VLOOKUP($C21,objectifs!$C$3:$AAB$559,162,FALSE))*1.5,IF(VLOOKUP($C21,'Indicateurs Cumulés'!$C$3:$HP$560,192,FALSE)/(VLOOKUP($C21,objectifs!$C$3:$AAB$559,162,FALSE))<=-0.5,(VLOOKUP($C21,objectifs!$C$3:$AAB$559,162,FALSE))*-0.5,VLOOKUP($C21,'Indicateurs Cumulés'!$C$3:$HP$560,192,FALSE)))),VLOOKUP($C21,'Indicateurs Cumulés'!$C$3:$HP$560,192,FALSE),IF(VLOOKUP($C21,'Indicateurs Cumulés'!$C$3:$HP$560,192,FALSE)/(VLOOKUP($C21,objectifs!$C$3:$AAB$559,162,FALSE))>=1.5,(VLOOKUP($C21,objectifs!$C$3:$AAB$559,162,FALSE))*1.5,IF(VLOOKUP($C21,'Indicateurs Cumulés'!$C$3:$HP$560,192,FALSE)/(VLOOKUP($C21,objectifs!$C$3:$AAB$559,162,FALSE))<=-0.5,(VLOOKUP($C21,objectifs!$C$3:$AAB$559,162,FALSE))*-0.5,VLOOKUP($C21,'Indicateurs Cumulés'!$C$3:$HP$560,192,FALSE)))) -> -3 | JU21: -0 | JV21: 1 | JX21: 0 | JY21: 14 | JZ21: -4 | KA21: -0 | KB21: 11 | KC21: 5 | KD21: 0 | KE21: -1 | KF21: 6 | KG21: -2 | KH21: 3 | KI21: 7 | KJ21: 0 | KK21: -1 | KL21: 1 | KM21: -1 | KN21: 0 | KO21: 22 | KP21: 14 | KT21: 4.82 | KU21: 11 | KV21: 5 | KW21: 0 | KX21: 24 | KY21: 5 | KZ21: 0 | LA21: 82 | LB21: 57 | LC21: 0 | LD21: 0 | LE21: 595.8 | LF21: 130 | LG21: 4 | LH21: 3 | LI21: 6 | LJ21: 9 | LK21: 9 | LL21: 1 | LM21: 574 | LN21: 78.5 | LO21: 100 | LP21: 440 | LQ21: -19 | LR21: 12 | LS21: 81.39 | LT21: 166 | LU21: 246 | LV21: 850 | LW21: 115 | LX21: 36 | LY21: 40 | LZ21: 12.5 | MA21: 2.5 | MB21: 2.6 | MC21: 5.8 | MD21: 0.5 | ME21: 0.2 | MF21: 620 | MH21: 0.37%
A22: 105060 | B22: 200262 | C22: 31 | D22: TRUCHTERSHEIM | E22: 31 | F22: TRUCHTERSHEIM | G22: 2019-08-31 | H22: 60 | I22: 4.32% | J22: 1.57 | K22: 2019-08-31 | L22: 818 | M22: 2.65% | N22: 2.19 | O22: 47 | P22: 6,995 | Q22: 0 | R22: 0.11% | S22: 7.53 | T22: 11.69 | U22: 108 | V22: 2.52% | W22: 2.38 | X22: 298 | Y22: -0.04% | Z22: 5.15 | AA22: 204 | AB22: 1.29% | AC22: 2.99 | AD22: 14.6 | AE22: 6.5 | AF22: 2.1 | AG22: 386.2 | AH22: 9.3 | AI22: 12.2 | AJ22: 201908 | AK22: 0 | AL22: 0 | AM22: 0.00% | AN22: 156.24 | AO22: 23.64 | AP22: 15% | AQ22: 1.66 | AR22: 1.06% | AS22: 765.37 | AT22: 33.65 | AU22: 4.4% | AV22: 0.25 | AW22: 0.03% | AX22: 23.50 | AY22: 3.67 | AZ22: 15.62% | BA22: 0.54 | BB22: 2.32% | BC22: 945.11 | BD22: 60.96 | BE22: 6.5% | BF22: 2.46 | BG22: 0.26% | BI22: 9 | BJ22: 2 | BK22: 67 | BL22: 175 | BM22: 11 | BN22: 1.26% | BO22: 0.00% | BP22: 31 | BQ22: 60 | BR22: 1 | BS22: 167 | BT22: 5 | BU22: 2 | BV22: 2 | BW22: -21 | BZ22: 0 | CA22: 0 | CB22: 0 | CC22: 2 | CD22: 0 | CE22: -2 | CF22: -1 | CG22: 22 | CH22: 4.4 | CI22: -2 | CJ22: -0 | CK22: 9 | CL22: 9 | CM22: 104.83% | CN22: 146.08% | CO22: 2 | CP22: 100.00% | CQ22: 30.79% | CR22: 1 | CS22: 2.1 | CT22: 0 | CU22: 0.00 | CV22: 0 | CW22: 2 | CX22: 1 | CY22: 15 | CZ22: 33.58% | DA22: 106.89% | DB22: 83 | DC22: 88.35% | DD22: 133.09% | DE22: 14 | DG22: 48.38% | DH22: 100.00% | DI22: 0 | DJ22: 338 | DK22: 0.70% | DL22: 5.33 | DM22: 13 | DN22: 815 | DO22: 0.76% | DP22: 5.33 | DQ22: 33 | DR22: -22 | DS22: 0.85% | DT22: 5.33 | DU22: -1 | DV22: 194 | DW22: 0.40% | DX22: 1.40 | DY22: 1 | DZ22: -190 | EA22: 0.20% | EB22: 5.37 | EC22: -2 | ED22: 203 | EE22: 0.20% | EF22: 5.37 | EG22: 2 | EH22: -35 | EI22: 0.20% | EJ22: 5.37 | EK22: -0 | EL22: -27 | EM22: 0.35% | EN22: 5.33 | EO22: -0 | EP22: -2 | EQ22: 0.10% | ER22: 7.75 | ES22: -0 | ET22: -127 | EU22: 0.20% | EV22: 9.00 | EW22: -2 | EX22: 383 | EY22: 0.00% | EZ22: 8.59 | FA22: 0 | FB22: 0 | FC22: -0.18% | FD22: 0.78 | FE22: 0 | FF22: -191 | FG22: 0.45% | FH22: 8.00 | FI22: -7 | FJ22: 818 | FK22: 0.26% | FL22: 1.00 | FM22: 2 | FN22: -112 | FO22: 0.65% | FP22: 5.00 | FQ22: -4 | FR22: 9 | FS22: 0.40% | FT22: 1.00 | FU22: 0 | FV22: -238 | FW22: 0.20% | FX22: 8.00 | FY22: -4 | FZ22: 304 | GA22: 1.00% | GB22: 5.00 | GC22: 15 | GD22: 2,252 | GE22: 75 | GF22: -179 | GG22: 4 | GH22: -388 | GI22: 1.00% | GJ22: 5.37 | GK22: -21 | GL22: -124 | GM22: 0 | GN22: 0 | GP22: 0 | GQ22: 0.00% | GR22: 0 | GS22: 0 | GT22: -40 | GU22: 0.45% | GV22: 8.00 | GW22: -1 | GX22: 0 | GY22: 0.26% | GZ22: 1.00 | HA22: 0 | HB22: 0 | HC22: 0.65% | HD22: 5.00 | HE22: 0 | HF22: 0 | HG22: 0.40% | HH22: 1.00 | HI22: 0 | HJ22: 164 | HK22: 1.00% | HL22: 5.00 | HM22: 8 | HN22: -11 | HO22: 188 | HQ22: =IF(ISERROR(IF(VLOOKUP($C22,'Indicateurs Cumulés'!$C$3:$HP$560,188,FALSE)/(VLOOKUP($C22,objectifs!$C$3:$AAB$559,158,FALSE))>=1.5,(VLOOKUP($C22,objectifs!$C$3:$AAB$559,158,FALSE))*1.5,IF(VLOOKUP($C22,'Indicateurs Cumulés'!$C$3:$HP$560,188,FALSE)/(VLOOKUP($C22,objectifs!$C$3:$AAB$559,158,FALSE))<=-0.5,(VLOOKUP($C22,objectifs!$C$3:$AAB$559,158,FALSE))*-0.5,VLOOKUP($C22,'Indicateurs Cumulés'!$C$3:$HP$560,188,FALSE)))),VLOOKUP($C22,'Indicateurs Cumulés'!$C$3:$HP$560,188,FALSE),IF(VLOOKUP($C22,'Indicateurs Cumulés'!$C$3:$HP$560,188,FALSE)/(VLOOKUP($C22,objectifs!$C$3:$AAB$559,158,FALSE))>=1.5,(VLOOKUP($C22,objectifs!$C$3:$AAB$559,158,FALSE))*1.5,IF(VLOOKUP($C22,'Indicateurs Cumulés'!$C$3:$HP$560,188,FALSE)/(VLOOKUP($C22,objectifs!$C$3:$AAB$559,158,FALSE))<=-0.5,(VLOOKUP($C22,objectifs!$C$3:$AAB$559,158,FALSE))*-0.5,VLOOKUP($C22,'Indicateurs Cumulés'!$C$3:$HP$560,188,FALSE)))) -> -242 | HR22: 0 | HT22: 3.5 | HV22: 3.51% | HW22: 0.31% | HX22: 1.72% | HY22: 11 | HZ22: 11 | IA22: 3 | IB22: 3 | IC22: -2 | ID22: 3 | IE22: 14 | IF22: -23 | IG22: -6 | IH22: -4 | II22: -2 | IJ22: 1 | IK22: -2 | IL22: 58 | IM22: -41 | IN22: -2 | IO22: 1 | IP22: 1 | IQ22: 1 | IR22: 0 | IS22: -0 | IT22: 0 | IU22: 2 | IV22: -10 | IW22: -0 | IX22: -2 | IY22: -2 | IZ22: 2 | JA22: -2 | JB22: 38 | JC22: -9 | JD22: -0 | JE22: 76 | JF22: 22 | JG22: 0 | JH22: 168 | JI22: 2.23 | JJ22: 202.93 | JK22: 0 | JL22: 0 | JM22: -1 | JN22: 0.20% | JO22: 0 | JQ22: 1 | JR22: 657 | JS22: 10 | JT22: =IF(ISERROR(IF(VLOOKUP($C22,'Indicateurs Cumulés'!$C$3:$HP$560,192,FALSE)/(VLOOKUP($C22,objectifs!$C$3:$AAB$559,162,FALSE))>=1.5,(VLOOKUP($C22,objectifs!$C$3:$AAB$559,162,FALSE))*1.5,IF(VLOOKUP($C22,'Indicateurs Cumulés'!$C$3:$HP$560,192,FALSE)/(VLOOKUP($C22,objectifs!$C$3:$AAB$559,162,FALSE))<=-0.5,(VLOOKUP($C22,objectifs!$C$3:$AAB$559,162,FALSE))*-0.5,VLOOKUP($C22,'Indicateurs Cumulés'!$C$3:$HP$560,192,FALSE)))),VLOOKUP($C22,'Indicateurs Cumulés'!$C$3:$HP$560,192,FALSE),IF(VLOOKUP($C22,'Indicateurs Cumulés'!$C$3:$HP$560,192,FALSE)/(VLOOKUP($C22,objectifs!$C$3:$AAB$559,162,FALSE))>=1.5,(VLOOKUP($C22,objectifs!$C$3:$AAB$559,162,FALSE))*1.5,IF(VLOOKUP($C22,'Indicateurs Cumulés'!$C$3:$HP$560,192,FALSE)/(VLOOKUP($C22,objectifs!$C$3:$AAB$559,162,FALSE))<=-0.5,(VLOOKUP($C22,objectifs!$C$3:$AAB$559,162,FALSE))*-0.5,VLOOKUP($C22,'Indicateurs Cumulés'!$C$3:$HP$560,192,FALSE)))) -> -3 | JU22: -0 | JV22: 0 | JX22: 0 | JY22: 21 | JZ22: 0 | KA22: -0 | KB22: 21 | KC22: 2 | KD22: 0 | KE22: 1 | KF22: 3 | KG22: 1 | KH22: 0 | KI22: 3 | KJ22: 0 | KK22: 1 | KL22: 1 | KM22: 1 | KN22: 0 | KO22: 9 | KP22: 5 | KT22: 4.52 | KU22: 7 | KV22: 16 | KW22: 0 | KX22: 46 | KY22: 9 | KZ22: 0 | LA22: 57 | LB22: 40 | LC22: 0 | LD22: 0 | LE22: 398.5 | LF22: 75 | LG22: 10 | LH22: 7 | LI22: 11 | LJ22: 16 | LK22: 2 | LL22: 0 | LM22: 372 | LN22: 107.4 | LO22: 66 | LP22: 253 | LQ22: -8 | LR22: 23 | LS22: 115.18 | LT22: 137 | LU22: 93 | LV22: 555 | LW22: 105 | LX22: 95 | LY22: 21 | LZ22: 10.3 | MA22: 0.9 | MB22: 1.7 | MC22: 5.3 | MD22: 1.4 | ME22: 0.1 | MF22: 418 | MH22: 0.21%
A23: 105006 | B23: 200262 | C23: 33 | D23: LA WANTZENAU | E23: 33 | F23: LA WANTZENAU | G23: 2019-08-31 | H23: 37 | I23: 4.32% | J23: 1.57 | K23: 2019-08-31 | L23: 779 | M23: 3.31% | N23: 2.45 | O23: 63 | P23: 3,785 | Q23: 0 | R23: 0.07% | S23: 6.93 | T23: 10.93 | U23: 94 | V23: 2.91% | W23: 3.06 | X23: 0 | Y23: 0.00% | Z23: 0 | AA23: 5 | AB23: 0.46% | AC23: 6.54 | AD23: 8.2 | AE23: 7.9 | AF23: 2.2 | AG23: 62.8 | AH23: 14.2 | AI23: 5.0 | AJ23: 201908 | AK23: 0 | AL23: 0 | AM23: 0.00% | AN23: 372.29 | AO23: 70.37 | AP23: 19% | AQ23: 2.30 | AR23: 0.62% | AS23: 846.32 | AT23: 8.57 | AU23: 1.0% | AV23: 0.88 | AW23: 0.10% | AX23: 41.40 | AY23: 8.13 | AZ23: 19.63% | BA23: 0.67 | BB23: 1.62% | BC23: 1,260.01 | BD23: 87.07 | BE23: 6.9% | BF23: 3.85 | BG23: 0.31% | BI23: 13 | BJ23: 0 | BK23: 87 | BL23: 82 | BM23: 4 | BN23: 1.21% | BO23: 0.00% | BP23: 33 | BQ23: 17 | BR23: 0 | BS23: 129 | BT23: 4 | BU23: -0 | BV23: 1 | BW23: -8 | BZ23: 0 | CA23: 0 | CB23: 0 | CC23: 0 | CD23: 0 | CE23: 5 | CF23: 3 | CG23: 11 | CH23: 2.2 | CI23: -12 | CJ23: -3 | CK23: 6 | CL23: 6 | CM23: 100.00% | CN23: 200.00% | CO23: 4 | CP23: 0.00% | CQ23: 0.00% | CR23: 0 | CS23: 2.2 | CT23: 0 | CU23: 0.00 | CV23: 1 | CW23: 5 | CX23: 0 | CY23: 8 | CZ23: 53.71% | DA23: 93.85% | DB23: 44 | DC23: 95.51% | DD23: 140.12% | DE23: 17 | DG23: 100.00% | DH23: 102.13% | DI23: 1 | DJ23: 162 | DK23: 0.70% | DL23: 5.33 | DM23: 6 | DN23: 1,251 | DO23: 0.76% | DP23: 5.33 | DQ23: 51 | DR23: -77 | DS23: 0.85% | DT23: 5.33 | DU23: -4 | DV23: 179 | DW23: 0.40% | DX23: 1.40 | DY23: 1 | DZ23: -93 | EA23: 0.20% | EB23: 5.37 | EC23: -1 | ED23: 117 | EE23: 0.20% | EF23: 5.37 | EG23: 1 | EH23: -28 | EI23: 0.20% | EJ23: 5.37 | EK23: -0 | EL23: 5 | EM23: 0.35% | EN23: 5.33 | EO23: 0 | EP23: -14 | EQ23: 0.10% | ER23: 6.76 | ES23: -0 | ET23: -191 | EU23: 0.20% | EV23: 9.00 | EW23: -3 | EX23: 157 | EY23: 0.00% | EZ23: 8.59 | FA23: 0 | FB23: 0 | FC23: -0.18% | FD23: 0.78 | FE23: 0 | FF23: 350 | FG23: 0.45% | FH23: 8.00 | FI23: 13 | FJ23: 1,251 | FK23: 0.31% | FL23: 1.00 | FM23: 4 | FN23: -42 | FO23: 0.65% | FP23: 5.00 | FQ23: -1 | FR23: 25 | FS23: 0.40% | FT23: 1.00 | FU23: 0 | FV23: -286 | FW23: 0.20% | FX23: 8.00 | FY23: -5 | FZ23: 424 | GA23: 1.00% | GB23: 5.00 | GC23: 21 | GD23: 1,643 | GE23: 68 | GF23: 303 | GG23: 19 | GH23: -902 | GI23: 1.00% | GJ23: 5.37 | GK23: -48 | GL23: 67 | GM23: 0 | GN23: 0 | GP23: 0 | GQ23: 0.00% | GR23: 0 | GS23: 0 | GT23: 0 | GU23: 0.45% | GV23: 8.00 | GW23: 0 | GX23: 0 | GY23: 0.31% | GZ23: 1.00 | HA23: 0 | HB23: 0 | HC23: 0.65% | HD23: 5.00 | HE23: 0 | HF23: 0 | HG23: 0.40% | HH23: 1.00 | HI23: 0 | HJ23: -5 | HK23: 1.00% | HL23: 5.00 | HM23: -0 | HN23: -6 | HO23: 131 | HQ23: =IF(ISERROR(IF(VLOOKUP($C23,'Indicateurs Cumulés'!$C$3:$HP$560,188,FALSE)/(VLOOKUP($C23,objectifs!$C$3:$AAB$559,158,FALSE))>=1.5,(VLOOKUP($C23,objectifs!$C$3:$AAB$559,158,FALSE))*1.5,IF(VLOOKUP($C23,'Indicateurs Cumulés'!$C$3:$HP$560,188,FALSE)/(VLOOKUP($C23,objectifs!$C$3:$AAB$559,158,FALSE))<=-0.5,(VLOOKUP($C23,objectifs!$C$3:$AAB$559,158,FALSE))*-0.5,VLOOKUP($C23,'Indicateurs Cumulés'!$C$3:$HP$560,188,FALSE)))),VLOOKUP($C23,'Indicateurs Cumulés'!$C$3:$HP$560,188,FALSE),IF(VLOOKUP($C23,'Indicateurs Cumulés'!$C$3:$HP$560,188,FALSE)/(VLOOKUP($C23,objectifs!$C$3:$AAB$559,158,FALSE))>=1.5,(VLOOKUP($C23,objectifs!$C$3:$AAB$559,158,FALSE))*1.5,IF(VLOOKUP($C23,'Indicateurs Cumulés'!$C$3:$HP$560,188,FALSE)/(VLOOKUP($C23,objectifs!$C$3:$AAB$559,158,FALSE))<=-0.5,(VLOOKUP($C23,objectifs!$C$3:$AAB$559,158,FALSE))*-0.5,VLOOKUP($C23,'Indicateurs Cumulés'!$C$3:$HP$560,188,FALSE)))) -> -192 | HR23: 0 | HT23: 3.0 | HV23: 4.38% | HW23: 0.29% | HX23: 10.11% | HY23: -1 | HZ23: 6 | IA23: -1 | IB23: 2 | IC23: 7 | ID23: 1 | IE23: 15 | IF23: -51 | IG23: -4 | IH23: -4 | II23: -3 | IJ23: 1 | IK23: -5 | IL23: 71 | IM23: -49 | IN23: 2 | IO23: -0 | IP23: 1 | IQ23: -0 | IR23: 0 | IS23: 0 | IT23: 0 | IU23: 2 | IV23: -22 | IW23: -0 | IX23: -2 | IY23: -3 | IZ23: 2 | JA23: -5 | JB23: 46 | JC23: -11 | JD23: 0 | JE23: 62 | JF23: 16 | JG23: 0 | JH23: 0 | JI23: 0.00 | JJ23: 0.00 | JK23: 0 | JL23: 0 | JM23: 0 | JN23: 0.20% | JO23: -2 | JQ23: 10 | JR23: 36 | JS23: 47 | JT23: =IF(ISERROR(IF(VLOOKUP($C23,'Indicateurs Cumulés'!$C$3:$HP$560,192,FALSE)/(VLOOKUP($C23,objectifs!$C$3:$AAB$559,162,FALSE))>=1.5,(VLOOKUP($C23,objectifs!$C$3:$AAB$559,162,FALSE))*1.5,IF(VLOOKUP($C23,'Indicateurs Cumulés'!$C$3:$HP$560,192,FALSE)/(VLOOKUP($C23,objectifs!$C$3:$AAB$559,162,FALSE))<=-0.5,(VLOOKUP($C23,objectifs!$C$3:$AAB$559,162,FALSE))*-0.5,VLOOKUP($C23,'Indicateurs Cumulés'!$C$3:$HP$560,192,FALSE)))),VLOOKUP($C23,'Indicateurs Cumulés'!$C$3:$HP$560,192,FALSE),IF(VLOOKUP($C23,'Indicateurs Cumulés'!$C$3:$HP$560,192,FALSE)/(VLOOKUP($C23,objectifs!$C$3:$AAB$559,162,FALSE))>=1.5,(VLOOKUP($C23,objectifs!$C$3:$AAB$559,162,FALSE))*1.5,IF(VLOOKUP($C23,'Indicateurs Cumulés'!$C$3:$HP$560,192,FALSE)/(VLOOKUP($C23,objectifs!$C$3:$AAB$559,162,FALSE))<=-0.5,(VLOOKUP($C23,objectifs!$C$3:$AAB$559,162,FALSE))*-0.5,VLOOKUP($C23,'Indicateurs Cumulés'!$C$3:$HP$560,192,FALSE)))) -> 8 | JU23: 0 | JV23: -0 | JX23: 0 | JY23: 1 | JZ23: 2 | KA23: 0 | KB23: 3 | KC23: -1 | KD23: 0 | KE23: 1 | KF23: 2 | KG23: -1 | KH23: 0 | KI23: -1 | KJ23: 0 | KK23: 1 | KL23: 0 | KM23: -1 | KN23: 0 | KO23: 4 | KP23: 2 | KT23: 5.80 | KU23: 1 | KV23: 1 | KW23: 0 | KX23: 40 | KY23: 8 | KZ23: 0 | LA23: 67 | LB23: 47 | LC23: 0 | LD23: 0 | LE23: 306.2 | LF23: 28 | LG23: 2 | LH23: 1 | LI23: 2 | LJ23: 3 | LK23: 1 | LL23: 0 | LM23: 289 | LN23: 95.6 | LO23: 77 | LP23: 173 | LQ23: -6 | LR23: 4 | LS23: 101.27 | LT23: 94 | LU23: 43 | LV23: 558 | LW23: 89 | LX23: 37 | LY23: 33 | LZ23: 7.1 | MA23: 0.4 | MB23: 1.7 | MC23: 4.5 | MD23: 0.6 | ME23: 0.2 | MF23: 320 | MH23: 0.22%
A24: 105006 | B24: 200262 | C24: 34 | D24: VENDENHEIM | E24: 37 | F24: MUNDOLSHEIM | G24: 2019-08-31 | H24: 44 | I24: 4.32% | J24: 1.57 | K24: 2019-08-31 | L24: 327 | M24: 3.68% | N24: 2.35 | O24: 28 | P24: 1,748 | Q24: 0 | R24: 0.02% | S24: 8.05 | T24: 12.30 | U24: 6 | V24: 4.35% | W24: 2.42 | X24: 75 | Y24: 0.38% | Z24: 6.10 | AA24: 74 | AB24: 1.63% | AC24: 1.59 | AD24: 6.9 | AE24: 3.8 | AF24: 0.7 | AG24: 42.2 | AH24: 7.6 | AI24: 4.5 | AJ24: 201908 | AK24: 53.74 | AL24: 0 | AM24: 0.00% | AN24: 201.77 | AO24: 37.84 | AP24: 19% | AQ24: 1.21 | AR24: 0.60% | AS24: 336.67 | AT24: 0 | AU24: 0.0% | AV24: 0.73 | AW24: 0.22% | AX24: 26.47 | AY24: 2.29 | AZ24: 8.67% | BA24: 0.53 | BB24: 1.99% | BC24: 622.65 | BD24: 40.13 | BE24: 6.4% | BF24: 2.56 | BG24: 0.41% | BI24: 1 | BJ24: 3 | BK24: 40 | BL24: 43 | BM24: 3 | BN24: 1.29% | BO24: 0.00% | BP24: 34 | BQ24: 34 | BR24: 1 | BS24: 57 | BT24: 2 | BU24: 0 | BV24: 1 | BW24: -6 | BZ24: 0 | CA24: 0 | CB24: 0 | CC24: 0 | CD24: 0 | CE24: 2 | CF24: 1 | CG24: 4 | CH24: 0.8 | CI24: -18 | CJ24: -4 | CK24: 1 | CL24: 1 | CM24: 100.00% | CN24: 200.00% | CO24: 0 | CP24: 0.00% | CQ24: 0.00% | CR24: 1 | CS24: 0.7 | CT24: 0 | CU24: 0.00 | CV24: 0 | CW24: 1 | CX24: 1 | CY24: 7 | CZ24: 55.90% | DA24: 131.15% | DB24: 27 | DC24: 96.88% | DD24: 145.87% | DE24: 8 | DG24: 100.00% | DH24: 100.00% | DI24: 0 | DJ24: 263 | DK24: =DK$374 -> 0.70% | DL24: 5.33 | DM24: 10 | DN24: 229 | DO24: =DO$374 -> 0.76% | DP24: 5.33 | DQ24: 9 | DR24: -36 | DS24: =DS$374 -> 0.85% | DT24: 5.33 | DU24: -2 | DV24: 182 | DW24: =DW$374 -> 0.40% | DX24: 1.40 | DY24: 1 | DZ24: -179 | EA24: =EA$374 -> 0.20% | EB24: 5.37 | EC24: -2 | ED24: 12 | EE24: =EE$374 -> 0.20% | EF24: 5.37 | EG24: 0 | EH24: -31 | EI24: =EI$374 -> 0.20% | EJ24: 5.37 | EK24: -0 | EL24: 48 | EM24: =EM$374 -> 0.35% | EN24: 5.33 | EO24: 1 | EP24: -9 | EQ24: 0.10% | ER24: 5.08 | ES24: -0 | ET24: -25 | EU24: =EU$374 -> 0.20% | EV24: 9.00 | EW24: -0 | EX24: 389 | EY24: 0.00% | EZ24: 8.59 | FA24: 0 | FB24: 0 | FC24: =FC$374 -> -0.18% | FD24: 0.78 | FE24: 0 | FF24: -227 | FG24: =FG$374 -> 0.45% | FH24: 8.00 | FI24: -8 | FJ24: 597 | FK24: 0.41% | FL24: 1.00 | FM24: 2 | FN24: -140 | FO24: =FO$374 -> 0.65% | FP24: 5.00 | FQ24: -5 | FR24: 8 | FS24: =FS$374 -> 0.40% | FT24: 1.00 | FU24: 0 | FV24: -213 | FW24: =FW$374 -> 0.20% | FX24: 8.00 | FY24: -3 | FZ24: 226 | GA24: =GA$374 -> 1.00% | GB24: 5.00 | GC24: 11 | GD24: 889 | GE24: 26 | GF24: -376 | GG24: -8 | GH24: 17 | GI24: =GI$374 -> 1.00% | GJ24: 5.37 | GK24: 1 | GL24: 35 | GM24: 0 | GN24: 0 | GP24: 0 | GQ24: 0.00% | GR24: 0 | GS24: 0 | GT24: 0 | GU24: =GU$374 -> 0.45% | GV24: 8.00 | GW24: 0 | GX24: 0 | GY24: 0.41% | GZ24: 1.00 | HA24: 0 | HB24: 0 | HC24: =HC$374 -> 0.65% | HD24: 5.00 | HE24: 0 | HF24: 0 | HG24: 0.40% | HH24: 1.00 | HI24: 0 | HJ24: -9 | HK24: =HK$374 -> 1.00% | HL24: 5.00 | HM24: -0 | HN24: -7 | HO24: 117 | HQ24: =IF(ISERROR(IF(VLOOKUP($C24,'Indicateurs Cumulés'!$C$3:$HP$560,188,FALSE)/(VLOOKUP($C24,objectifs!$C$3:$AAB$559,158,FALSE))>=1.5,(VLOOKUP($C24,objectifs!$C$3:$AAB$559,158,FALSE))*1.5,IF(VLOOKUP($C24,'Indicateurs Cumulés'!$C$3:$HP$560,188,FALSE)/(VLOOKUP($C24,objectifs!$C$3:$AAB$559,158,FALSE))<=-0.5,(VLOOKUP($C24,objectifs!$C$3:$AAB$559,158,FALSE))*-0.5,VLOOKUP($C24,'Indicateurs Cumulés'!$C$3:$HP$560,188,FALSE)))),VLOOKUP($C24,'Indicateurs Cumulés'!$C$3:$HP$560,188,FALSE),IF(VLOOKUP($C24,'Indicateurs Cumulés'!$C$3:$HP$560,188,FALSE)/(VLOOKUP($C24,objectifs!$C$3:$AAB$559,158,FALSE))>=1.5,(VLOOKUP($C24,objectifs!$C$3:$AAB$559,158,FALSE))*1.5,IF(VLOOKUP($C24,'Indicateurs Cumulés'!$C$3:$HP$560,188,FALSE)/(VLOOKUP($C24,objectifs!$C$3:$AAB$559,158,FALSE))<=-0.5,(VLOOKUP($C24,objectifs!$C$3:$AAB$559,158,FALSE))*-0.5,VLOOKUP($C24,'Indicateurs Cumulés'!$C$3:$HP$560,188,FALSE)))) -> 17 | HR24: 0 | HT24: 1.0 | HV24: 4.60% | HW24: 0.30% | HX24: 2.35% | HY24: 1 | HZ24: 7 | IA24: -3 | IB24: -1 | IC24: -5 | ID24: 1 | IE24: 4 | IF24: -27 | IG24: -4 | IH24: -6 | II24: -2 | IJ24: 0 | IK24: 0 | IL24: 37 | IM24: -28 | IN24: -2 | IO24: 0 | IP24: 1 | IQ24: -1 | IR24: -0 | IS24: -0 | IT24: 0 | IU24: 0 | IV24: -12 | IW24: -0 | IX24: -4 | IY24: -2 | IZ24: 0 | JA24: 0 | JB24: 24 | JC24: -6 | JD24: -0 | JE24: 27 | JF24: 7 | JG24: 0 | JH24: 0 | JI24: 0.00 | JJ24: 0.00 | JK24: 0 | JL24: 0 | JM24: -2 | JN24: 0.20% | JO24: -8 | JQ24: -2 | JR24: 33 | JS24: 67 | JT24: =IF(ISERROR(IF(VLOOKUP($C24,'Indicateurs Cumulés'!$C$3:$HP$560,192,FALSE)/(VLOOKUP($C24,objectifs!$C$3:$AAB$559,162,FALSE))>=1.5,(VLOOKUP($C24,objectifs!$C$3:$AAB$559,162,FALSE))*1.5,IF(VLOOKUP($C24,'Indicateurs Cumulés'!$C$3:$HP$560,192,FALSE)/(VLOOKUP($C24,objectifs!$C$3:$AAB$559,162,FALSE))<=-0.5,(VLOOKUP($C24,objectifs!$C$3:$AAB$559,162,FALSE))*-0.5,VLOOKUP($C24,'Indicateurs Cumulés'!$C$3:$HP$560,192,FALSE)))),VLOOKUP($C24,'Indicateurs Cumulés'!$C$3:$HP$560,192,FALSE),IF(VLOOKUP($C24,'Indicateurs Cumulés'!$C$3:$HP$560,192,FALSE)/(VLOOKUP($C24,objectifs!$C$3:$AAB$559,162,FALSE))>=1.5,(VLOOKUP($C24,objectifs!$C$3:$AAB$559,162,FALSE))*1.5,IF(VLOOKUP($C24,'Indicateurs Cumulés'!$C$3:$HP$560,192,FALSE)/(VLOOKUP($C24,objectifs!$C$3:$AAB$559,162,FALSE))<=-0.5,(VLOOKUP($C24,objectifs!$C$3:$AAB$559,162,FALSE))*-0.5,VLOOKUP($C24,'Indicateurs Cumulés'!$C$3:$HP$560,192,FALSE)))) -> 8 | JU24: -0 | JV24: -0 | JX24: -0 | JY24: 1 | JZ24: 2 | KA24: 0 | KB24: 3 | KC24: 0 | KD24: 0 | KE24: 0 | KF24: 2 | KG24: -1 | KH24: 1 | KI24: 0 | KJ24: 0 | KK24: 0 | KL24: 0 | KM24: -1 | KN24: 0 | KO24: 5 | KP24: 4 | KT24: 3.33 | KU24: 2 | KV24: -23 | KW24: 0 | KX24: 10 | KY24: 2 | KZ24: 0 | LA24: 37 | LB24: 26 | LC24: 0 | LD24: 0 | LE24: 126.7 | LF24: 19 | LG24: 2 | LH24: 1 | LI24: 2 | LJ24: 3 | LK24: -5 | LL24: -1 | LM24: 121 | LN24: 126.5 | LO24: 18 | LP24: 86 | LQ24: -7 | LR24: 4 | LS24: 132.18 | LT24: 63 | LU24: 39 | LV24: 332 | LW24: 73 | LX24: 79 | LY24: 16 | LZ24: 4.7 | MA24: 0.4 | MB24: 1.0 | MC24: 3.7 | MD24: 1.2 | ME24: 0.1 | MF24: 138 | MH24: 0.40%
A25: 105006 | B25: 200262 | C25: 37 | D25: MUNDOLSHEIM | E25: 37 | F25: MUNDOLSHEIM | G25: 2019-08-31 | H25: 52 | I25: 4.32% | J25: 1.57 | K25: 2019-08-31 | L25: 902 | M25: 3.26% | N25: 2.49 | O25: 73 | P25: 4,742 | Q25: 0 | R25: 0.19% | S25: 7.87 | T25: 12.03 | U25: 160 | V25: 3.64% | W25: 2.85 | X25: 370 | Y25: 0.22% | Z25: 5.31 | AA25: 250 | AB25: 0.45% | AC25: 4.61 | AD25: 21.1 | AE25: 13.4 | AF25: 0.8 | AG25: 93.4 | AH25: 13.8 | AI25: 10.5 | AJ25: 201908 | AK25: 0 | AL25: 0 | AM25: 0.00% | AN25: 231.51 | AO25: 63.35 | AP25: 27% | AQ25: 1.01 | AR25: 0.43% | AS25: 1,175.15 | AT25: 70.93 | AU25: 6.0% | AV25: 1.19 | AW25: 0.10% | AX25: 30.59 | AY25: 5.86 | AZ25: 19.15% | BA25: 0.52 | BB25: 1.71% | BC25: 1,437.25 | BD25: 140.14 | BE25: 9.8% | BF25: 2.72 | BG25: 0.19% | BI25: 20 | BJ25: 6 | BK25: 101 | BL25: 184 | BM25: 8 | BN25: 1.29% | BO25: 0.00% | BP25: 37 | BQ25: 3 | BR25: 0 | BS25: 138 | BT25: 4 | BU25: 1 | BV25: 4 | BW25: -8 | BZ25: 0 | CA25: 0 | CB25: 0 | CC25: 2 | CD25: 0 | CE25: -2 | CF25: -1 | CG25: 27 | CH25: 5.4 | CI25: -1 | CJ25: -0 | CK25: 9 | CL25: 9 | CM25: 100.00% | CN25: 120.83% | CO25: 3 | CP25: 0.00% | CQ25: 0.00% | CR25: 0 | CS25: 0.8 | CT25: 1 | CU25: 0.00 | CV25: 1 | CW25: 5 | CX25: 1 | CY25: 21 | CZ25: 39.45% | DA25: 149.69% | DB25: 71 | DC25: 98.34% | DD25: 137.31% | DE25: 20 | DG25: 100.00% | DH25: 100.00% | DI25: 2 | DJ25: 345 | DK25: 0.70% | DL25: 5.33 | DM25: 13 | DN25: 100 | DO25: 0.76% | DP25: 5.33 | DQ25: 4 | DR25: -33 | DS25: 0.85% | DT25: 5.33 | DU25: -1 | DV25: 55 | DW25: 0.40% | DX25: 1.40 | DY25: 0 | DZ25: -163 | EA25: 0.20% | EB25: 5.37 | EC25: -2 | ED25: 161 | EE25: 0.20% | EF25: 5.37 | EG25: 2 | EH25: -26 | EI25: 0.20% | EJ25: 5.37 | EK25: -0 | EL25: 69 | EM25: 0.35% | EN25: 5.33 | EO25: 1 | EP25: 3 | EQ25: 0.10% | ER25: 8.33 | ES25: 0 | ET25: -135 | EU25: 0.20% | EV25: 9.00 | EW25: -2 | EX25: -83 | EY25: 0.00% | EZ25: 8.50 | FA25: 0 | FB25: 0 | FC25: -0.18% | FD25: 0.78 | FE25: 0 | FF25: 911 | FG25: 0.45% | FH25: 8.00 | FI25: 33 | FJ25: 1,304 | FK25: 0.19% | FL25: 1.00 | FM25: 2 | FN25: -30 | FO25: 0.65% | FP25: 5.00 | FQ25: -1 | FR25: 6 | FS25: 0.40% | FT25: 1.00 | FU25: 0 | FV25: -255 | FW25: 0.20% | FX25: 8.00 | FY25: -4 | FZ25: 53 | GA25: 1.00% | GB25: 5.00 | GC25: 3 | GD25: 90 | GE25: 13 | GF25: 809 | GG25: 35 | GH25: 407 | GI25: 1.00% | GJ25: 5.37 | GK25: 22 | GL25: 32 | GM25: 0 | GN25: 0 | GP25: 0 | GQ25: 0.00% | GR25: 0 | GS25: 0 | GT25: 0 | GU25: 0.45% | GV25: 8.00 | GW25: 0 | GX25: 0 | GY25: 0.19% | GZ25: 1.00 | HA25: 0 | HB25: 0 | HC25: 0.65% | HD25: 5.00 | HE25: 0 | HF25: 0 | HG25: 0.40% | HH25: 1.00 | HI25: 0 | HJ25: -71 | HK25: 1.00% | HL25: 5.00 | HM25: -4 | HN25: -9 | HO25: 144 | HQ25: =IF(ISERROR(IF(VLOOKUP($C25,'Indicateurs Cumulés'!$C$3:$HP$560,188,FALSE)/(VLOOKUP($C25,objectifs!$C$3:$AAB$559,158,FALSE))>=1.5,(VLOOKUP($C25,objectifs!$C$3:$AAB$559,158,FALSE))*1.5,IF(VLOOKUP($C25,'Indicateurs Cumulés'!$C$3:$HP$560,188,FALSE)/(VLOOKUP($C25,objectifs!$C$3:$AAB$559,158,FALSE))<=-0.5,(VLOOKUP($C25,objectifs!$C$3:$AAB$559,158,FALSE))*-0.5,VLOOKUP($C25,'Indicateurs Cumulés'!$C$3:$HP$560,188,FALSE)))),VLOOKUP($C25,'Indicateurs Cumulés'!$C$3:$HP$560,188,FALSE),IF(VLOOKUP($C25,'Indicateurs Cumulés'!$C$3:$HP$560,188,FALSE)/(VLOOKUP($C25,objectifs!$C$3:$AAB$559,158,FALSE))>=1.5,(VLOOKUP($C25,objectifs!$C$3:$AAB$559,158,FALSE))*1.5,IF(VLOOKUP($C25,'Indicateurs Cumulés'!$C$3:$HP$560,188,FALSE)/(VLOOKUP($C25,objectifs!$C$3:$AAB$559,158,FALSE))<=-0.5,(VLOOKUP($C25,objectifs!$C$3:$AAB$559,158,FALSE))*-0.5,VLOOKUP($C25,'Indicateurs Cumulés'!$C$3:$HP$560,188,FALSE)))) -> 407 | HR25: 0 | HT25: 3.5 | HV25: 4.26% | HW25: 0.47% | HX25: 0.69% | HY25: 7 | HZ25: 18 | IA25: -3 | IB25: 1 | IC25: 4 | ID25: 2 | IE25: 8 | IF25: 15 | IG25: -3 | IH25: -13 | II25: -1 | IJ25: 0 | IK25: 0 | IL25: 31 | IM25: -6 | IN25: -1 | IO25: 1 | IP25: 2 | IQ25: -1 | IR25: 0 | IS25: 0 | IT25: 0 | IU25: 1 | IV25: 7 | IW25: -0 | IX25: -8 | IY25: -1 | IZ25: 0 | JA25: 0 | JB25: 20 | JC25: -1 | JD25: -0 | JE25: 55 | JF25: 35 | JG25: 0 | JH25: 289 | JI25: 1.52 | JJ25: 125.39 | JK25: 0 | JL25: 0 | JM25: 1 | JN25: 0.20% | JO25: 10 | JQ25: 0 | JR25: -3 | JS25: 61 | JT25: =IF(ISERROR(IF(VLOOKUP($C25,'Indicateurs Cumulés'!$C$3:$HP$560,192,FALSE)/(VLOOKUP($C25,objectifs!$C$3:$AAB$559,162,FALSE))>=1.5,(VLOOKUP($C25,objectifs!$C$3:$AAB$559,162,FALSE))*1.5,IF(VLOOKUP($C25,'Indicateurs Cumulés'!$C$3:$HP$560,192,FALSE)/(VLOOKUP($C25,objectifs!$C$3:$AAB$559,162,FALSE))<=-0.5,(VLOOKUP($C25,objectifs!$C$3:$AAB$559,162,FALSE))*-0.5,VLOOKUP($C25,'Indicateurs Cumulés'!$C$3:$HP$560,192,FALSE)))),VLOOKUP($C25,'Indicateurs Cumulés'!$C$3:$HP$560,192,FALSE),IF(VLOOKUP($C25,'Indicateurs Cumulés'!$C$3:$HP$560,192,FALSE)/(VLOOKUP($C25,objectifs!$C$3:$AAB$559,162,FALSE))>=1.5,(VLOOKUP($C25,objectifs!$C$3:$AAB$559,162,FALSE))*1.5,IF(VLOOKUP($C25,'Indicateurs Cumulés'!$C$3:$HP$560,192,FALSE)/(VLOOKUP($C25,objectifs!$C$3:$AAB$559,162,FALSE))<=-0.5,(VLOOKUP($C25,objectifs!$C$3:$AAB$559,162,FALSE))*-0.5,VLOOKUP($C25,'Indicateurs Cumulés'!$C$3:$HP$560,192,FALSE)))) -> 8 | JU25: 0 | JV25: 1 | JX25: 0 | JY25: -0 | JZ25: 2 | KA25: 0 | KB25: 3 | KC25: 2 | KD25: 0 | KE25: 1 | KF25: 2 | KG25: 0 | KH25: 5 | KI25: 3 | KJ25: 0 | KK25: 1 | KL25: 0 | KM25: 0 | KN25: 0 | KO25: 6 | KP25: 3 | KT25: 4.62 | KU25: 10 | KV25: 7 | KW25: 0 | KX25: 21 | KY25: 4 | KZ25: 0 | LA25: 31 | LB25: 22 | LC25: 1 | LD25: 0 | LE25: 419.3 | LF25: 50 | LG25: 3 | LH25: 2 | LI25: 3 | LJ25: 4 | LK25: 2 | LL25: 0 | LM25: 396 | LN25: 111.6 | LO25: 69 | LP25: 293 | LQ25: -3 | LR25: 7 | LS25: 118.29 | LT25: 94 | LU25: 110 | LV25: 511 | LW25: 80 | LX25: 195 | LY25: 14 | LZ25: 7.1 | MA25: 1.1 | MB25: 1.5 | MC25: 4.0 | MD25: 2.9 | ME25: 0.1 | MF25: 436 | MH25: 0.44%
A26: 105006 | B26: 200262 | C26: 38 | D26: OBERHAUSBERGEN | E26: 38 | F26: OBERHAUSBERGEN | G26: 2019-08-31 | H26: 116 | I26: 4.32% | J26: 1.57 | K26: 2019-08-31 | L26: 1,118 | M26: 3.28% | N26: 2.38 | O26: 87 | P26: 4,982 | Q26: 0 | R26: 0.08% | S26: 7.45 | T26: 11.57 | U26: 20 | V26: 4.57% | W26: 2.10 | X26: 356 | Y26: 0.10% | Z26: 7.70 | AA26: 717 | AB26: 0.85% | AC26: 5.50 | AD26: 13.1 | AE26: 12.3 | AF26: 3.4 | AG26: 312.2 | AH26: 17.1 | AI26: 10.0 | AJ26: 201908 | AK26: 16.00 | AL26: 0.07 | AM26: 0.45% | AN26: 142.72 | AO26: 11.98 | AP26: 8% | AQ26: 2.64 | AR26: 1.85% | AS26: 1,188.10 | AT26: 95.90 | AU26: 8.1% | AV26: 2.42 | AW26: 0.20% | AX26: 32.76 | AY26: 0.91 | AZ26: 2.79% | BA26: 0.69 | BB26: 2.12% | BC26: 1,379.58 | BD26: 108.79 | BE26: 7.9% | BF26: 5.83 | BG26: 0.42% | BI26: 3 | BJ26: 7 | BK26: 122 | BL26: 143 | BM26: 41 | BN26: 1.33% | BO26: 0.00% | BP26: 38 | BQ26: 341 | BR26: 7 | BS26: 118 | BT26: 3 | BU26: 6 | BV26: 5 | BW26: -10 | BZ26: 0 | CA26: 0 | CB26: 0 | CC26: 2 | CD26: 0 | CE26: 5 | CF26: 3 | CG26: 24 | CH26: 4.8 | CI26: -2 | CJ26: -0 | CK26: 10 | CL26: 10 | CM26: 100.00% | CN26: 171.43% | CO26: 1 | CP26: 100.00% | CQ26: 11.97% | CR26: 2 | CS26: 3.4 | CT26: 1 | CU26: 0.00 | CV26: 0 | CW26: 4 | CX26: 1 | CY26: 13 | CZ26: 56.65% | DA26: 127.49% | DB26: 80 | DC26: 98.75% | DD26: 139.55% | DE26: 24 | DG26: 100.00% | DH26: 116.74% | DI26: 4 | DJ26: 320 | DK26: 0.70% | DL26: 5.33 | DM26: 12 | DN26: 478 | DO26: 0.76% | DP26: 5.33 | DQ26: 19 | DR26: -14 | DS26: 0.85% | DT26: 5.33 | DU26: -1 | DV26: 215 | DW26: 0.40% | DX26: 1.40 | DY26: 1 | DZ26: -262 | EA26: 0.20% | EB26: 5.37 | EC26: -3 | ED26: 12 | EE26: 0.20% | EF26: 5.37 | EG26: 0 | EH26: -27 | EI26: 0.20% | EJ26: 5.37 | EK26: -0 | EL26: -9 | EM26: 0.35% | EN26: 5.33 | EO26: -0 | EP26: 1 | EQ26: 0.10% | ER26: 8.66 | ES26: 0 | ET26: -26 | EU26: 0.20% | EV26: 9.00 | EW26: -0 | EX26: -66 | EY26: 0.00% | EZ26: 8.59 | FA26: 0 | FB26: 0 | FC26: -0.18% | FD26: 0.78 | FE26: 0 | FF26: 486 | FG26: 0.45% | FH26: 8.00 | FI26: 17 | FJ26: 1,218 | FK26: 0.42% | FL26: 1.00 | FM26: 5 | FN26: -55 | FO26: 0.65% | FP26: 5.00 | FQ26: -2 | FR26: 14 | FS26: 0.40% | FT26: 1.00 | FU26: 0 | FV26: -491 | FW26: 0.20% | FX26: 8.00 | FY26: -8 | FZ26: 454 | GA26: 1.00% | GB26: 5.00 | GC26: 23 | GD26: 635 | GE26: 45 | GF26: 448 | GG26: 32 | GH26: -298 | GI26: 1.00% | GJ26: 5.37 | GK26: -16 | GL26: -30 | GM26: 0 | GN26: 0 | GP26: 0 | GQ26: 0.00% | GR26: 0 | GS26: 0 | GT26: 0 | GU26: 0.45% | GV26: 8.00 | GW26: 0 | GX26: 0 | GY26: 0.42% | GZ26: 1.00 | HA26: 0 | HB26: 0 | HC26: 0.65% | HD26: 5.00 | HE26: 0 | HF26: 0 | HG26: 0.40% | HH26: 1.00 | HI26: 0 | HJ26: 17 | HK26: 1.00% | HL26: 5.00 | HM26: 1 | HN26: -22 | HO26: 237 | HQ26: =IF(ISERROR(IF(VLOOKUP($C26,'Indicateurs Cumulés'!$C$3:$HP$560,188,FALSE)/(VLOOKUP($C26,objectifs!$C$3:$AAB$559,158,FALSE))>=1.5,(VLOOKUP($C26,objectifs!$C$3:$AAB$559,158,FALSE))*1.5,IF(VLOOKUP($C26,'Indicateurs Cumulés'!$C$3:$HP$560,188,FALSE)/(VLOOKUP($C26,objectifs!$C$3:$AAB$559,158,FALSE))<=-0.5,(VLOOKUP($C26,objectifs!$C$3:$AAB$559,158,FALSE))*-0.5,VLOOKUP($C26,'Indicateurs Cumulés'!$C$3:$HP$560,188,FALSE)))),VLOOKUP($C26,'Indicateurs Cumulés'!$C$3:$HP$560,188,FALSE),IF(VLOOKUP($C26,'Indicateurs Cumulés'!$C$3:$HP$560,188,FALSE)/(VLOOKUP($C26,objectifs!$C$3:$AAB$559,158,FALSE))>=1.5,(VLOOKUP($C26,objectifs!$C$3:$AAB$559,158,FALSE))*1.5,IF(VLOOKUP($C26,'Indicateurs Cumulés'!$C$3:$HP$560,188,FALSE)/(VLOOKUP($C26,objectifs!$C$3:$AAB$559,158,FALSE))<=-0.5,(VLOOKUP($C26,objectifs!$C$3:$AAB$559,158,FALSE))*-0.5,VLOOKUP($C26,'Indicateurs Cumulés'!$C$3:$HP$560,188,FALSE)))) -> -274 | HR26: 179 | HT26: 3.2 | HV26: 4.17% | HW26: 0.36% | HX26: 1.05% | HY26: 30 | HZ26: 25 | IA26: 2 | IB26: 4 | IC26: -4 | ID26: 1 | IE26: 14 | IF26: -46 | IG26: -1 | IH26: -3 | II26: -4 | IJ26: 0 | IK26: 15 | IL26: 59 | IM26: -54 | IN26: 0 | IO26: 4 | IP26: 2 | IQ26: 1 | IR26: 0 | IS26: -0 | IT26: 0 | IU26: 2 | IV26: -20 | IW26: -0 | IX26: -2 | IY26: -4 | IZ26: 0 | JA26: 15 | JB26: 38 | JC26: -12 | JD26: 0 | JE26: 102 | JF26: 51 | JG26: 0 | JH26: 0 | JI26: 0.00 | JJ26: 0.00 | JK26: 0 | JL26: 0 | JM26: 0 | JN26: 0.20% | JO26: 31 | JQ26: -17 | JR26: 48 | JS26: 64 | JT26: =IF(ISERROR(IF(VLOOKUP($C26,'Indicateurs Cumulés'!$C$3:$HP$560,192,FALSE)/(VLOOKUP($C26,objectifs!$C$3:$AAB$559,162,FALSE))>=1.5,(VLOOKUP($C26,objectifs!$C$3:$AAB$559,162,FALSE))*1.5,IF(VLOOKUP($C26,'Indicateurs Cumulés'!$C$3:$HP$560,192,FALSE)/(VLOOKUP($C26,objectifs!$C$3:$AAB$559,162,FALSE))<=-0.5,(VLOOKUP($C26,objectifs!$C$3:$AAB$559,162,FALSE))*-0.5,VLOOKUP($C26,'Indicateurs Cumulés'!$C$3:$HP$560,192,FALSE)))),VLOOKUP($C26,'Indicateurs Cumulés'!$C$3:$HP$560,192,FALSE),IF(VLOOKUP($C26,'Indicateurs Cumulés'!$C$3:$HP$560,192,FALSE)/(VLOOKUP($C26,objectifs!$C$3:$AAB$559,162,FALSE))>=1.5,(VLOOKUP($C26,objectifs!$C$3:$AAB$559,162,FALSE))*1.5,IF(VLOOKUP($C26,'Indicateurs Cumulés'!$C$3:$HP$560,192,FALSE)/(VLOOKUP($C26,objectifs!$C$3:$AAB$559,162,FALSE))<=-0.5,(VLOOKUP($C26,objectifs!$C$3:$AAB$559,162,FALSE))*-0.5,VLOOKUP($C26,'Indicateurs Cumulés'!$C$3:$HP$560,192,FALSE)))) -> -3 | JU26: 0 | JV26: 2 | JX26: -1 | JY26: 2 | JZ26: 2 | KA26: -0 | KB26: 4 | KC26: 4 | KD26: 0 | KE26: -1 | KF26: 4 | KG26: 2 | KH26: 0 | KI26: 6 | KJ26: 0 | KK26: -1 | KL26: 1 | KM26: 1 | KN26: 0 | KO26: 17 | KP26: 7 | KT26: 3.85 | KU26: 9 | KV26: 23 | KW26: 0 | KX26: 57 | KY26: 11 | KZ26: 0 | LA26: 74 | LB26: 52 | LC26: 0 | LD26: 0 | LE26: 463.4 | LF26: 73 | LG26: 0 | LH26: 0 | LI26: 0 | LJ26: 0 | LK26: 4 | LL26: 0 | LM26: 426 | LN26: 131.9 | LO26: 62 | LP26: 307 | LQ26: -15 | LR26: 0 | LS26: 143.46 | LT26: 99 | LU26: 96 | LV26: 675 | LW26: 92 | LX26: 131 | LY26: 33 | LZ26: 7.4 | MA26: 1.0 | MB26: 2.0 | MC26: 4.6 | MD26: 2.0 | ME26: 0.2 | MF26: 481 | MH26: 0.26%
A27: 105006 | B27: 200262 | C27: 39 | D27: REICHSTETT | E27: 39 | F27: REICHSTETT | G27: 2019-08-31 | H27: 53 | I27: 4.32% | J27: 1.57 | K27: 2019-08-31 | L27: 620 | M27: 3.25% | N27: 2.72 | O27: 55 | P27: 1,210 | Q27: 0 | R27: 0.18% | S27: 8.16 | T27: 12.61 | U27: 49 | V27: 3.39% | W27: 2.38 | X27: 0 | Y27: 0.00% | Z27: 0 | AA27: 256 | AB27: 0.25% | AC27: 5.84 | AD27: 2.4 | AE27: 5.8 | AF27: 1.1 | AG27: 41.9 | AH27: 12.8 | AI27: 2.0 | AJ27: 201908 | AK27: 26.00 | AL27: 0.31 | AM27: 1.20% | AN27: 52.44 | AO27: 8.32 | AP27: 16% | AQ27: 0.92 | AR27: 1.75% | AS27: 374.89 | AT27: 16.60 | AU27: 4.4% | AV27: 0.85 | AW27: 0.23% | AX27: 51.70 | AY27: 1.68 | AZ27: 3.24% | BA27: 0.43 | BB27: 0.84% | BC27: 505.02 | BD27: 26.59 | BE27: 5.3% | BF27: 2.52 | BG27: 0.50% | BI27: 5 | BJ27: 0 | BK27: 77 | BL27: 59 | BM27: 9 | BN27: 1.19% | BO27: 0.00% | BP27: 39 | BQ27: 4 | BR27: 0 | BS27: 44 | BT27: 1 | BU27: -0 | BV27: 0 | BW27: -8 | BZ27: 0 | CA27: 0 | CB27: 0 | CC27: -1 | CD27: -0 | CE27: 0 | CF27: 0 | CG27: 5 | CH27: 1.0 | CI27: 5 | CJ27: 1 | CK27: 2 | CL27: 2 | CM27: 100.00% | CN27: 130.61% | CO27: 1 | CP27: 0.00% | CQ27: 0.00% | CR27: 0 | CS27: 1.1 | CT27: 0 | CU27: 0.00 | CV27: 0 | CW27: 3 | CX27: 0 | CY27: 2 | CZ27: 52.22% | DA27: 186.00% | DB27: 35 | DC27: 95.97% | DD27: 145.31% | DE27: 15 | DG27: 100.00% | DH27: 99.55% | DI27: 4 | DJ27: -80 | DK27: 0.70% | DL27: 5.33 | DM27: -3 | DN27: 51 | DO27: 0.76% | DP27: 5.33 | DQ27: 2 | DR27: 10 | DS27: 0.85% | DT27: 5.33 | DU27: 0 | DV27: -44 | DW27: 0.40% | DX27: 1.40 | DY27: -0 | DZ27: -184 | EA27: 0.20% | EB27: 5.37 | EC27: -2 | ED27: -18 | EE27: 0.20% | EF27: 5.37 | EG27: -0 | EH27: -15 | EI27: 0.20% | EJ27: 5.37 | EK27: -0 | EL27: -17 | EM27: 0.35% | EN27: 5.33 | EO27: -0 | EP27: 0 | EQ27: 0.10% | ER27: 8.28 | ES27: 0 | ET27: -3 | EU27: 0.20% | EV27: 9.00 | EW27: -0 | EX27: 65 | EY27: 0.00% | EZ27: 8.59 | FA27: 0 | FB27: 5 | FC27: -0.18% | FD27: 0.78 | FE27: -0 | FF27: -146 | FG27: 0.45% | FH27: 8.00 | FI27: -5 | FJ27: 457 | FK27: 0.50% | FL27: 1.00 | FM27: 2 | FN27: -33 | FO27: 0.65% | FP27: 5.00 | FQ27: -1 | FR27: 5 | FS27: 0.40% | FT27: 1.00 | FU27: 0 | FV27: -161 | FW27: 0.20% | FX27: 8.00 | FY27: -3 | FZ27: 3 | GA27: 1.00% | GB27: 5.00 | GC27: 0 | GD27: -338 | GE27: -4 | GF27: -140 | GG27: -1 | GH27: 175 | GI27: 1.00% | GJ27: 5.37 | GK27: 9 | GL27: -11 | GM27: 4 | GN27: 0 | GP27: 0 | GQ27: 0.00% | GR27: 0 | GS27: 0 | GT27: 0 | GU27: 0.45% | GV27: 8.00 | GW27: 0 | GX27: 0 | GY27: 0.50% | GZ27: 1.00 | HA27: 0 | HB27: 0 | HC27: 0.65% | HD27: 5.00 | HE27: 0 | HF27: 0 | HG27: 0.40% | HH27: 1.00 | HI27: 0 | HJ27: 39 | HK27: 1.00% | HL27: 5.00 | HM27: 2 | HN27: -8 | HO27: 120 | HQ27: =IF(ISERROR(IF(VLOOKUP($C27,'Indicateurs Cumulés'!$C$3:$HP$560,188,FALSE)/(VLOOKUP($C27,objectifs!$C$3:$AAB$559,158,FALSE))>=1.5,(VLOOKUP($C27,objectifs!$C$3:$AAB$559,158,FALSE))*1.5,IF(VLOOKUP($C27,'Indicateurs Cumulés'!$C$3:$HP$560,188,FALSE)/(VLOOKUP($C27,objectifs!$C$3:$AAB$559,158,FALSE))<=-0.5,(VLOOKUP($C27,objectifs!$C$3:$AAB$559,158,FALSE))*-0.5,VLOOKUP($C27,'Indicateurs Cumulés'!$C$3:$HP$560,188,FALSE)))),VLOOKUP($C27,'Indicateurs Cumulés'!$C$3:$HP$560,188,FALSE),IF(VLOOKUP($C27,'Indicateurs Cumulés'!$C$3:$HP$560,188,FALSE)/(VLOOKUP($C27,objectifs!$C$3:$AAB$559,158,FALSE))>=1.5,(VLOOKUP($C27,objectifs!$C$3:$AAB$559,158,FALSE))*1.5,IF(VLOOKUP($C27,'Indicateurs Cumulés'!$C$3:$HP$560,188,FALSE)/(VLOOKUP($C27,objectifs!$C$3:$AAB$559,158,FALSE))<=-0.5,(VLOOKUP($C27,objectifs!$C$3:$AAB$559,158,FALSE))*-0.5,VLOOKUP($C27,'Indicateurs Cumulés'!$C$3:$HP$560,188,FALSE)))) -> 175 | HR27: 0 | HT27: 2.0 | HV27: 4.21% | HW27: 0.58% | HX27: 0.61% | HY27: -1 | HZ27: 1 | IA27: 2 | IB27: 2 | IC27: -8 | ID27: -1 | IE27: 1 | IF27: -12 | IG27: -2 | IH27: -1 | II27: 0 | IJ27: 0 | IK27: 0 | IL27: 13 | IM27: -44 | IN27: 0 | IO27: -0 | IP27: 0 | IQ27: 1 | IR27: 0 | IS27: -0 | IT27: -0 | IU27: 0 | IV27: -5 | IW27: -0 | IX27: -1 | IY27: 0 | IZ27: 0 | JA27: 0 | JB27: 8 | JC27: -9 | JD27: 0 | JE27: 6 | JF27: 14 | JG27: 0 | JH27: 0 | JI27: 0.00 | JJ27: 0.00 | JK27: 0 | JL27: 0 | JM27: 0 | JN27: 0.20% | JO27: 0 | JQ27: 2 | JR27: 51 | JS27: 7 | JT27: =IF(ISERROR(IF(VLOOKUP($C27,'Indicateurs Cumulés'!$C$3:$HP$560,192,FALSE)/(VLOOKUP($C27,objectifs!$C$3:$AAB$559,162,FALSE))>=1.5,(VLOOKUP($C27,objectifs!$C$3:$AAB$559,162,FALSE))*1.5,IF(VLOOKUP($C27,'Indicateurs Cumulés'!$C$3:$HP$560,192,FALSE)/(VLOOKUP($C27,objectifs!$C$3:$AAB$559,162,FALSE))<=-0.5,(VLOOKUP($C27,objectifs!$C$3:$AAB$559,162,FALSE))*-0.5,VLOOKUP($C27,'Indicateurs Cumulés'!$C$3:$HP$560,192,FALSE)))),VLOOKUP($C27,'Indicateurs Cumulés'!$C$3:$HP$560,192,FALSE),IF(VLOOKUP($C27,'Indicateurs Cumulés'!$C$3:$HP$560,192,FALSE)/(VLOOKUP($C27,objectifs!$C$3:$AAB$559,162,FALSE))>=1.5,(VLOOKUP($C27,objectifs!$C$3:$AAB$559,162,FALSE))*1.5,IF(VLOOKUP($C27,'Indicateurs Cumulés'!$C$3:$HP$560,192,FALSE)/(VLOOKUP($C27,objectifs!$C$3:$AAB$559,162,FALSE))<=-0.5,(VLOOKUP($C27,objectifs!$C$3:$AAB$559,162,FALSE))*-0.5,VLOOKUP($C27,'Indicateurs Cumulés'!$C$3:$HP$560,192,FALSE)))) -> -3 | JU27: 0 | JV27: 0 | JX27: 0 | JY27: 2 | JZ27: 0 | KA27: -0 | KB27: 2 | KC27: 0 | KD27: 0 | KE27: 0 | KF27: -4 | KG27: 0 | KH27: 0 | KI27: 0 | KJ27: 0 | KK27: 0 | KL27: -1 | KM27: 0 | KN27: 0 | KO27: 1 | KP27: 2 | KT27: 7.67 | KU27: -4 | KV27: 3 | KW27: 0 | KX27: 4 | KY27: 1 | KZ27: 0 | LA27: 13 | LB27: 9 | LC27: 0 | LD27: 0 | LE27: 143.8 | LF27: 20 | LG27: 0 | LH27: 0 | LI27: 2 | LJ27: 3 | LK27: 1 | LL27: 0 | LM27: 140 | LN27: 70.7 | LO27: 4 | LP27: 145 | LQ27: -8 | LR27: 3 | LS27: 72.64 | LT27: 43 | LU27: 48 | LV27: 92 | LW27: 32 | LX27: 6 | LY27: 19 | LZ27: 3.2 | MA27: 0.5 | MB27: 0.3 | MC27: 1.6 | MD27: 0.1 | ME27: 0.1 | MF27: 150 | MH27: 0.20%
A28: 105006 | B28: 200262 | C28: 40 | D28: ECKBOLSHEIM | E28: 48 | F28: STRASBOURG KOENIGSHOFFEN | G28: 2019-08-31 | H28: 44 | I28: 4.32% | J28: 1.57 | K28: 2019-08-31 | L28: 441 | M28: 2.47% | N28: 3.30 | O28: 36 | P28: 2,052 | Q28: 0 | R28: 0.13% | S28: 6.71 | T28: 10.67 | U28: 163 | V28: 2.05% | W28: 4.34 | X28: 318 | Y28: 0.17% | Z28: 8.80 | AA28: 0 | AB28: 0.00% | AC28: 0 | AD28: 7.0 | AE28: 3.2 | AF28: 0 | AG28: 42.5 | AH28: 8.2 | AI28: 3.7 | AJ28: 201908 | AK28: 0 | AL28: 0 | AM28: 0.00% | AN28: 112.13 | AO28: 10.15 | AP28: 9% | AQ28: 1.74 | AR28: 1.56% | AS28: 610.76 | AT28: 40.77 | AU28: 6.7% | AV28: 0.19 | AW28: 0.03% | AX28: 45.13 | AY28: 0.50 | AZ28: 1.11% | BA28: 1.04 | BB28: 2.30% | BC28: 768.02 | BD28: 51.42 | BE28: 6.7% | BF28: 2.98 | BG28: 0.39% | BI28: 19 | BJ28: 6 | BK28: 51 | BL28: 63 | BM28: 1 | BN28: 1.20% | BO28: 0.00% | BP28: 40 | BQ28: 99 | BR28: 2 | BS28: 43 | BT28: 1 | BU28: 2 | BV28: -1 | BW28: -8 | BZ28: 0 | CA28: 0 | CB28: 0 | CC28: -1 | CD28: -0 | CE28: -2 | CF28: -1 | CG28: 9 | CH28: 1.8 | CI28: -19 | CJ28: -4 | CK28: 3 | CL28: 3 | CM28: 100.00% | CN28: 100.00% | CO28: 4 | CP28: 0.00% | CQ28: 0.00% | CR28: 0 | CS28: 0 | CT28: 1 | CU28: 0.31 | CV28: 1 | CW28: 2 | CX28: 1 | CY28: 7 | CZ28: 46.36% | DA28: 116.81% | DB28: 32 | DC28: 86.59% | DD28: 146.00% | DE28: 10 | DG28: 0.00% | DH28: 0.00% | DI28: 0 | DJ28: 55 | DK28: 0.70% | DL28: 5.33 | DM28: 2 | DN28: -21 | DO28: 0.76% | DP28: 5.33 | DQ28: -1 | DR28: 38 | DS28: 0.85% | DT28: 5.33 | DU28: 2 | DV28: 429 | DW28: 0.40% | DX28: 1.40 | DY28: 2 | DZ28: -195 | EA28: 0.20% | EB28: 5.37 | EC28: -2 | ED28: 211 | EE28: 0.20% | EF28: 5.37 | EG28: 2 | EH28: -25 | EI28: 0.20% | EJ28: 5.37 | EK28: -0 | EL28: 52 | EM28: 0.35% | EN28: 5.33 | EO28: 1 | EP28: -1 | EQ28: 0.10% | ER28: 8.86 | ES28: -0 | ET28: -149 | EU28: 0.20% | EV28: 9.00 | EW28: -3 | EX28: -31 | EY28: 0.00% | EZ28: 8.59 | FA28: 0 | FB28: 0 | FC28: -0.18% | FD28: 0.78 | FE28: 0 | FF28: 409 | FG28: 0.45% | FH28: 8.00 | FI28: 15 | FJ28: 825 | FK28: 0.39% | FL28: 1.00 | FM28: 3 | FN28: -1 | FO28: 0.65% | FP28: 5.00 | FQ28: -0 | FR28: 10 | FS28: 0.40% | FT28: 1.00 | FU28: 0 | FV28: -356 | FW28: 0.20% | FX28: 8.00 | FY28: -6 | FZ28: 24 | GA28: 1.00% | GB28: 5.00 | GC28: 1 | GD28: 38 | GE28: -1 | GF28: 416 | GG28: 19 | GH28: 363 | GI28: 1.00% | GJ28: 5.37 | GK28: 19 | GL28: 58 | GM28: 0 | GN28: 0 | GP28: 31 | GQ28: 1.20% | GR28: 1.93 | GS28: 1 | GT28: 250 | GU28: 0.45% | GV28: 8.00 | GW28: 9 | GX28: 250 | GY28: 0.39% | GZ28: 1.00 | HA28: 1 | HB28: 0 | HC28: 0.65% | HD28: 5.00 | HE28: 0 | HF28: 0 | HG28: 0.40% | HH28: 1.00 | HI28: 0 | HJ28: -242 | HK28: 1.00% | HL28: 5.00 | HM28: -12 | HN28: -8 | HO28: 131 | HQ28: =IF(ISERROR(IF(VLOOKUP($C28,'Indicateurs Cumulés'!$C$3:$HP$560,188,FALSE)/(VLOOKUP($C28,objectifs!$C$3:$AAB$559,158,FALSE))>=1.5,(VLOOKUP($C28,objectifs!$C$3:$AAB$559,158,FALSE))*1.5,IF(VLOOKUP($C28,'Indicateurs Cumulés'!$C$3:$HP$560,188,FALSE)/(VLOOKUP($C28,objectifs!$C$3:$AAB$559,158,FALSE))<=-0.5,(VLOOKUP($C28,objectifs!$C$3:$AAB$559,158,FALSE))*-0.5,VLOOKUP($C28,'Indicateurs Cumulés'!$C$3:$HP$560,188,FALSE)))),VLOOKUP($C28,'Indicateurs Cumulés'!$C$3:$HP$560,188,FALSE),IF(VLOOKUP($C28,'Indicateurs Cumulés'!$C$3:$HP$560,188,FALSE)/(VLOOKUP($C28,objectifs!$C$3:$AAB$559,158,FALSE))>=1.5,(VLOOKUP($C28,objectifs!$C$3:$AAB$559,158,FALSE))*1.5,IF(VLOOKUP($C28,'Indicateurs Cumulés'!$C$3:$HP$560,188,FALSE)/(VLOOKUP($C28,objectifs!$C$3:$AAB$559,158,FALSE))<=-0.5,(VLOOKUP($C28,objectifs!$C$3:$AAB$559,158,FALSE))*-0.5,VLOOKUP($C28,'Indicateurs Cumulés'!$C$3:$HP$560,188,FALSE)))) -> 363 | HR28: 0 | HT28: 0.9 | HV28: 3.19% | HW28: 0.44% | HX28: 1.20% | HY28: 9 | HZ28: -6 | IA28: 2 | IB28: 0 | IC28: -1 | ID28: 2 | IE28: 10 | IF28: -47 | IG28: -3 | IH28: -6 | II28: 0 | IJ28: 0 | IK28: 6 | IL28: 31 | IM28: -53 | IN28: -1 | IO28: 1 | IP28: -1 | IQ28: 1 | IR28: 0 | IS28: -0 | IT28: 0 | IU28: 1 | IV28: -20 | IW28: -0 | IX28: -4 | IY28: 0 | IZ28: 0 | JA28: 6 | JB28: 20 | JC28: -11 | JD28: -0 | JE28: 22 | JF28: 26 | JG28: 0 | JH28: 0 | JI28: 0.00 | JJ28: 0.00 | JK28: 0 | JL28: 0 | JM28: 0 | JN28: 0.20% | JO28: 0 | JQ28: -4 | JR28: 8 | JS28: 25 | JT28: =IF(ISERROR(IF(VLOOKUP($C28,'Indicateurs Cumulés'!$C$3:$HP$560,192,FALSE)/(VLOOKUP($C28,objectifs!$C$3:$AAB$559,162,FALSE))>=1.5,(VLOOKUP($C28,objectifs!$C$3:$AAB$559,162,FALSE))*1.5,IF(VLOOKUP($C28,'Indicateurs Cumulés'!$C$3:$HP$560,192,FALSE)/(VLOOKUP($C28,objectifs!$C$3:$AAB$559,162,FALSE))<=-0.5,(VLOOKUP($C28,objectifs!$C$3:$AAB$559,162,FALSE))*-0.5,VLOOKUP($C28,'Indicateurs Cumulés'!$C$3:$HP$560,192,FALSE)))),VLOOKUP($C28,'Indicateurs Cumulés'!$C$3:$HP$560,192,FALSE),IF(VLOOKUP($C28,'Indicateurs Cumulés'!$C$3:$HP$560,192,FALSE)/(VLOOKUP($C28,objectifs!$C$3:$AAB$559,162,FALSE))>=1.5,(VLOOKUP($C28,objectifs!$C$3:$AAB$559,162,FALSE))*1.5,IF(VLOOKUP($C28,'Indicateurs Cumulés'!$C$3:$HP$560,192,FALSE)/(VLOOKUP($C28,objectifs!$C$3:$AAB$559,162,FALSE))<=-0.5,(VLOOKUP($C28,objectifs!$C$3:$AAB$559,162,FALSE))*-0.5,VLOOKUP($C28,'Indicateurs Cumulés'!$C$3:$HP$560,192,FALSE)))) -> 8 | JU28: 0 | JV28: 0 | JX28: -0 | JY28: 0 | JZ28: 1 | KA28: 0 | KB28: 1 | KC28: 1 | KD28: 0 | KE28: 0 | KF28: 1 | KG28: 0 | KH28: 0 | KI28: 1 | KJ28: 0 | KK28: 0 | KL28: 0 | KM28: 0 | KN28: 0 | KO28: 2 | KP28: 2 | KT28: 4.79 | KU28: 2 | KV28: 0 | KW28: 0 | KX28: 28 | KY28: 6 | KZ28: 0 | LA28: 37 | LB28: 26 | LC28: 0 | LD28: 0 | LE28: 164.0 | LF28: 32 | LG28: 1 | LH28: 1 | LI28: 1 | LJ28: 1 | LK28: 0 | LL28: 0 | LM28: 153 | LN28: 162.4 | LO28: 38 | LP28: 115 | LQ28: -8 | LR28: 2 | LS28: 174.06 | LT28: 60 | LU28: 58 | LV28: 441 | LW28: 61 | LX28: 29 | LY28: 43 | LZ28: 4.5 | MA28: 0.6 | MB28: 1.3 | MC28: 3.1 | MD28: 0.4 | ME28: 0.2 | MF28: 174 | MH28: 0.34%
A29: 105060 | B29: 200262 | C29: 41 | D29: HOERDT | E29: 41 | F29: HOERDT | G29: 2019-08-31 | H29: 88 | I29: 4.32% | J29: 1.57 | K29: 2019-08-31 | L29: 570 | M29: 3.55% | N29: 2.61 | O29: 53 | P29: 3,691 | Q29: 0 | R29: 0.14% | S29: 6.91 | T29: 10.43 | U29: 29 | V29: 4.72% | W29: 1.76 | X29: 0 | Y29: 0.00% | Z29: 0 | AA29: 262 | AB29: 1.09% | AC29: 2.94 | AD29: 6.7 | AE29: 5.0 | AF29: 1.0 | AG29: 97.7 | AH29: 10.0 | AI29: 5.8 | AJ29: 201908 | AK29: 27.00 | AL29: 0.65 | AM29: 2.40% | AN29: 133.29 | AO29: 11.30 | AP29: 8% | AQ29: 1.32 | AR29: 0.99% | AS29: 777.61 | AT29: 21.09 | AU29: 2.7% | AV29: 0.70 | AW29: 0.09% | AX29: 25.92 | AY29: 0.64 | AZ29: 2.47% | BA29: 0.46 | BB29: 1.79% | BC29: 963.82 | BD29: 33.04 | BE29: 3.4% | BF29: 3.13 | BG29: 0.32% | BI29: 3 | BJ29: 0 | BK29: 75 | BL29: 158 | BM29: 11 | BN29: 1.35% | BO29: 0.00% | BP29: 41 | BQ29: 23 | BR29: 0 | BS29: 75 | BT29: 2 | BU29: 4 | BV29: 2 | BW29: -11 | BZ29: 0 | CA29: 0 | CB29: 0 | CC29: 1 | CD29: 0 | CE29: 4 | CF29: 2 | CG29: 8 | CH29: 1.6 | CI29: -5 | CJ29: -1 | CK29: 2 | CL29: 2 | CM29: 100.00% | CN29: 100.00% | CO29: 0 | CP29: 0.00% | CQ29: 0.00% | CR29: 0 | CS29: 1.0 | CT29: 0 | CU29: 0.00 | CV29: 0 | CW29: 3 | CX29: 0 | CY29: 7 | CZ29: 56.08% | DA29: 197.98% | DB29: 109 | DC29: 97.42% | DD29: 139.09% | DE29: 13 | DG29: 100.00% | DH29: 111.45% | DI29: 2 | DJ29: 203 | DK29: 0.70% | DL29: 5.33 | DM29: 8 | DN29: -205 | DO29: 0.76% | DP29: 5.33 | DQ29: -8 | DR29: 3 | DS29: 0.85% | DT29: 5.33 | DU29: 0 | DV29: 18 | DW29: 0.40% | DX29: 1.40 | DY29: 0 | DZ29: -97 | EA29: 0.20% | EB29: 5.37 | EC29: -1 | ED29: 87 | EE29: 0.20% | EF29: 5.37 | EG29: 1 | EH29: -11 | EI29: 0.20% | EJ29: 5.37 | EK29: -0 | EL29: -24 | EM29: 0.35% | EN29: 5.33 | EO29: -0 | EP29: -10 | EQ29: 0.10% | ER29: 7.92 | ES29: -0 | ET29: -55 | EU29: 0.20% | EV29: 9.00 | EW29: -1 | EX29: 186 | EY29: 0.00% | EZ29: 8.59 | FA29: 0 | FB29: 0 | FC29: -0.18% | FD29: 0.78 | FE29: 0 | FF29: 543 | FG29: 0.45% | FH29: 8.00 | FI29: 20 | FJ29: 961 | FK29: 0.32% | FL29: 1.00 | FM29: 3 | FN29: -10 | FO29: 0.65% | FP29: 5.00 | FQ29: -0 | FR29: 13 | FS29: 0.40% | FT29: 1.00 | FU29: 0 | FV29: -190 | FW29: 0.20% | FX29: 8.00 | FY29: -3 | FZ29: 35 | GA29: 1.00% | GB29: 5.00 | GC29: 2 | GD29: -43 | GE29: -3 | GF29: 566 | GG29: 27 | GH29: 130 | GI29: 1.00% | GJ29: 5.37 | GK29: 7 | GL29: 29 | GM29: 0 | GN29: 0 | GP29: 0 | GQ29: 0.00% | GR29: 0 | GS29: 0 | GT29: 0 | GU29: 0.45% | GV29: 8.00 | GW29: 0 | GX29: 0 | GY29: 0.32% | GZ29: 1.00 | HA29: 0 | HB29: 0 | HC29: 0.65% | HD29: 5.00 | HE29: 0 | HF29: 0 | HG29: 0.40% | HH29: 1.00 | HI29: 0 | HJ29: 33 | HK29: 1.00% | HL29: 5.00 | HM29: 2 | HN29: -7 | HO29: 134 | HQ29: =IF(ISERROR(IF(VLOOKUP($C29,'Indicateurs Cumulés'!$C$3:$HP$560,188,FALSE)/(VLOOKUP($C29,objectifs!$C$3:$AAB$559,158,FALSE))>=1.5,(VLOOKUP($C29,objectifs!$C$3:$AAB$559,158,FALSE))*1.5,IF(VLOOKUP($C29,'Indicateurs Cumulés'!$C$3:$HP$560,188,FALSE)/(VLOOKUP($C29,objectifs!$C$3:$AAB$559,158,FALSE))<=-0.5,(VLOOKUP($C29,objectifs!$C$3:$AAB$559,158,FALSE))*-0.5,VLOOKUP($C29,'Indicateurs Cumulés'!$C$3:$HP$560,188,FALSE)))),VLOOKUP($C29,'Indicateurs Cumulés'!$C$3:$HP$560,188,FALSE),IF(VLOOKUP($C29,'Indicateurs Cumulés'!$C$3:$HP$560,188,FALSE)/(VLOOKUP($C29,objectifs!$C$3:$AAB$559,158,FALSE))>=1.5,(VLOOKUP($C29,objectifs!$C$3:$AAB$559,158,FALSE))*1.5,IF(VLOOKUP($C29,'Indicateurs Cumulés'!$C$3:$HP$560,188,FALSE)/(VLOOKUP($C29,objectifs!$C$3:$AAB$559,158,FALSE))<=-0.5,(VLOOKUP($C29,objectifs!$C$3:$AAB$559,158,FALSE))*-0.5,VLOOKUP($C29,'Indicateurs Cumulés'!$C$3:$HP$560,188,FALSE)))) -> 130 | HR29: 0 | HT29: 2.9 | HV29: 4.37% | HW29: 0.61% | HX29: 1.49% | HY29: 21 | HZ29: 11 | IA29: 3 | IB29: 5 | IC29: 6 | ID29: 1 | IE29: 0 | IF29: -15 | IG29: -2 | IH29: -3 | II29: -6 | IJ29: -1 | IK29: 1 | IL29: 28 | IM29: -21 | IN29: 6 | IO29: 2 | IP29: 1 | IQ29: 1 | IR29: 0 | IS29: 0 | IT29: 0 | IU29: 0 | IV29: -7 | IW29: -0 | IX29: -2 | IY29: -6 | IZ29: -2 | JA29: 1 | JB29: 18 | JC29: -5 | JD29: 0 | JE29: 30 | JF29: 14 | JG29: 0 | JH29: 0 | JI29: 0.00 | JJ29: 0.00 | JK29: 0 | JL29: 0 | JM29: -20 | JN29: 0.20% | JO29: 1 | JQ29: 16 | JR29: 18 | JS29: -21 | JT29: =IF(ISERROR(IF(VLOOKUP($C29,'Indicateurs Cumulés'!$C$3:$HP$560,192,FALSE)/(VLOOKUP($C29,objectifs!$C$3:$AAB$559,162,FALSE))>=1.5,(VLOOKUP($C29,objectifs!$C$3:$AAB$559,162,FALSE))*1.5,IF(VLOOKUP($C29,'Indicateurs Cumulés'!$C$3:$HP$560,192,FALSE)/(VLOOKUP($C29,objectifs!$C$3:$AAB$559,162,FALSE))<=-0.5,(VLOOKUP($C29,objectifs!$C$3:$AAB$559,162,FALSE))*-0.5,VLOOKUP($C29,'Indicateurs Cumulés'!$C$3:$HP$560,192,FALSE)))),VLOOKUP($C29,'Indicateurs Cumulés'!$C$3:$HP$560,192,FALSE),IF(VLOOKUP($C29,'Indicateurs Cumulés'!$C$3:$HP$560,192,FALSE)/(VLOOKUP($C29,objectifs!$C$3:$AAB$559,162,FALSE))>=1.5,(VLOOKUP($C29,objectifs!$C$3:$AAB$559,162,FALSE))*1.5,IF(VLOOKUP($C29,'Indicateurs Cumulés'!$C$3:$HP$560,192,FALSE)/(VLOOKUP($C29,objectifs!$C$3:$AAB$559,162,FALSE))<=-0.5,(VLOOKUP($C29,objectifs!$C$3:$AAB$559,162,FALSE))*-0.5,VLOOKUP($C29,'Indicateurs Cumulés'!$C$3:$HP$560,192,FALSE)))) -> 8 | JU29: -0 | JV29: 0 | JX29: 1 | JY29: 1 | JZ29: -1 | KA29: 0 | KB29: 1 | KC29: 2 | KD29: 0 | KE29: 2 | KF29: 4 | KG29: 0 | KH29: 0 | KI29: 3 | KJ29: 0 | KK29: 1 | KL29: 1 | KM29: 0 | KN29: 0 | KO29: 10 | KP29: 3 | KT29: 3.92 | KU29: 8 | KV29: 2 | KW29: 0 | KX29: 1 | KY29: 0 | KZ29: 0 | LA29: 28 | LB29: 20 | LC29: 0 | LD29: 0 | LE29: 300.2 | LF29: 29 | LG29: 1 | LH29: 1 | LI29: 2 | LJ29: 3 | LK29: 1 | LL29: 0 | LM29: 290 | LN29: 99.6 | LO29: 31 | LP29: 244 | LQ29: -7 | LR29: 4 | LS29: 103.13 | LT29: 99 | LU29: 66 | LV29: 425 | LW29: 76 | LX29: 13 | LY29: 24 | LZ29: 7.4 | MA29: 0.7 | MB29: 1.3 | MC29: 3.8 | MD29: 0.2 | ME29: 0.1 | MF29: 314 | MH29: 0.18%
